Workbook

Sheet LGA Selector
D1: NSW TRADE AND INVESTMENT
D2: VALUE OF AGRICULTURAL PRODUCTION DATA - INTERACTIVE SPREADSHEET
D3: This spreadsheet has been prepared for NSW Trade and Investment to help explore the varying levels
D4: of agricultural production in Local Government Areas and Statistical Divisions across NSW. Please select an LGA and a benchmark from the drop-down menu | L4: To make your own LGA groupings - enter 'r' for password | Y4: ='DropDown Selection'!C12 -> 10050 | AA4: ='DropDown Selection'!C15 -> 155 | AC4: ='DropDown Selection'!F6 ->  | AE4: 100
E5: Note: LGAs may have been amalgamated between 2006 and 2011, only 2011 data will display. To see non displayed 2006 data view LGA Sub Regions
D6: Please select LGA of interest: | Y6: =+'DropDown Selection'!C13 -> Albury | Z6: =+'DropDown Selection'!C13 -> Albury | AA6: ='DropDown Selection'!C16 -> Murray | AC6: =+'DropDown Selection'!F13 -> NSW | AE6: =+'DropDown Selection'!F16 -> NSW
D8: Value of Agricultural Commodities produced | E8: ="Selected Area: "&Y6&" Compared to: "&AC6 -> Selected Area: Albury Compared to: NSW | M8: Economy Multipliers | P8: =AC6&" Compared to NSW" -> NSW Compared to NSW | V8: Economy Multipliers | Y8: 2011 | Z8: 2005-06 | AA8: 2011 | AB8: 2005-06 | AC8: 2011 | AD8: 2005-06 | AE8: 2011 | AF8: 2005-06
D9: LGA compared to selected benchmark | E9: 2011 Agriculture Census | I9: 2005-06 Agriculture Census | M9: 2011 | N9: 2005-06 | P9: =+E9 -> 2011 Agriculture Census | S9: =+I9 -> 2005-06 Agriculture Census | V9: =+M9 -> 2011 | W9: =+N9 -> 2005-06
D10: ='DropDown Selection'!C13&" (Located in "&'DropDown Selection'!C16&")" -> Albury (Located in Murray) | E10: ="$ Value of Ag in "&Z6 -> $ Value of Ag in Albury | F10: ="% of all Ag in "&Z6 -> % of all Ag in Albury | G10: ="% of "&Z6&" over "&AA6&" SD" -> % of Albury over Murray SD | H10: ="% "&Z6&" over "&AC6 -> % Albury over NSW | I10: =+E10 -> $ Value of Ag in Albury | J10: =F10 -> % of all Ag in Albury | K10: =G10 -> % of Albury over Murray SD | L10: =H10 -> % Albury over NSW | M10: =Tables!$C$3 -> 2.1788 | N10: =Tables!$C$3 -> 2.1788 | P10: ="$ Value of Ag in "&AC6 -> $ Value of Ag in NSW | Q10: ="% of all Ag in "&AC6 -> % of all Ag in NSW | R10: ="% of "&AC6&" to "&AE6 -> % of NSW to NSW | S10: =+P10 -> $ Value of Ag in NSW | T10: =+Q10 -> % of all Ag in NSW | U10: =+R10 -> % of NSW to NSW | V10: =Tables!$C$3 -> 2.1788 | W10: =Tables!$C$3 -> 2.1788 | Y10: =Y6 -> Albury | AA10: =AA6 -> Murray | AC10: =AC6 -> NSW | AE10: =AE6 -> NSW
A11: 2 | B11: 100000000 | C11: Cereal crops | D11: =REPT(" ",(A11-1)*2)&C11 -> Cereal crops | E11: =+Y11 -> 478738.6 | F11: =IF(E11>0,(E11/$E$153),"") -> 0.1032163164 | G11: =IF(OR(AA11=0,E11=0),"",($E11/AA11)) -> 0.0007745790626 | H11: =IF(AC11=0,"",($E11/AC11)) -> 0.0001364339271 | I11: =+Z11 -> 717235 | J11: =IF(I11>0,(I11/$I$153),"") -> 0.1410719965 | K11: =IF(AB11=0,"",($I11/AB11)) -> 0.001590749134 | L11: =IF(AD11=0,"",($I11/AD11)) -> 0.000310793763 | M11: =ROUND($E11*M$10,0) -> 1043076 | N11: =ROUND(I11*N$10,0) -> 1562712 | P11: =+AC11 -> 3508940995 | Q11: =IF(P11>0,(P11/$P$153),0) -> 0.3014555784 | R11: =IF(AE11=0,"",+P11/AE11) -> 1 | S11: =+AD11 -> 2307752231 | T11: =IF(S11>0,(S11/$S$153),0) -> 0.2717187076 | U11: =IF(AF11=0,"",+S11/AF11) -> 1 | V11: =ROUND(P11*V$10,0) -> 7645280640 | W11: =ROUND(S11*W$10,0) -> 5028130561 | Y11: 478738.6 | Z11: 717235 | AA11: 618062923.6 | AB11: 450878762 | AC11: 3508940995 | AD11: 2307752231 | AE11: 3508940995 | AF11: 2307752231
A12: 3 | B12: 141501758 | C12: Barley for grain | D12: =REPT(" ",(A12-1)*2)&C12 -> Barley for grain | E12: =+Y12 -> 0 | G12: =IF(OR(AA12=0,E12=0),"",($E12/AA12)) ->  | H12: =IF(AC12=0,"",($E12/AC12)) -> 0 | I12: =+Z12 -> 0 | K12: =IF(AB12=0,"",($I12/AB12)) -> 0 | L12: 0 | M12: =ROUND($E12*M$10,0) -> 0 | N12: 0 | P12: 470954205.5 | Q12: 0.04046000562 | R12: 1 | S12: 279406456 | T12: 0.03289779557 | U12: 1 | V12: 1026115023 | W12: 608770786 | AA12: 79876168 | AB12: 44937752 | AC12: 470954205.5 | AD12: 279406456 | AE12: 470954205.5 | AF12: 279406456
A13: 3 | B13: 141505358 | C13: Maize for grain | D13: =REPT(" ",(A13-1)*2)&C13 -> Maize for grain | E13: =+Y13 -> 0 | G13: =IF(OR(AA13=0,E13=0),"",($E13/AA13)) ->  | H13: =IF(AC13=0,"",($E13/AC13)) -> 0 | I13: =+Z13 -> 0 | K13: =IF(AB13=0,"",($I13/AB13)) -> 0 | L13: 0 | M13: 0 | N13: 0 | P13: 48263984.3 | Q13: 0.004146392693 | R13: 1 | S13: 42119225 | T13: 0.004959189825 | U13: 1 | V13: 105157569 | W13: 91769367 | AA13: 6321325.6 | AB13: 4988280 | AC13: 48263984.3 | AD13: 42119225 | AE13: 48263984.3 | AF13: 42119225
A14: 3 | B14: 141500858 | C14: Oats for grain | D14: =REPT(" ",(A14-1)*2)&C14 -> Oats for grain | E14: =+Y14 -> 2980.8 | F14: 0.0006426621876 | G14: =IF(OR(AA14=0,E14=0),"",($E14/AA14)) -> 0.0003193255495 | H14: =IF(AC14=0,"",($E14/AC14)) -> 3.19048397e-05 | I14: =+Z14 -> 35920 | J14: 0.00706505694 | K14: 0.003558826047 | L14: 0.0003702624001 | M14: 6495 | N14: 78262 | P14: 93427831.9 | Q14: 0.00802645047 | R14: 1 | S14: 97012281 | T14: 0.01142239243 | U14: 1 | V14: 203560560 | W14: 211370358 | Y14: 2980.8 | Z14: 35920 | AA14: 9334674.3 | AB14: 10093216 | AC14: 93427831.9 | AD14: 97012281 | AE14: 93427831.9 | AF14: 97012281
A15: 3 | B15: 141508558 | C15: Rice for grain | D15: =REPT(" ",(A15-1)*2)&C15 -> Rice for grain | E15: =+Y15 -> 0 | G15: =IF(OR(AA15=0,E15=0),"",($E15/AA15)) ->  | H15: =IF(AC15=0,"",($E15/AC15)) -> 0 | I15: =+Z15 -> 0 | K15: 0 | L15: 0 | M15: 0 | N15: 0 | P15: 171919666.4 | Q15: 0.01476973894 | R15: 1 | S15: 270909200 | T15: 0.03189731407 | U15: 1 | V15: 374578569 | W15: 590256965 | AA15: 87481217.3 | AB15: 140274113 | AC15: 171919666.4 | AD15: 270909200 | AE15: 171919666.4 | AF15: 270909200
A16: 3 | B16: 141504158 | C16: Sorghum for grain | D16: Sorghum for grain | E16: 0 | H16: 0 | I16: 0 | K16: 0 | L16: 0 | M16: 0 | N16: 0 | P16: 159469186.8 | Q16: 0.01370010952 | R16: 1 | S16: 117804596 | T16: 0.01387051528 | U16: 1 | V16: 347451464 | W16: 256672654 | AA16: 152066.4 | AB16: 484883 | AC16: 159469186.8 | AD16: 117804596 | AE16: 159469186.8 | AF16: 117804596
A17: 3 | B17: 141508858 | C17: Triticale for grain | D17: Triticale for grain | E17: 57418.5 | F17: 0.01237946149 | G17: 0.006542145788 | H17: 0.001982418828 | I17: 165462 | J17: 0.03254450032 | K17: 0.007679275808 | L17: 0.003251979151 | M17: 125103 | N17: 360509 | P17: 28963859.3 | Q17: 0.002488305437 | R17: 1 | S17: 50880400 | T17: 0.005990745603 | U17: 1 | V17: 63106457 | W17: 110858216 | Y17: 57418.5 | Z17: 165462 | AA17: 8776707.5 | AB17: 21546563 | AC17: 28963859.3 | AD17: 50880400 | AE17: 28963859.3 | AF17: 50880400
A18: 3 | B18: 141500158 | C18: Wheat for grain | D18: Wheat for grain | E18: 418339.3 | F18: 0.09019419273 | G18: 0.0009881765657 | H18: 0.0001665777046 | I18: 515853 | J18: 0.1014624393 | K18: 0.002284187664 | L18: 0.0003600594129 | M18: 911478 | N18: 1123941 | P18: 2511376304 | Q18: 0.2157540971 | R18: 1 | S18: 1432688555 | T18: 0.1686872088 | U18: 1 | V18: 5471786691 | W18: 3121541824 | Y18: 418339.3 | Z18: 515853 | AA18: 423344688.1 | AB18: 225836523 | AC18: 2511376304 | AD18: 1432688555 | AE18: 2511376304 | AF18: 1432688555
A19: 3 | B19: 141510358 | C19: All other cereals for grain or seed | D19: All other cereals for grain or seed | E19: 0 | H19: 0 | I19: 0 | K19: 0 | L19: 0 | M19: 0 | N19: 0 | P19: 24565956.9 | Q19: 0.002110478562 | R19: 1 | S19: 16931518 | T19: 0.001993545982 | U19: 1 | V19: 53524307 | W19: 36890391 | AA19: 2776076.4 | AB19: 2717432 | AC19: 24565956.9 | AD19: 16931518 | AE19: 24565956.9 | AF19: 16931518
A20: 2 | B20: 160000000 | C20: Other broadacre crops | D20: Other broadacre crops | E20: 182269.9 | F20: 0.03929749486 | G20: 0.001790637672 | H20: 9.810576075e-05 | I20: 123836 | J20: 0.02435713784 | K20: 0.002822877434 | L20: 0.000147109429 | M20: 397130 | N20: 269814 | P20: 1857891918 | Q20: 0.1596127958 | R20: 1 | S20: 841795124 | T20: 0.09911440235 | U20: 1 | V20: 4047974911 | W20: 1834103216 | Y20: 182269.9 | Z20: 123836 | AA20: 101790497.8 | AB20: 43868713 | AC20: 1857891918 | AD20: 841795124 | AE20: 1857891918 | AF20: 841795124
A21: 3 | B21: 160000010 | C21: Oilseeds | D21: Oilseeds | E21: 86674.3 | F21: 0.01868702873 | G21: 0.000994986054 | H21: 0.0001978539071 | I21: 123836 | J21: 0.02435713784 | K21: 0.003497544551 | L21: 0.0008997913512 | M21: 188846 | N21: 269814 | P21: 438072218.4 | Q21: 0.03763509108 | R21: 1 | S21: 137627462 | T21: 0.01620449353 | U21: 1 | V21: 954471749 | W21: 299862714 | Y21: 86674.3 | Z21: 123836 | AA21: 87111070.2 | AB21: 35406554 | AC21: 438072218.4 | AD21: 137627462 | AE21: 438072218.4 | AF21: 137627462
A22: 4 | B22: 161900958 | C22: Canola | D22: Canola | E22: 86674.3 | F22: 0.01868702873 | G22: 0.001001600153 | H22: 0.0002131531632 | I22: 123836 | J22: 0.02435713784 | K22: =IF(AB22=0,"",($I22/AB22)) -> 0.003628516514 | L22: =IF(AD22=0,"",($I22/AD22)) -> 0.001334728348 | M22: 188846 | N22: =ROUND(I22*N$10,0) -> 269814 | P22: =+AC22 -> 406629198.9 | Q22: 0.03493379926 | R22: =IF(AE22=0,"",+P22/AE22) -> 1 | S22: =+AD22 -> 92779928 | T22: 0.01092406793 | U22: =IF(AF22=0,"",+S22/AF22) -> 1 | V22: =ROUND(P22*V$10,0) -> 885963699 | W22: =ROUND(S22*W$10,0) -> 202148907 | Y22: 86674.3 | Z22: 123836 | AA22: 86535829.4 | AB22: 34128548 | AC22: 406629198.9 | AD22: 92779928 | AE22: 406629198.9 | AF22: 92779928
A23: 4 | B23: 161901458 | C23: Safflower | D23: Safflower | E23: 0 | H23: 0 | I23: 0 | K23: 0 | L23: 0 | M23: 0 | N23: 0 | P23: 2245410 | Q23: 0.0001929047457 | R23: 1 | S23: 4110659 | T23: 0.0004839960442 | U23: 1 | V23: 4892299 | W23: 8956304 | AA23: 65948 | AB23: 305581 | AC23: 2245410 | AD23: 4110659 | AE23: 2245410 | AF23: 4110659
A24: 4 | B24: 161903958 | C24: Sunflower | D24: Sunflower | E24: 0 | H24: 0 | I24: 0 | K24: 0 | L24: 0 | M24: 0 | N24: 0 | P24: 18812772.5 | Q24: 0.001616218461 | R24: 1 | S24: 28344946 | T24: 0.00333738258 | U24: 1 | V24: 40989269 | W24: 61757968 | AA24: 175321.9 | AB24: 30880 | AC24: 18812772.5 | AD24: 28344946 | AE24: 18812772.5 | AF24: 28344946
A25: 4 | B25: 161801758 | C25: Soybeans | D25: Soybeans | E25: 0 | H25: 0 | I25: 0 | K25: 0 | L25: 0 | M25: 0 | N25: 0 | P25: 10384837 | Q25: 0.0008921686196 | R25: 1 | S25: 12391929 | T25: 0.001459046984 | U25: 1 | V25: 22626483 | W25: 26999535 | AA25: 333970.9 | AB25: 941545 | AC25: 10384837 | AD25: 12391929 | AE25: 10384837 | AF25: 12391929
A26: 3 | B26: 161803258 | C26: Cotton | D26: Cotton | E26: 0 | H26: 0 | I26: 0 | L26: 0 | M26: 0 | N26: 0 | P26: 1125747532 | Q26: 0.09671375885 | R26: 1 | S26: 574625830 | T26: 0.06765743124 | U26: 1 | V26: 2452778722 | W26: 1251994758 | AA26: 2592296 | AB26: 0 | AC26: 1125747532 | AD26: 574625830 | AE26: 1125747532 | AF26: 574625830
A27: 3 | B27: 161806558 | C27: Lavender | D27: Lavender | E27: 0 | H27: 0 | I27: 0 | M27: 0 | N27: 0 | P27: 382351.8 | Q27: 3.284811092e-05 | R27: 1 | S27: 0 | T27: 0 | V27: 833068 | W27: 0 | AA27: 0 | AB27: 0 | AC27: 382351.8 | AD27: 0 | AE27: 382351.8 | AF27: 0
A28: 3 | B28: 161808158 | C28: Peanuts | D28: Peanuts | E28: 0 | H28: 0 | I28: 0 | L28: 0 | M28: 0 | N28: 0 | P28: 489340.6 | Q28: 4.203959365e-05 | R28: 1 | S28: 351171 | T28: 4.134747612e-05 | U28: 1 | V28: 1066175 | W28: 765131 | AA28: 0 | AB28: 0 | AC28: 489340.6 | AD28: 351171 | AE28: 489340.6 | AF28: 351171
A29: 3 | B29: 160000020 | C29: Legumes for grain | D29: Legumes for grain | E29: 0 | H29: 0 | I29: 0 | K29: 0 | L29: 0 | M29: 0 | N29: 0 | P29: 143741470.7 | Q29: 0.01234893042 | R29: 1 | S29: 42007824 | T29: 0.00494607328 | U29: 1 | V29: 313183916 | W29: 91526647 | Y29: 0 | Z29: 0 | AA29: 2521687.5 | AB29: 3273637 | AC29: 143741470.7 | AD29: 42007824 | AE29: 143741470.7 | AF29: 42007824
A30: 4 | B30: 161900358 | C30: Chick peas | D30: Chick peas | E30: 0 | H30: 0 | I30: 0 | K30: 0 | L30: 0 | M30: 0 | N30: 0 | P30: 119706769.2 | Q30: 0.01028409238 | R30: 1 | S30: 26947972 | T30: 0.003172900464 | U30: 1 | V30: 260817109 | W30: 58714241 | AA30: 166653.4 | AB30: 134624 | AC30: 119706769.2 | AD30: 26947972 | AE30: 119706769.2 | AF30: 26947972
A31: 4 | B31: 161800958 | C31: Field beans | D31: Field beans | E31: 0 | H31: 0 | I31: 0 | K31: 0 | L31: 0 | M31: 0 | N31: 0 | P31: 1410240.6 | Q31: 0.0001211547576 | R31: 1 | S31: 14280530 | T31: 0.001681414106 | U31: 1 | V31: 3072632 | W31: 31114419 | AA31: 0 | AB31: 2476050 | AC31: 1410240.6 | AD31: 14280530 | AE31: 1410240.6 | AF31: 14280530
A32: 4 | B32: 161809158 | C32: Field Peas | D32: Field Peas | E32: 0 | H32: 0 | I32: 0 | M32: 0 | N32: 0 | P32: 6309415.2 | Q32: 0.0005420462786 | R32: 1 | S32: 0 | T32: 0 | V32: 13746954 | W32: 0 | AA32: 2005166.1 | AB32: 0 | AC32: 6309415.2 | AD32: 0 | AE32: 6309415.2 | AF32: 0
A33: 4 | B33: 161905258 | C33: Lentils | D33: Lentils | E33: 0 | H33: 0 | I33: 0 | K33: 0 | L33: 0 | M33: 0 | N33: 0 | P33: 412848.5 | Q33: 3.546810377e-05 | R33: 1 | S33: 779322 | T33: 9.175870953e-05 | U33: 1 | V33: 899514 | W33: 1697987 | AA33: 231606.9 | AB33: 662963 | AC33: 412848.5 | AD33: 779322 | AE33: 412848.5 | AF33: 779322
A34: 4 | B34: 161907658 | C34: Faba beans (includes tick and horse and broad) | D34: Faba beans (includes tick and horse and broad) | E34: 0 | H34: 0 | I34: 0 | M34: 0 | N34: 0 | P34: 15902197.2 | Q34: 0.001366168898 | R34: 1 | S34: 0 | T34: 0 | V34: 34647707 | W34: 0 | AA34: 118261.1 | AB34: 0 | AC34: 15902197.2 | AD34: 0 | AE34: 15902197.2 | AF34: 0
A35: 3 | B35: 161807058 | C35: Lupins for grain | D35: Lupins for grain | E35: 87469.7 | F35: 0.01885851743 | G35: 0.009996788719 | H35: 0.001192021378 | I35: 0 | K35: 0 | L35: 0 | M35: 190579 | N35: 0 | P35: 73379304.8 | Q35: 0.006304067466 | R35: 1 | S35: 22298892 | T35: 0.002625509807 | U35: 1 | V35: 159878829 | W35: 48584826 | Y35: 87469.7 | Z35: 0 | AA35: 8749779.8 | AB35: 5188522 | AC35: 73379304.8 | AD35: 22298892 | AE35: 73379304.8 | AF35: 22298892
A36: 3 | B36: 161901558 | C36: Sesame seed | D36: Sesame seed | E36: 0 | H36: 0 | I36: 0 | M36: 0 | N36: 0 | P36: 42608.7 | Q36: 3.660543258e-06 | R36: 1 | S36: 0 | T36: 0 | V36: 92836 | W36: 0 | AA36: 0 | AB36: 0 | AC36: 42608.7 | AD36: 0 | AE36: 42608.7 | AF36: 0
A37: 3 | B37: 160000030 | C37: Sugar cane | D37: Sugar cane | E37: 0 | H37: 0 | I37: 0 | L37: 0 | M37: 0 | N37: 0 | P37: 63127273.3 | Q37: 0.00542330826 | R37: 1 | S37: 64883945 | T37: 0.00763954702 | U37: 1 | V37: 137541703 | W37: 141369139 | Y37: 0 | Z37: 0 | AA37: 0 | AB37: 0 | AC37: 63127273.3 | AD37: 64883945 | AE37: 63127273.3 | AF37: 64883945
A38: 4 | B38: 161903158 | C38: Sugar cane (2006) | D38: Sugar cane (2006) | E38: 0 | I38: 0 | L38: 0 | M38: 0 | N38: 0 | P38: 0 | Q38: 0 | S38: 64883945 | T38: 0.00763954702 | U38: 1 | V38: 0 | W38: 141369139 | AA38: 0 | AB38: 0 | AC38: 0 | AD38: 64883945 | AE38: 0 | AF38: 64883945
A39: 4 | B39: 161902158 | C39: Sugar cane - Cut for crushing | D39: Sugar cane - Cut for crushing | E39: 0 | H39: 0 | I39: 0 | M39: 0 | N39: 0 | P39: 61828509.1 | Q39: 0.005311730518 | R39: 1 | S39: 0 | T39: 0 | V39: 134711956 | W39: 0 | AA39: 0 | AB39: 0 | AC39: 61828509.1 | AD39: 0 | AE39: 61828509.1 | AF39: 0
A40: 4 | B40: 161902358 | C40: Sugar cane - Cut for plants | D40: Sugar cane - Cut for plants | E40: 0 | H40: 0 | I40: 0 | M40: 0 | N40: 0 | P40: 1298764.2 | Q40: 0.000111577742 | R40: 1 | S40: 0 | T40: 0 | V40: 2829747 | W40: 0 | AA40: 0 | AB40: 0 | AC40: 1298764.2 | AD40: 0 | AE40: 1298764.2 | AF40: 0
A41: 3 | B41: 161904858 | C41: Vetches for seed | D41: Vetches for seed | E41: 0 | H41: 0 | I41: 0 | M41: 0 | N41: 0 | P41: 249360.4 | Q41: 2.14227266e-05 | R41: 1 | S41: 0 | T41: 0 | V41: 543306 | W41: 0 | AA41: 149187.3 | AB41: 0 | AC41: 249360.4 | AD41: 0 | AE41: 249360.4 | AF41: 0
A42: 3 | B42: 161907258 | C42: Coriander | D42: Coriander | E42: 0 | H42: 0 | I42: 0 | M42: 0 | N42: 0 | P42: 104703.3 | Q42: 8.995133831e-06 | R42: 1 | S42: 0 | T42: 0 | V42: 228128 | W42: 0 | AA42: 0 | AB42: 0 | AC42: 104703.3 | AD42: 0 | AE42: 104703.3 | AF42: 0
A43: 3 | B43: 161910358 | C43: Other crops | D43: Other crops | E43: 8125.9 | F43: =IF(E43>0,(E43/$E$153),"") -> 0.001751948695 | G43: 0.01219231871 | H43: 0.0006471853256 | I43: 0 | J43: =IF(I43>0,(I43/$I$153),"") ->  | M43: 17705 | N43: 0 | P43: 12555754.4 | Q43: =IF(P43>0,(P43/$P$153),0) -> 0.001078673654 | R43: 1 | S43: 0 | T43: =IF(S43>0,(S43/$S$153),0) -> 0 | V43: 27356478 | W43: 0 | Y43: 8125.9 | Z43: 0 | AA43: 666477 | AB43: 0 | AC43: 12555754.4 | AD43: 0 | AE43: 12555754.4 | AF43: 0
A44: 2 | B44: 180000000 | C44: Nurseries, cut flowers and cultivated turf | D44: Nurseries, cut flowers and cultivated turf | E44: 210240.5 | F44: 0.04532797224 | G44: 0.02969487473 | H44: 0.0006746984398 | I44: 60349 | J44: 0.0118699644 | K44: 0.004692289558 | L44: 0.0001708150533 | M44: 458072 | N44: 131488 | P44: 311606619.5 | Q44: 0.02677034291 | R44: 1 | S44: 353300244 | T44: 0.04159817696 | U44: 1 | V44: 678928503 | W44: 769770572 | Y44: 210240.5 | Z44: 60349 | AA44: 7080026.5 | AB44: 12861312 | AC44: 311606619.5 | AD44: 353300244 | AE44: 311606619.5 | AF44: 353300244
A45: 3 | B45: 181908558 | C45: Cultivated turf | D45: Cultivated turf | E45: 0 | H45: 0 | I45: 0 | K45: 0 | L45: 0 | M45: 0 | N45: 0 | P45: 81741567.7 | Q45: 0.007022475328 | R45: 1 | S45: 58382697 | T45: 0.006874078925 | U45: 1 | V45: 178098528 | W45: 127204220 | AA45: 0 | AB45: 2256456 | AC45: 81741567.7 | AD45: 58382697 | AE45: 81741567.7 | AF45: 58382697
A46: 3 | B46: 180000010 | C46: Nurseries | D46: Nurseries | E46: 126151.8 | F46: 0.02719840035 | G46: 0.02015722249 | H46: 0.0007237781454 | I46: 0 | K46: 0 | L46: 0 | M46: 274860 | N46: 0 | P46: 174296227.1 | Q46: 0.01497391094 | R46: 1 | S46: 210502397 | T46: 0.02478491343 | U46: 1 | V46: 379756620 | W46: 458642623 | Y46: 126151.8 | Z46: 0 | AA46: 6258392 | AB46: 10034343 | AC46: 174296227.1 | AD46: 210502397 | AE46: 174296227.1 | AF46: 210502397
A47: 4 | B47: 181918158 | C47: Nurseries (2006) | D47: Nurseries (2006) | E47: 0 | I47: 0 | K47: 0 | L47: 0 | M47: 0 | N47: 0 | P47: 0 | Q47: 0 | S47: 210502397 | T47: 0.02478491343 | U47: 1 | V47: 0 | W47: 458642623 | Y47: 0 | Z47: 0 | AA47: 0 | AB47: 10034343 | AC47: 0 | AD47: 210502397 | AE47: 0 | AF47: 210502397
A48: 4 | B48: 181919158 | C48: Nurseries - Undercover - Area | D48: Nurseries - Undercover - Area | E48: 105600 | F48: 0.02276742049 | G48: 0.05999659451 | H48: 0.002040458154 | I48: 0 | M48: 230081 | N48: 0 | P48: 51753082.9 | Q48: 0.004446143597 | R48: 1 | S48: 0 | T48: 0 | V48: 112759617 | W48: 0 | Y48: 105600 | Z48: 0 | AA48: 1760099.9 | AB48: 0 | AC48: 51753082.9 | AD48: 0 | AE48: 51753082.9 | AF48: 0
A49: 4 | B49: 181919258 | C49: Nurseries - Outdoor - Area | D49: Nurseries - Outdoor - Area | E49: 20551.8 | F49: 0.004430979853 | G49: 0.004568800679 | H49: 0.0001677107286 | I49: 0 | M49: 44778 | N49: 0 | P49: 122543144.2 | Q49: 0.01052776734 | R49: 1 | S49: 0 | T49: 0 | V49: 266997003 | W49: 0 | Y49: 20551.8 | Z49: 0 | AA49: 4498292.1 | AB49: 0 | AC49: 122543144.2 | AD49: 0 | AE49: 122543144.2 | AF49: 0
A50: 3 | B50: 180000020 | C50: Cut flowers | D50: Cut flowers | E50: 84088.7 | F50: 0.01812957189 | G50: 0.1023431952 | H50: 0.001513235172 | I50: 60349 | J50: 0.0118699644 | K50: 0.1057802364 | L50: 0.0007149072175 | M50: 183212 | N50: 131488 | P50: 55568824.7 | Q50: 0.004773956647 | R50: 1 | S50: 84415150 | T50: 0.009939184611 | U50: 1 | V50: 121073355 | W50: 183923729 | Y50: 84088.7 | Z50: 60349 | AA50: 821634.5 | AB50: 570513 | AC50: 55568824.7 | AD50: 84415150 | AE50: 55568824.7 | AF50: 84415150
A51: 4 | B51: 181918358 | C51: Cut flowers (2006) | D51: =REPT(" ",(A51-1)*2)&C51 -> Cut flowers (2006) | E51: =+Y51 -> 0 | G51: =IF(OR(AA51=0,E51=0),"",($E51/AA51)) ->  | H51: =IF(AC51=0,"",($E51/AC51)) ->  | I51: =+Z51 -> 60349 | J51: 0.0118699644 | K51: =IF(AB51=0,"",($I51/AB51)) -> 0.1057802364 | L51: 0.0007149072175 | M51: 0 | N51: 131488 | P51: 0 | Q51: 0 | S51: 84415150 | T51: 0.009939184611 | U51: 1 | V51: 0 | W51: 183923729 | Y51: 0 | Z51: 60349 | AA51: 0 | AB51: 570513 | AC51: 0 | AD51: 84415150 | AE51: 0 | AF51: 84415150
A52: 4 | B52: 181919358 | C52: Cut flowers - Undercover - Area | D52: Cut flowers - Undercover - Area | E52: 0 | H52: 0 | I52: 0 | M52: 0 | N52: 0 | P52: 28652375.1 | Q52: 0.002461545611 | R52: 1 | S52: 0 | T52: 0 | V52: 62427795 | W52: 0 | AA52: 26292.7 | AB52: 0 | AC52: 28652375.1 | AD52: 0 | AE52: 28652375.1 | AF52: 0
A53: 4 | B53: 181919458 | C53: Cut flowers - Outdoor - Area | D53: Cut flowers - Outdoor - Area | E53: 84088.7 | F53: 0.01812957189 | G53: 0.1057264939 | H53: 0.003124063584 | I53: 0 | M53: 183212 | N53: 0 | P53: 26916449.6 | Q53: 0.002312411036 | R53: 1 | S53: 0 | T53: 0 | V53: 58645560 | W53: 0 | Y53: 84088.7 | Z53: 0 | AA53: 795341.8 | AB53: 0 | AC53: 26916449.6 | AD53: 0 | AE53: 26916449.6 | AF53: 0
A54: 2 | B54: 120000000 | C54: Crops for hay | D54: Crops for hay | E54: 391496.5 | F54: 0.08440686967 | G54: 0.007304492289 | H54: 0.001380302849 | I54: 14086 | J54: 0.002770556572 | K54: 0.003445183164 | L54: 0.0004674076103 | M54: 852993 | N54: 30691 | P54: 283630871.5 | Q54: 0.02436692681 | R54: 1 | S54: 30136437 | T54: 0.003548315804 | U54: 1 | V54: 617974943 | W54: 65661269 | Y54: 391496.5 | Z54: 14086 | AA54: 53596675.1 | AB54: 4088607 | AC54: 283630871.5 | AD54: 30136437 | AE54: 283630871.5 | AF54: 30136437
A55: 3 | B55: 123308058 | C55: Hay - Cereal crops cut for hay | D55: Hay - Cereal crops cut for hay | E55: 9329.1 | F55: 0.002011359304 | G55: 0.0006349992074 | H55: 0.000134187287 | I55: 0 | M55: 20326 | N55: 0 | P55: 69522979.5 | Q55: 0.005972767859 | R55: 1 | S55: 0 | T55: 0 | V55: 151476668 | W55: 0 | Y55: 9329.1 | Z55: 0 | AA55: 14691514.4 | AB55: 0 | AC55: 69522979.5 | AD55: 0 | AE55: 69522979.5 | AF55: 0
A56: 3 | B56: 123308158 | C56: Hay - Other crops cut for hay | D56: Hay - Other crops cut for hay | E56: 57964.1 | F56: 0.01249709317 | G56: 0.01578210925 | H56: 0.00170205359 | I56: 14086 | J56: 0.002770556572 | K56: 0.003445183164 | L56: 0.0004674076103 | M56: 126292 | N56: 30691 | P56: 34055390.7 | Q56: 0.002925722465 | R56: 1 | S56: 30136437 | T56: 0.003548315804 | U56: 1 | V56: 74199885 | W56: 65661269 | Y56: 57964.1 | Z56: 14086 | AA56: 3672772.7 | AB56: 4088607 | AC56: 34055390.7 | AD56: 30136437 | AE56: 34055390.7 | AF56: 30136437
A57: 3 | B57: 123308558 | C57: Hay - Pasture cut for hay | D57: Hay - Pasture cut for hay | E57: 324203.3 | F57: 0.0698984172 | G57: 0.009201854271 | H57: 0.001800604255 | I57: 0 | M57: 706374 | N57: 0 | P57: 180052501.3 | Q57: 0.01546843649 | R57: 1 | S57: 0 | T57: 0 | V57: 392298390 | W57: 0 | Y57: 324203.3 | Z57: 0 | AA57: 35232388 | AB57: 0 | AC57: 180052501.3 | AD57: 0 | AE57: 180052501.3 | AF57: 0
A58: 2 | B58: 300000000 | C58: Vegetables | D58: Vegetables | E58: 1342 | F58: 0.0002893359688 | G58: 3.84825147e-05 | H58: 3.013554838e-06 | I58: 36017 | J58: 0.007084135741 | K58: 0.001307532833 | L58: 0.0001545106976 | M58: 2924 | N58: 78474 | P58: 445321247.6 | Q58: 0.03825786026 | R58: 1 | S58: 233103601 | T58: 0.02744601797 | U58: 1 | V58: 970265934 | W58: 507886126 | Y58: 1342 | Z58: 36017 | AA58: 34872980.9 | AB58: 27545771 | AC58: 445321247.6 | AD58: 233103601 | AE58: 445321247.6 | AF58: 233103601
A59: 3 | B59: 303410051 | C59: All other vegetables for seed | D59: All other vegetables for seed | E59: 0 | H59: 0 | I59: 0 | M59: 0 | N59: 0 | P59: 6034470.3 | Q59: 0.0005184255697 | R59: 1 | S59: 0 | T59: 0 | V59: 13147904 | W59: 0 | AA59: 218793.9 | AB59: 0 | AC59: 6034470.3 | AD59: 0 | AE59: 6034470.3 | AF59: 0
A60: 3 | B60: 303600658 | C60: Asparagus | D60: Asparagus | E60: 0 | H60: 0 | I60: 0 | K60: 0 | L60: 0 | M60: 0 | N60: 0 | P60: 1095591.7 | Q60: 9.412305024e-05 | R60: 1 | S60: 791840 | T60: 9.323260033e-05 | U60: 1 | V60: 2387075 | W60: 1725261 | AA60: 990790.4 | AB60: 761971 | AC60: 1095591.7 | AD60: 791840 | AE60: 1095591.7 | AF60: 791840
A61: 3 | B61: 300000010 | C61: Beans | D61: Beans | E61: 0 | H61: 0 | I61: 0 | L61: =IF(AD61=0,"",($I61/AD61)) ->  | M61: 0 | N61: =ROUND(I61*N$10,0) -> 0 | P61: =+AC61 -> 1252257.4 | Q61: 0.0001075823102 | R61: =IF(AE61=0,"",+P61/AE61) -> 1 | S61: =+AD61 -> 0 | T61: 0 | U61: =IF(AF61=0,"",+S61/AF61) ->  | V61: =ROUND(P61*V$10,0) -> 2728418 | W61: =ROUND(S61*W$10,0) -> 0 | Y61: 0 | Z61: 0 | AA61: 628938.5 | AB61: 0 | AC61: 1252257.4 | AD61: 0 | AE61: 1252257.4 | AF61: 0
A62: 4 | B62: 303601258 | C62: Beans (french and runner) - Fresh market | D62: Beans (french and runner) - Fresh market | E62: 0 | H62: 0 | I62: 0 | M62: 0 | N62: 0 | P62: 1242925.7 | Q62: 0.0001067806174 | R62: 1 | S62: 0 | T62: 0 | V62: 2708087 | W62: 0 | AA62: 628938.5 | AB62: 0 | AC62: 1242925.7 | AD62: 0 | AE62: 1242925.7 | AF62: 0
A63: 4 | B63: 303601158 | C63: Beans (french and runner) - Processing | D63: Beans (french and runner) - Processing | E63: 0 | H63: 0 | I63: 0 | M63: 0 | N63: 0 | P63: 9331.7 | Q63: 8.016928824e-07 | R63: 1 | S63: 0 | T63: 0 | V63: 20332 | W63: 0 | AA63: 0 | AB63: 0 | AC63: 9331.7 | AD63: 0 | AE63: 9331.7 | AF63: 0
A64: 3 | B64: 303601758 | C64: Broccoli | D64: Broccoli | E64: 502.3 | F64: 0.0001082961677 | G64: 0.9091402715 | H64: 9.617218248e-05 | I64: 0 | K64: 0 | L64: 0 | M64: 1094 | N64: 0 | P64: 5222924 | Q64: 0.0004487050587 | R64: 1 | S64: 7147202 | T64: 0.0008415238275 | U64: 1 | V64: 11379707 | W64: 15572324 | Y64: 502.3 | Z64: 0 | AA64: 552.5 | AB64: 6664 | AC64: 5222924 | AD64: 7147202 | AE64: 5222924 | AF64: 7147202
A65: 3 | B65: 303613658 | C65: Capsicum excluding chillies | D65: Capsicum excluding chillies | E65: 0 | H65: 0 | I65: 0 | K65: 0 | L65: 0 | M65: 0 | N65: 0 | P65: 3777441.4 | Q65: 0.0003245226362 | R65: 1 | S65: 1709869 | T65: 0.0002013229101 | U65: 1 | V65: 8230289 | W65: 3725463 | AA65: 2179021.3 | AB65: 400422 | AC65: 3777441.4 | AD65: 1709869 | AE65: 3777441.4 | AF65: 1709869
A66: 3 | B66: 303602458 | C66: Carrots | D66: Carrots | E66: 0 | H66: 0 | I66: 0 | K66: 0 | L66: 0 | M66: 0 | N66: 0 | P66: 1333111.4 | Q66: 0.000114528534 | R66: 1 | S66: 6799419 | T66: 0.0008005752603 | U66: 1 | V66: 2904583 | W66: 14814574 | AA66: 1529.8 | AB66: 31718 | AC66: 1333111.4 | AD66: 6799419 | AE66: 1333111.4 | AF66: 6799419
A67: 3 | B67: 303602758 | C67: Cauliflowers | D67: Cauliflowers | E67: 0 | H67: 0 | I67: 0 | K67: 0 | L67: 0 | M67: 0 | N67: 0 | P67: 7264782.7 | Q67: 0.0006241225696 | R67: 1 | S67: 7993607 | T67: 0.0009411810046 | U67: 1 | V67: 15828509 | W67: 17416471 | AA67: 212233.7 | AB67: 163864 | AC67: 7264782.7 | AD67: 7993607 | AE67: 7264782.7 | AF67: 7993607
A68: 3 | B68: 303604258 | C68: Herbs | D68: Herbs | E68: 716.4 | F68: 0.0001544562504 | G68: 0.1999944167 | H68: 0.0001612421316 | I68: 0 | K68: 0 | L68: 0 | M68: 1561 | N68: 0 | P68: 4443007.5 | Q68: 0.000381701886 | R68: 1 | S68: 2790069 | T68: 0.0003285075116 | U68: 1 | V68: 9680425 | W68: 6079002 | Y68: 716.4 | Z68: 0 | AA68: 3582.1 | AB68: 27407 | AC68: 4443007.5 | AD68: 2790069 | AE68: 4443007.5 | AF68: 2790069
A69: 3 | B69: 303614558 | C69: Lettuce | D69: Lettuce | E69: 0 | H69: 0 | I69: 0 | K69: 0 | L69: 0 | M69: 0 | N69: 0 | P69: 16394075.4 | Q69: 0.001408426499 | R69: 1 | S69: 27747941 | T69: 0.003267090187 | U69: 1 | V69: 35719411 | W69: 60457214 | AA69: 0 | AB69: 64934 | AC69: 16394075.4 | AD69: 27747941 | AE69: 16394075.4 | AF69: 27747941
A70: 3 | B70: 303614058 | C70: Melons - other | D70: Melons - other | E70: 0 | H70: 0 | I70: 0 | L70: 0 | M70: 0 | N70: 0 | P70: 52494687.4 | Q70: 0.004509855359 | R70: 1 | S70: 85882 | T70: 1.011189405e-05 | U70: 1 | V70: 114375425 | W70: 187120 | AA70: 3474895.7 | AB70: 0 | AC70: 52494687.4 | AD70: 85882 | AE70: 52494687.4 | AF70: 85882
A71: 3 | B71: 303605858 | C71: Mushrooms | D71: Mushrooms | E71: 0 | H71: 0 | I71: 0 | L71: 0 | M71: 0 | N71: 0 | P71: 99986461.3 | Q71: 0.008589906915 | R71: 1 | S71: 63405318 | T71: 0.00746545094 | U71: 1 | V71: 217850502 | W71: 138147507 | AA71: 0 | AB71: 0 | AC71: 99986461.3 | AD71: 63405318 | AE71: 99986461.3 | AF71: 63405318
A72: 3 | B72: 303611558 | C72: Onions | D72: Onions | E72: 0 | H72: 0 | I72: 0 | K72: 0 | L72: 0 | M72: 0 | N72: 0 | P72: 12705697.6 | Q72: 0.001091555379 | R72: 1 | S72: 12460714 | T72: 0.001467145848 | U72: 1 | V72: 27683174 | W72: 27149404 | AA72: 1932210.7 | AB72: 2002853 | AC72: 12705697.6 | AD72: 12460714 | AE72: 12705697.6 | AF72: 12460714
A73: 3 | B73: 303630058 | C73: Other vegetables | D73: Other vegetables | E73: 0 | H73: 0 | I73: 36017 | J73: 0.007084135741 | K73: 0.8433907037 | L73: 0.007048885608 | M73: 0 | N73: 78474 | P73: 93752565.8 | Q73: 0.008054348587 | R73: 1 | S73: 5109602 | T73: 0.0006016133071 | U73: 1 | V73: 204268090 | W73: 11132801 | Y73: 0 | Z73: 36017 | AA73: 4335189.6 | AB73: 42705 | AC73: 93752565.8 | AD73: 5109602 | AE73: 93752565.8 | AF73: 5109602
A74: 3 | B74: 300000020 | C74: Peas | D74: Peas | E74: 0 | H74: 0 | I74: 0 | L74: 0 | M74: 0 | N74: 0 | P74: 482289.6 | Q74: 4.14338373e-05 | R74: 1 | S74: 757742 | T74: 8.92178433e-05 | U74: 1 | V74: 1050813 | W74: 1650968 | Y74: 0 | Z74: 0 | AA74: 8483.5 | AB74: 0 | AC74: 482289.6 | AD74: 757742 | AE74: 482289.6 | AF74: 757742
A75: 4 | B75: 303606758 | C75: Peas - green (for fresh market) | D75: Peas - green (for fresh market) | E75: 0 | F75: =IF(E75>0,(E75/$E$153),"") ->  | H75: 0 | I75: 0 | J75: =IF(I75>0,(I75/$I$153),"") ->  | L75: 0 | M75: 0 | N75: 0 | P75: 474611.6 | Q75: =IF(P75>0,(P75/$P$153),0) -> 4.077421495e-05 | R75: 1 | S75: 757742 | T75: =IF(S75>0,(S75/$S$153),0) -> 8.92178433e-05 | U75: 1 | V75: 1034084 | W75: 1650968 | AA75: 6530.6 | AB75: 0 | AC75: 474611.6 | AD75: 757742 | AE75: 474611.6 | AF75: 757742
A76: 4 | B76: 303606658 | C76: Peas - green (for processing) | D76: Peas - green (for processing) | E76: 0 | F76: =IF(E76>0,(E76/$E$153),"") ->  | H76: 0 | I76: 0 | J76: =IF(I76>0,(I76/$I$153),"") ->  | M76: 0 | N76: 0 | P76: 7678 | Q76: =IF(P76>0,(P76/$P$153),0) -> 6.596223572e-07 | R76: 1 | S76: 0 | T76: =IF(S76>0,(S76/$S$153),0) -> 0 | V76: 16729 | W76: 0 | AA76: 1952.9 | AB76: 0 | AC76: 7678 | AD76: 0 | AE76: 7678 | AF76: 0
A77: 3 | B77: 303505959 | C77: Potatoes | D77: Potatoes | E77: =+Y77 -> 0 | F77: =IF(E77>0,(E77/$E$153),"") ->  | G77: =IF(OR(AA77=0,E77=0),"",($E77/AA77)) ->  | H77: =IF(AC77=0,"",($E77/AC77)) -> 0 | I77: =+Z77 -> 0 | J77: =IF(I77>0,(I77/$I$153),"") ->  | K77: =IF(AB77=0,"",($I77/AB77)) -> 0 | L77: =IF(AD77=0,"",($I77/AD77)) -> 0 | M77: 0 | N77: =ROUND(I77*N$10,0) -> 0 | P77: =+AC77 -> 60127691.4 | Q77: =IF(P77>0,(P77/$P$153),0) -> 0.005165612078 | R77: =IF(AE77=0,"",+P77/AE77) -> 1 | S77: =+AD77 -> 49338408 | T77: =IF(S77>0,(S77/$S$153),0) -> 0.005809188819 | U77: =IF(AF77=0,"",+S77/AF77) -> 1 | V77: =ROUND(P77*V$10,0) -> 131006214 | W77: =ROUND(S77*W$10,0) -> 107498523 | Y77: 0 | Z77: 0 | AA77: 15014155 | AB77: 18354985 | AC77: 60127691.4 | AD77: 49338408 | AE77: 60127691.4 | AF77: 49338408
A78: 4 | B78: 303505958 | C78: Potatoes (2006) | D78: Potatoes (2006) | E78: 0 | I78: 0 | K78: 0 | L78: 0 | M78: 0 | N78: 0 | P78: 0 | Q78: 0 | S78: 49338408 | T78: 0.005809188819 | U78: 1 | V78: 0 | W78: 107498523 | AA78: 0 | AB78: 18354985 | AC78: 0 | AD78: 49338408 | AE78: 0 | AF78: 49338408
A79: 4 | B79: 303501658 | C79: Potatoes - Processing | D79: Potatoes - Processing | E79: 0 | H79: 0 | I79: 0 | M79: 0 | N79: 0 | P79: 23561420 | Q79: 0.002024178093 | R79: 1 | S79: 0 | T79: 0 | V79: 51335622 | W79: 0 | AA79: 14020766.2 | AB79: 0 | AC79: 23561420 | AD79: 0 | AE79: 23561420 | AF79: 0
A80: 4 | B80: 303501758 | C80: Potatoes - Fresh market | D80: Potatoes - Fresh market | E80: 0 | H80: 0 | I80: 0 | M80: 0 | N80: 0 | P80: 36566271.4 | Q80: 0.003141433985 | R80: 1 | S80: 0 | T80: 0 | V80: 79670592 | W80: 0 | AA80: 993388.8 | AB80: 0 | AC80: 36566271.4 | AD80: 0 | AE80: 36566271.4 | AF80: 0
A81: 3 | B81: 303607158 | C81: Pumpkins & triambles & trombones | D81: Pumpkins & triambles & trombones | E81: 0 | H81: 0 | I81: 0 | K81: 0 | L81: 0 | M81: 0 | N81: 0 | P81: 25332694.3 | Q81: 0.002176349509 | R81: 1 | S81: 21461865 | T81: 0.002526956812 | U81: 1 | V81: 55194874 | W81: 46761111 | AA81: 2745397.4 | AB81: 2196686 | AC81: 25332694.3 | AD81: 21461865 | AE81: 25332694.3 | AF81: 21461865
A82: 3 | B82: 303608058 | C82: Sweet corn | D82: Sweet corn | E82: 0 | H82: 0 | I82: 0 | K82: 0 | L82: 0 | M82: 0 | N82: 0 | P82: 9076037.2 | Q82: 0.0007797287122 | R82: 1 | S82: 5788500 | T82: 0.0006815479226 | U82: 1 | V82: 19774870 | W82: 12611984 | AA82: 0 | AB82: 33359 | AC82: 9076037.2 | AD82: 5788500 | AE82: 9076037.2 | AF82: 5788500
A83: 3 | B83: 303608858 | C83: Tomatoes | D83: Tomatoes | E83: 123.3 | F83: 2.658355063e-05 | G83: 3.942815678e-05 | H83: 2.76795877e-06 | I83: 0 | K83: 0 | L83: 0 | M83: 269 | N83: 0 | P83: 44545461.2 | Q83: 0.003826931769 | R83: 1 | S83: 19715623 | T83: 0.002321351282 | U83: 1 | V83: 97055651 | W83: 42956399 | Y83: 123.3 | Z83: 0 | AA83: 3127206.8 | AB83: 3458203 | AC83: 44545461.2 | AD83: 19715623 | AE83: 44545461.2 | AF83: 19715623
A84: 2 | B84: 420000000 | C84: Citrus Fruit | D84: Citrus Fruit | E84: 0 | H84: 0 | I84: 0 | K84: 0 | L84: 0 | M84: 0 | N84: 0 | P84: 110019988 | Q84: 0.009451894221 | R84: 1 | S84: 136714203 | T84: 0.01609696485 | U84: 1 | V84: 239711550 | W84: 297872905 | Y84: 0 | Z84: 0 | AA84: 29700524.7 | AB84: 47276556 | AC84: 110019988 | AD84: 136714203 | AE84: 110019988 | AF84: 136714203
A85: 3 | B85: 424200758 | C85: Oranges | D85: Oranges | E85: 0 | H85: 0 | I85: 0 | K85: 0 | L85: 0 | M85: 0 | N85: 0 | P85: 93133302.7 | Q85: 0.00800114726 | R85: 1 | S85: 114734293 | T85: 0.01350901253 | U85: 1 | V85: 202918840 | W85: 249983078 | AA85: 22230981.8 | AB85: 37680156 | AC85: 93133302.7 | AD85: 114734293 | AE85: 93133302.7 | AF85: 114734293
A86: 3 | B86: 424201058 | C86: Grapefruit | D86: Grapefruit | E86: 0 | H86: 0 | I86: 0 | K86: 0 | L86: 0 | M86: 0 | N86: 0 | P86: 2907430 | Q86: 0.0002497793475 | R86: 1 | S86: 6201597 | T86: 0.0007301866722 | U86: 1 | V86: 6334708 | W86: 13512040 | AA86: 1294032.9 | AB86: 3890326 | AC86: 2907430 | AD86: 6201597 | AE86: 2907430 | AF86: 6201597
A87: 3 | B87: 420000010 | C87: Lemons and limes | D87: Lemons and limes | E87: 0 | H87: 0 | I87: 0 | K87: 0 | L87: 0 | M87: 0 | N87: 0 | P87: 6639707.4 | Q87: 0.0005704219128 | R87: 1 | S87: 5649091 | T87: 0.0006651336677 | U87: 1 | V87: 14466594 | W87: 12308239 | Y87: 0 | Z87: 0 | AA87: 1012042.5 | AB87: 666535 | AC87: 6639707.4 | AD87: 5649091 | AE87: 6639707.4 | AF87: 5649091
A88: 4 | B88: 424201158 | C88: Lemons | D88: =REPT(" ",(A88-1)*2)&C88 -> Lemons | E88: 0 | H88: 0 | I88: 0 | M88: 0 | N88: 0 | P88: 5283318.8 | Q88: 0.0004538936182 | R88: 1 | S88: 0 | T88: 0 | V88: 11511295 | W88: 0 | AA88: 965939.6 | AB88: 0 | AC88: 5283318.8 | AD88: 0 | AE88: 5283318.8 | AF88: 0
A89: 4 | B89: 424201358 | C89: Limes | D89: Limes | E89: 0 | H89: 0 | I89: 0 | M89: 0 | N89: 0 | P89: 1356388.6 | Q89: 0.0001165282946 | R89: 1 | S89: 0 | T89: 0 | V89: 2955299 | W89: 0 | AA89: 46102.9 | AB89: 0 | AC89: 1356388.6 | AD89: 0 | AE89: 1356388.6 | AF89: 0
A90: 4 | B90: 424201258 | C90: Lemons and limes | D90: Lemons and limes | E90: 0 | I90: 0 | K90: 0 | L90: 0 | M90: 0 | N90: 0 | P90: 0 | Q90: 0 | S90: 5649091 | T90: 0.0006651336677 | U90: 1 | V90: 0 | W90: 12308239 | AA90: 0 | AB90: 666535 | AC90: 0 | AD90: 5649091 | AE90: 0 | AF90: 5649091
A91: 3 | B91: 424201458 | C91: Mandarins | D91: Mandarins | E91: 0 | H91: 0 | I91: 0 | K91: 0 | L91: 0 | M91: 0 | N91: 0 | P91: 6632582.5 | Q91: 0.0005698098077 | R91: 1 | S91: 9427000 | T91: 0.001109951156 | U91: 1 | V91: 14451071 | W91: 20539548 | AA91: 4730702.1 | AB91: 4616427 | AC91: 6632582.5 | AD91: 9427000 | AE91: 6632582.5 | AF91: 9427000
A92: 3 | B92: 424201658 | C92: All other citrus | D92: All other citrus | E92: 0 | H92: 0 | I92: 0 | K92: 0 | L92: 0 | M92: 0 | N92: 0 | P92: 706965.4 | Q92: 6.073589263e-05 | R92: 1 | S92: 702222 | T92: 8.268082324e-05 | U92: 1 | V92: 1540336 | W92: 1530001 | AA92: 432765.4 | AB92: 423112 | AC92: 706965.4 | AD92: 702222 | AE92: 706965.4 | AF92: 702222
A93: 2 | B93: 560000000 | C93: Grapes (wine and table) | D93: Grapes (wine and table) | E93: 5290 | F93: 0.00114052703 | G93: 0.00010843986 | H93: 3.707690303e-05 | I93: 25241 | J93: 0.004964618659 | K93: 0.0003378789775 | L93: 0.0001103682798 | M93: 11526 | N93: 54995 | P93: 142676425.7 | Q93: 0.01225743165 | R93: 1 | S93: 228697956 | T93: 0.02692728977 | U93: 1 | V93: 310863396 | W93: 498287107 | Y93: 5290 | Z93: 25241 | AA93: 48782800 | AB93: 74704263 | AC93: 142676425.7 | AD93: 228697956 | AE93: 142676425.7 | AF93: 228697956
A94: 3 | B94: 565110052 | C94: Grapes - table | D94: Grapes - table | E94: 0 | I94: 0 | M94: 0 | N94: 0 | P94: 0 | Q94: 0 | S94: 0 | T94: 0 | V94: 0 | W94: 0 | AA94: 0 | AB94: 0 | AC94: 0 | AD94: 0 | AE94: 0 | AF94: 0
A95: 3 | B95: 564802258 | C95: Grapes - wine | D95: Grapes - wine | E95: 5290 | F95: 0.00114052703 | G95: 0.0001244121415 | H95: 3.877912708e-05 | I95: 25241 | J95: 0.004964618659 | K95: 0.0004167803245 | L95: 0.0001176562449 | M95: 11526 | N95: 54995 | P95: 136413591.5 | Q95: 0.01171938718 | R95: 1 | S95: 214531749 | T95: 0.02525933625 | U95: 1 | V95: 297217933 | W95: 467421775 | Y95: 5290 | Z95: 25241 | AA95: 42519965.8 | AB95: 60561880 | AC95: 136413591.5 | AD95: 214531749 | AE95: 136413591.5 | AF95: 214531749
A96: 3 | B96: 564802458 | C96: Grapes - dried | D96: Grapes - dried | E96: 0 | H96: 0 | I96: 0 | K96: 0 | L96: 0 | M96: 0 | N96: 0 | P96: 6262834.2 | Q96: 0.0005380444723 | R96: 1 | S96: 14166207 | T96: 0.00166795352 | U96: 1 | V96: 13645463 | W96: 30865332 | AA96: 6262834.2 | AB96: 14142383 | AC96: 6262834.2 | AD96: 14166207 | AE96: 6262834.2 | AF96: 14166207
A97: 2 | B97: 460000000 | C97: Pome Fruit | D97: Pome Fruit | E97: 0 | H97: 0 | I97: 0 | K97: 0 | L97: 0 | M97: 0 | N97: 0 | P97: 83198068.8 | Q97: 0.007147604358 | R97: 1 | S97: 69748137 | T97: 0.008212265333 | U97: 1 | V97: 181271952 | W97: 151967241 | Y97: 0 | Z97: 0 | AA97: 3366261.1 | AB97: 1799473 | AC97: 83198068.8 | AD97: 69748137 | AE97: 83198068.8 | AF97: 69748137
A98: 3 | B98: 464202258 | C98: Apples | D98: Apples | E98: 0 | H98: 0 | I98: 0 | K98: 0 | L98: 0 | M98: =ROUND($E98*M$10,0) -> 0 | N98: 0 | P98: 82390462.4 | Q98: 0.007078222326 | R98: 1 | S98: 69114904 | T98: 0.008137707393 | U98: 1 | V98: 179512339 | W98: 150587553 | AA98: 3234294.3 | AB98: 1769389 | AC98: 82390462.4 | AD98: 69114904 | AE98: 82390462.4 | AF98: 69114904
A99: 3 | B99: 464202658 | C99: Pears | D99: Pears | E99: 0 | H99: 0 | I99: 0 | K99: 0 | L99: 0 | M99: 0 | N99: 0 | P99: 728843.4 | Q99: 6.261544693e-05 | R99: 1 | S99: 416568 | T99: 4.904743112e-05 | U99: 1 | V99: 1588004 | W99: 907618 | AA99: 131966.8 | AB99: 19173 | AC99: 728843.4 | AD99: 416568 | AE99: 728843.4 | AF99: 416568
A100: 3 | B100: 464203458 | C100: All other pome fruit | D100: All other pome fruit | E100: 0 | H100: 0 | I100: 0 | K100: 0 | L100: 0 | M100: 0 | N100: 0 | P100: 78763 | Q100: 6.766584491e-06 | R100: 1 | S100: 216665 | T100: 2.551050888e-05 | U100: 1 | V100: 171609 | W100: 472070 | AA100: 0 | AB100: 10911 | AC100: 78763 | AD100: 216665 | AE100: 78763 | AF100: 216665
A101: 2 | B101: 480000000 | C101: Stone Fruit | D101: Stone Fruit | E101: 312474.5 | F101: 0.0673696812 | G101: 0.02608916783 | H101: 0.004649812801 | I101: 120977 | J101: 0.02379480494 | K101: 0.01286191102 | L101: 0.001329747374 | M101: 680819 | N101: 263585 | P101: 67201522.6 | Q101: 0.005773329871 | R101: 1 | S101: 90977431 | T101: 0.01071183884 | U101: 1 | V101: 146418677 | W101: 198221627 | Y101: 312474.5 | Z101: 120977 | AA101: 11977173.9 | AB101: 9405834 | AC101: 67201522.6 | AD101: 90977431 | AE101: 67201522.6 | AF101: 90977431
A102: 3 | B102: 484203958 | C102: Apricots | D102: Apricots | E102: 0 | H102: 0 | I102: 12084 | J102: 0.002376785859 | K102: 0.03045455004 | L102: 0.01312727723 | M102: 0 | N102: 26329 | P102: 1133587.5 | Q102: 9.738729603e-05 | R102: 1 | S102: 920526 | T102: 0.0001083843108 | U102: 1 | V102: 2469860 | W102: 2005642 | Y102: 0 | Z102: 12084 | AA102: 255490.1 | AB102: 396788 | AC102: 1133587.5 | AD102: 920526 | AE102: 1133587.5 | AF102: 920526
A103: 3 | B103: 484204358 | C103: Cherries | D103: Cherries | E103: 0 | H103: 0 | I103: 56531 | J103: 0.01111900707 | K103: 0.0261786554 | L103: 0.001065543226 | M103: 0 | N103: 123170 | P103: 18809870.5 | Q103: 0.001615969148 | R103: 1 | S103: 53053690 | T103: 0.006246632496 | U103: 1 | V103: 40982946 | W103: 115593380 | Y103: 0 | Z103: 56531 | AA103: 37097.3 | AB103: 2159431 | AC103: 18809870.5 | AD103: 53053690 | AE103: 18809870.5 | AF103: 53053690
A104: 3 | B104: 484205558 | C104: Nectarines | D104: Nectarines | E104: 116498.7 | F104: 0.02511718646 | G104: 0.01806431579 | H104: 0.008296166567 | I104: 51180 | J104: 0.01006652601 | K104: 0.008277876574 | L104: 0.002782144698 | M104: 253827 | N104: 111511 | P104: 14042473.6 | Q104: 0.001206398742 | R104: 1 | S104: 18395880 | T104: 0.002165962477 | U104: 1 | V104: 30595741 | W104: 40080943 | Y104: 116498.7 | Z104: 51180 | AA104: 6449106.7 | AB104: 6182745 | AC104: 14042473.6 | AD104: 18395880 | AE104: 14042473.6 | AF104: 18395880
A105: 3 | B105: 484205758 | C105: Olives | D105: Olives | E105: 0 | H105: 0 | I105: 0 | K105: 0 | L105: 0 | M105: 0 | N105: 0 | P105: 13810626.3 | Q105: 0.001186480578 | R105: 1 | S105: 4323604 | T105: 0.0005090685539 | U105: 1 | V105: 30090593 | W105: 9420268 | Y105: 0 | Z105: 0 | AA105: 1194460.3 | AB105: 366991 | AC105: 13810626.3 | AD105: 4323604 | AE105: 13810626.3 | AF105: 4323604
A106: 3 | B106: 484206258 | C106: Peaches | D106: Peaches | E106: 195975.8 | F106: 0.04225249475 | G106: 0.05317660362 | H106: 0.01538692141 | I106: 0 | M106: 426992 | N106: 0 | P106: 12736517.9 | Q106: 0.001094203173 | R106: 1 | S106: 0 | T106: 0 | V106: 27750325 | W106: 0 | Y106: 195975.8 | Z106: 0 | AA106: 3685376.4 | AB106: 0 | AC106: 12736517.9 | AD106: 0 | AE106: 12736517.9 | AF106: 0
A107: 3 | B107: 484206858 | C107: Plums and Prunes | D107: Plums and Prunes | E107: 0 | H107: 0 | I107: 1182 | J107: 0.0002324860051 | K107: 0.003941589775 | L107: 8.294085538e-05 | M107: 0 | N107: 2575 | P107: 6570591.2 | Q107: 0.0005644840917 | R107: 1 | S107: 14251119 | T107: 0.001677951205 | U107: 1 | V107: 14316004 | W107: 31050338 | Y107: 0 | Z107: 1182 | AA107: 355643.1 | AB107: 299879 | AC107: 6570591.2 | AD107: 14251119 | AE107: 6570591.2 | AF107: 14251119
A108: 3 | B108: 484207358 | C108: All other stone fruit | D108: =REPT(" ",(A108-1)*2)&C108 -> All other stone fruit | E108: 0 | H108: 0 | I108: 0 | L108: 0 | M108: 0 | N108: 0 | P108: 97855.6 | Q108: 8.406843128e-06 | R108: 1 | S108: 32612 | T108: 3.83979284e-06 | U108: 1 | V108: 213208 | W108: 71055 | AA108: 0 | AB108: 0 | AC108: 97855.6 | AD108: 32612 | AE108: 97855.6 | AF108: 32612
A109: 2 | B109: 500000000 | C109: Other Fruit | D109: Other Fruit | E109: 0 | H109: 0 | I109: 0 | K109: 0 | L109: 0 | M109: 0 | N109: 0 | P109: 18991443.7 | Q109: 0.001631568229 | R109: 1 | S109: 13742929 | T109: 0.001618116042 | U109: 1 | V109: 41378558 | W109: 29943094 | Y109: 0 | Z109: 0 | AA109: 1251779.3 | AB109: 1221143 | AC109: 18991443.7 | AD109: 13742929 | AE109: 18991443.7 | AF109: 13742929
A110: 3 | B110: 504204158 | C110: Avocados | D110: Avocados | E110: 0 | H110: 0 | I110: 0 | K110: 0 | L110: 0 | M110: 0 | N110: 0 | P110: 14900264.6 | Q110: 0.001280092167 | R110: 1 | S110: 13174290 | T110: 0.001551163511 | U110: 1 | V110: 32464697 | W110: 28704143 | AA110: 1218256.5 | AB110: 1186845 | AC110: 14900264.6 | AD110: 13174290 | AE110: 14900264.6 | AF110: 13174290
A111: 3 | B111: 504204258 | C111: Carambola | D111: Carambola | E111: 0 | H111: 0 | I111: 0 | M111: 0 | N111: 0 | P111: 30968.2 | Q111: 2.66049975e-06 | R111: 1 | S111: 0 | T111: 0 | V111: 67474 | W111: 0 | AA111: 0 | AB111: 0 | AC111: 30968.2 | AD111: 0 | AE111: 30968.2 | AF111: 0
A112: 3 | B112: 504204558 | C112: Custard apples | D112: Custard apples | E112: 0 | H112: 0 | I112: 0 | M112: 0 | N112: 0 | P112: 2867972.1 | Q112: 0.0002463894917 | R112: 1 | S112: 0 | T112: 0 | V112: 6248738 | W112: 0 | AA112: 0 | AB112: 0 | AC112: 2867972.1 | AD112: 0 | AE112: 2867972.1 | AF112: 0
A113: 3 | B113: 504204658 | C113: Dates | D113: Dates | E113: 0 | H113: 0 | I113: 0 | M113: 0 | N113: 0 | P113: 40.2 | Q113: 3.453610154e-09 | R113: 1 | S113: 0 | T113: 0 | V113: 88 | W113: 0 | AA113: 0 | AB113: 0 | AC113: 40.2 | AD113: 0 | AE113: 40.2 | AF113: 0
A114: 3 | B114: 504204758 | C114: Jackfruit | D114: Jackfruit | E114: 0 | H114: 0 | I114: 0 | M114: 0 | N114: 0 | P114: 10919.6 | Q114: 9.381104835e-07 | R114: 1 | S114: 0 | T114: 0 | V114: 23792 | W114: 0 | AA114: 0 | AB114: 0 | AC114: 10919.6 | AD114: 0 | AE114: 10919.6 | AF114: 0
A115: 3 | B115: 504204958 | C115: Guava | D115: Guava | E115: 0 | H115: 0 | I115: 0 | M115: 0 | N115: 0 | P115: 695655 | Q115: 5.976420825e-05 | R115: 1 | S115: 0 | T115: 0 | V115: 1515693 | W115: 0 | AA115: 43.5 | AB115: 0 | AC115: 695655 | AD115: 0 | AE115: 695655 | AF115: 0
A116: 3 | B116: 504205058 | C116: Lychees | D116: Lychees | E116: 0 | H116: 0 | I116: 0 | M116: 0 | N116: 0 | P116: 179386.5 | Q116: 1.541121985e-05 | R116: 1 | S116: 0 | T116: 0 | V116: 390847 | W116: 0 | AA116: 0 | AB116: 0 | AC116: 179386.5 | AD116: 0 | AE116: 179386.5 | AF116: 0
A117: 3 | B117: 504205358 | C117: Mangoes | D117: Mangoes | E117: 0 | H117: 0 | I117: 0 | K117: 0 | L117: 0 | M117: 0 | N117: 0 | P117: 306237.5 | Q117: 2.63090781e-05 | R117: 1 | S117: 568639 | T117: 6.69525316e-05 | U117: 1 | V117: 667230 | W117: 1238951 | AA117: 33479.3 | AB117: 34298 | AC117: 306237.5 | AD117: 568639 | AE117: 306237.5 | AF117: 568639
A118: 2 | B118: 520000000 | C118: Berry Fruit | D118: Berry Fruit | E118: 0 | H118: 0 | I118: 0 | K118: 0 | L118: 0 | M118: 0 | N118: 0 | P118: 76244277.9 | Q118: 0.006550199312 | R118: 1 | S118: 63554247 | T118: 0.007482986096 | U118: 1 | V118: 166121033 | W118: 138471993 | Y118: 0 | Z118: 0 | AA118: 1863524.4 | AB118: 10633171 | AC118: 76244277.9 | AD118: 63554247 | AE118: 76244277.9 | AF118: 63554247
A119: 3 | B119: 524300458 | C119: Black currants | D119: Black currants | E119: 0 | H119: 0 | I119: 0 | M119: 0 | N119: 0 | P119: 504.7 | Q119: 4.335913046e-08 | R119: 1 | S119: 0 | T119: 0 | V119: 1100 | W119: 0 | AA119: 0 | AB119: 0 | AC119: 504.7 | AD119: 0 | AE119: 504.7 | AF119: 0
A120: 3 | B120: 524300958 | C120: Blueberries | D120: Blueberries | E120: 0 | H120: 0 | I120: 0 | K120: 0 | L120: 0 | M120: 0 | N120: 0 | P120: 72593882.6 | Q120: 0.006236591295 | R120: 1 | S120: 60061614 | T120: 0.007071757493 | U120: 1 | V120: 158167551 | W120: 130862245 | AA120: 1863524.4 | AB120: 10633171 | AC120: 72593882.6 | AD120: 60061614 | AE120: 72593882.6 | AF120: 60061614
A121: 3 | B121: 524301958 | C121: Raspberries | D121: Raspberries | E121: 0 | H121: 0 | I121: 0 | L121: 0 | M121: 0 | N121: 0 | P121: 1632147.5 | Q121: 0.0001402189348 | R121: 1 | S121: 1561075 | T121: 0.0001838036492 | U121: 1 | V121: 3556123 | W121: 3401270 | AA121: 0 | AB121: 0 | AC121: 1632147.5 | AD121: 1561075 | AE121: 1632147.5 | AF121: 1561075
A122: 3 | B122: 524302258 | C122: Strawberries | D122: Strawberries | E122: 0 | H122: 0 | I122: 0 | L122: 0 | M122: 0 | N122: 0 | P122: 1580493.6 | Q122: 0.0001357813121 | R122: 1 | S122: 1931558 | T122: 0.0002274249533 | U122: 1 | V122: 3443579 | W122: 4208479 | AA122: 0 | AB122: 0 | AC122: 1580493.6 | AD122: 1931558 | AE122: 1580493.6 | AF122: 1931558
A123: 3 | B123: 524302558 | C123: Other | D123: Other | E123: 0 | H123: 0 | I123: 0 | M123: 0 | N123: 0 | P123: 437249.5 | Q123: 3.756441077e-05 | R123: 1 | S123: 0 | T123: 0 | V123: 952679 | W123: 0 | AA123: 0 | AB123: 0 | AC123: 437249.5 | AD123: 0 | AE123: 437249.5 | AF123: 0
A124: 2 | B124: 540000000 | C124: Plantation Fruit | D124: Plantation Fruit | E124: 0 | H124: 0 | I124: 0 | K124: 0 | L124: 0 | M124: 0 | N124: 0 | P124: 26009827.3 | Q124: 0.002234522479 | R124: 1 | S124: 39557867 | T124: 0.004657611139 | U124: 1 | V124: 56670212 | W124: 86188681 | Y124: 0 | Z124: 0 | AA124: 32245.8 | AB124: 128467 | AC124: 26009827.3 | AD124: 39557867 | AE124: 26009827.3 | AF124: 39557867
A125: 3 | B125: 544304658 | C125: Bananas | D125: Bananas | E125: 0 | H125: 0 | I125: 0 | L125: 0 | M125: 0 | N125: 0 | P125: 18789893.8 | Q125: 0.001614252936 | R125: 1 | S125: 34785700 | T125: 0.004095728007 | U125: 1 | V125: 40939421 | W125: 75791083 | AA125: 0 | AB125: 0 | AC125: 18789893.8 | AD125: 34785700 | AE125: 18789893.8 | AF125: 34785700
A126: 3 | B126: 544305058 | C126: Kiwi fruit | D126: Kiwi fruit | E126: 0 | H126: 0 | I126: 0 | L126: 0 | M126: 0 | N126: 0 | P126: 475972.5 | Q126: 4.089113082e-05 | R126: 1 | S126: 862584 | T126: 0.0001015621203 | U126: 1 | V126: 1037049 | W126: 1879398 | AA126: 0 | AB126: 0 | AC126: 475972.5 | AD126: 862584 | AE126: 475972.5 | AF126: 862584
A127: 3 | B127: 544305458 | C127: Papaws / papaya | D127: Papaws / papaya | E127: 0 | H127: 0 | I127: 0 | L127: 0 | M127: 0 | N127: 0 | P127: 316825.1 | Q127: 2.721866623e-05 | R127: 1 | S127: 27290 | T127: 3.213171427e-06 | U127: 1 | V127: 690299 | W127: 59459 | AA127: 0 | AB127: 0 | AC127: 316825.1 | AD127: 27290 | AE127: 316825.1 | AF127: 27290
A128: 3 | B128: 544305758 | C128: Passionfruit | D128: Passionfruit | E128: 0 | H128: 0 | I128: 0 | M128: 0 | N128: 0 | P128: 3663180.5 | Q128: 0.0003147064022 | R128: 1 | S128: 0 | T128: 0 | V128: 7981338 | W128: 0 | AA128: 0 | AB128: 0 | AC128: 3663180.5 | AD128: 0 | AE128: 3663180.5 | AF128: 0
A129: 3 | B129: 544306058 | C129: Pineapples | D129: Pineapples | E129: 0 | H129: 0 | I129: 0 | M129: 0 | N129: 0 | P129: 1868.3 | Q129: 1.605069615e-07 | R129: 1 | S129: 0 | T129: 0 | V129: 4071 | W129: 0 | AA129: 0 | AB129: 0 | AC129: 1868.3 | AD129: 0 | AE129: 1868.3 | AF129: 0
A130: 3 | B130: 544307058 | C130: All other fruit | D130: All other fruit | E130: 0 | H130: 0 | I130: 0 | K130: 0 | L130: 0 | M130: 0 | N130: 0 | P130: 2762087.1 | Q130: 0.0002372928372 | R130: 1 | S130: 3882293 | T130: 0.0004571078395 | U130: 1 | V130: 6018035 | W130: 8458740 | AA130: 32245.8 | AB130: 128467 | AC130: 2762087.1 | AD130: 3882293 | AE130: 2762087.1 | AF130: 3882293
A131: 2 | B131: 600000000 | C131: Nuts | D131: Nuts | E131: 0 | H131: 0 | I131: 0 | K131: 0 | L131: 0 | M131: 0 | N131: 0 | P131: 72870015.9 | Q131: 0.0062603141 | R131: 1 | S131: 84659686 | T131: 0.009967976699 | U131: 1 | V131: 158769191 | W131: 184456524 | Y131: 0 | Z131: 0 | AA131: 5681898.7 | AB131: 5314259 | AC131: 72870015.9 | AD131: 84659686 | AE131: 72870015.9 | AF131: 84659686
A132: 3 | B132: 604218158 | C132: Almonds | D132: Almonds | E132: 0 | H132: 0 | I132: 0 | K132: 0 | L132: 0 | M132: 0 | N132: 0 | P132: 9950516.3 | Q132: 0.0008548558241 | R132: 1 | S132: 6350834 | T132: 0.0007477580927 | U132: 1 | V132: 21680185 | W132: 13837197 | AA132: 2622672.2 | AB132: 3753014 | AC132: 9950516.3 | AD132: 6350834 | AE132: 9950516.3 | AF132: 6350834
A133: 3 | B133: 604219058 | C133: Macadamia nuts | D133: Macadamia nuts | E133: 0 | H133: 0 | I133: 0 | L133: 0 | M133: 0 | N133: 0 | P133: 42347634.8 | Q133: 0.003638114964 | R133: 1 | S133: 65803659 | T133: 0.007747835724 | U133: 1 | V133: 92267027 | W133: 143373012 | AA133: 0 | AB133: 0 | AC133: 42347634.8 | AD133: 65803659 | AE133: 42347634.8 | AF133: 65803659
A134: 3 | B134: 604219358 | C134: Pistachios | D134: Pistachios | E134: 0 | H134: 0 | I134: 0 | M134: 0 | N134: 0 | P134: 3222183.2 | Q134: 0.0002768200153 | R134: 1 | S134: 0 | T134: 0 | V134: 7020493 | W134: 0 | AA134: 3019144.4 | AB134: 0 | AC134: 3222183.2 | AD134: 0 | AE134: 3222183.2 | AF134: 0
A135: 3 | B135: 604219558 | C135: Walnuts | D135: Walnuts | E135: 0 | H135: 0 | I135: 0 | M135: 0 | N135: 0 | P135: 11260260.3 | Q135: 0.0009673768484 | R135: 1 | S135: 0 | T135: 0 | V135: 24533855 | W135: 0 | AA135: 0 | AB135: 0 | AC135: 11260260.3 | AD135: 0 | AE135: 11260260.3 | AF135: 0
A136: 3 | B136: 604219258 | C136: Pecans | D136: Pecans | E136: 0 | H136: 0 | I136: 0 | L136: 0 | M136: 0 | N136: 0 | P136: 4745341.4 | Q136: 0.000407675603 | R136: 1 | S136: 7987462 | T136: 0.0009404574817 | U136: 1 | V136: 10339150 | W136: 17403082 | AA136: 0 | AB136: 0 | AC136: 4745341.4 | AD136: 7987462 | AE136: 4745341.4 | AF136: 7987462
A137: 3 | B137: 604209758 | C137: Other nuts | D137: Other nuts | E137: 0 | H137: 0 | I137: 0 | K137: 0 | L137: 0 | M137: 0 | N137: 0 | P137: 1344079.9 | Q137: 0.0001154708455 | R137: 1 | S137: 4517731 | T137: 0.0005319254 | U137: 1 | V137: 2928481 | W137: 9843232 | AA137: 40082.1 | AB137: 1561245 | AC137: 1344079.9 | AD137: 4517731 | AE137: 1344079.9 | AF137: 4517731
A138: 2 | B138: 700000000 | C138: Wool | D138: =REPT(" ",(A138-1)*2)&C138 -> Wool | E138: 327761.4 | F138: 0.0706655456 | G138: 0.002956276671 | H138: 0.0003843722115 | I138: 167592 | J138: 0.03296344718 | K138: 0.002131982776 | L138: 0.0002423569083 | M138: 714127 | N138: 365149 | P138: 852718771.5 | Q138: 0.07325766686 | R138: 1 | S138: 691509069 | T138: 0.08141946436 | U138: 1 | V138: 1857903659 | W138: 1506659960 | Y138: 327761.4 | Z138: 167592 | AA138: 110869663.6 | AB138: 78608515 | AC138: 852718771.5 | AD138: 691509069 | AE138: 852718771.5 | AF138: 691509069
A139: 3 | B139: 706300458 | C139: Wool - Other | D139: Wool - Other | E139: 0 | I139: 160786 | J139: 0.03162478411 | K139: 0.002128451392 | L139: 0.0002412961018 | M139: 0 | N139: 350321 | P139: 0 | Q139: 0 | S139: 666343131 | T139: 0.07845638363 | U139: 1 | V139: 0 | W139: 1451828414 | Y139: 0 | Z139: 160786 | AA139: 0 | AB139: 75541307 | AC139: 0 | AD139: 666343131 | AE139: 0 | AF139: 666343131
A140: 3 | B140: 709200159 | C140: Wool - Shorn | D140: Wool - Shorn | E140: 327761.4 | F140: 0.0706655456 | G140: 0.002956276671 | H140: 0.0003843722115 | I140: 6806 | J140: 0.001338663072 | K140: 0.002218956132 | L140: 0.0002704449165 | M140: 714127 | N140: 14829 | P140: 852718771.5 | Q140: 0.07325766686 | R140: 1 | S140: 25165938 | T140: 0.002963080723 | U140: 1 | V140: 1857903659 | W140: 54831546 | Y140: 327761.4 | Z140: 6806 | AA140: 110869663.6 | AB140: 3067208 | AC140: 852718771.5 | AD140: 25165938 | AE140: 852718771.5 | AF140: 25165938
A141: 2 | B141: 720000000 | C141: Milk | D141: Milk | E141: =+Y141 -> 715444.6 | F141: =IF(E141>0,(E141/$E$153),"") -> 0.1542502656 | G141: =IF(OR(AA141=0,E141=0),"",($E141/AA141)) -> 0.006705354726 | H141: =IF(AC141=0,"",($E141/AC141)) -> 0.001417596304 | I141: =+Z141 -> 423822 | J141: =IF(I141>0,(I141/$I$153),"") -> 0.08336098448 | K141: =IF(AB141=0,"",($I141/AB141)) -> 0.004210478714 | L141: =IF(AD141=0,"",($I141/AD141)) -> 0.001031263018 | M141: 1558811 | N141: =ROUND(I141*N$10,0) -> 923423 | P141: =+AC141 -> 504688533.6 | Q141: =IF(P141>0,(P141/$P$153),0) -> 0.04335814538 | R141: =IF(AE141=0,"",+P141/AE141) -> 1 | S141: =+AD141 -> 410973721 | T141: =IF(S141>0,(S141/$S$153),0) -> 0.04838875111 | U141: =IF(AF141=0,"",+S141/AF141) -> 1 | V141: =ROUND(P141*V$10,0) -> 1099615377 | W141: =ROUND(S141*W$10,0) -> 895429543 | Y141: 715444.6 | Z141: 423822 | AA141: 106697502.1 | AB141: 100658863 | AC141: 504688533.6 | AD141: 410973721 | AE141: 504688533.6 | AF141: 410973721
A142: 3 | B142: 729200258 | C142: Milk | D142: Milk | E142: 715444.6 | F142: 0.1542502656 | G142: 0.006705354726 | H142: 0.001417596304 | I142: 423822 | J142: 0.08336098448 | K142: 0.004210478714 | L142: 0.001031263018 | M142: 1558811 | N142: 923423 | P142: 504688533.6 | Q142: 0.04335814538 | R142: 1 | S142: 410973721 | T142: 0.04838875111 | U142: 1 | V142: 1099615377 | W142: 895429543 | Y142: 715444.6 | Z142: 423822 | AA142: 106697502.1 | AB142: 100658863 | AC142: 504688533.6 | AD142: 410973721 | AE142: 504688533.6 | AF142: 410973721
A143: 2 | B143: 740000000 | C143: Eggs | D143: Eggs | E143: 828.6 | F143: 0.0001786466347 | G143: 0.0001352070999 | H143: 4.274840428e-06 | I143: 0 | K143: 0 | L143: 0 | M143: 1805 | N143: 0 | P143: 193831796.5 | Q143: 0.01665222539 | R143: 1 | S143: 108467581 | T143: 0.01277115911 | U143: 1 | V143: 422320718 | W143: 236329165 | Y143: 828.6 | Z143: 0 | AA143: 6128376.4 | AB143: 3179655 | AC143: 193831796.5 | AD143: 108467581 | AE143: 193831796.5 | AF143: 108467581
A144: 3 | B144: 749200348 | C144: Eggs produced for human consumption | D144: Eggs produced for human consumption | E144: 828.6 | F144: 0.0001786466347 | G144: 0.0001352070999 | H144: 4.274840428e-06 | I144: 0 | K144: 0 | L144: 0 | M144: 1805 | N144: 0 | P144: 193831796.5 | Q144: 0.01665222539 | R144: 1 | S144: 108467581 | T144: 0.01277115911 | U144: 1 | V144: 422320718 | W144: 236329165 | Y144: 828.6 | Z144: 0 | AA144: 6128376.4 | AB144: 3179655 | AC144: 193831796.5 | AD144: 108467581 | AE144: 193831796.5 | AF144: 108467581
A145: 2 | B145: 760000000 | C145: Honey | D145: Honey | E145: 0 | I145: 121869 | J145: 0.02397025123 | K145: 0.2306220621 | L145: 0.004280948593 | M145: 0 | N145: 265528 | P145: 0 | Q145: 0 | S145: 28467756 | T145: 0.00335184244 | U145: 1 | V145: 0 | W145: 62025547 | Y145: 0 | Z145: 121869 | AA145: 0 | AB145: 528436 | AC145: 0 | AD145: 28467756 | AE145: 0 | AF145: 28467756
A146: 3 | B146: 767200010 | C146: Bee Hives | D146: Bee Hives | E146: 0 | I146: 121869 | J146: 0.02397025123 | K146: 0.2306220621 | L146: 0.004280948593 | M146: 0 | N146: 265528 | P146: 0 | Q146: 0 | S146: 28467756 | T146: 0.00335184244 | U146: 1 | V146: 0 | W146: 62025547 | Y146: 0 | Z146: 121869 | AA146: 0 | AB146: 528436 | AC146: 0 | AD146: 28467756 | AE146: 0 | AF146: 28467756
A147: 2 | B147: 780000000 | C147: Meat | D147: Meat | E147: =+Y147 -> 2012320 | F147: =IF(E147>0,(E147/$E$153),"") -> 0.4338573448 | G147: =IF(OR(AA147=0,E147=0),"",($E147/AA147)) -> 0.006986640439 | H147: =IF(AC147=0,"",($E147/AC147)) -> 0.0006524712428 | I147: =+Z147 -> 3273153 | J147: =IF(I147>0,(I147/$I$153),"") -> 0.6437921024 | K147: =IF(AB147=0,"",($I147/AB147)) -> 0.01018666967 | L147: =IF(AD147=0,"",($I147/AD147)) -> 0.001185921432 | M147: =ROUND($E147*M$10,0) -> 4384443 | N147: =ROUND(I147*N$10,0) -> 7131546 | P147: =+AC147 -> 3084151251 | Q147: =IF(P147>0,(P147/$P$153),0) -> 0.264961594 | R147: =IF(AE147=0,"",+P147/AE147) -> 1 | S147: =+AD147 -> 2760008303 | T147: =IF(S147>0,(S147/$S$153),0) -> 0.3249681135 | U147: =IF(AF147=0,"",+S147/AF147) -> 1 | V147: =ROUND(P147*V$10,0) -> 6719748747 | W147: =ROUND(S147*W$10,0) -> 6013506091 | Y147: 2012320 | Z147: 3273153 | AA147: 288023982 | AB147: 321317281 | AC147: 3084151251 | AD147: 2760008303 | AE147: 3084151251 | AF147: 2760008303
A148: 3 | B148: 789100258 | C148: Sheep and lambs | D148: Sheep and lambs | E148: 165885.7 | F148: 0.03576505195 | G148: 0.002284810447 | H148: 0.0002720500815 | I148: 150063 | J148: 0.02951569153 | K148: 0.00232549101 | L148: 0.0003153266418 | M148: 361432 | N148: 326957 | P148: 609761625.9 | Q148: 0.05238504832 | R148: 1 | S148: 475896991 | T148: 0.05603292832 | U148: 1 | V148: 1328548631 | W148: 1036884364 | Y148: 165885.7 | Z148: 150063 | AA148: 72603703.4 | AB148: 64529598 | AC148: 609761625.9 | AD148: 475896991 | AE148: 609761625.9 | AF148: 475896991
A149: 3 | B149: 789100158 | C149: Cattle and calves | D149: Cattle and calves | E149: 1719635.3 | F149: 0.3707543558 | G149: 0.01248844063 | H149: 0.001064034074 | I149: 3123087 | J149: 0.6142758208 | K149: 0.02072140927 | L149: 0.001947945551 | M149: 3746741 | N149: 6804582 | P149: 1616146834 | Q149: 0.1388443064 | R149: 1 | S149: 1603272226 | T149: 0.188772023 | U149: 1 | V149: 3521260722 | W149: 3493209526 | Y149: 1719635.3 | Z149: 3123087 | AA149: 137698160.3 | AB149: 150717886 | AC149: 1616146834 | AD149: 1603272226 | AE149: 1616146834 | AF149: 1603272226
A150: 3 | B150: 789100458 | C150: Goats | D150: Goats | E150: 575.9 | F150: 0.0001241643699 | G150: 0.001874470679 | H150: 9.524708448e-05 | I150: 0 | M150: 1255 | N150: 0 | P150: 6046379.3 | Q150: 0.0005194486802 | R150: 1 | S150: 0 | T150: 0 | V150: 13173851 | W150: 0 | Y150: 575.9 | Z150: 0 | AA150: 307233.4 | AB150: 0 | AC150: 6046379.3 | AD150: 0 | AE150: 6046379.3 | AF150: 0
A151: 3 | B151: 789100358 | C151: Pigs | D151: Pigs | E151: 10560 | F151: 0.002276742049 | G151: 0.0001407463518 | H151: 6.353525016e-05 | I151: 0 | K151: 0 | L151: 0 | M151: 23008 | N151: 0 | P151: 166206947.7 | Q151: 0.01427895528 | R151: 1 | S151: 267065545 | T151: 0.03144475553 | U151: 1 | V151: 362131698 | W151: 581882409 | Y151: 10560 | Z151: 0 | AA151: 75028587.7 | AB151: 105828142 | AC151: 166206947.7 | AD151: 267065545 | AE151: 166206947.7 | AF151: 267065545
A152: 3 | B152: 789100658 | C152: Poultry | D152: =REPT(" ",(A152-1)*2)&C152 -> Poultry | E152: 115663.1 | F152: 0.02493703062 | G152: 0.04846969606 | H152: 0.0001686076915 | I152: 3 | J152: 5.900660028e-07 | K152: 1.241439242e-05 | L152: 7.250342767e-09 | M152: 252007 | N152: 7 | P152: 685989464.5 | Q152: 0.05893383532 | R152: 1 | S152: 413773541 | T152: 0.04871840672 | U152: 1 | V152: 1494633845 | W152: 901529791 | Y152: 115663.1 | Z152: 3 | AA152: 2386297.2 | AB152: 241655 | AC152: 685989464.5 | AD152: 413773541 | AE152: 685989464.5 | AF152: 413773541
D153: Total agricultural commodities | E153: 4638206.6 | G153: =IF(AA153=0,"",($E153/AA153)) -> 0.003244002837 | H153: 0.0003984715773 | I153: 5084177 | K153: 0.004258036644 | L153: 0.000598619724 | M153: 10105725 | N153: 11077405 | P153: 1.163999357e+10 | Q153: 1 | R153: 1 | S153: 8493166523 | T153: 1 | U153: 1 | V153: 25361218001 | W153: 18504911220 | Y153: 4638206.6 | Z153: 5084177 | AA153: 1429778836 | AB153: 1194019081 | AC153: 1.163999357e+10 | AD153: 8493166523 | AE153: 1.163999357e+10 | AF153: 8493166523
D154: Source: 2005-06 & 2010-11 Agriculture Census - datacubes from ABS CD
D155: http://www.abs.gov.au/AUSSTATS/abs@.nsf/DetailsPage/7503.02010-11?OpenDocument
D156: Source: 2006 Census of Population and Housing - employment by place of work data
D157: Please note that due to a change in the scope of the Agriculture Census, some comparisons of change between 2005-06 and 2010-11 Census may reflext different commodties - see explanatory notes for the Agriculture Census, at :http://www.abs.gov.au/AUSSTATS/abs@.nsf/Lookup/7503.0Explanatory%20Notes12005-06?OpenDocumen
D158: Initial spreadsheet designed by id with updated data manipulation including LGA selector by ExcelSpecialist - http://www.excelspecialist.com.au/

Sheet Size of Industry
B1: NSW TRADE AND INVESTMENT | O1: <-Hidden J-N
B2: NUMBER AND SIZE OF SELECTED AGRICULTURAL INDUSTRIES 2011 | K2: ='DropDown Selection'!C4 -> 100 | L2: =+K2 -> 100 | M2: =+'DropDown Selection'!C4 -> 100 | N2: =+M2 -> 100
B3: This spreadsheet has been prepared for industry and investment NSW to help explore the varying levels | K3: ='DropDown Selection'!C5 -> 155 | L3: =+K3 -> 155 | M3: ='DropDown Selection'!F5 -> 100 | N3: 100
B4: of agricultural production in Local Government Areas and Statistical Divisions across NSW. Please select an LGA and a benchmark from the drop-down menu | K4: =IF(LEN('DropDown Selection'!C12)<4,"00000",'DropDown Selection'!C12) -> 10050 | L4: 10050 | M4: =IF('DropDown Selection'!F9="","00000",'DropDown Selection'!F9) -> 00000 | N4: 00000
K5: =IF(K3="100",0,IF(K4="00000",1,IF(LEN(K4)=3,1,3))) -> 3 | L5: =IF(L4="100",0,IF(L4="00000",1,IF(LEN(L4)=3,1,3))) -> 3 | M5: =IF(M3="100",0,IF(M4="00000",1,IF(LEN(M4)=3,1,3))) -> 0 | N5: 0
B6: Please select LGA of interest: | K6: ='DropDown Selection'!C13 -> Albury | L6: ='DropDown Selection'!C13 -> Albury | M6: ='DropDown Selection'!F13 -> NSW | N6: =+M6 -> NSW
B7: * LGAs which amalgamated between 2006 and 2011, so only 2001 data are available. | E7: ='DropDown Selection'!$C$9&" is located in the "&'DropDown Selection'!$C$8&" SD" -> Albury (Murray) is located in the Murray SD
C9: Number of stock or Hectares selected industries | F9: Number of farms reporting selected industries
B10: Number and size of agriculture industry | C10: =K6 -> Albury | D10: =M6 -> NSW | E10: ="% of "&C10&" to "&D10 -> % of Albury to NSW | F10: =+C10 -> Albury | G10: =+D10 -> NSW | H10: ="% of "&F10&" to "&G10 -> % of Albury to NSW
A12: 91000 | B12: Beef Cattle (no.) | C12: =+K12 -> 6495 | D12: =+M12 -> 5304672 | E12: =IF(D12=0,"",C12/D12) -> 0.001224392385 | F12: =+L12 -> 59 | G12: =+N12 -> 26894 | H12: =IF(G12=0,"",F12/G12) -> 0.002193797873 | J12: =IF(LEN(A12)>2,0,1) -> 0 | K12: =SUMIF(INDIRECT("Tables!"&ADDRESS(1,COLUMN(Tables!$CG$3)+K$5+$J12)):INDIRECT("Tables!"&ADDRESS(10000,COLUMN(Tables!$CG$3)+K$5+$J12)),K$2&K$3&K$4&$A12,Tables!$CE:$CE) -> 6495 | L12: =SUMIF(INDIRECT("Tables!"&ADDRESS(1,COLUMN(Tables!$CG$3)+L$5+$J12)):INDIRECT("Tables!"&ADDRESS(10000,COLUMN(Tables!$CG$3)+L$5+$J12)),L$2&L$3&L$4&$A12,Tables!$CF:$CF) -> 59 | M12: =SUMIF(INDIRECT("Tables!"&ADDRESS(1,COLUMN(Tables!$CG$3)+M$5+$J12)):INDIRECT("Tables!"&ADDRESS(10000,COLUMN(Tables!$CG$3)+M$5+$J12)),M$2&M$3&M$4&$A12,Tables!$CE:$CE) -> 5304672 | N12: =SUMIF(INDIRECT("Tables!"&ADDRESS(1,COLUMN(Tables!$CG$3)+N$5+$J12)):INDIRECT("Tables!"&ADDRESS(10000,COLUMN(Tables!$CG$3)+N$5+$J12)),N$2&N$3&N$4&$A12,Tables!$CF:$CF) -> 26894
A13: 91010 | B13: Dairy Cattle (no.) | C13: =+K13 -> 426 | D13: =+M13 -> 319096 | E13: =IF(D13=0,"",C13/D13) -> 0.001335021436 | F13: 4 | G13: 1463 | H13: =IF(G13=0,"",F13/G13) -> 0.002734107997 | J13: 0 | K13: =SUMIF(INDIRECT("Tables!"&ADDRESS(1,COLUMN(Tables!$CG$3)+K$5+$J13)):INDIRECT("Tables!"&ADDRESS(10000,COLUMN(Tables!$CG$3)+K$5+$J13)),K$2&K$3&K$4&$A13,Tables!$CE:$CE) -> 426 | L13: =SUMIF(INDIRECT("Tables!"&ADDRESS(1,COLUMN(Tables!$CG$3)+L$5+$J13)):INDIRECT("Tables!"&ADDRESS(10000,COLUMN(Tables!$CG$3)+L$5+$J13)),L$2&L$3&L$4&$A13,Tables!$CF:$CF) -> 4 | M13: =SUMIF(INDIRECT("Tables!"&ADDRESS(1,COLUMN(Tables!$CG$3)+M$5+$J13)):INDIRECT("Tables!"&ADDRESS(10000,COLUMN(Tables!$CG$3)+M$5+$J13)),M$2&M$3&M$4&$A13,Tables!$CE:$CE) -> 319096 | N13: =SUMIF(INDIRECT("Tables!"&ADDRESS(1,COLUMN(Tables!$CG$3)+N$5+$J13)):INDIRECT("Tables!"&ADDRESS(10000,COLUMN(Tables!$CG$3)+N$5+$J13)),N$2&N$3&N$4&$A13,Tables!$CF:$CF) -> 1463
A14: 91060 | B14: Chickens for eggs (no.) | C14: =+K14 -> 44 | D14: =+M14 -> 4397789 | E14: =IF(D14=0,"",C14/D14) -> 1.000502753e-05 | F14: =+L14 -> 4 | G14: =+N14 -> 774 | H14: =IF(G14=0,"",F14/G14) -> 0.005167958656 | J14: 0 | K14: =SUMIF(INDIRECT("Tables!"&ADDRESS(1,COLUMN(Tables!$CG$3)+K$5+$J14)):INDIRECT("Tables!"&ADDRESS(10000,COLUMN(Tables!$CG$3)+K$5+$J14)),K$2&K$3&K$4&$A14,Tables!$CE:$CE) -> 44 | L14: =SUMIF(INDIRECT("Tables!"&ADDRESS(1,COLUMN(Tables!$CG$3)+L$5+$J14)):INDIRECT("Tables!"&ADDRESS(10000,COLUMN(Tables!$CG$3)+L$5+$J14)),L$2&L$3&L$4&$A14,Tables!$CF:$CF) -> 4 | M14: =SUMIF(INDIRECT("Tables!"&ADDRESS(1,COLUMN(Tables!$CG$3)+M$5+$J14)):INDIRECT("Tables!"&ADDRESS(10000,COLUMN(Tables!$CG$3)+M$5+$J14)),M$2&M$3&M$4&$A14,Tables!$CE:$CE) -> 4397789 | N14: =SUMIF(INDIRECT("Tables!"&ADDRESS(1,COLUMN(Tables!$CG$3)+N$5+$J14)):INDIRECT("Tables!"&ADDRESS(10000,COLUMN(Tables!$CG$3)+N$5+$J14)),N$2&N$3&N$4&$A14,Tables!$CF:$CF) -> 774
A15: 91080 | B15: Chickens for meat (no.) | C15: 0 | D15: 29558388 | E15: 0 | F15: 0 | G15: 257 | H15: 0 | J15: 0 | K15: =SUMIF(INDIRECT("Tables!"&ADDRESS(1,COLUMN(Tables!$CG$3)+K$5+$J15)):INDIRECT("Tables!"&ADDRESS(10000,COLUMN(Tables!$CG$3)+K$5+$J15)),K$2&K$3&K$4&$A15,Tables!$CE:$CE) -> 0 | L15: =SUMIF(INDIRECT("Tables!"&ADDRESS(1,COLUMN(Tables!$CG$3)+L$5+$J15)):INDIRECT("Tables!"&ADDRESS(10000,COLUMN(Tables!$CG$3)+L$5+$J15)),L$2&L$3&L$4&$A15,Tables!$CF:$CF) -> 0 | M15: =SUMIF(INDIRECT("Tables!"&ADDRESS(1,COLUMN(Tables!$CG$3)+M$5+$J15)):INDIRECT("Tables!"&ADDRESS(10000,COLUMN(Tables!$CG$3)+M$5+$J15)),M$2&M$3&M$4&$A15,Tables!$CE:$CE) -> 29558388 | N15: =SUMIF(INDIRECT("Tables!"&ADDRESS(1,COLUMN(Tables!$CG$3)+N$5+$J15)):INDIRECT("Tables!"&ADDRESS(10000,COLUMN(Tables!$CG$3)+N$5+$J15)),N$2&N$3&N$4&$A15,Tables!$CF:$CF) -> 257
A16: 91140 | B16: Horses Non Stud (no.) | C16: 74 | D16: 53147 | E16: 0.001392364574 | F16: 19 | G16: 10572 | H16: 0.001797200151 | J16: 0 | K16: =SUMIF(INDIRECT("Tables!"&ADDRESS(1,COLUMN(Tables!$CG$3)+K$5+$J16)):INDIRECT("Tables!"&ADDRESS(10000,COLUMN(Tables!$CG$3)+K$5+$J16)),K$2&K$3&K$4&$A16,Tables!$CE:$CE) -> 74 | L16: =SUMIF(INDIRECT("Tables!"&ADDRESS(1,COLUMN(Tables!$CG$3)+L$5+$J16)):INDIRECT("Tables!"&ADDRESS(10000,COLUMN(Tables!$CG$3)+L$5+$J16)),L$2&L$3&L$4&$A16,Tables!$CF:$CF) -> 19 | M16: =SUMIF(INDIRECT("Tables!"&ADDRESS(1,COLUMN(Tables!$CG$3)+M$5+$J16)):INDIRECT("Tables!"&ADDRESS(10000,COLUMN(Tables!$CG$3)+M$5+$J16)),M$2&M$3&M$4&$A16,Tables!$CE:$CE) -> 53147 | N16: =SUMIF(INDIRECT("Tables!"&ADDRESS(1,COLUMN(Tables!$CG$3)+N$5+$J16)):INDIRECT("Tables!"&ADDRESS(10000,COLUMN(Tables!$CG$3)+N$5+$J16)),N$2&N$3&N$4&$A16,Tables!$CF:$CF) -> 10572
A17: 91160 | B17: Horses Stud (no.) | C17: 79 | D17: 33347 | E17: 0.002369028698 | F17: 12 | G17: 2430 | H17: 0.004938271605 | J17: 0 | K17: =SUMIF(INDIRECT("Tables!"&ADDRESS(1,COLUMN(Tables!$CG$3)+K$5+$J17)):INDIRECT("Tables!"&ADDRESS(10000,COLUMN(Tables!$CG$3)+K$5+$J17)),K$2&K$3&K$4&$A17,Tables!$CE:$CE) -> 79 | L17: =SUMIF(INDIRECT("Tables!"&ADDRESS(1,COLUMN(Tables!$CG$3)+L$5+$J17)):INDIRECT("Tables!"&ADDRESS(10000,COLUMN(Tables!$CG$3)+L$5+$J17)),L$2&L$3&L$4&$A17,Tables!$CF:$CF) -> 12 | M17: =SUMIF(INDIRECT("Tables!"&ADDRESS(1,COLUMN(Tables!$CG$3)+M$5+$J17)):INDIRECT("Tables!"&ADDRESS(10000,COLUMN(Tables!$CG$3)+M$5+$J17)),M$2&M$3&M$4&$A17,Tables!$CE:$CE) -> 33347 | N17: =SUMIF(INDIRECT("Tables!"&ADDRESS(1,COLUMN(Tables!$CG$3)+N$5+$J17)):INDIRECT("Tables!"&ADDRESS(10000,COLUMN(Tables!$CG$3)+N$5+$J17)),N$2&N$3&N$4&$A17,Tables!$CF:$CF) -> 2430
A18: 91220 | B18: Pigs (no.) | C18: 31 | D18: 482905 | E18: 6.419482093e-05 | F18: 1 | G18: 717 | H18: 0.001394700139 | J18: 0 | K18: =SUMIF(INDIRECT("Tables!"&ADDRESS(1,COLUMN(Tables!$CG$3)+K$5+$J18)):INDIRECT("Tables!"&ADDRESS(10000,COLUMN(Tables!$CG$3)+K$5+$J18)),K$2&K$3&K$4&$A18,Tables!$CE:$CE) -> 31 | L18: =SUMIF(INDIRECT("Tables!"&ADDRESS(1,COLUMN(Tables!$CG$3)+L$5+$J18)):INDIRECT("Tables!"&ADDRESS(10000,COLUMN(Tables!$CG$3)+L$5+$J18)),L$2&L$3&L$4&$A18,Tables!$CF:$CF) -> 1 | M18: =SUMIF(INDIRECT("Tables!"&ADDRESS(1,COLUMN(Tables!$CG$3)+M$5+$J18)):INDIRECT("Tables!"&ADDRESS(10000,COLUMN(Tables!$CG$3)+M$5+$J18)),M$2&M$3&M$4&$A18,Tables!$CE:$CE) -> 482905 | N18: =SUMIF(INDIRECT("Tables!"&ADDRESS(1,COLUMN(Tables!$CG$3)+N$5+$J18)):INDIRECT("Tables!"&ADDRESS(10000,COLUMN(Tables!$CG$3)+N$5+$J18)),N$2&N$3&N$4&$A18,Tables!$CF:$CF) -> 717
A19: 91240 | B19: Sheep Lambs (no.) | C19: 7900 | D19: 25886518 | E19: 0.0003051781626 | F19: 20 | G19: 16082 | H19: 0.001243626415 | J19: 0 | K19: =SUMIF(INDIRECT("Tables!"&ADDRESS(1,COLUMN(Tables!$CG$3)+K$5+$J19)):INDIRECT("Tables!"&ADDRESS(10000,COLUMN(Tables!$CG$3)+K$5+$J19)),K$2&K$3&K$4&$A19,Tables!$CE:$CE) -> 7900 | L19: =SUMIF(INDIRECT("Tables!"&ADDRESS(1,COLUMN(Tables!$CG$3)+L$5+$J19)):INDIRECT("Tables!"&ADDRESS(10000,COLUMN(Tables!$CG$3)+L$5+$J19)),L$2&L$3&L$4&$A19,Tables!$CF:$CF) -> 20 | M19: =SUMIF(INDIRECT("Tables!"&ADDRESS(1,COLUMN(Tables!$CG$3)+M$5+$J19)):INDIRECT("Tables!"&ADDRESS(10000,COLUMN(Tables!$CG$3)+M$5+$J19)),M$2&M$3&M$4&$A19,Tables!$CE:$CE) -> 25886518 | N19: =SUMIF(INDIRECT("Tables!"&ADDRESS(1,COLUMN(Tables!$CG$3)+N$5+$J19)):INDIRECT("Tables!"&ADDRESS(10000,COLUMN(Tables!$CG$3)+N$5+$J19)),N$2&N$3&N$4&$A19,Tables!$CF:$CF) -> 16082
A20: 00000 | B20: Total Number Livestock/Farms for these industries | C20: =SUM(C12:C19) -> 15049 | D20: =SUM(D12:D19) -> 66035862 | E20: 0.0002278913237 | F20: =SUM(F12:F19) -> 119 | G20: =SUM(G12:G19) -> 59189 | H20: 0.002010508709 | J20: 0 | K20: =SUM(K12:K19) -> 15049 | L20: =SUM(L12:L19) -> 119 | M20: =SUM(M12:M19) -> 66035862 | N20: =SUM(N12:N19) -> 59189
A21: 91020 | B21: Cereal crops (ha.) | C21: 688 | D21: 5313705 | E21: 0.000129476514 | F21: 13 | G21: 10514 | H21: 0.001236446643 | J21: =IF(LEN(A21)>2,0,1) -> 0 | K21: =SUMIF(INDIRECT("Tables!"&ADDRESS(1,COLUMN(Tables!$CG$3)+K$5+$J21)):INDIRECT("Tables!"&ADDRESS(10000,COLUMN(Tables!$CG$3)+K$5+$J21)),K$2&K$3&K$4&$A21,Tables!$CE:$CE) -> 688 | L21: =SUMIF(INDIRECT("Tables!"&ADDRESS(1,COLUMN(Tables!$CG$3)+L$5+$J21)):INDIRECT("Tables!"&ADDRESS(10000,COLUMN(Tables!$CG$3)+L$5+$J21)),L$2&L$3&L$4&$A21,Tables!$CF:$CF) -> 13 | M21: =SUMIF(INDIRECT("Tables!"&ADDRESS(1,COLUMN(Tables!$CG$3)+M$5+$J21)):INDIRECT("Tables!"&ADDRESS(10000,COLUMN(Tables!$CG$3)+M$5+$J21)),M$2&M$3&M$4&$A21,Tables!$CE:$CE) -> 5313705 | N21: =SUMIF(INDIRECT("Tables!"&ADDRESS(1,COLUMN(Tables!$CG$3)+N$5+$J21)):INDIRECT("Tables!"&ADDRESS(10000,COLUMN(Tables!$CG$3)+N$5+$J21)),N$2&N$3&N$4&$A21,Tables!$CF:$CF) -> 10514
A22: 91040 | B22: Non cereal crops (ha.) | C22: 205 | D22: 1906529 | E22: 0.0001075252461 | F22: 4 | G22: 8837 | H22: 0.0004526422994 | J22: 0 | K22: =SUMIF(INDIRECT("Tables!"&ADDRESS(1,COLUMN(Tables!$CG$3)+K$5+$J22)):INDIRECT("Tables!"&ADDRESS(10000,COLUMN(Tables!$CG$3)+K$5+$J22)),K$2&K$3&K$4&$A22,Tables!$CE:$CE) -> 205 | L22: =SUMIF(INDIRECT("Tables!"&ADDRESS(1,COLUMN(Tables!$CG$3)+L$5+$J22)):INDIRECT("Tables!"&ADDRESS(10000,COLUMN(Tables!$CG$3)+L$5+$J22)),L$2&L$3&L$4&$A22,Tables!$CF:$CF) -> 4 | M22: =SUMIF(INDIRECT("Tables!"&ADDRESS(1,COLUMN(Tables!$CG$3)+M$5+$J22)):INDIRECT("Tables!"&ADDRESS(10000,COLUMN(Tables!$CG$3)+M$5+$J22)),M$2&M$3&M$4&$A22,Tables!$CE:$CE) -> 1906529 | N22: =SUMIF(INDIRECT("Tables!"&ADDRESS(1,COLUMN(Tables!$CG$3)+N$5+$J22)):INDIRECT("Tables!"&ADDRESS(10000,COLUMN(Tables!$CG$3)+N$5+$J22)),N$2&N$3&N$4&$A22,Tables!$CF:$CF) -> 8837
A23: 91100 | B23: Fruit (excluding grapes) (ha.) | C23: 18 | D23: 46443 | E23: 0.0003875718623 | F23: 2 | G23: 2717 | H23: 0.0007361059993 | J23: 0 | K23: =SUMIF(INDIRECT("Tables!"&ADDRESS(1,COLUMN(Tables!$CG$3)+K$5+$J23)):INDIRECT("Tables!"&ADDRESS(10000,COLUMN(Tables!$CG$3)+K$5+$J23)),K$2&K$3&K$4&$A23,Tables!$CE:$CE) -> 18 | L23: =SUMIF(INDIRECT("Tables!"&ADDRESS(1,COLUMN(Tables!$CG$3)+L$5+$J23)):INDIRECT("Tables!"&ADDRESS(10000,COLUMN(Tables!$CG$3)+L$5+$J23)),L$2&L$3&L$4&$A23,Tables!$CF:$CF) -> 2 | M23: =SUMIF(INDIRECT("Tables!"&ADDRESS(1,COLUMN(Tables!$CG$3)+M$5+$J23)):INDIRECT("Tables!"&ADDRESS(10000,COLUMN(Tables!$CG$3)+M$5+$J23)),M$2&M$3&M$4&$A23,Tables!$CE:$CE) -> 46443 | N23: =SUMIF(INDIRECT("Tables!"&ADDRESS(1,COLUMN(Tables!$CG$3)+N$5+$J23)):INDIRECT("Tables!"&ADDRESS(10000,COLUMN(Tables!$CG$3)+N$5+$J23)),N$2&N$3&N$4&$A23,Tables!$CF:$CF) -> 2717
A24: 91120 | B24: Grapes (ha.) | C24: 8 | D24: 44954 | E24: 0.0001779596921 | F24: 1 | G24: 1805 | H24: 0.0005540166205 | J24: 0 | K24: =SUMIF(INDIRECT("Tables!"&ADDRESS(1,COLUMN(Tables!$CG$3)+K$5+$J24)):INDIRECT("Tables!"&ADDRESS(10000,COLUMN(Tables!$CG$3)+K$5+$J24)),K$2&K$3&K$4&$A24,Tables!$CE:$CE) -> 8 | L24: =SUMIF(INDIRECT("Tables!"&ADDRESS(1,COLUMN(Tables!$CG$3)+L$5+$J24)):INDIRECT("Tables!"&ADDRESS(10000,COLUMN(Tables!$CG$3)+L$5+$J24)),L$2&L$3&L$4&$A24,Tables!$CF:$CF) -> 1 | M24: =SUMIF(INDIRECT("Tables!"&ADDRESS(1,COLUMN(Tables!$CG$3)+M$5+$J24)):INDIRECT("Tables!"&ADDRESS(10000,COLUMN(Tables!$CG$3)+M$5+$J24)),M$2&M$3&M$4&$A24,Tables!$CE:$CE) -> 44954 | N24: =SUMIF(INDIRECT("Tables!"&ADDRESS(1,COLUMN(Tables!$CG$3)+N$5+$J24)):INDIRECT("Tables!"&ADDRESS(10000,COLUMN(Tables!$CG$3)+N$5+$J24)),N$2&N$3&N$4&$A24,Tables!$CF:$CF) -> 1805
A25: 91180 | B25: Cut Flowers (Ha undercover) | C25: 0.0004 | D25: 55.2274 | E25: 7.242781663e-06 | F25: 2 | G25: 560 | H25: 0.003571428571 | J25: 0 | K25: =SUMIF(INDIRECT("Tables!"&ADDRESS(1,COLUMN(Tables!$CG$3)+K$5+$J25)):INDIRECT("Tables!"&ADDRESS(10000,COLUMN(Tables!$CG$3)+K$5+$J25)),K$2&K$3&K$4&$A25,Tables!$CE:$CE)/10000 -> 0.0004 | L25: =SUMIF(INDIRECT("Tables!"&ADDRESS(1,COLUMN(Tables!$CG$3)+L$5+$J25)):INDIRECT("Tables!"&ADDRESS(10000,COLUMN(Tables!$CG$3)+L$5+$J25)),L$2&L$3&L$4&$A25,Tables!$CF:$CF) -> 2 | M25: =SUMIF(INDIRECT("Tables!"&ADDRESS(1,COLUMN(Tables!$CG$3)+M$5+$J25)):INDIRECT("Tables!"&ADDRESS(10000,COLUMN(Tables!$CG$3)+M$5+$J25)),M$2&M$3&M$4&$A25,Tables!$CE:$CE)/10000 -> 55.2274 | N25: =SUMIF(INDIRECT("Tables!"&ADDRESS(1,COLUMN(Tables!$CG$3)+N$5+$J25)):INDIRECT("Tables!"&ADDRESS(10000,COLUMN(Tables!$CG$3)+N$5+$J25)),N$2&N$3&N$4&$A25,Tables!$CF:$CF) -> 560
A26: 91200 | B26: Cultivated Turf (number of farms only, hectare info n/a) | C26: 0 | D26: 2556 | E26: 0 | F26: 0 | G26: 120 | H26: 0 | J26: 0 | K26: =SUMIF(INDIRECT("Tables!"&ADDRESS(1,COLUMN(Tables!$CG$3)+K$5+$J26)):INDIRECT("Tables!"&ADDRESS(10000,COLUMN(Tables!$CG$3)+K$5+$J26)),K$2&K$3&K$4&$A26,Tables!$CE:$CE) -> 0 | L26: =SUMIF(INDIRECT("Tables!"&ADDRESS(1,COLUMN(Tables!$CG$3)+L$5+$J26)):INDIRECT("Tables!"&ADDRESS(10000,COLUMN(Tables!$CG$3)+L$5+$J26)),L$2&L$3&L$4&$A26,Tables!$CF:$CF) -> 0 | M26: =SUMIF(INDIRECT("Tables!"&ADDRESS(1,COLUMN(Tables!$CG$3)+M$5+$J26)):INDIRECT("Tables!"&ADDRESS(10000,COLUMN(Tables!$CG$3)+M$5+$J26)),M$2&M$3&M$4&$A26,Tables!$CE:$CE) -> 2556 | N26: =SUMIF(INDIRECT("Tables!"&ADDRESS(1,COLUMN(Tables!$CG$3)+N$5+$J26)):INDIRECT("Tables!"&ADDRESS(10000,COLUMN(Tables!$CG$3)+N$5+$J26)),N$2&N$3&N$4&$A26,Tables!$CF:$CF) -> 120
A27: 91190 | B27: Nurseries (Ha undercover.) | C27: 0.24 | D27: 117.8429 | E27: 0.002036609758 | F27: 3 | G27: 1501 | H27: 0.001998667555 | J27: 0 | K27: =SUMIF(INDIRECT("Tables!"&ADDRESS(1,COLUMN(Tables!$CG$3)+K$5+$J27)):INDIRECT("Tables!"&ADDRESS(10000,COLUMN(Tables!$CG$3)+K$5+$J27)),K$2&K$3&K$4&$A27,Tables!$CE:$CE)/10000 -> 0.24 | L27: =SUMIF(INDIRECT("Tables!"&ADDRESS(1,COLUMN(Tables!$CG$3)+L$5+$J27)):INDIRECT("Tables!"&ADDRESS(10000,COLUMN(Tables!$CG$3)+L$5+$J27)),L$2&L$3&L$4&$A27,Tables!$CF:$CF) -> 3 | M27: =SUMIF(INDIRECT("Tables!"&ADDRESS(1,COLUMN(Tables!$CG$3)+M$5+$J27)):INDIRECT("Tables!"&ADDRESS(10000,COLUMN(Tables!$CG$3)+M$5+$J27)),M$2&M$3&M$4&$A27,Tables!$CE:$CE)/10000 -> 117.8429 | N27: =SUMIF(INDIRECT("Tables!"&ADDRESS(1,COLUMN(Tables!$CG$3)+N$5+$J27)):INDIRECT("Tables!"&ADDRESS(10000,COLUMN(Tables!$CG$3)+N$5+$J27)),N$2&N$3&N$4&$A27,Tables!$CF:$CF) -> 1501
A28: 91260 | B28: Vegetables (ha.) | C28: 6 | D28: 15681 | E28: 0.0003826286589 | F28: 1 | G28: 1450 | H28: 0.0006896551724 | J28: 0 | K28: =SUMIF(INDIRECT("Tables!"&ADDRESS(1,COLUMN(Tables!$CG$3)+K$5+$J28)):INDIRECT("Tables!"&ADDRESS(10000,COLUMN(Tables!$CG$3)+K$5+$J28)),K$2&K$3&K$4&$A28,Tables!$CE:$CE) -> 6 | L28: =SUMIF(INDIRECT("Tables!"&ADDRESS(1,COLUMN(Tables!$CG$3)+L$5+$J28)):INDIRECT("Tables!"&ADDRESS(10000,COLUMN(Tables!$CG$3)+L$5+$J28)),L$2&L$3&L$4&$A28,Tables!$CF:$CF) -> 1 | M28: =SUMIF(INDIRECT("Tables!"&ADDRESS(1,COLUMN(Tables!$CG$3)+M$5+$J28)):INDIRECT("Tables!"&ADDRESS(10000,COLUMN(Tables!$CG$3)+M$5+$J28)),M$2&M$3&M$4&$A28,Tables!$CE:$CE) -> 15681 | N28: =SUMIF(INDIRECT("Tables!"&ADDRESS(1,COLUMN(Tables!$CG$3)+N$5+$J28)):INDIRECT("Tables!"&ADDRESS(10000,COLUMN(Tables!$CG$3)+N$5+$J28)),N$2&N$3&N$4&$A28,Tables!$CF:$CF) -> 1450
A29: 00000 | B29: Total Hectares for these industries | C29: =SUM(C21:C28) -> 925.2404 | D29: =SUM(D21:D28) -> 7330041.07 | E29: 0.0001262258139 | F29: =SUM(F21:F28) -> 26 | G29: =SUM(G21:G28) -> 27504 | H29: 0.0009453170448 | J29: 0 | K29: =SUM(K21:K28) -> 925.2404 | L29: =SUM(L21:L28) -> 26 | M29: =SUM(M21:M28) -> 7330041.07 | N29: =SUM(N21:N28) -> 27504
B30: Source: 2010-11 Agriculture Census
B31: Full list of industries: ABS 2010-11 ASCG NSW - 71210DO013_201011 Agricultural Commodities, Australia, 2010-11
B32: http://www.abs.gov.au/AUSSTATS/abs@.nsf/DetailsPage/7121.02010-11?OpenDocument
B33: Select ASGS NSW All Commodities in above link

Sheet Employment
AS3: Total Ag = <-- + 500, 520, 521, 522, 529
A4: Codes | B4: A000 | C4: 100 | D4: 110 | E4: 111 | F4: 112 | G4: 113 | H4: 114 | I4: 115 | J4: 120 | K4: 121 | L4: 122 | M4: 123 | N4: 130 | O4: 131 | P4: 132 | Q4: 133 | R4: 134 | S4: 135 | T4: 136 | U4: 137 | V4: 139 | W4: 140 | X4: 141 | Y4: 142 | Z4: 143 | AA4: 144 | AB4: 145 | AC4: 146 | AD4: 149 | AE4: 150 | AF4: 151 | AG4: 152 | AH4: 159 | AI4: 160 | AJ4: 170 | AK4: 171 | AL4: 172 | AM4: 180 | AN4: 190 | AO4: 191 | AP4: 192 | AQ4: 193 | AR4: 199 | AT4: 200 | AU4: 201 | AV4: 202 | AW4: 203 | AX4: 300 | AY4: 301 | AZ4: 302 | BA4: 400 | BB4: 410 | BC4: 411 | BD4: 412 | BE4: 413 | BF4: 414 | BG4: 419 | BH4: 420 | BI4: 500 | BJ4: 510 | BK4: 520 | BL4: 521 | BM4: 522 | BN4: 529
B5: Agriculture, Forestry and Fishing, nfd | C5: Agriculture, nfd | D5: Nursery and Floriculture Production, nfd | E5: Nursery Production (Under Cover) | F5: Nursery Production (Outdoors) | G5: Turf Growing | H5: Floriculture Production (Under Cover) | I5: Floriculture Production (Outdoors) | J5: Mushroom and Vegetable Growing, nfd | K5: Mushroom Growing | L5: Vegetable Growing (Under Cover) | M5: Vegetable Growing (Outdoors) | N5: Fruit and Tree Nut Growing, nfd | O5: Grape Growing | P5: Kiwifruit Growing | Q5: Berry Fruit Growing | R5: Apple and Pear Growing | S5: Stone Fruit Growing | T5: Citrus Fruit Growing | U5: Olive Growing | V5: Other Fruit and Tree Nut Growing | W5: Sheep, Beef Cattle and Grain Farming, nfd | X5: Sheep Farming (Specialised) | Y5: Beef Cattle Farming (Specialised) | Z5: Beef Cattle Feedlots (Specialised) | AA5: Sheep-Beef Cattle Farming | AB5: Grain-Sheep or Grain-Beef Cattle Farming | AC5: Rice Growing | AD5: Other Grain Growing | AE5: Other Crop Growing, nfd | AF5: Sugar Cane Growing | AG5: Cotton Growing | AH5: Other Crop Growing nec | AI5: Dairy Cattle Farming | AJ5: Poultry Farming, nfd | AK5: Poultry Farming (Meat) | AL5: Poultry Farming (Eggs) | AM5: Deer Farming | AN5: Other Livestock Farming, nfd | AO5: Horse Farming | AP5: Pig Farming | AQ5: Beekeeping | AR5: Other Livestock Farming nec | AS5: Total Ag | AT5: Aquaculture, nfd | AU5: Offshore Longline and Rack Aquaculture | AV5: Offshore Caged Aquaculture | AW5: Onshore Aquaculture | AX5: Forestry and Logging, nfd | AY5: Forestry | AZ5: Logging | BA5: Fishing, Hunting and Trapping, nfd | BB5: Fishing, nfd | BC5: Rock Lobster and Crab Potting | BD5: Prawn Fishing | BE5: Line Fishing | BF5: Fish Trawling, Seining and Netting | BG5: Other Fishing | BH5: Hunting and Trapping | BI5: Agriculture, Forestry and Fishing Support Services, nfd | BJ5: Forestry Support Services | BK5: Agriculture and Fishing Support Services, nfd | BL5: Cotton Ginning | BM5: Shearing Services | BN5: Other Agriculture and Fishing Support Services | BO5: Total with Services and associated primary industries
A6: Local Government Areas (2011 Boundaries) (POW)
A7: Albury (C) | B7: 0 | C7: 16 | D7: 0 | E7: 0 | F7: 0 | G7: 0 | H7: 0 | I7: 0 | J7: 0 | K7: 0 | L7: 0 | M7: 5 | N7: 0 | O7: 0 | P7: 0 | Q7: 0 | R7: 0 | S7: 0 | T7: 0 | U7: 0 | V7: 0 | W7: 0 | X7: 8 | Y7: 32 | Z7: 0 | AA7: 4 | AB7: 9 | AC7: 0 | AD7: 6 | AE7: 0 | AF7: 0 | AG7: 0 | AH7: 0 | AI7: 11 | AJ7: 0 | AK7: 0 | AL7: 0 | AM7: 0 | AN7: 0 | AO7: 0 | AP7: 5 | AQ7: 0 | AR7: 0 | AS7: =SUM(B7:AR7)+BI7+BK7+BL7+BM7+BN7 -> 125 | AT7: 0 | AU7: 0 | AV7: 0 | AW7: 0 | AX7: 0 | AY7: 8 | AZ7: 0 | BA7: 0 | BB7: 0 | BC7: 0 | BD7: 0 | BE7: 0 | BF7: 0 | BG7: 0 | BH7: 5 | BI7: 0 | BJ7: 0 | BK7: 0 | BL7: 0 | BM7: 0 | BN7: 29 | BO7: 138
A8: Armidale Dumaresq (A) | B8: 0 | C8: 12 | D8: 0 | E8: 0 | F8: 5 | G8: 7 | H8: 0 | I8: 0 | J8: 0 | K8: 0 | L8: 0 | M8: 0 | N8: 0 | O8: 0 | P8: 0 | Q8: 0 | R8: 0 | S8: 0 | T8: 0 | U8: 0 | V8: 0 | W8: 7 | X8: 75 | Y8: 197 | Z8: 0 | AA8: 115 | AB8: 5 | AC8: 0 | AD8: 0 | AE8: 0 | AF8: 0 | AG8: 0 | AH8: 0 | AI8: 0 | AJ8: 0 | AK8: 0 | AL8: 0 | AM8: 0 | AN8: 0 | AO8: 4 | AP8: 0 | AQ8: 0 | AR8: 0 | AS8: =SUM(B8:AR8)+BI8+BK8+BL8+BM8+BN8 -> 458 | AT8: 0 | AU8: 0 | AV8: 0 | AW8: 0 | AX8: 0 | AY8: 0 | AZ8: 0 | BA8: 0 | BB8: 0 | BC8: 0 | BD8: 0 | BE8: 0 | BF8: 0 | BG8: 0 | BH8: 0 | BI8: 0 | BJ8: 11 | BK8: 0 | BL8: 0 | BM8: 8 | BN8: 23 | BO8: 469
A9: Ashfield (A) | B9: 0 | C9: 0 | D9: 0 | E9: 0 | F9: 0 | G9: 0 | H9: 0 | I9: 0 | J9: 0 | K9: 0 | L9: 0 | M9: 0 | N9: 0 | O9: 0 | P9: 0 | Q9: 0 | R9: 0 | S9: 0 | T9: 0 | U9: 0 | V9: 0 | W9: 0 | X9: 0 | Y9: 3 | Z9: 0 | AA9: 0 | AB9: 0 | AC9: 0 | AD9: 0 | AE9: 0 | AF9: 0 | AG9: 0 | AH9: 0 | AI9: 0 | AJ9: 0 | AK9: 0 | AL9: 0 | AM9: 0 | AN9: 0 | AO9: 0 | AP9: 0 | AQ9: 0 | AR9: 0 | AS9: 6 | AT9: 0 | AU9: 0 | AV9: 0 | AW9: 0 | AX9: 0 | AY9: 0 | AZ9: 0 | BA9: 0 | BB9: 0 | BC9: 0 | BD9: 0 | BE9: 0 | BF9: 0 | BG9: 0 | BH9: 0 | BI9: 0 | BJ9: 0 | BK9: 0 | BL9: 0 | BM9: 0 | BN9: 3 | BO9: 6
A10: Auburn (C) | B10: 0 | C10: 5 | D10: 0 | E10: 0 | F10: 0 | G10: 0 | H10: 0 | I10: 0 | J10: 0 | K10: 0 | L10: 0 | M10: 0 | N10: 0 | O10: 0 | P10: 0 | Q10: 0 | R10: 0 | S10: 0 | T10: 0 | U10: 0 | V10: 0 | W10: 0 | X10: 0 | Y10: 0 | Z10: 0 | AA10: 0 | AB10: 0 | AC10: 0 | AD10: 0 | AE10: 0 | AF10: 0 | AG10: 0 | AH10: 0 | AI10: 17 | AJ10: 0 | AK10: 0 | AL10: 0 | AM10: 0 | AN10: 0 | AO10: 0 | AP10: 0 | AQ10: 0 | AR10: 0 | AS10: 27 | AT10: 0 | AU10: 0 | AV10: 0 | AW10: 0 | AX10: 0 | AY10: 6 | AZ10: 0 | BA10: 0 | BB10: 0 | BC10: 0 | BD10: 0 | BE10: 0 | BF10: 0 | BG10: 0 | BH10: 0 | BI10: 0 | BJ10: 0 | BK10: 0 | BL10: 0 | BM10: 0 | BN10: 5 | BO10: 33
A11: Ballina (A) | B11: 0 | C11: 32 | D11: 0 | E11: 0 | F11: 33 | G11: 4 | H11: 0 | I11: 23 | J11: 0 | K11: 0 | L11: 4 | M11: 43 | N11: 20 | O11: 0 | P11: 0 | Q11: 13 | R11: 0 | S11: 17 | T11: 6 | U11: 0 | V11: 269 | W11: 0 | X11: 0 | Y11: 82 | Z11: 0 | AA11: 0 | AB11: 0 | AC11: 0 | AD11: 6 | AE11: 0 | AF11: 78 | AG11: 0 | AH11: 17 | AI11: 7 | AJ11: 0 | AK11: 0 | AL11: 3 | AM11: 0 | AN11: 0 | AO11: 3 | AP11: 0 | AQ11: 0 | AR11: 0 | AS11: 678 | AT11: 0 | AU11: 0 | AV11: 0 | AW11: 0 | AX11: 0 | AY11: 0 | AZ11: 0 | BA11: 6 | BB11: 6 | BC11: 5 | BD11: 3 | BE11: 0 | BF11: 0 | BG11: 0 | BH11: 0 | BI11: 0 | BJ11: 0 | BK11: 0 | BL11: 0 | BM11: 0 | BN11: 18 | BO11: 698
A12: Balranald (A) | B12: 0 | C12: 17 | D12: 0 | E12: 0 | F12: 17 | G12: 0 | H12: 0 | I12: 0 | J12: 0 | K12: 0 | L12: 0 | M12: 0 | N12: 0 | O12: 68 | P12: 0 | Q12: 0 | R12: 0 | S12: 0 | T12: 0 | U12: 0 | V12: 0 | W12: 5 | X12: 45 | Y12: 8 | Z12: 0 | AA12: 11 | AB12: 44 | AC12: 0 | AD12: 38 | AE12: 0 | AF12: 0 | AG12: 0 | AH12: 0 | AI12: 0 | AJ12: 0 | AK12: 0 | AL12: 0 | AM12: 0 | AN12: 0 | AO12: 0 | AP12: 0 | AQ12: 0 | AR12: 0 | AS12: 263 | AT12: 0 | AU12: 0 | AV12: 0 | AW12: 0 | AX12: 0 | AY12: 0 | AZ12: 0 | BA12: 0 | BB12: 0 | BC12: 0 | BD12: 0 | BE12: 0 | BF12: 0 | BG12: 0 | BH12: 0 | BI12: 0 | BJ12: 0 | BK12: 0 | BL12: 0 | BM12: 4 | BN12: 6 | BO12: 263
A13: Bankstown (C) | B13: 4 | C13: 4 | D13: 0 | E13: 0 | F13: 3 | G13: 4 | H13: 0 | I13: 0 | J13: 0 | K13: 0 | L13: 0 | M13: 15 | N13: 0 | O13: 0 | P13: 0 | Q13: 0 | R13: 0 | S13: 0 | T13: 0 | U13: 0 | V13: 0 | W13: 0 | X13: 5 | Y13: 0 | Z13: 0 | AA13: 0 | AB13: 0 | AC13: 0 | AD13: 0 | AE13: 0 | AF13: 0 | AG13: 0 | AH13: 0 | AI13: 0 | AJ13: 0 | AK13: 3 | AL13: 0 | AM13: 0 | AN13: 0 | AO13: 0 | AP13: 0 | AQ13: 0 | AR13: 0 | AS13: 42 | AT13: 0 | AU13: 0 | AV13: 0 | AW13: 0 | AX13: 0 | AY13: 0 | AZ13: 0 | BA13: 7 | BB13: 0 | BC13: 0 | BD13: 0 | BE13: 0 | BF13: 0 | BG13: 0 | BH13: 0 | BI13: 0 | BJ13: 5 | BK13: 0 | BL13: 0 | BM13: 0 | BN13: 4 | BO13: 54
A14: Bathurst Regional (A) | B14: 3 | C14: 25 | D14: 0 | E14: 0 | F14: 3 | G14: 6 | H14: 0 | I14: 0 | J14: 0 | K14: 0 | L14: 0 | M14: 27 | N14: 8 | O14: 0 | P14: 0 | Q14: 0 | R14: 0 | S14: 3 | T14: 0 | U14: 0 | V14: 0 | W14: 3 | X14: 127 | Y14: 109 | Z14: 0 | AA14: 93 | AB14: 11 | AC14: 0 | AD14: 5 | AE14: 0 | AF14: 0 | AG14: 0 | AH14: 0 | AI14: 9 | AJ14: 0 | AK14: 0 | AL14: 0 | AM14: 0 | AN14: 0 | AO14: 7 | AP14: 4 | AQ14: 9 | AR14: 0 | AS14: 466 | AT14: 0 | AU14: 0 | AV14: 0 | AW14: 0 | AX14: 0 | AY14: 49 | AZ14: 10 | BA14: 0 | BB14: 0 | BC14: 0 | BD14: 0 | BE14: 0 | BF14: 0 | BG14: 0 | BH14: 0 | BI14: 0 | BJ14: 16 | BK14: 0 | BL14: 0 | BM14: 4 | BN14: 10 | BO14: 550
A15: Bega Valley (A) | B15: 5 | C15: 11 | D15: 0 | E15: 0 | F15: 13 | G15: 0 | H15: 0 | I15: 5 | J15: 0 | K15: 0 | L15: 0 | M15: 12 | N15: 0 | O15: 0 | P15: 0 | Q15: 0 | R15: 0 | S15: 0 | T15: 0 | U15: 9 | V15: 0 | W15: 3 | X15: 22 | Y15: 174 | Z15: 0 | AA15: 37 | AB15: 3 | AC15: 0 | AD15: 0 | AE15: 0 | AF15: 0 | AG15: 0 | AH15: 0 | AI15: 251 | AJ15: 0 | AK15: 0 | AL15: 4 | AM15: 0 | AN15: 0 | AO15: 4 | AP15: 0 | AQ15: 4 | AR15: 0 | AS15: 566 | AT15: 0 | AU15: 57 | AV15: 0 | AW15: 0 | AX15: 0 | AY15: 26 | AZ15: 31 | BA15: 21 | BB15: 12 | BC15: 0 | BD15: 0 | BE15: 0 | BF15: 5 | BG15: 8 | BH15: 0 | BI15: 0 | BJ15: 7 | BK15: 0 | BL15: 0 | BM15: 4 | BN15: 5 | BO15: 738
A16: Bellingen (A) | B16: 4 | C16: 14 | D16: 0 | E16: 0 | F16: 4 | G16: 0 | H16: 0 | I16: 0 | J16: 0 | K16: 0 | L16: 0 | M16: 25 | N16: 0 | O16: 0 | P16: 0 | Q16: 0 | R16: 0 | S16: 0 | T16: 0 | U16: 5 | V16: 10 | W16: 0 | X16: 0 | Y16: 157 | Z16: 0 | AA16: 6 | AB16: 0 | AC16: 0 | AD16: 0 | AE16: 0 | AF16: 0 | AG16: 0 | AH16: 0 | AI16: 112 | AJ16: 0 | AK16: 0 | AL16: 0 | AM16: 0 | AN16: 0 | AO16: 0 | AP16: 0 | AQ16: 0 | AR16: 0 | AS16: 343 | AT16: 0 | AU16: 5 | AV16: 0 | AW16: 0 | AX16: 0 | AY16: 0 | AZ16: 0 | BA16: 0 | BB16: 0 | BC16: 0 | BD16: 0 | BE16: 0 | BF16: 0 | BG16: 0 | BH16: 0 | BI16: 0 | BJ16: 5 | BK16: 0 | BL16: 0 | BM16: 0 | BN16: 6 | BO16: 353
A17: Berrigan (A) | B17: 3 | C17: 24 | D17: 0 | E17: 0 | F17: 3 | G17: 0 | H17: 0 | I17: 0 | J17: 0 | K17: 0 | L17: 0 | M17: 20 | N17: 6 | O17: 11 | P17: 0 | Q17: 0 | R17: 0 | S17: 0 | T17: 0 | U17: 4 | V17: 0 | W17: 0 | X17: 31 | Y17: 49 | Z17: 0 | AA17: 9 | AB17: 105 | AC17: 0 | AD17: 112 | AE17: 0 | AF17: 0 | AG17: 0 | AH17: 6 | AI17: 137 | AJ17: 0 | AK17: 0 | AL17: 0 | AM17: 0 | AN17: 0 | AO17: 0 | AP17: 0 | AQ17: 0 | AR17: 0 | AS17: 542 | AT17: 0 | AU17: 0 | AV17: 0 | AW17: 0 | AX17: 0 | AY17: 0 | AZ17: 0 | BA17: 0 | BB17: 0 | BC17: 0 | BD17: 0 | BE17: 0 | BF17: 0 | BG17: 0 | BH17: 0 | BI17: 0 | BJ17: 0 | BK17: 0 | BL17: 0 | BM17: 5 | BN17: 17 | BO17: 542
A18: Blacktown (C) | B18: 3 | C18: 15 | D18: 0 | E18: 0 | F18: 10 | G18: 0 | H18: 0 | I18: 10 | J18: 0 | K18: 3 | L18: 0 | M18: 85 | N18: 0 | O18: 0 | P18: 0 | Q18: 0 | R18: 0 | S18: 0 | T18: 0 | U18: 0 | V18: 0 | W18: 0 | X18: 0 | Y18: 11 | Z18: 0 | AA18: 0 | AB18: 3 | AC18: 0 | AD18: 0 | AE18: 0 | AF18: 0 | AG18: 0 | AH18: 0 | AI18: 10 | AJ18: 15 | AK18: 18 | AL18: 107 | AM18: 0 | AN18: 0 | AO18: 5 | AP18: 4 | AQ18: 0 | AR18: 0 | AS18: 304 | AT18: 0 | AU18: 0 | AV18: 0 | AW18: 0 | AX18: 0 | AY18: 3 | AZ18: 0 | BA18: 0 | BB18: 0 | BC18: 0 | BD18: 0 | BE18: 0 | BF18: 0 | BG18: 0 | BH18: 5 | BI18: 0 | BJ18: 7 | BK18: 0 | BL18: 0 | BM18: 0 | BN18: 5 | BO18: 322
A19: Bland (A) | B19: 3 | C19: 21 | D19: 0 | E19: 0 | F19: 0 | G19: 0 | H19: 0 | I19: 0 | J19: 0 | K19: 0 | L19: 0 | M19: 0 | N19: 0 | O19: 0 | P19: 0 | Q19: 0 | R19: 0 | S19: 0 | T19: 0 | U19: 0 | V19: 0 | W19: 7 | X19: 70 | Y19: 14 | Z19: 0 | AA19: 6 | AB19: 379 | AC19: 0 | AD19: 153 | AE19: 0 | AF19: 0 | AG19: 0 | AH19: 0 | AI19: 0 | AJ19: 0 | AK19: 0 | AL19: 34 | AM19: 0 | AN19: 0 | AO19: 0 | AP19: 3 | AQ19: 3 | AR19: 0 | AS19: 712 | AT19: 0 | AU19: 0 | AV19: 0 | AW19: 0 | AX19: 3 | AY19: 0 | AZ19: 0 | BA19: 0 | BB19: 0 | BC19: 0 | BD19: 0 | BE19: 0 | BF19: 0 | BG19: 0 | BH19: 0 | BI19: 0 | BJ19: 0 | BK19: 4 | BL19: 0 | BM19: 5 | BN19: 10 | BO19: 715
A20: Blayney (A) | B20: 0 | C20: 13 | D20: 0 | E20: 0 | F20: 3 | G20: 0 | H20: 0 | I20: 0 | J20: 0 | K20: 0 | L20: 0 | M20: 4 | N20: 0 | O20: 6 | P20: 0 | Q20: 0 | R20: 3 | S20: 0 | T20: 0 | U20: 0 | V20: 0 | W20: 3 | X20: 61 | Y20: 115 | Z20: 0 | AA20: 78 | AB20: 7 | AC20: 0 | AD20: 0 | AE20: 0 | AF20: 0 | AG20: 0 | AH20: 0 | AI20: 10 | AJ20: 0 | AK20: 0 | AL20: 0 | AM20: 0 | AN20: 0 | AO20: 9 | AP20: 0 | AQ20: 9 | AR20: 0 | AS20: 334 | AT20: 0 | AU20: 0 | AV20: 0 | AW20: 0 | AX20: 0 | AY20: 4 | AZ20: 0 | BA20: 0 | BB20: 0 | BC20: 0 | BD20: 0 | BE20: 0 | BF20: 0 | BG20: 0 | BH20: 0 | BI20: 0 | BJ20: 0 | BK20: 0 | BL20: 0 | BM20: 0 | BN20: 13 | BO20: 346
A21: Blue Mountains (C) | B21: 0 | C21: 4 | D21: 5 | E21: 88 | F21: 10 | G21: 0 | H21: 0 | I21: 7 | J21: 0 | K21: 7 | L21: 0 | M21: 0 | N21: 0 | O21: 0 | P21: 0 | Q21: 0 | R21: 0 | S21: 0 | T21: 0 | U21: 0 | V21: 0 | W21: 0 | X21: 6 | Y21: 7 | Z21: 0 | AA21: 3 | AB21: 0 | AC21: 0 | AD21: 3 | AE21: 0 | AF21: 0 | AG21: 0 | AH21: 0 | AI21: 0 | AJ21: 0 | AK21: 0 | AL21: 0 | AM21: 0 | AN21: 0 | AO21: 3 | AP21: 0 | AQ21: 0 | AR21: 0 | AS21: 146 | AT21: 0 | AU21: 0 | AV21: 0 | AW21: 0 | AX21: 0 | AY21: 0 | AZ21: 0 | BA21: 0 | BB21: 0 | BC21: 0 | BD21: 0 | BE21: 0 | BF21: 0 | BG21: 0 | BH21: 0 | BI21: 0 | BJ21: 11 | BK21: 0 | BL21: 0 | BM21: 0 | BN21: 3 | BO21: 157
A22: Bogan (A) | B22: 3 | C22: 5 | D22: 0 | E22: 0 | F22: 0 | G22: 0 | H22: 0 | I22: 0 | J22: 0 | K22: 0 | L22: 0 | M22: 0 | N22: 0 | O22: 0 | P22: 0 | Q22: 0 | R22: 0 | S22: 0 | T22: 0 | U22: 0 | V22: 0 | W22: 0 | X22: 63 | Y22: 27 | Z22: 0 | AA22: 34 | AB22: 86 | AC22: 0 | AD22: 52 | AE22: 0 | AF22: 0 | AG22: 0 | AH22: 0 | AI22: 0 | AJ22: 0 | AK22: 0 | AL22: 0 | AM22: 0 | AN22: 0 | AO22: 0 | AP22: 0 | AQ22: 0 | AR22: 0 | AS22: 278 | AT22: 0 | AU22: 0 | AV22: 0 | AW22: 0 | AX22: 0 | AY22: 0 | AZ22: 0 | BA22: 0 | BB22: 0 | BC22: 0 | BD22: 0 | BE22: 0 | BF22: 0 | BG22: 0 | BH22: 0 | BI22: 0 | BJ22: 0 | BK22: 0 | BL22: 0 | BM22: 3 | BN22: 5 | BO22: 282
A23: Bombala (A) | B23: 0 | C23: 3 | D23: 0 | E23: 0 | F23: 4 | G23: 0 | H23: 0 | I23: 0 | J23: 0 | K23: 0 | L23: 0 | M23: 0 | N23: 0 | O23: 0 | P23: 0 | Q23: 0 | R23: 0 | S23: 0 | T23: 0 | U23: 0 | V23: 0 | W23: 4 | X23: 91 | Y23: 15 | Z23: 0 | AA23: 86 | AB23: 4 | AC23: 0 | AD23: 3 | AE23: 0 | AF23: 0 | AG23: 0 | AH23: 0 | AI23: 0 | AJ23: 0 | AK23: 0 | AL23: 0 | AM23: 0 | AN23: 0 | AO23: 0 | AP23: 0 | AQ23: 0 | AR23: 0 | AS23: 218 | AT23: 0 | AU23: 0 | AV23: 0 | AW23: 0 | AX23: 0 | AY23: 34 | AZ23: 28 | BA23: 0 | BB23: 0 | BC23: 0 | BD23: 0 | BE23: 0 | BF23: 0 | BG23: 0 | BH23: 0 | BI23: 0 | BJ23: 16 | BK23: 0 | BL23: 0 | BM23: 8 | BN23: 0 | BO23: 296
A24: Boorowa (A) | B24: 0 | C24: 15 | D24: 0 | E24: 0 | F24: 0 | G24: 0 | H24: 0 | I24: 0 | J24: 0 | K24: 0 | L24: 0 | M24: 0 | N24: 0 | O24: 0 | P24: 0 | Q24: 0 | R24: 0 | S24: 0 | T24: 0 | U24: 0 | V24: 0 | W24: 10 | X24: 148 | Y24: 38 | Z24: 0 | AA24: 45 | AB24: 18 | AC24: 0 | AD24: 14 | AE24: 0 | AF24: 0 | AG24: 0 | AH24: 0 | AI24: 0 | AJ24: 0 | AK24: 0 | AL24: 0 | AM24: 0 | AN24: 0 | AO24: 11 | AP24: 0 | AQ24: 0 | AR24: 0 | AS24: 308 | AT24: 0 | AU24: 0 | AV24: 0 | AW24: 0 | AX24: 0 | AY24: 0 | AZ24: 0 | BA24: 0 | BB24: 0 | BC24: 0 | BD24: 0 | BE24: 0 | BF24: 0 | BG24: 0 | BH24: 0 | BI24: 0 | BJ24: 0 | BK24: 0 | BL24: 0 | BM24: 4 | BN24: 5 | BO24: 311
A25: Botany Bay (C) | B25: 5 | C25: 0 | D25: 0 | E25: 0 | F25: 5 | G25: 0 | H25: 0 | I25: 0 | J25: 0 | K25: 0 | L25: 0 | M25: 0 | N25: 0 | O25: 0 | P25: 0 | Q25: 0 | R25: 0 | S25: 0 | T25: 0 | U25: 0 | V25: 0 | W25: 0 | X25: 0 | Y25: 6 | Z25: 0 | AA25: 0 | AB25: 0 | AC25: 0 | AD25: 0 | AE25: 0 | AF25: 0 | AG25: 0 | AH25: 0 | AI25: 9 | AJ25: 0 | AK25: 0 | AL25: 0 | AM25: 0 | AN25: 0 | AO25: 0 | AP25: 0 | AQ25: 0 | AR25: 0 | AS25: 25 | AT25: 0 | AU25: 0 | AV25: 0 | AW25: 0 | AX25: 0 | AY25: 0 | AZ25: 0 | BA25: 0 | BB25: 0 | BC25: 0 | BD25: 0 | BE25: 0 | BF25: 0 | BG25: 0 | BH25: 0 | BI25: 0 | BJ25: 0 | BK25: 0 | BL25: 0 | BM25: 0 | BN25: 0 | BO25: 25
A26: Bourke (A) | B26: 0 | C26: 9 | D26: 0 | E26: 0 | F26: 0 | G26: 0 | H26: 0 | I26: 0 | J26: 0 | K26: 0 | L26: 0 | M26: 0 | N26: 5 | O26: 0 | P26: 0 | Q26: 0 | R26: 0 | S26: 0 | T26: 6 | U26: 0 | V26: 0 | W26: 4 | X26: 61 | Y26: 23 | Z26: 0 | AA26: 42 | AB26: 24 | AC26: 0 | AD26: 0 | AE26: 0 | AF26: 0 | AG26: 27 | AH26: 0 | AI26: 0 | AJ26: 0 | AK26: 0 | AL26: 0 | AM26: 0 | AN26: 0 | AO26: 0 | AP26: 0 | AQ26: 0 | AR26: 0 | AS26: 210 | AT26: 0 | AU26: 0 | AV26: 0 | AW26: 0 | AX26: 0 | AY26: 0 | AZ26: 0 | BA26: 0 | BB26: 0 | BC26: 0 | BD26: 0 | BE26: 0 | BF26: 0 | BG26: 0 | BH26: 0 | BI26: 0 | BJ26: 0 | BK26: 0 | BL26: 0 | BM26: 5 | BN26: 4 | BO26: 214
A27: Brewarrina (A) | B27: 0 | C27: 5 | D27: 0 | E27: 0 | F27: 0 | G27: 0 | H27: 0 | I27: 0 | J27: 0 | K27: 0 | L27: 0 | M27: 0 | N27: 0 | O27: 0 | P27: 0 | Q27: 0 | R27: 0 | S27: 0 | T27: 0 | U27: 0 | V27: 0 | W27: 10 | X27: 25 | Y27: 18 | Z27: 0 | AA27: 30 | AB27: 19 | AC27: 0 | AD27: 8 | AE27: 0 | AF27: 0 | AG27: 0 | AH27: 0 | AI27: 0 | AJ27: 0 | AK27: 0 | AL27: 0 | AM27: 0 | AN27: 0 | AO27: 0 | AP27: 5 | AQ27: 0 | AR27: 0 | AS27: 140 | AT27: 0 | AU27: 0 | AV27: 0 | AW27: 0 | AX27: 0 | AY27: 0 | AZ27: 0 | BA27: 0 | BB27: 0 | BC27: 0 | BD27: 0 | BE27: 0 | BF27: 0 | BG27: 0 | BH27: 0 | BI27: 0 | BJ27: 0 | BK27: 0 | BL27: 0 | BM27: 15 | BN27: 5 | BO27: 140
A28: Broken Hill (C) | B28: 0 | C28: 4 | D28: 0 | E28: 0 | F28: 0 | G28: 0 | H28: 0 | I28: 0 | J28: 0 | K28: 0 | L28: 0 | M28: 0 | N28: 0 | O28: 0 | P28: 0 | Q28: 0 | R28: 0 | S28: 0 | T28: 0 | U28: 0 | V28: 0 | W28: 0 | X28: 18 | Y28: 4 | Z28: 0 | AA28: 10 | AB28: 0 | AC28: 0 | AD28: 0 | AE28: 0 | AF28: 0 | AG28: 0 | AH28: 0 | AI28: 0 | AJ28: 0 | AK28: 0 | AL28: 0 | AM28: 0 | AN28: 0 | AO28: 0 | AP28: 0 | AQ28: 0 | AR28: 0 | AS28: 44 | AT28: 0 | AU28: 0 | AV28: 0 | AW28: 0 | AX28: 0 | AY28: 0 | AZ28: 0 | BA28: 0 | BB28: 0 | BC28: 0 | BD28: 0 | BE28: 0 | BF28: 0 | BG28: 0 | BH28: 5 | BI28: 0 | BJ28: 0 | BK28: 0 | BL28: 0 | BM28: 4 | BN28: 4 | BO28: 49
A29: Burwood (A) | B29: 0 | C29: 0 | D29: 0 | E29: 0 | F29: 0 | G29: 0 | H29: 0 | I29: 0 | J29: 0 | K29: 0 | L29: 0 | M29: 0 | N29: 0 | O29: 0 | P29: 0 | Q29: 0 | R29: 0 | S29: 0 | T29: 0 | U29: 0 | V29: 0 | W29: 0 | X29: 0 | Y29: 0 | Z29: 0 | AA29: 0 | AB29: 0 | AC29: 0 | AD29: 0 | AE29: 0 | AF29: 0 | AG29: 0 | AH29: 0 | AI29: 0 | AJ29: 0 | AK29: 0 | AL29: 0 | AM29: 0 | AN29: 0 | AO29: 0 | AP29: 0 | AQ29: 0 | AR29: 0 | AS29: 0 | AT29: 0 | AU29: 0 | AV29: 0 | AW29: 0 | AX29: 0 | AY29: 0 | AZ29: 0 | BA29: 0 | BB29: 0 | BC29: 0 | BD29: 0 | BE29: 0 | BF29: 0 | BG29: 0 | BH29: 0 | BI29: 0 | BJ29: 0 | BK29: 0 | BL29: 0 | BM29: 0 | BN29: 0 | BO29: 0
A30: Byron (A) | B30: 5 | C30: 11 | D30: 0 | E30: 0 | F30: 29 | G30: 9 | H30: 0 | I30: 4 | J30: 6 | K30: 0 | L30: 4 | M30: 33 | N30: 14 | O30: 0 | P30: 0 | Q30: 0 | R30: 4 | S30: 8 | T30: 0 | U30: 0 | V30: 98 | W30: 0 | X30: 3 | Y30: 106 | Z30: 0 | AA30: 0 | AB30: 0 | AC30: 0 | AD30: 0 | AE30: 0 | AF30: 5 | AG30: 0 | AH30: 3 | AI30: 14 | AJ30: 0 | AK30: 7 | AL30: 3 | AM30: 0 | AN30: 0 | AO30: 0 | AP30: 3 | AQ30: 0 | AR30: 0 | AS30: 380 | AT30: 0 | AU30: 0 | AV30: 0 | AW30: 0 | AX30: 0 | AY30: 13 | AZ30: 0 | BA30: 4 | BB30: 3 | BC30: 0 | BD30: 0 | BE30: 0 | BF30: 0 | BG30: 0 | BH30: 0 | BI30: 0 | BJ30: 12 | BK30: 0 | BL30: 0 | BM30: 0 | BN30: 11 | BO30: 412
A31: Cabonne (A) | B31: 4 | C31: 38 | D31: 0 | E31: 0 | F31: 4 | G31: 0 | H31: 0 | I31: 0 | J31: 0 | K31: 0 | L31: 0 | M31: 6 | N31: 20 | O31: 40 | P31: 0 | Q31: 6 | R31: 40 | S31: 4 | T31: 0 | U31: 5 | V31: 0 | W31: 23 | X31: 215 | Y31: 222 | Z31: 6 | AA31: 121 | AB31: 198 | AC31: 0 | AD31: 91 | AE31: 0 | AF31: 0 | AG31: 0 | AH31: 5 | AI31: 22 | AJ31: 0 | AK31: 0 | AL31: 13 | AM31: 0 | AN31: 0 | AO31: 6 | AP31: 4 | AQ31: 0 | AR31: 0 | AS31: 1119 | AT31: 0 | AU31: 0 | AV31: 0 | AW31: 0 | AX31: 0 | AY31: 0 | AZ31: 0 | BA31: 0 | BB31: 0 | BC31: 0 | BD31: 0 | BE31: 0 | BF31: 0 | BG31: 0 | BH31: 0 | BI31: 0 | BJ31: 4 | BK31: 0 | BL31: 0 | BM31: 7 | BN31: 19 | BO31: 1132
A32: Camden (A) | B32: 7 | C32: 28 | D32: 0 | E32: 0 | F32: 26 | G32: 5 | H32: 0 | I32: 0 | J32: 0 | K32: 30 | L32: 0 | M32: 116 | N32: 7 | O32: 0 | P32: 0 | Q32: 0 | R32: 0 | S32: 0 | T32: 0 | U32: 0 | V32: 3 | W32: 0 | X32: 0 | Y32: 28 | Z32: 0 | AA32: 0 | AB32: 4 | AC32: 0 | AD32: 0 | AE32: 0 | AF32: 0 | AG32: 0 | AH32: 3 | AI32: 13 | AJ32: 3 | AK32: 9 | AL32: 9 | AM32: 0 | AN32: 0 | AO32: 8 | AP32: 0 | AQ32: 0 | AR32: 0 | AS32: 326 | AT32: 0 | AU32: 0 | AV32: 0 | AW32: 0 | AX32: 0 | AY32: 0 | AZ32: 0 | BA32: 0 | BB32: 0 | BC32: 0 | BD32: 0 | BE32: 0 | BF32: 0 | BG32: 0 | BH32: 0 | BI32: 0 | BJ32: 4 | BK32: 5 | BL32: 0 | BM32: 0 | BN32: 22 | BO32: 330
A33: Campbelltown (C) | B33: 5 | C33: 6 | D33: 0 | E33: 0 | F33: 5 | G33: 0 | H33: 0 | I33: 0 | J33: 0 | K33: 14 | L33: 0 | M33: 4 | N33: 6 | O33: 0 | P33: 0 | Q33: 0 | R33: 0 | S33: 0 | T33: 0 | U33: 0 | V33: 0 | W33: 0 | X33: 5 | Y33: 4 | Z33: 0 | AA33: 0 | AB33: 0 | AC33: 0 | AD33: 0 | AE33: 0 | AF33: 0 | AG33: 0 | AH33: 0 | AI33: 0 | AJ33: 0 | AK33: 12 | AL33: 0 | AM33: 0 | AN33: 0 | AO33: 5 | AP33: 0 | AQ33: 0 | AR33: 0 | AS33: 70 | AT33: 0 | AU33: 0 | AV33: 0 | AW33: 0 | AX33: 0 | AY33: 0 | AZ33: 0 | BA33: 0 | BB33: 0 | BC33: 0 | BD33: 0 | BE33: 0 | BF33: 0 | BG33: 0 | BH33: 0 | BI33: 0 | BJ33: 0 | BK33: 0 | BL33: 0 | BM33: 0 | BN33: 4 | BO33: 70
A34: Canada Bay (A) | B34: 6 | C34: 5 | D34: 0 | E34: 0 | F34: 0 | G34: 0 | H34: 0 | I34: 0 | J34: 0 | K34: 0 | L34: 0 | M34: 0 | N34: 0 | O34: 0 | P34: 0 | Q34: 0 | R34: 0 | S34: 0 | T34: 0 | U34: 0 | V34: 0 | W34: 0 | X34: 0 | Y34: 0 | Z34: 0 | AA34: 0 | AB34: 0 | AC34: 0 | AD34: 0 | AE34: 0 | AF34: 0 | AG34: 0 | AH34: 0 | AI34: 0 | AJ34: 0 | AK34: 0 | AL34: 0 | AM34: 0 | AN34: 0 | AO34: 0 | AP34: 0 | AQ34: 0 | AR34: 0 | AS34: 11 | AT34: 0 | AU34: 0 | AV34: 0 | AW34: 0 | AX34: 0 | AY34: 0 | AZ34: 0 | BA34: 0 | BB34: 0 | BC34: 0 | BD34: 0 | BE34: 0 | BF34: 0 | BG34: 0 | BH34: 0 | BI34: 0 | BJ34: 0 | BK34: 0 | BL34: 0 | BM34: 0 | BN34: 0 | BO34: 11
A35: Canterbury (C) | B35: 5 | C35: 0 | D35: 0 | E35: 0 | F35: 0 | G35: 0 | H35: 0 | I35: 0 | J35: 0 | K35: 0 | L35: 0 | M35: 0 | N35: 0 | O35: 0 | P35: 0 | Q35: 0 | R35: 0 | S35: 0 | T35: 0 | U35: 0 | V35: 0 | W35: 0 | X35: 4 | Y35: 0 | Z35: 0 | AA35: 0 | AB35: 0 | AC35: 0 | AD35: 0 | AE35: 0 | AF35: 0 | AG35: 0 | AH35: 0 | AI35: 9 | AJ35: 0 | AK35: 0 | AL35: 0 | AM35: 0 | AN35: 0 | AO35: 0 | AP35: 0 | AQ35: 0 | AR35: 0 | AS35: 18 | AT35: 0 | AU35: 0 | AV35: 0 | AW35: 0 | AX35: 0 | AY35: 0 | AZ35: 0 | BA35: 0 | BB35: 0 | BC35: 0 | BD35: 0 | BE35: 0 | BF35: 0 | BG35: 0 | BH35: 0 | BI35: 0 | BJ35: 0 | BK35: 0 | BL35: 0 | BM35: 0 | BN35: 0 | BO35: 18
A36: Carrathool (A) | B36: 5 | C36: 19 | D36: 0 | E36: 0 | F36: 0 | G36: 0 | H36: 0 | I36: 0 | J36: 0 | K36: 0 | L36: 0 | M36: 41 | N36: 0 | O36: 5 | P36: 0 | Q36: 0 | R36: 0 | S36: 7 | T36: 31 | U36: 7 | V36: 14 | W36: 4 | X36: 60 | Y36: 22 | Z36: 4 | AA36: 38 | AB36: 126 | AC36: 0 | AD36: 118 | AE36: 0 | AF36: 0 | AG36: 35 | AH36: 0 | AI36: 0 | AJ36: 0 | AK36: 0 | AL36: 0 | AM36: 0 | AN36: 0 | AO36: 0 | AP36: 0 | AQ36: 0 | AR36: 0 | AS36: 568 | AT36: 0 | AU36: 0 | AV36: 0 | AW36: 0 | AX36: 0 | AY36: 0 | AZ36: 0 | BA36: 0 | BB36: 0 | BC36: 0 | BD36: 0 | BE36: 0 | BF36: 0 | BG36: 0 | BH36: 0 | BI36: 0 | BJ36: 0 | BK36: 0 | BL36: 12 | BM36: 5 | BN36: 15 | BO36: 568
A37: Central Darling (A) | B37: 0 | C37: 7 | D37: 0 | E37: 0 | F37: 0 | G37: 0 | H37: 0 | I37: 0 | J37: 0 | K37: 0 | L37: 0 | M37: 0 | N37: 0 | O37: 5 | P37: 0 | Q37: 5 | R37: 0 | S37: 3 | T37: 0 | U37: 0 | V37: 0 | W37: 10 | X37: 129 | Y37: 16 | Z37: 0 | AA37: 69 | AB37: 4 | AC37: 0 | AD37: 4 | AE37: 0 | AF37: 0 | AG37: 4 | AH37: 0 | AI37: 0 | AJ37: 0 | AK37: 0 | AL37: 0 | AM37: 0 | AN37: 0 | AO37: 0 | AP37: 0 | AQ37: 0 | AR37: 0 | AS37: 280 | AT37: 0 | AU37: 0 | AV37: 0 | AW37: 0 | AX37: 0 | AY37: 0 | AZ37: 0 | BA37: 0 | BB37: 0 | BC37: 0 | BD37: 0 | BE37: 0 | BF37: 0 | BG37: 0 | BH37: 0 | BI37: 0 | BJ37: 0 | BK37: 0 | BL37: 0 | BM37: 20 | BN37: 4 | BO37: 291
A38: Cessnock (C) | B38: 0 | C38: 9 | D38: 0 | E38: 0 | F38: 7 | G38: 0 | H38: 0 | I38: 0 | J38: 0 | K38: 0 | L38: 0 | M38: 0 | N38: 0 | O38: 108 | P38: 0 | Q38: 0 | R38: 0 | S38: 0 | T38: 0 | U38: 7 | V38: 0 | W38: 0 | X38: 3 | Y38: 76 | Z38: 0 | AA38: 0 | AB38: 0 | AC38: 0 | AD38: 0 | AE38: 0 | AF38: 0 | AG38: 0 | AH38: 0 | AI38: 3 | AJ38: 8 | AK38: 3 | AL38: 55 | AM38: 0 | AN38: 0 | AO38: 27 | AP38: 0 | AQ38: 3 | AR38: 0 | AS38: 320 | AT38: 0 | AU38: 0 | AV38: 0 | AW38: 0 | AX38: 0 | AY38: 4 | AZ38: 0 | BA38: 0 | BB38: 0 | BC38: 0 | BD38: 0 | BE38: 0 | BF38: 0 | BG38: 0 | BH38: 0 | BI38: 0 | BJ38: 4 | BK38: 0 | BL38: 0 | BM38: 0 | BN38: 11 | BO38: 331
A39: Clarence Valley (A) | B39: 3 | C39: 24 | D39: 0 | E39: 0 | F39: 4 | G39: 0 | H39: 0 | I39: 6 | J39: 0 | K39: 0 | L39: 0 | M39: 27 | N39: 0 | O39: 0 | P39: 0 | Q39: 0 | R39: 0 | S39: 0 | T39: 0 | U39: 0 | V39: 19 | W39: 3 | X39: 8 | Y39: 406 | Z39: 0 | AA39: 7 | AB39: 5 | AC39: 0 | AD39: 0 | AE39: 0 | AF39: 128 | AG39: 0 | AH39: 3 | AI39: 25 | AJ39: 0 | AK39: 0 | AL39: 0 | AM39: 0 | AN39: 0 | AO39: 6 | AP39: 0 | AQ39: 11 | AR39: 0 | AS39: 707 | AT39: 5 | AU39: 5 | AV39: 0 | AW39: 20 | AX39: 0 | AY39: 27 | AZ39: 28 | BA39: 12 | BB39: 23 | BC39: 0 | BD39: 13 | BE39: 0 | BF39: 5 | BG39: 5 | BH39: 0 | BI39: 0 | BJ39: 10 | BK39: 0 | BL39: 0 | BM39: 0 | BN39: 22 | BO39: 866
A40: Cobar (A) | B40: 3 | C40: 6 | D40: 0 | E40: 0 | F40: 0 | G40: 0 | H40: 0 | I40: 0 | J40: 0 | K40: 0 | L40: 0 | M40: 0 | N40: 0 | O40: 0 | P40: 0 | Q40: 0 | R40: 0 | S40: 0 | T40: 0 | U40: 0 | V40: 0 | W40: 18 | X40: 62 | Y40: 30 | Z40: 0 | AA40: 29 | AB40: 30 | AC40: 0 | AD40: 11 | AE40: 0 | AF40: 0 | AG40: 0 | AH40: 0 | AI40: 0 | AJ40: 0 | AK40: 0 | AL40: 0 | AM40: 0 | AN40: 0 | AO40: 0 | AP40: 0 | AQ40: 0 | AR40: 0 | AS40: 204 | AT40: 0 | AU40: 0 | AV40: 0 | AW40: 0 | AX40: 0 | AY40: 0 | AZ40: 0 | BA40: 0 | BB40: 0 | BC40: 0 | BD40: 0 | BE40: 0 | BF40: 0 | BG40: 0 | BH40: 4 | BI40: 0 | BJ40: 0 | BK40: 5 | BL40: 0 | BM40: 7 | BN40: 3 | BO40: 214
A41: Coffs Harbour (C) | B41: 3 | C41: 42 | D41: 0 | E41: 0 | F41: 10 | G41: 4 | H41: 0 | I41: 8 | J41: 0 | K41: 6 | L41: 0 | M41: 78 | N41: 6 | O41: 0 | P41: 7 | Q41: 268 | R41: 0 | S41: 3 | T41: 0 | U41: 0 | V41: 181 | W41: 0 | X41: 3 | Y41: 65 | Z41: 0 | AA41: 0 | AB41: 0 | AC41: 0 | AD41: 0 | AE41: 0 | AF41: 0 | AG41: 0 | AH41: 0 | AI41: 20 | AJ41: 0 | AK41: 0 | AL41: 10 | AM41: 3 | AN41: 0 | AO41: 4 | AP41: 0 | AQ41: 7 | AR41: 0 | AS41: 738 | AT41: 0 | AU41: 0 | AV41: 0 | AW41: 4 | AX41: 0 | AY41: 71 | AZ41: 11 | BA41: 5 | BB41: 4 | BC41: 0 | BD41: 8 | BE41: 0 | BF41: 0 | BG41: 0 | BH41: 0 | BI41: 0 | BJ41: 21 | BK41: 0 | BL41: 0 | BM41: 0 | BN41: 10 | BO41: 866
A42: Conargo (A) | B42: 0 | C42: 11 | D42: 0 | E42: 0 | F42: 0 | G42: 0 | H42: 0 | I42: 0 | J42: 0 | K42: 0 | L42: 0 | M42: 5 | N42: 0 | O42: 0 | P42: 0 | Q42: 0 | R42: 0 | S42: 0 | T42: 0 | U42: 0 | V42: 0 | W42: 3 | X42: 73 | Y42: 31 | Z42: 0 | AA42: 17 | AB42: 78 | AC42: 5 | AD42: 88 | AE42: 0 | AF42: 0 | AG42: 0 | AH42: 5 | AI42: 81 | AJ42: 0 | AK42: 0 | AL42: 0 | AM42: 0 | AN42: 0 | AO42: 0 | AP42: 0 | AQ42: 0 | AR42: 0 | AS42: 403 | AT42: 0 | AU42: 0 | AV42: 0 | AW42: 0 | AX42: 0 | AY42: 0 | AZ42: 0 | BA42: 0 | BB42: 0 | BC42: 0 | BD42: 0 | BE42: 0 | BF42: 0 | BG42: 0 | BH42: 0 | BI42: 0 | BJ42: 0 | BK42: 0 | BL42: 0 | BM42: 0 | BN42: 6 | BO42: 403
A43: Coolamon (A) | B43: 0 | C43: 7 | D43: 0 | E43: 0 | F43: 0 | G43: 0 | H43: 0 | I43: 0 | J43: 0 | K43: 0 | L43: 0 | M43: 0 | N43: 0 | O43: 0 | P43: 0 | Q43: 4 | R43: 0 | S43: 0 | T43: 0 | U43: 0 | V43: 0 | W43: 8 | X43: 27 | Y43: 3 | Z43: 0 | AA43: 7 | AB43: 194 | AC43: 0 | AD43: 91 | AE43: 0 | AF43: 0 | AG43: 0 | AH43: 0 | AI43: 3 | AJ43: 0 | AK43: 0 | AL43: 0 | AM43: 0 | AN43: 0 | AO43: 0 | AP43: 0 | AQ43: 0 | AR43: 0 | AS43: 347 | AT43: 0 | AU43: 0 | AV43: 0 | AW43: 0 | AX43: 0 | AY43: 0 | AZ43: 0 | BA43: 0 | BB43: 0 | BC43: 0 | BD43: 0 | BE43: 0 | BF43: 0 | BG43: 0 | BH43: 0 | BI43: 0 | BJ43: 0 | BK43: 0 | BL43: 0 | BM43: 0 | BN43: 3 | BO43: 347
A44: Cooma-Monaro (A) | B44: 0 | C44: 11 | D44: 0 | E44: 0 | F44: 0 | G44: 0 | H44: 0 | I44: 0 | J44: 0 | K44: 0 | L44: 0 | M44: 0 | N44: 0 | O44: 0 | P44: 0 | Q44: 0 | R44: 0 | S44: 0 | T44: 0 | U44: 0 | V44: 0 | W44: 9 | X44: 90 | Y44: 50 | Z44: 0 | AA44: 101 | AB44: 4 | AC44: 0 | AD44: 0 | AE44: 0 | AF44: 0 | AG44: 0 | AH44: 0 | AI44: 0 | AJ44: 0 | AK44: 0 | AL44: 0 | AM44: 0 | AN44: 0 | AO44: 5 | AP44: 0 | AQ44: 0 | AR44: 0 | AS44: 285 | AT44: 0 | AU44: 0 | AV44: 0 | AW44: 0 | AX44: 0 | AY44: 4 | AZ44: 5 | BA44: 0 | BB44: 0 | BC44: 0 | BD44: 0 | BE44: 0 | BF44: 0 | BG44: 0 | BH44: 0 | BI44: 0 | BJ44: 0 | BK44: 0 | BL44: 0 | BM44: 4 | BN44: 11 | BO44: 294
A45: Coonamble (A) | B45: 0 | C45: 17 | D45: 0 | E45: 0 | F45: 0 | G45: 0 | H45: 0 | I45: 0 | J45: 0 | K45: 0 | L45: 0 | M45: 0 | N45: 0 | O45: 0 | P45: 0 | Q45: 0 | R45: 0 | S45: 0 | T45: 0 | U45: 0 | V45: 0 | W45: 5 | X45: 48 | Y45: 92 | Z45: 12 | AA45: 40 | AB45: 157 | AC45: 0 | AD45: 69 | AE45: 0 | AF45: 0 | AG45: 0 | AH45: 0 | AI45: 0 | AJ45: 0 | AK45: 0 | AL45: 0 | AM45: 0 | AN45: 0 | AO45: 0 | AP45: 0 | AQ45: 0 | AR45: 0 | AS45: 457 | AT45: 0 | AU45: 0 | AV45: 0 | AW45: 0 | AX45: 0 | AY45: 0 | AZ45: 0 | BA45: 0 | BB45: 0 | BC45: 0 | BD45: 0 | BE45: 0 | BF45: 0 | BG45: 0 | BH45: 0 | BI45: 0 | BJ45: 0 | BK45: 0 | BL45: 0 | BM45: 4 | BN45: 13 | BO45: 457
A46: Cootamundra (A) | B46: 3 | C46: 11 | D46: 0 | E46: 0 | F46: 0 | G46: 0 | H46: 0 | I46: 0 | J46: 0 | K46: 0 | L46: 0 | M46: 0 | N46: 0 | O46: 0 | P46: 0 | Q46: 0 | R46: 0 | S46: 3 | T46: 0 | U46: 0 | V46: 4 | W46: 0 | X46: 50 | Y46: 43 | Z46: 0 | AA46: 15 | AB46: 87 | AC46: 0 | AD46: 38 | AE46: 0 | AF46: 0 | AG46: 0 | AH46: 0 | AI46: 0 | AJ46: 0 | AK46: 0 | AL46: 0 | AM46: 0 | AN46: 0 | AO46: 13 | AP46: 0 | AQ46: 0 | AR46: 0 | AS46: 282 | AT46: 0 | AU46: 0 | AV46: 0 | AW46: 0 | AX46: 0 | AY46: 0 | AZ46: 0 | BA46: 0 | BB46: 0 | BC46: 0 | BD46: 0 | BE46: 0 | BF46: 0 | BG46: 0 | BH46: 0 | BI46: 0 | BJ46: 0 | BK46: 5 | BL46: 0 | BM46: 0 | BN46: 10 | BO46: 282
A47: Corowa Shire (A) | B47: 4 | C47: 14 | D47: 0 | E47: 0 | F47: 3 | G47: 0 | H47: 0 | I47: 4 | J47: 0 | K47: 0 | L47: 0 | M47: 0 | N47: 0 | O47: 0 | P47: 0 | Q47: 0 | R47: 0 | S47: 0 | T47: 0 | U47: 0 | V47: 0 | W47: 4 | X47: 25 | Y47: 18 | Z47: 0 | AA47: 14 | AB47: 139 | AC47: 0 | AD47: 77 | AE47: 0 | AF47: 0 | AG47: 0 | AH47: 6 | AI47: 23 | AJ47: 0 | AK47: 0 | AL47: 4 | AM47: 0 | AN47: 0 | AO47: 0 | AP47: 207 | AQ47: 3 | AR47: 0 | AS47: 556 | AT47: 0 | AU47: 0 | AV47: 0 | AW47: 0 | AX47: 0 | AY47: 0 | AZ47: 0 | BA47: 0 | BB47: 0 | BC47: 0 | BD47: 0 | BE47: 0 | BF47: 0 | BG47: 0 | BH47: 0 | BI47: 0 | BJ47: 0 | BK47: 0 | BL47: 0 | BM47: 0 | BN47: 11 | BO47: 556
A48: Cowra (A) | B48: 8 | C48: 36 | D48: 0 | E48: 0 | F48: 0 | G48: 4 | H48: 0 | I48: 0 | J48: 0 | K48: 0 | L48: 0 | M48: 28 | N48: 0 | O48: 20 | P48: 0 | Q48: 0 | R48: 0 | S48: 0 | T48: 0 | U48: 0 | V48: 0 | W48: 3 | X48: 125 | Y48: 76 | Z48: 0 | AA48: 46 | AB48: 142 | AC48: 0 | AD48: 74 | AE48: 0 | AF48: 0 | AG48: 0 | AH48: 12 | AI48: 52 | AJ48: 0 | AK48: 0 | AL48: 9 | AM48: 0 | AN48: 0 | AO48: 14 | AP48: 0 | AQ48: 0 | AR48: 0 | AS48: 663 | AT48: 0 | AU48: 0 | AV48: 0 | AW48: 0 | AX48: 0 | AY48: 0 | AZ48: 0 | BA48: 0 | BB48: 0 | BC48: 0 | BD48: 0 | BE48: 0 | BF48: 0 | BG48: 0 | BH48: 0 | BI48: 0 | BJ48: 0 | BK48: 0 | BL48: 0 | BM48: 4 | BN48: 10 | BO48: 667
A49: Deniliquin (A) | B49: 0 | C49: 7 | D49: 0 | E49: 0 | F49: 0 | G49: 0 | H49: 0 | I49: 0 | J49: 0 | K49: 0 | L49: 0 | M49: 0 | N49: 0 | O49: 0 | P49: 0 | Q49: 0 | R49: 0 | S49: 0 | T49: 0 | U49: 0 | V49: 0 | W49: 0 | X49: 20 | Y49: 6 | Z49: 0 | AA49: 4 | AB49: 15 | AC49: 0 | AD49: 16 | AE49: 0 | AF49: 0 | AG49: 0 | AH49: 0 | AI49: 14 | AJ49: 0 | AK49: 0 | AL49: 0 | AM49: 0 | AN49: 0 | AO49: 0 | AP49: 10 | AQ49: 0 | AR49: 0 | AS49: 107 | AT49: 0 | AU49: 0 | AV49: 0 | AW49: 0 | AX49: 0 | AY49: 5 | AZ49: 0 | BA49: 0 | BB49: 0 | BC49: 0 | BD49: 0 | BE49: 0 | BF49: 0 | BG49: 0 | BH49: 0 | BI49: 0 | BJ49: 0 | BK49: 0 | BL49: 0 | BM49: 4 | BN49: 11 | BO49: 112
A50: Dubbo (C) | B50: 3 | C50: 24 | D50: 0 | E50: 0 | F50: 0 | G50: 6 | H50: 0 | I50: 0 | J50: 0 | K50: 8 | L50: 0 | M50: 0 | N50: 0 | O50: 0 | P50: 0 | Q50: 0 | R50: 0 | S50: 0 | T50: 0 | U50: 0 | V50: 0 | W50: 0 | X50: 78 | Y50: 80 | Z50: 3 | AA50: 54 | AB50: 76 | AC50: 0 | AD50: 41 | AE50: 3 | AF50: 0 | AG50: 0 | AH50: 10 | AI50: 21 | AJ50: 0 | AK50: 0 | AL50: 0 | AM50: 0 | AN50: 0 | AO50: 3 | AP50: 0 | AQ50: 11 | AR50: 0 | AS50: 461 | AT50: 0 | AU50: 0 | AV50: 0 | AW50: 0 | AX50: 0 | AY50: 8 | AZ50: 0 | BA50: 0 | BB50: 0 | BC50: 0 | BD50: 0 | BE50: 0 | BF50: 0 | BG50: 0 | BH50: 0 | BI50: 0 | BJ50: 0 | BK50: 0 | BL50: 0 | BM50: 8 | BN50: 32 | BO50: 469
A51: Dungog (A) | B51: 4 | C51: 10 | D51: 0 | E51: 0 | F51: 6 | G51: 0 | H51: 0 | I51: 0 | J51: 0 | K51: 0 | L51: 0 | M51: 5 | N51: 0 | O51: 0 | P51: 0 | Q51: 0 | R51: 0 | S51: 0 | T51: 0 | U51: 0 | V51: 0 | W51: 5 | X51: 3 | Y51: 204 | Z51: 0 | AA51: 4 | AB51: 0 | AC51: 0 | AD51: 0 | AE51: 0 | AF51: 0 | AG51: 0 | AH51: 0 | AI51: 103 | AJ51: 7 | AK51: 11 | AL51: 8 | AM51: 0 | AN51: 0 | AO51: 15 | AP51: 0 | AQ51: 0 | AR51: 0 | AS51: 396 | AT51: 0 | AU51: 0 | AV51: 0 | AW51: 0 | AX51: 0 | AY51: 0 | AZ51: 4 | BA51: 0 | BB51: 0 | BC51: 0 | BD51: 0 | BE51: 0 | BF51: 0 | BG51: 0 | BH51: 0 | BI51: 0 | BJ51: 4 | BK51: 5 | BL51: 0 | BM51: 0 | BN51: 6 | BO51: 404
A52: Eurobodalla (A) | B52: 0 | C52: 6 | D52: 0 | E52: 0 | F52: 9 | G52: 5 | H52: 0 | I52: 0 | J52: 0 | K52: 0 | L52: 0 | M52: 8 | N52: 0 | O52: 0 | P52: 0 | Q52: 0 | R52: 0 | S52: 0 | T52: 0 | U52: 0 | V52: 0 | W52: 0 | X52: 6 | Y52: 70 | Z52: 0 | AA52: 9 | AB52: 0 | AC52: 0 | AD52: 0 | AE52: 0 | AF52: 0 | AG52: 0 | AH52: 0 | AI52: 48 | AJ52: 0 | AK52: 0 | AL52: 0 | AM52: 0 | AN52: 0 | AO52: 9 | AP52: 0 | AQ52: 5 | AR52: 0 | AS52: 179 | AT52: 0 | AU52: 48 | AV52: 0 | AW52: 0 | AX52: 0 | AY52: 36 | AZ52: 3 | BA52: 10 | BB52: 0 | BC52: 4 | BD52: 0 | BE52: 0 | BF52: 0 | BG52: 4 | BH52: 0 | BI52: 0 | BJ52: 7 | BK52: 0 | BL52: 0 | BM52: 0 | BN52: 4 | BO52: 291
A53: Fairfield (C) | B53: 3 | C53: 21 | D53: 0 | E53: 0 | F53: 11 | G53: 8 | H53: 7 | I53: 22 | J53: 0 | K53: 0 | L53: 0 | M53: 62 | N53: 0 | O53: 0 | P53: 0 | Q53: 0 | R53: 0 | S53: 3 | T53: 0 | U53: 0 | V53: 0 | W53: 0 | X53: 0 | Y53: 8 | Z53: 0 | AA53: 0 | AB53: 3 | AC53: 0 | AD53: 4 | AE53: 0 | AF53: 0 | AG53: 0 | AH53: 0 | AI53: 5 | AJ53: 0 | AK53: 10 | AL53: 15 | AM53: 0 | AN53: 0 | AO53: 0 | AP53: 0 | AQ53: 0 | AR53: 0 | AS53: 197 | AT53: 0 | AU53: 0 | AV53: 0 | AW53: 0 | AX53: 0 | AY53: 0 | AZ53: 0 | BA53: 0 | BB53: 0 | BC53: 0 | BD53: 0 | BE53: 0 | BF53: 0 | BG53: 0 | BH53: 0 | BI53: 0 | BJ53: 0 | BK53: 0 | BL53: 0 | BM53: 0 | BN53: 15 | BO53: 197
A54: Forbes (A) | B54: 0 | C54: 42 | D54: 0 | E54: 0 | F54: 0 | G54: 0 | H54: 0 | I54: 0 | J54: 0 | K54: 0 | L54: 0 | M54: 0 | N54: 9 | O54: 4 | P54: 0 | Q54: 0 | R54: 0 | S54: 5 | T54: 0 | U54: 0 | V54: 0 | W54: 7 | X54: 102 | Y54: 53 | Z54: 4 | AA54: 17 | AB54: 210 | AC54: 0 | AD54: 101 | AE54: 0 | AF54: 0 | AG54: 4 | AH54: 23 | AI54: 45 | AJ54: 0 | AK54: 0 | AL54: 0 | AM54: 0 | AN54: 0 | AO54: 0 | AP54: 4 | AQ54: 0 | AR54: 0 | AS54: 654 | AT54: 0 | AU54: 0 | AV54: 0 | AW54: 0 | AX54: 0 | AY54: 10 | AZ54: 0 | BA54: 0 | BB54: 0 | BC54: 0 | BD54: 0 | BE54: 0 | BF54: 0 | BG54: 0 | BH54: 0 | BI54: 0 | BJ54: 0 | BK54: 5 | BL54: 0 | BM54: 7 | BN54: 12 | BO54: 668
A55: Gilgandra (A) | B55: 0 | C55: 14 | D55: 0 | E55: 0 | F55: 0 | G55: 0 | H55: 0 | I55: 0 | J55: 0 | K55: 0 | L55: 0 | M55: 4 | N55: 0 | O55: 0 | P55: 0 | Q55: 0 | R55: 0 | S55: 0 | T55: 0 | U55: 0 | V55: 0 | W55: 7 | X55: 52 | Y55: 59 | Z55: 0 | AA55: 35 | AB55: 155 | AC55: 0 | AD55: 79 | AE55: 0 | AF55: 0 | AG55: 0 | AH55: 0 | AI55: 0 | AJ55: 0 | AK55: 3 | AL55: 3 | AM55: 0 | AN55: 0 | AO55: 0 | AP55: 0 | AQ55: 0 | AR55: 0 | AS55: 419 | AT55: 0 | AU55: 0 | AV55: 0 | AW55: 0 | AX55: 0 | AY55: 0 | AZ55: 0 | BA55: 0 | BB55: 0 | BC55: 0 | BD55: 0 | BE55: 0 | BF55: 0 | BG55: 0 | BH55: 0 | BI55: 0 | BJ55: 0 | BK55: 0 | BL55: 0 | BM55: 0 | BN55: 8 | BO55: 423
A56: Glen Innes Severn (A) | B56: 0 | C56: 3 | D56: 0 | E56: 0 | F56: 0 | G56: 0 | H56: 0 | I56: 0 | J56: 0 | K56: 0 | L56: 0 | M56: 0 | N56: 0 | O56: 0 | P56: 0 | Q56: 5 | R56: 0 | S56: 0 | T56: 0 | U56: 0 | V56: 0 | W56: 6 | X56: 89 | Y56: 255 | Z56: 11 | AA56: 136 | AB56: 13 | AC56: 0 | AD56: 0 | AE56: 0 | AF56: 0 | AG56: 0 | AH56: 0 | AI56: 0 | AJ56: 0 | AK56: 0 | AL56: 0 | AM56: 0 | AN56: 0 | AO56: 5 | AP56: 0 | AQ56: 18 | AR56: 0 | AS56: 563 | AT56: 0 | AU56: 0 | AV56: 0 | AW56: 0 | AX56: 0 | AY56: 0 | AZ56: 0 | BA56: 0 | BB56: 0 | BC56: 0 | BD56: 0 | BE56: 0 | BF56: 0 | BG56: 0 | BH56: 0 | BI56: 0 | BJ56: 0 | BK56: 0 | BL56: 0 | BM56: 9 | BN56: 13 | BO56: 570
A57: Gloucester (A) | B57: 6 | C57: 5 | D57: 0 | E57: 0 | F57: 0 | G57: 0 | H57: 0 | I57: 0 | J57: 0 | K57: 0 | L57: 0 | M57: 8 | N57: 0 | O57: 0 | P57: 0 | Q57: 0 | R57: 0 | S57: 0 | T57: 0 | U57: 0 | V57: 0 | W57: 3 | X57: 0 | Y57: 199 | Z57: 0 | AA57: 0 | AB57: 0 | AC57: 0 | AD57: 0 | AE57: 0 | AF57: 0 | AG57: 0 | AH57: 0 | AI57: 72 | AJ57: 0 | AK57: 0 | AL57: 4 | AM57: 0 | AN57: 0 | AO57: 0 | AP57: 0 | AQ57: 0 | AR57: 0 | AS57: 297 | AT57: 0 | AU57: 0 | AV57: 0 | AW57: 7 | AX57: 0 | AY57: 0 | AZ57: 4 | BA57: 0 | BB57: 0 | BC57: 0 | BD57: 0 | BE57: 0 | BF57: 0 | BG57: 0 | BH57: 0 | BI57: 0 | BJ57: 0 | BK57: 0 | BL57: 0 | BM57: 0 | BN57: 0 | BO57: 308
A58: Gosford (C) | B58: 9 | C58: 40 | D58: 0 | E58: 0 | F58: 21 | G58: 0 | H58: 0 | I58: 29 | J58: 0 | K58: 6 | L58: 0 | M58: 59 | N58: 28 | O58: 0 | P58: 0 | Q58: 0 | R58: 4 | S58: 3 | T58: 24 | U58: 0 | V58: 6 | W58: 0 | X58: 3 | Y58: 11 | Z58: 0 | AA58: 0 | AB58: 0 | AC58: 0 | AD58: 4 | AE58: 0 | AF58: 0 | AG58: 0 | AH58: 0 | AI58: 10 | AJ58: 23 | AK58: 42 | AL58: 13 | AM58: 0 | AN58: 0 | AO58: 39 | AP58: 0 | AQ58: 0 | AR58: 0 | AS58: 392 | AT58: 0 | AU58: 26 | AV58: 0 | AW58: 0 | AX58: 0 | AY58: 4 | AZ58: 0 | BA58: 6 | BB58: 7 | BC58: 0 | BD58: 0 | BE58: 0 | BF58: 0 | BG58: 0 | BH58: 0 | BI58: 0 | BJ58: 13 | BK58: 0 | BL58: 0 | BM58: 0 | BN58: 18 | BO58: 452
A59: Goulburn Mulwaree (A) | B59: 6 | C59: 16 | D59: 0 | E59: 0 | F59: 0 | G59: 0 | H59: 0 | I59: 0 | J59: 0 | K59: 0 | L59: 0 | M59: 0 | N59: 6 | O59: 0 | P59: 0 | Q59: 0 | R59: 0 | S59: 0 | T59: 0 | U59: 5 | V59: 0 | W59: 10 | X59: 85 | Y59: 75 | Z59: 0 | AA59: 41 | AB59: 5 | AC59: 0 | AD59: 4 | AE59: 0 | AF59: 0 | AG59: 0 | AH59: 0 | AI59: 0 | AJ59: 5 | AK59: 4 | AL59: 5 | AM59: 0 | AN59: 0 | AO59: 9 | AP59: 0 | AQ59: 0 | AR59: 0 | AS59: 290 | AT59: 0 | AU59: 0 | AV59: 0 | AW59: 0 | AX59: 0 | AY59: 5 | AZ59: 0 | BA59: 0 | BB59: 0 | BC59: 0 | BD59: 0 | BE59: 0 | BF59: 0 | BG59: 0 | BH59: 0 | BI59: 0 | BJ59: 0 | BK59: 0 | BL59: 0 | BM59: 4 | BN59: 10 | BO59: 304
A60: Great Lakes (A) | B60: 0 | C60: 11 | D60: 0 | E60: 0 | F60: 0 | G60: 0 | H60: 0 | I60: 0 | J60: 0 | K60: 0 | L60: 0 | M60: 0 | N60: 0 | O60: 0 | P60: 0 | Q60: 0 | R60: 0 | S60: 0 | T60: 0 | U60: 0 | V60: 0 | W60: 0 | X60: 0 | Y60: 151 | Z60: 0 | AA60: 3 | AB60: 3 | AC60: 0 | AD60: 0 | AE60: 0 | AF60: 0 | AG60: 0 | AH60: 0 | AI60: 16 | AJ60: 14 | AK60: 16 | AL60: 17 | AM60: 0 | AN60: 0 | AO60: 0 | AP60: 0 | AQ60: 4 | AR60: 0 | AS60: 238 | AT60: 0 | AU60: 69 | AV60: 0 | AW60: 5 | AX60: 0 | AY60: 3 | AZ60: 6 | BA60: 9 | BB60: 21 | BC60: 0 | BD60: 4 | BE60: 0 | BF60: 0 | BG60: 9 | BH60: 0 | BI60: 0 | BJ60: 3 | BK60: 0 | BL60: 0 | BM60: 0 | BN60: 3 | BO60: 371
A61: Greater Hume Shire (A) | B61: 6 | C61: 29 | D61: 0 | E61: 0 | F61: 0 | G61: 0 | H61: 0 | I61: 0 | J61: 0 | K61: 0 | L61: 0 | M61: 0 | N61: 0 | O61: 4 | P61: 0 | Q61: 0 | R61: 0 | S61: 0 | T61: 0 | U61: 0 | V61: 0 | W61: 6 | X61: 135 | Y61: 227 | Z61: 0 | AA61: 114 | AB61: 256 | AC61: 0 | AD61: 114 | AE61: 0 | AF61: 0 | AG61: 0 | AH61: 0 | AI61: 0 | AJ61: 0 | AK61: 0 | AL61: 0 | AM61: 0 | AN61: 0 | AO61: 11 | AP61: 20 | AQ61: 0 | AR61: 0 | AS61: 944 | AT61: 0 | AU61: 0 | AV61: 0 | AW61: 0 | AX61: 0 | AY61: 3 | AZ61: 0 | BA61: 0 | BB61: 0 | BC61: 0 | BD61: 0 | BE61: 0 | BF61: 0 | BG61: 0 | BH61: 0 | BI61: 0 | BJ61: 0 | BK61: 0 | BL61: 0 | BM61: 9 | BN61: 13 | BO61: 947
A62: Greater Taree (C) | B62: 4 | C62: 15 | D62: 0 | E62: 0 | F62: 13 | G62: 17 | H62: 0 | I62: 10 | J62: 0 | K62: 9 | L62: 0 | M62: 13 | N62: 3 | O62: 0 | P62: 0 | Q62: 0 | R62: 0 | S62: 0 | T62: 5 | U62: 0 | V62: 8 | W62: 3 | X62: 0 | Y62: 272 | Z62: 0 | AA62: 3 | AB62: 3 | AC62: 0 | AD62: 0 | AE62: 0 | AF62: 0 | AG62: 0 | AH62: 4 | AI62: 207 | AJ62: 0 | AK62: 0 | AL62: 22 | AM62: 0 | AN62: 0 | AO62: 4 | AP62: 0 | AQ62: 3 | AR62: 0 | AS62: 626 | AT62: 0 | AU62: 17 | AV62: 0 | AW62: 0 | AX62: 0 | AY62: 7 | AZ62: 6 | BA62: 5 | BB62: 5 | BC62: 0 | BD62: 5 | BE62: 0 | BF62: 0 | BG62: 0 | BH62: 0 | BI62: 0 | BJ62: 5 | BK62: 0 | BL62: 0 | BM62: 0 | BN62: 8 | BO62: 679
A63: Griffith (C) | B63: 10 | C63: 72 | D63: 0 | E63: 0 | F63: 15 | G63: 0 | H63: 0 | I63: 0 | J63: 5 | K63: 0 | L63: 3 | M63: 43 | N63: 16 | O63: 287 | P63: 0 | Q63: 0 | R63: 0 | S63: 6 | T63: 201 | U63: 0 | V63: 4 | W63: 0 | X63: 15 | Y63: 12 | Z63: 3 | AA63: 7 | AB63: 39 | AC63: 7 | AD63: 218 | AE63: 0 | AF63: 0 | AG63: 7 | AH63: 0 | AI63: 8 | AJ63: 20 | AK63: 36 | AL63: 24 | AM63: 0 | AN63: 0 | AO63: 0 | AP63: 0 | AQ63: 0 | AR63: 0 | AS63: 1097 | AT63: 0 | AU63: 0 | AV63: 0 | AW63: 0 | AX63: 0 | AY63: 4 | AZ63: 0 | BA63: 0 | BB63: 0 | BC63: 0 | BD63: 0 | BE63: 0 | BF63: 0 | BG63: 0 | BH63: 0 | BI63: 0 | BJ63: 0 | BK63: 0 | BL63: 0 | BM63: 0 | BN63: 39 | BO63: 1101
A64: Gundagai (A) | B64: 0 | C64: 10 | D64: 0 | E64: 0 | F64: 0 | G64: 0 | H64: 0 | I64: 0 | J64: 0 | K64: 0 | L64: 0 | M64: 0 | N64: 0 | O64: 10 | P64: 0 | Q64: 0 | R64: 0 | S64: 0 | T64: 0 | U64: 0 | V64: 0 | W64: 3 | X64: 65 | Y64: 97 | Z64: 0 | AA64: 80 | AB64: 24 | AC64: 0 | AD64: 9 | AE64: 0 | AF64: 0 | AG64: 0 | AH64: 0 | AI64: 0 | AJ64: 0 | AK64: 0 | AL64: 0 | AM64: 0 | AN64: 0 | AO64: 0 | AP64: 0 | AQ64: 6 | AR64: 0 | AS64: 307 | AT64: 0 | AU64: 0 | AV64: 0 | AW64: 0 | AX64: 0 | AY64: 0 | AZ64: 0 | BA64: 0 | BB64: 0 | BC64: 0 | BD64: 0 | BE64: 0 | BF64: 0 | BG64: 0 | BH64: 4 | BI64: 0 | BJ64: 0 | BK64: 0 | BL64: 0 | BM64: 3 | BN64: 0 | BO64: 311
A65: Gunnedah (A) | B65: 11 | C65: 49 | D65: 0 | E65: 0 | F65: 0 | G65: 0 | H65: 0 | I65: 0 | J65: 0 | K65: 0 | L65: 0 | M65: 8 | N65: 0 | O65: 0 | P65: 0 | Q65: 0 | R65: 0 | S65: 0 | T65: 0 | U65: 0 | V65: 0 | W65: 8 | X65: 28 | Y65: 206 | Z65: 0 | AA65: 41 | AB65: 146 | AC65: 0 | AD65: 184 | AE65: 0 | AF65: 0 | AG65: 68 | AH65: 7 | AI65: 0 | AJ65: 0 | AK65: 3 | AL65: 8 | AM65: 0 | AN65: 0 | AO65: 3 | AP65: 6 | AQ65: 3 | AR65: 0 | AS65: 819 | AT65: 0 | AU65: 0 | AV65: 0 | AW65: 0 | AX65: 0 | AY65: 3 | AZ65: 0 | BA65: 0 | BB65: 0 | BC65: 0 | BD65: 0 | BE65: 0 | BF65: 0 | BG65: 0 | BH65: 0 | BI65: 0 | BJ65: 0 | BK65: 0 | BL65: 8 | BM65: 0 | BN65: 32 | BO65: 825
A66: Guyra (A) | B66: 0 | C66: 7 | D66: 0 | E66: 0 | F66: 0 | G66: 0 | H66: 0 | I66: 0 | J66: 0 | K66: 0 | L66: 29 | M66: 97 | N66: 0 | O66: 0 | P66: 0 | Q66: 17 | R66: 0 | S66: 0 | T66: 0 | U66: 0 | V66: 0 | W66: 15 | X66: 92 | Y66: 161 | Z66: 0 | AA66: 160 | AB66: 5 | AC66: 0 | AD66: 0 | AE66: 0 | AF66: 0 | AG66: 0 | AH66: 0 | AI66: 0 | AJ66: 0 | AK66: 0 | AL66: 0 | AM66: 0 | AN66: 0 | AO66: 0 | AP66: 0 | AQ66: 4 | AR66: 0 | AS66: 610 | AT66: 0 | AU66: 0 | AV66: 0 | AW66: 0 | AX66: 0 | AY66: 0 | AZ66: 0 | BA66: 0 | BB66: 0 | BC66: 0 | BD66: 0 | BE66: 0 | BF66: 0 | BG66: 0 | BH66: 0 | BI66: 0 | BJ66: 4 | BK66: 5 | BL66: 0 | BM66: 14 | BN66: 4 | BO66: 614
A67: Gwydir (A) | B67: 7 | C67: 32 | D67: 0 | E67: 0 | F67: 0 | G67: 0 | H67: 0 | I67: 0 | J67: 0 | K67: 3 | L67: 0 | M67: 0 | N67: 0 | O67: 0 | P67: 0 | Q67: 0 | R67: 0 | S67: 0 | T67: 0 | U67: 0 | V67: 0 | W67: 13 | X67: 26 | Y67: 271 | Z67: 0 | AA67: 63 | AB67: 133 | AC67: 0 | AD67: 112 | AE67: 0 | AF67: 0 | AG67: 7 | AH67: 0 | AI67: 0 | AJ67: 0 | AK67: 0 | AL67: 0 | AM67: 0 | AN67: 0 | AO67: 0 | AP67: 9 | AQ67: 0 | AR67: 0 | AS67: 684 | AT67: 0 | AU67: 0 | AV67: 0 | AW67: 0 | AX67: 0 | AY67: 0 | AZ67: 0 | BA67: 0 | BB67: 0 | BC67: 0 | BD67: 0 | BE67: 0 | BF67: 0 | BG67: 0 | BH67: 0 | BI67: 0 | BJ67: 0 | BK67: 0 | BL67: 0 | BM67: 0 | BN67: 8 | BO67: 684
A68: Harden (A) | B68: 4 | C68: 25 | D68: 0 | E68: 0 | F68: 0 | G68: 0 | H68: 0 | I68: 0 | J68: 0 | K68: 0 | L68: 0 | M68: 0 | N68: 6 | O68: 7 | P68: 0 | Q68: 0 | R68: 0 | S68: 4 | T68: 0 | U68: 0 | V68: 0 | W68: 5 | X68: 68 | Y68: 44 | Z68: 0 | AA68: 29 | AB68: 76 | AC68: 0 | AD68: 62 | AE68: 0 | AF68: 0 | AG68: 0 | AH68: 0 | AI68: 12 | AJ68: 3 | AK68: 3 | AL68: 7 | AM68: 0 | AN68: 0 | AO68: 24 | AP68: 3 | AQ68: 4 | AR68: 0 | AS68: 390 | AT68: 0 | AU68: 0 | AV68: 0 | AW68: 0 | AX68: 0 | AY68: 0 | AZ68: 0 | BA68: 0 | BB68: 0 | BC68: 0 | BD68: 0 | BE68: 0 | BF68: 0 | BG68: 0 | BH68: 0 | BI68: 0 | BJ68: 0 | BK68: 0 | BL68: 0 | BM68: 0 | BN68: 4 | BO68: 390
A69: Hawkesbury (C) | B69: 0 | C69: 45 | D69: 0 | E69: 0 | F69: 21 | G69: 113 | H69: 0 | I69: 8 | J69: 0 | K69: 336 | L69: 0 | M69: 149 | N69: 15 | O69: 0 | P69: 0 | Q69: 3 | R69: 10 | S69: 6 | T69: 9 | U69: 0 | V69: 3 | W69: 0 | X69: 3 | Y69: 48 | Z69: 0 | AA69: 4 | AB69: 6 | AC69: 0 | AD69: 0 | AE69: 0 | AF69: 0 | AG69: 0 | AH69: 3 | AI69: 7 | AJ69: 15 | AK69: 14 | AL69: 51 | AM69: 0 | AN69: 0 | AO69: 90 | AP69: 3 | AQ69: 3 | AR69: 0 | AS69: 998 | AT69: 0 | AU69: 0 | AV69: 0 | AW69: 0 | AX69: 0 | AY69: 3 | AZ69: 0 | BA69: 0 | BB69: 0 | BC69: 0 | BD69: 0 | BE69: 0 | BF69: 0 | BG69: 0 | BH69: 0 | BI69: 0 | BJ69: 3 | BK69: 0 | BL69: 0 | BM69: 0 | BN69: 33 | BO69: 1011
A70: Hay (A) | B70: 8 | C70: 10 | D70: 0 | E70: 0 | F70: 0 | G70: 0 | H70: 0 | I70: 0 | J70: 0 | K70: 0 | L70: 0 | M70: 17 | N70: 0 | O70: 0 | P70: 0 | Q70: 0 | R70: 0 | S70: 0 | T70: 0 | U70: 0 | V70: 0 | W70: 4 | X70: 72 | Y70: 11 | Z70: 0 | AA70: 40 | AB70: 11 | AC70: 0 | AD70: 21 | AE70: 0 | AF70: 0 | AG70: 9 | AH70: 4 | AI70: 0 | AJ70: 0 | AK70: 0 | AL70: 0 | AM70: 0 | AN70: 0 | AO70: 0 | AP70: 0 | AQ70: 0 | AR70: 0 | AS70: 241 | AT70: 0 | AU70: 0 | AV70: 0 | AW70: 0 | AX70: 0 | AY70: 0 | AZ70: 0 | BA70: 0 | BB70: 0 | BC70: 0 | BD70: 0 | BE70: 0 | BF70: 0 | BG70: 0 | BH70: 7 | BI70: 0 | BJ70: 0 | BK70: 0 | BL70: 0 | BM70: 22 | BN70: 12 | BO70: 248
A71: Holroyd (C) | B71: 3 | C71: 4 | D71: 0 | E71: 0 | F71: 0 | G71: 0 | H71: 0 | I71: 0 | J71: 0 | K71: 0 | L71: 0 | M71: 0 | N71: 0 | O71: 0 | P71: 0 | Q71: 0 | R71: 0 | S71: 0 | T71: 0 | U71: 0 | V71: 0 | W71: 0 | X71: 12 | Y71: 0 | Z71: 0 | AA71: 0 | AB71: 0 | AC71: 0 | AD71: 0 | AE71: 0 | AF71: 0 | AG71: 0 | AH71: 0 | AI71: 0 | AJ71: 3 | AK71: 12 | AL71: 0 | AM71: 0 | AN71: 0 | AO71: 0 | AP71: 0 | AQ71: 0 | AR71: 0 | AS71: 42 | AT71: 0 | AU71: 0 | AV71: 0 | AW71: 0 | AX71: 0 | AY71: 0 | AZ71: 0 | BA71: 0 | BB71: 0 | BC71: 0 | BD71: 0 | BE71: 0 | BF71: 0 | BG71: 0 | BH71: 0 | BI71: 0 | BJ71: 3 | BK71: 5 | BL71: 0 | BM71: 0 | BN71: 3 | BO71: 45
A72: Hornsby (A) | B72: 3 | C72: 20 | D72: 8 | E72: 5 | F72: 92 | G72: 0 | H72: 4 | I72: 43 | J72: 5 | K72: 0 | L72: 0 | M72: 53 | N72: 14 | O72: 0 | P72: 0 | Q72: 5 | R72: 5 | S72: 20 | T72: 0 | U72: 0 | V72: 3 | W72: 0 | X72: 4 | Y72: 3 | Z72: 0 | AA72: 3 | AB72: 3 | AC72: 0 | AD72: 0 | AE72: 0 | AF72: 0 | AG72: 0 | AH72: 0 | AI72: 10 | AJ72: 0 | AK72: 36 | AL72: 3 | AM72: 0 | AN72: 0 | AO72: 23 | AP72: 0 | AQ72: 0 | AR72: 0 | AS72: =SUM(B72:AR72)+BI72+BK72+BL72+BM72+BN72 -> 382 | AT72: 0 | AU72: 0 | AV72: 0 | AW72: 0 | AX72: 0 | AY72: 0 | AZ72: 0 | BA72: 0 | BB72: 0 | BC72: 0 | BD72: 4 | BE72: 0 | BF72: 0 | BG72: 0 | BH72: 0 | BI72: 0 | BJ72: 8 | BK72: 0 | BL72: 0 | BM72: 0 | BN72: 17 | BO72: 406
A73: Hunters Hill (A) | B73: 0 | C73: 0 | D73: 0 | E73: 0 | F73: 0 | G73: 0 | H73: 0 | I73: 0 | J73: 0 | K73: 0 | L73: 0 | M73: 0 | N73: 0 | O73: 0 | P73: 0 | Q73: 0 | R73: 0 | S73: 0 | T73: 0 | U73: 0 | V73: 0 | W73: 0 | X73: 0 | Y73: 0 | Z73: 0 | AA73: 0 | AB73: 0 | AC73: 0 | AD73: 0 | AE73: 0 | AF73: 0 | AG73: 0 | AH73: 0 | AI73: 0 | AJ73: 0 | AK73: 0 | AL73: 0 | AM73: 0 | AN73: 0 | AO73: 0 | AP73: 0 | AQ73: 0 | AR73: 0 | AS73: 0 | AT73: 0 | AU73: 0 | AV73: 0 | AW73: 0 | AX73: 0 | AY73: 0 | AZ73: 0 | BA73: 0 | BB73: 0 | BC73: 0 | BD73: 0 | BE73: 0 | BF73: 0 | BG73: 0 | BH73: 0 | BI73: 0 | BJ73: 0 | BK73: 0 | BL73: 0 | BM73: 0 | BN73: 0 | BO73: 0
A74: Hurstville (C) | B74: 0 | C74: 0 | D74: 0 | E74: 0 | F74: 6 | G74: 0 | H74: 0 | I74: 0 | J74: 0 | K74: 0 | L74: 0 | M74: 0 | N74: 0 | O74: 0 | P74: 0 | Q74: 0 | R74: 0 | S74: 0 | T74: 0 | U74: 0 | V74: 0 | W74: 0 | X74: 5 | Y74: 0 | Z74: 0 | AA74: 0 | AB74: 3 | AC74: 0 | AD74: 0 | AE74: 0 | AF74: 0 | AG74: 0 | AH74: 0 | AI74: 0 | AJ74: 0 | AK74: 0 | AL74: 0 | AM74: 0 | AN74: 0 | AO74: 0 | AP74: 0 | AQ74: 0 | AR74: 0 | AS74: 22 | AT74: 0 | AU74: 0 | AV74: 0 | AW74: 0 | AX74: 0 | AY74: 0 | AZ74: 0 | BA74: 0 | BB74: 0 | BC74: 0 | BD74: 0 | BE74: 0 | BF74: 0 | BG74: 0 | BH74: 0 | BI74: 0 | BJ74: 0 | BK74: 0 | BL74: 0 | BM74: 0 | BN74: 8 | BO74: 22
A75: Inverell (A) | B75: 4 | C75: 23 | D75: 0 | E75: 0 | F75: 3 | G75: 3 | H75: 0 | I75: 0 | J75: 0 | K75: 0 | L75: 0 | M75: 5 | N75: 0 | O75: 0 | P75: 0 | Q75: 3 | R75: 0 | S75: 0 | T75: 0 | U75: 0 | V75: 3 | W75: 4 | X75: 111 | Y75: 249 | Z75: 3 | AA75: 92 | AB75: 100 | AC75: 0 | AD75: 45 | AE75: 0 | AF75: 0 | AG75: 3 | AH75: 12 | AI75: 0 | AJ75: 0 | AK75: 0 | AL75: 0 | AM75: 0 | AN75: 0 | AO75: 0 | AP75: 0 | AQ75: 14 | AR75: 0 | AS75: 690 | AT75: 0 | AU75: 0 | AV75: 0 | AW75: 0 | AX75: 0 | AY75: 3 | AZ75: 0 | BA75: 0 | BB75: 0 | BC75: 0 | BD75: 0 | BE75: 0 | BF75: 0 | BG75: 0 | BH75: 5 | BI75: 0 | BJ75: 0 | BK75: 0 | BL75: 0 | BM75: 4 | BN75: 9 | BO75: 698
A76: Jerilderie (A) | B76: 0 | C76: 19 | D76: 0 | E76: 0 | F76: 0 | G76: 0 | H76: 0 | I76: 0 | J76: 0 | K76: 0 | L76: 0 | M76: 5 | N76: 0 | O76: 0 | P76: 0 | Q76: 0 | R76: 0 | S76: 0 | T76: 0 | U76: 0 | V76: 0 | W76: 5 | X76: 28 | Y76: 16 | Z76: 0 | AA76: 11 | AB76: 69 | AC76: 3 | AD76: 142 | AE76: 0 | AF76: 0 | AG76: 0 | AH76: 0 | AI76: 14 | AJ76: 0 | AK76: 0 | AL76: 5 | AM76: 0 | AN76: 0 | AO76: 0 | AP76: 0 | AQ76: 0 | AR76: 0 | AS76: 325 | AT76: 0 | AU76: 0 | AV76: 0 | AW76: 0 | AX76: 0 | AY76: 0 | AZ76: 0 | BA76: 0 | BB76: 0 | BC76: 0 | BD76: 0 | BE76: 0 | BF76: 0 | BG76: 0 | BH76: 0 | BI76: 0 | BJ76: 0 | BK76: 0 | BL76: 0 | BM76: 0 | BN76: 8 | BO76: 325
A77: Junee (A) | B77: 0 | C77: 14 | D77: 0 | E77: 0 | F77: 0 | G77: 0 | H77: 0 | I77: 0 | J77: 0 | K77: 0 | L77: 0 | M77: 0 | N77: 0 | O77: 0 | P77: 0 | Q77: 0 | R77: 0 | S77: 0 | T77: 0 | U77: 0 | V77: 3 | W77: 4 | X77: 69 | Y77: 20 | Z77: 3 | AA77: 17 | AB77: 141 | AC77: 0 | AD77: 62 | AE77: 0 | AF77: 0 | AG77: 0 | AH77: 0 | AI77: 0 | AJ77: 0 | AK77: 0 | AL77: 0 | AM77: 0 | AN77: 0 | AO77: 9 | AP77: 0 | AQ77: 3 | AR77: 0 | AS77: 353 | AT77: 0 | AU77: 0 | AV77: 0 | AW77: 0 | AX77: 0 | AY77: 0 | AZ77: 0 | BA77: 0 | BB77: 0 | BC77: 0 | BD77: 0 | BE77: 0 | BF77: 0 | BG77: 0 | BH77: 0 | BI77: 0 | BJ77: 0 | BK77: 0 | BL77: 0 | BM77: 5 | BN77: 3 | BO77: 353
A78: Kempsey (A) | B78: 0 | C78: 18 | D78: 0 | E78: 0 | F78: 10 | G78: 0 | H78: 0 | I78: 5 | J78: 0 | K78: 0 | L78: 0 | M78: 7 | N78: 12 | O78: 0 | P78: 0 | Q78: 0 | R78: 0 | S78: 14 | T78: 0 | U78: 0 | V78: 53 | W78: 0 | X78: 0 | Y78: 190 | Z78: 0 | AA78: 4 | AB78: 4 | AC78: 0 | AD78: 0 | AE78: 0 | AF78: 0 | AG78: 0 | AH78: 5 | AI78: 49 | AJ78: 0 | AK78: 0 | AL78: 0 | AM78: 0 | AN78: 0 | AO78: 4 | AP78: 3 | AQ78: 8 | AR78: 0 | AS78: 396 | AT78: 0 | AU78: 5 | AV78: 0 | AW78: 0 | AX78: 0 | AY78: 5 | AZ78: 0 | BA78: 8 | BB78: 6 | BC78: 0 | BD78: 0 | BE78: 0 | BF78: 0 | BG78: 4 | BH78: 0 | BI78: 0 | BJ78: 0 | BK78: 0 | BL78: 0 | BM78: 0 | BN78: 10 | BO78: 435
A79: Kiama (A) | B79: 0 | C79: 5 | D79: 0 | E79: 0 | F79: 3 | G79: 0 | H79: 0 | I79: 5 | J79: 0 | K79: 0 | L79: 0 | M79: 0 | N79: 0 | O79: 0 | P79: 0 | Q79: 0 | R79: 0 | S79: 0 | T79: 0 | U79: 0 | V79: 0 | W79: 0 | X79: 0 | Y79: 56 | Z79: 0 | AA79: 0 | AB79: 0 | AC79: 0 | AD79: 0 | AE79: 0 | AF79: 0 | AG79: 0 | AH79: 0 | AI79: 76 | AJ79: 0 | AK79: 0 | AL79: 0 | AM79: 0 | AN79: 0 | AO79: 10 | AP79: 0 | AQ79: 0 | AR79: 0 | AS79: 158 | AT79: 0 | AU79: 0 | AV79: 0 | AW79: 0 | AX79: 0 | AY79: 0 | AZ79: 0 | BA79: 0 | BB79: 0 | BC79: 0 | BD79: 0 | BE79: 0 | BF79: 0 | BG79: 0 | BH79: 0 | BI79: 0 | BJ79: 4 | BK79: 0 | BL79: 0 | BM79: 0 | BN79: 3 | BO79: 162
A80: Kogarah (C) | B80: 0 | C80: 0 | D80: 0 | E80: 0 | F80: 3 | G80: 0 | H80: 0 | I80: 0 | J80: 0 | K80: 0 | L80: 0 | M80: 0 | N80: 0 | O80: 0 | P80: 0 | Q80: 0 | R80: 0 | S80: 0 | T80: 0 | U80: 0 | V80: 0 | W80: 0 | X80: 0 | Y80: 0 | Z80: 0 | AA80: 0 | AB80: 0 | AC80: 0 | AD80: 0 | AE80: 0 | AF80: 0 | AG80: 0 | AH80: 0 | AI80: 3 | AJ80: 0 | AK80: 0 | AL80: 0 | AM80: 0 | AN80: 0 | AO80: 0 | AP80: 0 | AQ80: 0 | AR80: 0 | AS80: 6 | AT80: 0 | AU80: 0 | AV80: 0 | AW80: 0 | AX80: 0 | AY80: 0 | AZ80: 0 | BA80: 0 | BB80: 0 | BC80: 0 | BD80: 0 | BE80: 0 | BF80: 0 | BG80: 0 | BH80: 0 | BI80: 0 | BJ80: 0 | BK80: 0 | BL80: 0 | BM80: 0 | BN80: 0 | BO80: 6
A81: Ku-ring-gai (A) | B81: 5 | C81: 3 | D81: 0 | E81: 0 | F81: 7 | G81: 0 | H81: 0 | I81: 0 | J81: 0 | K81: 0 | L81: 0 | M81: 0 | N81: 0 | O81: 0 | P81: 0 | Q81: 0 | R81: 0 | S81: 0 | T81: 0 | U81: 0 | V81: 0 | W81: 0 | X81: 3 | Y81: 24 | Z81: 0 | AA81: 4 | AB81: 7 | AC81: 0 | AD81: 3 | AE81: 0 | AF81: 0 | AG81: 0 | AH81: 0 | AI81: 0 | AJ81: 0 | AK81: 0 | AL81: 0 | AM81: 0 | AN81: 0 | AO81: 4 | AP81: 0 | AQ81: 0 | AR81: 0 | AS81: 68 | AT81: 0 | AU81: 0 | AV81: 0 | AW81: 0 | AX81: 0 | AY81: 4 | AZ81: 0 | BA81: 0 | BB81: 0 | BC81: 0 | BD81: 0 | BE81: 0 | BF81: 0 | BG81: 0 | BH81: 0 | BI81: 0 | BJ81: 0 | BK81: 0 | BL81: 0 | BM81: 0 | BN81: 8 | BO81: 72
A82: Kyogle (A) | B82: 0 | C82: 19 | D82: 0 | E82: 0 | F82: 10 | G82: 0 | H82: 0 | I82: 0 | J82: 0 | K82: 0 | L82: 0 | M82: 4 | N82: 0 | O82: 0 | P82: 0 | Q82: 0 | R82: 0 | S82: 3 | T82: 5 | U82: 0 | V82: 15 | W82: 0 | X82: 0 | Y82: 339 | Z82: 0 | AA82: 3 | AB82: 5 | AC82: 0 | AD82: 12 | AE82: 0 | AF82: 0 | AG82: 0 | AH82: 3 | AI82: 79 | AJ82: 0 | AK82: 0 | AL82: 0 | AM82: 0 | AN82: 0 | AO82: 3 | AP82: 4 | AQ82: 0 | AR82: 0 | AS82: 516 | AT82: 0 | AU82: 0 | AV82: 0 | AW82: 0 | AX82: 0 | AY82: 0 | AZ82: 0 | BA82: 0 | BB82: 0 | BC82: 0 | BD82: 0 | BE82: 0 | BF82: 0 | BG82: 0 | BH82: 0 | BI82: 0 | BJ82: 7 | BK82: 0 | BL82: 0 | BM82: 0 | BN82: 12 | BO82: 537
A83: Lachlan (A) | B83: 0 | C83: 30 | D83: 0 | E83: 0 | F83: 0 | G83: 0 | H83: 0 | I83: 0 | J83: 0 | K83: 0 | L83: 0 | M83: 3 | N83: 0 | O83: 0 | P83: 0 | Q83: 0 | R83: 0 | S83: 0 | T83: 0 | U83: 0 | V83: 0 | W83: 5 | X83: 77 | Y83: 57 | Z83: 0 | AA83: 45 | AB83: 401 | AC83: 0 | AD83: 139 | AE83: 0 | AF83: 0 | AG83: 4 | AH83: 0 | AI83: 4 | AJ83: 0 | AK83: 0 | AL83: 0 | AM83: 0 | AN83: 0 | AO83: 0 | AP83: 4 | AQ83: 0 | AR83: 0 | AS83: 789 | AT83: 0 | AU83: 0 | AV83: 3 | AW83: 0 | AX83: 0 | AY83: 0 | AZ83: 0 | BA83: 0 | BB83: 0 | BC83: 0 | BD83: 0 | BE83: 0 | BF83: 0 | BG83: 0 | BH83: 0 | BI83: 0 | BJ83: 0 | BK83: 0 | BL83: 0 | BM83: 13 | BN83: 7 | BO83: 797
A84: Lake Macquarie (C) | B84: 0 | C84: 12 | D84: 4 | E84: 0 | F84: 20 | G84: 5 | H84: 0 | I84: 9 | J84: 0 | K84: 0 | L84: 0 | M84: 4 | N84: 0 | O84: 0 | P84: 0 | Q84: 0 | R84: 0 | S84: 0 | T84: 0 | U84: 0 | V84: 0 | W84: 0 | X84: 0 | Y84: 14 | Z84: 0 | AA84: 0 | AB84: 0 | AC84: 0 | AD84: 4 | AE84: 0 | AF84: 0 | AG84: 0 | AH84: 0 | AI84: 0 | AJ84: 3 | AK84: 4 | AL84: 37 | AM84: 0 | AN84: 0 | AO84: 8 | AP84: 0 | AQ84: 4 | AR84: 0 | AS84: 144 | AT84: 0 | AU84: 0 | AV84: 0 | AW84: 0 | AX84: 0 | AY84: 11 | AZ84: 5 | BA84: 0 | BB84: 4 | BC84: 0 | BD84: 0 | BE84: 0 | BF84: 0 | BG84: 0 | BH84: 0 | BI84: 0 | BJ84: 13 | BK84: 0 | BL84: 0 | BM84: 0 | BN84: 16 | BO84: 177
A85: Lane Cove (A) | B85: 0 | C85: 0 | D85: 0 | E85: 0 | F85: 0 | G85: 0 | H85: 0 | I85: 0 | J85: 0 | K85: 0 | L85: 0 | M85: 0 | N85: 0 | O85: 0 | P85: 0 | Q85: 0 | R85: 0 | S85: 0 | T85: 0 | U85: 0 | V85: 0 | W85: 0 | X85: 0 | Y85: 3 | Z85: 0 | AA85: 0 | AB85: 0 | AC85: 0 | AD85: 0 | AE85: 0 | AF85: 0 | AG85: 0 | AH85: 0 | AI85: 4 | AJ85: 0 | AK85: 0 | AL85: 0 | AM85: 0 | AN85: 0 | AO85: 0 | AP85: 0 | AQ85: 0 | AR85: 0 | AS85: 7 | AT85: 0 | AU85: 0 | AV85: 0 | AW85: 0 | AX85: 0 | AY85: 0 | AZ85: 0 | BA85: 0 | BB85: 0 | BC85: 0 | BD85: 0 | BE85: 0 | BF85: 0 | BG85: 0 | BH85: 0 | BI85: 0 | BJ85: 5 | BK85: 0 | BL85: 0 | BM85: 0 | BN85: 0 | BO85: 12
A86: Leeton (A) | B86: 0 | C86: 23 | D86: 0 | E86: 0 | F86: 0 | G86: 0 | H86: 0 | I86: 0 | J86: 0 | K86: 0 | L86: 0 | M86: 4 | N86: 5 | O86: 33 | P86: 0 | Q86: 0 | R86: 0 | S86: 0 | T86: 126 | U86: 0 | V86: 0 | W86: 0 | X86: 24 | Y86: 38 | Z86: 24 | AA86: 0 | AB86: 31 | AC86: 5 | AD86: 77 | AE86: 0 | AF86: 0 | AG86: 15 | AH86: 10 | AI86: 7 | AJ86: 0 | AK86: 0 | AL86: 3 | AM86: 0 | AN86: 0 | AO86: 0 | AP86: 4 | AQ86: 0 | AR86: 0 | AS86: 439 | AT86: 0 | AU86: 0 | AV86: 0 | AW86: 0 | AX86: 0 | AY86: 0 | AZ86: 0 | BA86: 0 | BB86: 0 | BC86: 0 | BD86: 0 | BE86: 0 | BF86: 0 | BG86: 0 | BH86: 0 | BI86: 0 | BJ86: 0 | BK86: 0 | BL86: 0 | BM86: 0 | BN86: 10 | BO86: 442
A87: Leichhardt (A) | B87: 4 | C87: 0 | D87: 0 | E87: 0 | F87: 0 | G87: 0 | H87: 0 | I87: 0 | J87: 0 | K87: 0 | L87: 0 | M87: 0 | N87: 0 | O87: 18 | P87: 0 | Q87: 0 | R87: 0 | S87: 0 | T87: 0 | U87: 0 | V87: 0 | W87: 0 | X87: 0 | Y87: 3 | Z87: 0 | AA87: 0 | AB87: 0 | AC87: 0 | AD87: 0 | AE87: 0 | AF87: 0 | AG87: 0 | AH87: 0 | AI87: 0 | AJ87: 0 | AK87: 0 | AL87: 0 | AM87: 0 | AN87: 0 | AO87: 0 | AP87: 0 | AQ87: 0 | AR87: 0 | AS87: 28 | AT87: 0 | AU87: 0 | AV87: 0 | AW87: 0 | AX87: 0 | AY87: 0 | AZ87: 0 | BA87: 0 | BB87: 0 | BC87: 0 | BD87: 0 | BE87: 0 | BF87: 0 | BG87: 0 | BH87: 0 | BI87: 0 | BJ87: 6 | BK87: 0 | BL87: 0 | BM87: 0 | BN87: 3 | BO87: 34
A88: Lismore (C) | B88: 3 | C88: 64 | D88: 0 | E88: 0 | F88: 5 | G88: 0 | H88: 0 | I88: 0 | J88: 0 | K88: 0 | L88: 9 | M88: 32 | N88: 14 | O88: 0 | P88: 0 | Q88: 18 | R88: 0 | S88: 10 | T88: 7 | U88: 0 | V88: 254 | W88: 0 | X88: 0 | Y88: 197 | Z88: 0 | AA88: 0 | AB88: 0 | AC88: 0 | AD88: 5 | AE88: 0 | AF88: 34 | AG88: 0 | AH88: 9 | AI88: 67 | AJ88: 4 | AK88: 4 | AL88: 11 | AM88: 0 | AN88: 0 | AO88: 3 | AP88: 6 | AQ88: 5 | AR88: 0 | AS88: 776 | AT88: 0 | AU88: 0 | AV88: 0 | AW88: 0 | AX88: 0 | AY88: 12 | AZ88: 0 | BA88: 0 | BB88: 0 | BC88: 0 | BD88: 0 | BE88: 0 | BF88: 0 | BG88: 0 | BH88: 0 | BI88: 0 | BJ88: 30 | BK88: 0 | BL88: 0 | BM88: 0 | BN88: 15 | BO88: 822
A89: Lithgow (C) | B89: 0 | C89: 6 | D89: 0 | E89: 0 | F89: 0 | G89: 0 | H89: 0 | I89: 0 | J89: 0 | K89: 0 | L89: 0 | M89: 0 | N89: 0 | O89: 5 | P89: 0 | Q89: 0 | R89: 0 | S89: 0 | T89: 0 | U89: 0 | V89: 0 | W89: 5 | X89: 11 | Y89: 110 | Z89: 0 | AA89: 33 | AB89: 0 | AC89: 0 | AD89: 0 | AE89: 0 | AF89: 0 | AG89: 0 | AH89: 0 | AI89: 0 | AJ89: 0 | AK89: 0 | AL89: 6 | AM89: 0 | AN89: 0 | AO89: 8 | AP89: 0 | AQ89: 0 | AR89: 0 | AS89: 184 | AT89: 0 | AU89: 0 | AV89: 0 | AW89: 0 | AX89: 0 | AY89: 0 | AZ89: 0 | BA89: 0 | BB89: 0 | BC89: 0 | BD89: 0 | BE89: 0 | BF89: 0 | BG89: 0 | BH89: 0 | BI89: 0 | BJ89: 0 | BK89: 0 | BL89: 0 | BM89: 0 | BN89: 0 | BO89: 189
A90: Liverpool (C) | B90: 5 | C90: 53 | D90: 0 | E90: 0 | F90: 7 | G90: 0 | H90: 0 | I90: 23 | J90: 10 | K90: 47 | L90: 4 | M90: 246 | N90: 4 | O90: 0 | P90: 0 | Q90: 5 | R90: 0 | S90: 0 | T90: 0 | U90: 0 | V90: 0 | W90: 0 | X90: 0 | Y90: 14 | Z90: 0 | AA90: 0 | AB90: 0 | AC90: 0 | AD90: 0 | AE90: 0 | AF90: 0 | AG90: 0 | AH90: 6 | AI90: 50 | AJ90: 20 | AK90: 26 | AL90: 33 | AM90: 0 | AN90: 0 | AO90: 15 | AP90: 7 | AQ90: 0 | AR90: 0 | AS90: 591 | AT90: 0 | AU90: 0 | AV90: 0 | AW90: 0 | AX90: 0 | AY90: 0 | AZ90: 0 | BA90: 0 | BB90: 0 | BC90: 0 | BD90: 0 | BE90: 0 | BF90: 0 | BG90: 0 | BH90: 0 | BI90: 0 | BJ90: 0 | BK90: 0 | BL90: 0 | BM90: 0 | BN90: 16 | BO90: 591
A91: Liverpool Plains (A) | B91: 3 | C91: 29 | D91: 0 | E91: 0 | F91: 0 | G91: 0 | H91: 0 | I91: 0 | J91: 0 | K91: 0 | L91: 0 | M91: 3 | N91: 0 | O91: 0 | P91: 0 | Q91: 0 | R91: 0 | S91: 0 | T91: 0 | U91: 0 | V91: 0 | W91: 20 | X91: 23 | Y91: 223 | Z91: 16 | AA91: 55 | AB91: 146 | AC91: 0 | AD91: 113 | AE91: 0 | AF91: 0 | AG91: 0 | AH91: 7 | AI91: 0 | AJ91: 0 | AK91: 0 | AL91: 8 | AM91: 0 | AN91: 0 | AO91: 17 | AP91: 0 | AQ91: 3 | AR91: 0 | AS91: 692 | AT91: 0 | AU91: 0 | AV91: 0 | AW91: 0 | AX91: 0 | AY91: 0 | AZ91: 0 | BA91: 0 | BB91: 0 | BC91: 0 | BD91: 0 | BE91: 0 | BF91: 0 | BG91: 0 | BH91: 0 | BI91: 0 | BJ91: 0 | BK91: 0 | BL91: 0 | BM91: 3 | BN91: 23 | BO91: 692
A92: Lockhart (A) | B92: 0 | C92: 8 | D92: 0 | E92: 0 | F92: 0 | G92: 0 | H92: 0 | I92: 0 | J92: 0 | K92: 0 | L92: 0 | M92: 0 | N92: 0 | O92: 0 | P92: 0 | Q92: 0 | R92: 0 | S92: 0 | T92: 0 | U92: 0 | V92: 0 | W92: 3 | X92: 25 | Y92: 21 | Z92: 0 | AA92: 6 | AB92: 163 | AC92: 0 | AD92: 83 | AE92: 0 | AF92: 0 | AG92: 0 | AH92: 0 | AI92: 0 | AJ92: 0 | AK92: 0 | AL92: 0 | AM92: 0 | AN92: 0 | AO92: 0 | AP92: 0 | AQ92: 4 | AR92: 0 | AS92: 318 | AT92: 0 | AU92: 0 | AV92: 0 | AW92: 0 | AX92: 0 | AY92: 0 | AZ92: 0 | BA92: 0 | BB92: 0 | BC92: 0 | BD92: 0 | BE92: 0 | BF92: 0 | BG92: 0 | BH92: 0 | BI92: 0 | BJ92: 0 | BK92: 0 | BL92: 0 | BM92: 5 | BN92: 0 | BO92: 318
A93: Maitland (C) | B93: 4 | C93: 20 | D93: 0 | E93: 0 | F93: 0 | G93: 24 | H93: 0 | I93: 0 | J93: 0 | K93: 0 | L93: 0 | M93: 12 | N93: 0 | O93: 0 | P93: 0 | Q93: 0 | R93: 0 | S93: 0 | T93: 0 | U93: 0 | V93: 0 | W93: 0 | X93: 9 | Y93: 70 | Z93: 0 | AA93: 0 | AB93: 0 | AC93: 0 | AD93: 3 | AE93: 0 | AF93: 0 | AG93: 0 | AH93: 10 | AI93: 4 | AJ93: 4 | AK93: 8 | AL93: 0 | AM93: 0 | AN93: 0 | AO93: 18 | AP93: 0 | AQ93: 3 | AR93: 0 | AS93: 199 | AT93: 0 | AU93: 0 | AV93: 0 | AW93: 0 | AX93: 0 | AY93: 10 | AZ93: 0 | BA93: 0 | BB93: 0 | BC93: 0 | BD93: 0 | BE93: 0 | BF93: 0 | BG93: 0 | BH93: 0 | BI93: 0 | BJ93: 6 | BK93: 0 | BL93: 0 | BM93: 0 | BN93: 10 | BO93: 219
A94: Manly (A) | B94: 0 | C94: 0 | D94: 0 | E94: 0 | F94: 0 | G94: 0 | H94: 0 | I94: 0 | J94: 0 | K94: 0 | L94: 0 | M94: 0 | N94: 5 | O94: 4 | P94: 0 | Q94: 0 | R94: 0 | S94: 0 | T94: 0 | U94: 0 | V94: 0 | W94: 0 | X94: 3 | Y94: 3 | Z94: 0 | AA94: 0 | AB94: 3 | AC94: 0 | AD94: 0 | AE94: 0 | AF94: 0 | AG94: 0 | AH94: 0 | AI94: 0 | AJ94: 0 | AK94: 0 | AL94: 0 | AM94: 0 | AN94: 0 | AO94: 0 | AP94: 0 | AQ94: 0 | AR94: 0 | AS94: 18 | AT94: 0 | AU94: 0 | AV94: 0 | AW94: 0 | AX94: 0 | AY94: 0 | AZ94: 0 | BA94: 0 | BB94: 0 | BC94: 0 | BD94: 0 | BE94: 0 | BF94: 0 | BG94: 0 | BH94: 0 | BI94: 0 | BJ94: 0 | BK94: 0 | BL94: 0 | BM94: 0 | BN94: 0 | BO94: 18
A95: Marrickville (A) | B95: 0 | C95: 0 | D95: 0 | E95: 0 | F95: 0 | G95: 0 | H95: 0 | I95: 0 | J95: 0 | K95: 0 | L95: 0 | M95: 0 | N95: 0 | O95: 0 | P95: 0 | Q95: 0 | R95: 0 | S95: 0 | T95: 0 | U95: 0 | V95: 0 | W95: 0 | X95: 0 | Y95: 0 | Z95: 0 | AA95: 0 | AB95: 0 | AC95: 0 | AD95: 0 | AE95: 0 | AF95: 0 | AG95: 0 | AH95: 0 | AI95: 0 | AJ95: 0 | AK95: 0 | AL95: 0 | AM95: 0 | AN95: 0 | AO95: 0 | AP95: 0 | AQ95: 0 | AR95: 0 | AS95: 5 | AT95: 0 | AU95: 0 | AV95: 0 | AW95: 0 | AX95: 0 | AY95: 0 | AZ95: 0 | BA95: 0 | BB95: 0 | BC95: 0 | BD95: 0 | BE95: 0 | BF95: 0 | BG95: 0 | BH95: 0 | BI95: 0 | BJ95: 0 | BK95: 0 | BL95: 0 | BM95: 0 | BN95: 5 | BO95: 5
A96: Mid-Western Regional (A) | B96: 6 | C96: 31 | D96: 0 | E96: 0 | F96: 3 | G96: 0 | H96: 0 | I96: 0 | J96: 0 | K96: 0 | L96: 0 | M96: 0 | N96: 0 | O96: 53 | P96: 0 | Q96: 0 | R96: 0 | S96: 0 | T96: 0 | U96: 5 | V96: 7 | W96: 9 | X96: 214 | Y96: 230 | Z96: 0 | AA96: 161 | AB96: 29 | AC96: 0 | AD96: 7 | AE96: 0 | AF96: 0 | AG96: 0 | AH96: 10 | AI96: 0 | AJ96: 0 | AK96: 0 | AL96: 0 | AM96: 0 | AN96: 0 | AO96: 39 | AP96: 0 | AQ96: 11 | AR96: 0 | AS96: 843 | AT96: 0 | AU96: 0 | AV96: 0 | AW96: 0 | AX96: 0 | AY96: 0 | AZ96: 0 | BA96: 0 | BB96: 0 | BC96: 0 | BD96: 0 | BE96: 0 | BF96: 0 | BG96: 0 | BH96: 0 | BI96: 0 | BJ96: 0 | BK96: 0 | BL96: 0 | BM96: 8 | BN96: 20 | BO96: 857
A97: Moree Plains (A) | B97: 18 | C97: 82 | D97: 0 | E97: 0 | F97: 0 | G97: 0 | H97: 0 | I97: 0 | J97: 0 | K97: 0 | L97: 0 | M97: 0 | N97: 0 | O97: 0 | P97: 0 | Q97: 0 | R97: 0 | S97: 0 | T97: 16 | U97: 0 | V97: 4 | W97: 24 | X97: 29 | Y97: 112 | Z97: 3 | AA97: 28 | AB97: 236 | AC97: 0 | AD97: 434 | AE97: 0 | AF97: 0 | AG97: 233 | AH97: 0 | AI97: 0 | AJ97: 0 | AK97: 0 | AL97: 0 | AM97: 0 | AN97: 0 | AO97: 0 | AP97: 0 | AQ97: 0 | AR97: 0 | AS97: 1416 | AT97: 0 | AU97: 0 | AV97: 3 | AW97: 0 | AX97: 0 | AY97: 0 | AZ97: 0 | BA97: 0 | BB97: 0 | BC97: 0 | BD97: 0 | BE97: 0 | BF97: 0 | BG97: 0 | BH97: 6 | BI97: 0 | BJ97: 0 | BK97: 6 | BL97: 105 | BM97: 0 | BN97: 86 | BO97: 1425
A98: Mosman (A) | B98: 0 | C98: 0 | D98: 0 | E98: 0 | F98: 0 | G98: 0 | H98: 0 | I98: 0 | J98: 0 | K98: 0 | L98: 0 | M98: 0 | N98: 0 | O98: 0 | P98: 0 | Q98: 0 | R98: 0 | S98: 0 | T98: 0 | U98: 0 | V98: 4 | W98: 0 | X98: 0 | Y98: 9 | Z98: 0 | AA98: 0 | AB98: 5 | AC98: 0 | AD98: 0 | AE98: 0 | AF98: 0 | AG98: 0 | AH98: 0 | AI98: 0 | AJ98: 0 | AK98: 0 | AL98: 0 | AM98: 0 | AN98: 0 | AO98: 5 | AP98: 0 | AQ98: 0 | AR98: 0 | AS98: 23 | AT98: 0 | AU98: 0 | AV98: 0 | AW98: 0 | AX98: 0 | AY98: 0 | AZ98: 0 | BA98: 0 | BB98: 0 | BC98: 0 | BD98: 0 | BE98: 0 | BF98: 0 | BG98: 0 | BH98: 0 | BI98: 0 | BJ98: 0 | BK98: 0 | BL98: 0 | BM98: 0 | BN98: 0 | BO98: 23
A99: Murray (A) | B99: 4 | C99: 13 | D99: 0 | E99: 0 | F99: 0 | G99: 0 | H99: 0 | I99: 0 | J99: 0 | K99: 0 | L99: 0 | M99: 0 | N99: 0 | O99: 10 | P99: 0 | Q99: 0 | R99: 0 | S99: 0 | T99: 0 | U99: 0 | V99: 0 | W99: 0 | X99: 46 | Y99: 37 | Z99: 0 | AA99: 6 | AB99: 96 | AC99: 3 | AD99: 95 | AE99: 0 | AF99: 0 | AG99: 0 | AH99: 0 | AI99: 19 | AJ99: 0 | AK99: 0 | AL99: 0 | AM99: 0 | AN99: 0 | AO99: 0 | AP99: 5 | AQ99: 0 | AR99: 0 | AS99: 352 | AT99: 0 | AU99: 0 | AV99: 0 | AW99: 0 | AX99: 0 | AY99: 0 | AZ99: 0 | BA99: 0 | BB99: 0 | BC99: 0 | BD99: 0 | BE99: 0 | BF99: 0 | BG99: 0 | BH99: 0 | BI99: 0 | BJ99: 0 | BK99: 0 | BL99: 0 | BM99: 4 | BN99: 14 | BO99: 355
A100: Murrumbidgee (A) | B100: 7 | C100: 17 | D100: 0 | E100: 0 | F100: 0 | G100: 0 | H100: 0 | I100: 0 | J100: 0 | K100: 0 | L100: 0 | M100: 11 | N100: 0 | O100: 6 | P100: 0 | Q100: 0 | R100: 0 | S100: 6 | T100: 0 | U100: 0 | V100: 0 | W100: 0 | X100: 18 | Y100: 14 | Z100: 0 | AA100: 6 | AB100: 25 | AC100: 0 | AD100: 124 | AE100: 0 | AF100: 0 | AG100: 5 | AH100: 0 | AI100: 0 | AJ100: 8 | AK100: 32 | AL100: 22 | AM100: 0 | AN100: 0 | AO100: 0 | AP100: 0 | AQ100: 0 | AR100: 0 | AS100: 327 | AT100: 0 | AU100: 0 | AV100: 0 | AW100: 0 | AX100: 0 | AY100: 0 | AZ100: 0 | BA100: 0 | BB100: 0 | BC100: 0 | BD100: 0 | BE100: 0 | BF100: 0 | BG100: 0 | BH100: 0 | BI100: 0 | BJ100: 0 | BK100: 0 | BL100: 0 | BM100: 5 | BN100: 21 | BO100: 327
A101: Muswellbrook (A) | B101: 0 | C101: 13 | D101: 0 | E101: 0 | F101: 3 | G101: 0 | H101: 0 | I101: 0 | J101: 0 | K101: 8 | L101: 0 | M101: 0 | N101: 0 | O101: 20 | P101: 0 | Q101: 0 | R101: 0 | S101: 0 | T101: 0 | U101: 8 | V101: 5 | W101: 7 | X101: 7 | Y101: 134 | Z101: 0 | AA101: 3 | AB101: 0 | AC101: 0 | AD101: 3 | AE101: 0 | AF101: 0 | AG101: 0 | AH101: 17 | AI101: 69 | AJ101: 0 | AK101: 0 | AL101: 0 | AM101: 0 | AN101: 0 | AO101: 184 | AP101: 3 | AQ101: 3 | AR101: 0 | AS101: 510 | AT101: 0 | AU101: 0 | AV101: 0 | AW101: 0 | AX101: 0 | AY101: 0 | AZ101: 0 | BA101: 0 | BB101: 0 | BC101: 0 | BD101: 0 | BE101: 0 | BF101: 0 | BG101: 0 | BH101: 0 | BI101: 0 | BJ101: 0 | BK101: 0 | BL101: 0 | BM101: 0 | BN101: 23 | BO101: 510
A102: Nambucca (A) | B102: 0 | C102: 8 | D102: 0 | E102: 0 | F102: 7 | G102: 0 | H102: 0 | I102: 5 | J102: 0 | K102: 0 | L102: 0 | M102: 11 | N102: 0 | O102: 0 | P102: 0 | Q102: 0 | R102: 0 | S102: 0 | T102: 6 | U102: 0 | V102: 60 | W102: 0 | X102: 4 | Y102: 150 | Z102: 0 | AA102: 0 | AB102: 0 | AC102: 0 | AD102: 0 | AE102: 0 | AF102: 0 | AG102: 0 | AH102: 0 | AI102: 35 | AJ102: 0 | AK102: 0 | AL102: 3 | AM102: 0 | AN102: 0 | AO102: 4 | AP102: 5 | AQ102: 10 | AR102: 0 | AS102: 312 | AT102: 0 | AU102: 5 | AV102: 0 | AW102: 0 | AX102: 0 | AY102: 0 | AZ102: 4 | BA102: 5 | BB102: 0 | BC102: 0 | BD102: 0 | BE102: 0 | BF102: 0 | BG102: 0 | BH102: 0 | BI102: 0 | BJ102: 0 | BK102: 0 | BL102: 0 | BM102: 0 | BN102: 4 | BO102: 326
A103: Narrabri (A) | B103: 13 | C103: 51 | D103: 0 | E103: 0 | F103: 0 | G103: 0 | H103: 0 | I103: 0 | J103: 0 | K103: 0 | L103: 0 | M103: 8 | N103: 0 | O103: 0 | P103: 0 | Q103: 0 | R103: 0 | S103: 0 | T103: 0 | U103: 0 | V103: 0 | W103: 8 | X103: 37 | Y103: 168 | Z103: 0 | AA103: 39 | AB103: 126 | AC103: 0 | AD103: 236 | AE103: 0 | AF103: 0 | AG103: 235 | AH103: 5 | AI103: 0 | AJ103: 0 | AK103: 0 | AL103: 0 | AM103: 0 | AN103: 0 | AO103: 0 | AP103: 16 | AQ103: 0 | AR103: 0 | AS103: 1116 | AT103: 0 | AU103: 0 | AV103: 0 | AW103: 0 | AX103: 0 | AY103: 4 | AZ103: 0 | BA103: 0 | BB103: 0 | BC103: 0 | BD103: 0 | BE103: 0 | BF103: 0 | BG103: 0 | BH103: 0 | BI103: 0 | BJ103: 0 | BK103: 0 | BL103: 95 | BM103: 0 | BN103: 79 | BO103: 1125
A104: Narrandera (A) | B104: 7 | C104: 14 | D104: 0 | E104: 0 | F104: 3 | G104: 0 | H104: 0 | I104: 0 | J104: 0 | K104: 0 | L104: 0 | M104: 10 | N104: 0 | O104: 0 | P104: 0 | Q104: 0 | R104: 0 | S104: 0 | T104: 0 | U104: 0 | V104: 3 | W104: 3 | X104: 31 | Y104: 15 | Z104: 4 | AA104: 3 | AB104: 205 | AC104: 0 | AD104: 75 | AE104: 0 | AF104: 0 | AG104: 0 | AH104: 3 | AI104: 0 | AJ104: 0 | AK104: 0 | AL104: 0 | AM104: 0 | AN104: 0 | AO104: 0 | AP104: 32 | AQ104: 3 | AR104: 0 | AS104: 417 | AT104: 5 | AU104: 0 | AV104: 0 | AW104: 6 | AX104: 0 | AY104: 5 | AZ104: 0 | BA104: 0 | BB104: 0 | BC104: 0 | BD104: 0 | BE104: 0 | BF104: 0 | BG104: 0 | BH104: 0 | BI104: 0 | BJ104: 0 | BK104: 0 | BL104: 0 | BM104: 0 | BN104: 6 | BO104: 433
A105: Narromine (A) | B105: 10 | C105: 28 | D105: 0 | E105: 0 | F105: 10 | G105: 0 | H105: 0 | I105: 0 | J105: 0 | K105: 0 | L105: 0 | M105: 5 | N105: 0 | O105: 0 | P105: 0 | Q105: 0 | R105: 0 | S105: 0 | T105: 7 | U105: 0 | V105: 0 | W105: 9 | X105: 59 | Y105: 41 | Z105: 0 | AA105: 18 | AB105: 172 | AC105: 0 | AD105: 179 | AE105: 0 | AF105: 0 | AG105: 47 | AH105: 8 | AI105: 9 | AJ105: 0 | AK105: 0 | AL105: 4 | AM105: 0 | AN105: 0 | AO105: 0 | AP105: 0 | AQ105: 0 | AR105: 0 | AS105: 659 | AT105: 0 | AU105: 0 | AV105: 0 | AW105: 0 | AX105: 0 | AY105: 0 | AZ105: 0 | BA105: 0 | BB105: 0 | BC105: 0 | BD105: 0 | BE105: 0 | BF105: 0 | BG105: 0 | BH105: 0 | BI105: 0 | BJ105: 0 | BK105: 7 | BL105: 14 | BM105: 0 | BN105: 32 | BO105: 659
A106: Newcastle (C) | B106: 4 | C106: 7 | D106: 0 | E106: 0 | F106: 10 | G106: 0 | H106: 0 | I106: 0 | J106: 0 | K106: 0 | L106: 0 | M106: 3 | N106: 0 | O106: 0 | P106: 0 | Q106: 0 | R106: 0 | S106: 0 | T106: 0 | U106: 0 | V106: 0 | W106: 0 | X106: 0 | Y106: 7 | Z106: 0 | AA106: 0 | AB106: 0 | AC106: 0 | AD106: 4 | AE106: 0 | AF106: 0 | AG106: 0 | AH106: 0 | AI106: 5 | AJ106: 0 | AK106: 92 | AL106: 9 | AM106: 0 | AN106: 0 | AO106: 8 | AP106: 0 | AQ106: 0 | AR106: 0 | AS106: 154 | AT106: 0 | AU106: 0 | AV106: 0 | AW106: 0 | AX106: 0 | AY106: 0 | AZ106: 0 | BA106: 13 | BB106: 4 | BC106: 0 | BD106: 0 | BE106: 0 | BF106: 0 | BG106: 0 | BH106: 0 | BI106: 0 | BJ106: 20 | BK106: 0 | BL106: 0 | BM106: 0 | BN106: 5 | BO106: 191
A107: North Sydney (A) | B107: 3 | C107: 0 | D107: 0 | E107: 0 | F107: 0 | G107: 0 | H107: 0 | I107: 0 | J107: 0 | K107: 0 | L107: 0 | M107: 0 | N107: 0 | O107: 3 | P107: 0 | Q107: 0 | R107: 0 | S107: 0 | T107: 0 | U107: 0 | V107: 0 | W107: 0 | X107: 7 | Y107: 17 | Z107: 0 | AA107: 3 | AB107: 8 | AC107: 0 | AD107: 3 | AE107: 0 | AF107: 3 | AG107: 0 | AH107: 0 | AI107: 0 | AJ107: 0 | AK107: 5 | AL107: 0 | AM107: 0 | AN107: 0 | AO107: 6 | AP107: 0 | AQ107: 0 | AR107: 0 | AS107: 61 | AT107: 0 | AU107: 0 | AV107: 0 | AW107: 0 | AX107: 0 | AY107: 3 | AZ107: 0 | BA107: 0 | BB107: 0 | BC107: 0 | BD107: 0 | BE107: 0 | BF107: 0 | BG107: 0 | BH107: 0 | BI107: 0 | BJ107: 7 | BK107: 0 | BL107: 0 | BM107: 0 | BN107: 3 | BO107: 71
A108: Oberon (A) | B108: 0 | C108: 11 | D108: 0 | E108: 0 | F108: 0 | G108: 0 | H108: 0 | I108: 0 | J108: 0 | K108: 0 | L108: 0 | M108: 0 | N108: 0 | O108: 0 | P108: 0 | Q108: 0 | R108: 0 | S108: 0 | T108: 0 | U108: 0 | V108: 0 | W108: 4 | X108: 70 | Y108: 109 | Z108: 0 | AA108: 93 | AB108: 3 | AC108: 0 | AD108: 3 | AE108: 0 | AF108: 0 | AG108: 0 | AH108: 0 | AI108: 0 | AJ108: 0 | AK108: 0 | AL108: 0 | AM108: 0 | AN108: 0 | AO108: 0 | AP108: 0 | AQ108: 3 | AR108: 0 | AS108: 307 | AT108: 0 | AU108: 0 | AV108: 0 | AW108: 0 | AX108: 0 | AY108: 19 | AZ108: 59 | BA108: 0 | BB108: 0 | BC108: 0 | BD108: 0 | BE108: 0 | BF108: 0 | BG108: 0 | BH108: 0 | BI108: 0 | BJ108: 4 | BK108: 0 | BL108: 0 | BM108: 4 | BN108: 7 | BO108: 389
A109: Orange (C) | B109: 3 | C109: 14 | D109: 0 | E109: 0 | F109: 5 | G109: 0 | H109: 0 | I109: 0 | J109: 0 | K109: 0 | L109: 0 | M109: 3 | N109: 11 | O109: 4 | P109: 0 | Q109: 8 | R109: 37 | S109: 10 | T109: 0 | U109: 0 | V109: 0 | W109: 0 | X109: 14 | Y109: 40 | Z109: 0 | AA109: 11 | AB109: 4 | AC109: 0 | AD109: 8 | AE109: 0 | AF109: 0 | AG109: 0 | AH109: 0 | AI109: 16 | AJ109: 0 | AK109: 0 | AL109: 0 | AM109: 0 | AN109: 0 | AO109: 6 | AP109: 0 | AQ109: 3 | AR109: 0 | AS109: 211 | AT109: 0 | AU109: 0 | AV109: 0 | AW109: 0 | AX109: 0 | AY109: 0 | AZ109: 0 | BA109: 0 | BB109: 0 | BC109: 0 | BD109: 0 | BE109: 0 | BF109: 0 | BG109: 0 | BH109: 4 | BI109: 0 | BJ109: 0 | BK109: 0 | BL109: 0 | BM109: 0 | BN109: 14 | BO109: 219
A110: Palerang (A) | B110: 0 | C110: 15 | D110: 0 | E110: 0 | F110: 4 | G110: 0 | H110: 0 | I110: 0 | J110: 0 | K110: 0 | L110: 0 | M110: 6 | N110: 0 | O110: 9 | P110: 0 | Q110: 0 | R110: 0 | S110: 4 | T110: 0 | U110: 0 | V110: 0 | W110: 7 | X110: 57 | Y110: 164 | Z110: 0 | AA110: 60 | AB110: 0 | AC110: 0 | AD110: 0 | AE110: 0 | AF110: 0 | AG110: 0 | AH110: 0 | AI110: 5 | AJ110: 0 | AK110: 0 | AL110: 0 | AM110: 0 | AN110: 0 | AO110: 6 | AP110: 0 | AQ110: 10 | AR110: 0 | AS110: 359 | AT110: 0 | AU110: 0 | AV110: 0 | AW110: 0 | AX110: 0 | AY110: 0 | AZ110: 11 | BA110: 0 | BB110: 0 | BC110: 0 | BD110: 0 | BE110: 0 | BF110: 0 | BG110: 0 | BH110: 0 | BI110: 0 | BJ110: 0 | BK110: 0 | BL110: 0 | BM110: 0 | BN110: 12 | BO110: 378
A111: Parkes (A) | B111: 4 | C111: 10 | D111: 0 | E111: 0 | F111: 0 | G111: 0 | H111: 0 | I111: 0 | J111: 0 | K111: 0 | L111: 0 | M111: 0 | N111: 0 | O111: 0 | P111: 0 | Q111: 0 | R111: 0 | S111: 0 | T111: 0 | U111: 0 | V111: 0 | W111: 13 | X111: 71 | Y111: 25 | Z111: 0 | AA111: 26 | AB111: 347 | AC111: 0 | AD111: 108 | AE111: 0 | AF111: 0 | AG111: 0 | AH111: 0 | AI111: 0 | AJ111: 0 | AK111: 0 | AL111: 0 | AM111: 0 | AN111: 0 | AO111: 3 | AP111: 4 | AQ111: 0 | AR111: 0 | AS111: 618 | AT111: 0 | AU111: 0 | AV111: 0 | AW111: 0 | AX111: 0 | AY111: 0 | AZ111: 0 | BA111: 0 | BB111: 0 | BC111: 0 | BD111: 0 | BE111: 0 | BF111: 0 | BG111: 0 | BH111: 0 | BI111: 0 | BJ111: 0 | BK111: 0 | BL111: 0 | BM111: 0 | BN111: 7 | BO111: 618
A112: Parramatta (C) | B112: 0 | C112: 4 | D112: 0 | E112: 0 | F112: 0 | G112: 0 | H112: 0 | I112: 0 | J112: 0 | K112: 4 | L112: 0 | M112: 4 | N112: 0 | O112: 0 | P112: 0 | Q112: 0 | R112: 0 | S112: 0 | T112: 0 | U112: 0 | V112: 0 | W112: 0 | X112: 0 | Y112: 5 | Z112: 0 | AA112: 0 | AB112: 7 | AC112: 0 | AD112: 0 | AE112: 0 | AF112: 0 | AG112: 0 | AH112: 0 | AI112: 6 | AJ112: 0 | AK112: 0 | AL112: 0 | AM112: 0 | AN112: 0 | AO112: 5 | AP112: 0 | AQ112: 0 | AR112: 0 | AS112: 41 | AT112: 0 | AU112: 0 | AV112: 0 | AW112: 0 | AX112: 0 | AY112: 0 | AZ112: 0 | BA112: 0 | BB112: 0 | BC112: 0 | BD112: 0 | BE112: 0 | BF112: 0 | BG112: 0 | BH112: 0 | BI112: 0 | BJ112: 6 | BK112: 0 | BL112: 0 | BM112: 0 | BN112: 6 | BO112: 47
A113: Penrith (C) | B113: 3 | C113: 24 | D113: 0 | E113: 0 | F113: 16 | G113: 3 | H113: 0 | I113: 4 | J113: 0 | K113: 68 | L113: 0 | M113: 130 | N113: 6 | O113: 3 | P113: 0 | Q113: 0 | R113: 0 | S113: 3 | T113: 0 | U113: 0 | V113: 0 | W113: 0 | X113: 0 | Y113: 24 | Z113: 0 | AA113: 0 | AB113: 0 | AC113: 0 | AD113: 0 | AE113: 0 | AF113: 0 | AG113: 0 | AH113: 4 | AI113: 6 | AJ113: 10 | AK113: 29 | AL113: 64 | AM113: 0 | AN113: 0 | AO113: 26 | AP113: 0 | AQ113: 4 | AR113: 0 | AS113: 443 | AT113: 0 | AU113: 0 | AV113: 0 | AW113: 5 | AX113: 0 | AY113: 0 | AZ113: 0 | BA113: 0 | BB113: 0 | BC113: 0 | BD113: 0 | BE113: 0 | BF113: 0 | BG113: 0 | BH113: 0 | BI113: 0 | BJ113: 4 | BK113: 0 | BL113: 0 | BM113: 0 | BN113: 16 | BO113: 452
A114: Pittwater (A) | B114: 0 | C114: 3 | D114: 0 | E114: 0 | F114: 17 | G114: 0 | H114: 0 | I114: 0 | J114: 0 | K114: 0 | L114: 0 | M114: 8 | N114: 0 | O114: 0 | P114: 0 | Q114: 0 | R114: 0 | S114: 0 | T114: 0 | U114: 0 | V114: 0 | W114: 0 | X114: 0 | Y114: 4 | Z114: 0 | AA114: 3 | AB114: 0 | AC114: 0 | AD114: 3 | AE114: 0 | AF114: 0 | AG114: 0 | AH114: 0 | AI114: 0 | AJ114: 0 | AK114: 0 | AL114: 0 | AM114: 0 | AN114: 0 | AO114: 0 | AP114: 0 | AQ114: 0 | AR114: 0 | AS114: 45 | AT114: 0 | AU114: 0 | AV114: 0 | AW114: 0 | AX114: 0 | AY114: 0 | AZ114: 0 | BA114: 3 | BB114: 0 | BC114: 0 | BD114: 0 | BE114: 0 | BF114: 0 | BG114: 0 | BH114: 0 | BI114: 0 | BJ114: 11 | BK114: 0 | BL114: 0 | BM114: 0 | BN114: 7 | BO114: 59
A115: Port Macquarie-Hastings (A) | B115: 3 | C115: 17 | D115: 0 | E115: 0 | F115: 14 | G115: 3 | H115: 0 | I115: 8 | J115: 0 | K115: 0 | L115: 0 | M115: 26 | N115: 0 | O115: 0 | P115: 0 | Q115: 7 | R115: 0 | S115: 0 | T115: 0 | U115: 0 | V115: 30 | W115: 0 | X115: 0 | Y115: 232 | Z115: 0 | AA115: 0 | AB115: 0 | AC115: 0 | AD115: 6 | AE115: 0 | AF115: 0 | AG115: 0 | AH115: 6 | AI115: 108 | AJ115: 0 | AK115: 0 | AL115: 15 | AM115: 0 | AN115: 0 | AO115: 10 | AP115: 5 | AQ115: 5 | AR115: 0 | AS115: 502 | AT115: 6 | AU115: 43 | AV115: 0 | AW115: 6 | AX115: 0 | AY115: 44 | AZ115: 15 | BA115: 5 | BB115: 6 | BC115: 0 | BD115: 4 | BE115: 0 | BF115: 0 | BG115: 0 | BH115: 0 | BI115: 0 | BJ115: 11 | BK115: 0 | BL115: 0 | BM115: 0 | BN115: 7 | BO115: 645
A116: Port Stephens (A) | B116: 0 | C116: 7 | D116: 0 | E116: 0 | F116: 11 | G116: 0 | H116: 0 | I116: 0 | J116: 0 | K116: 20 | L116: 4 | M116: 8 | N116: 5 | O116: 0 | P116: 0 | Q116: 0 | R116: 0 | S116: 0 | T116: 0 | U116: 0 | V116: 7 | W116: 0 | X116: 0 | Y116: 33 | Z116: 0 | AA116: 0 | AB116: 0 | AC116: 0 | AD116: 0 | AE116: 0 | AF116: 0 | AG116: 0 | AH116: 0 | AI116: 17 | AJ116: 13 | AK116: 17 | AL116: 0 | AM116: 0 | AN116: 0 | AO116: 20 | AP116: 0 | AQ116: 3 | AR116: 0 | AS116: 173 | AT116: 8 | AU116: 76 | AV116: 0 | AW116: 7 | AX116: 0 | AY116: 4 | AZ116: 4 | BA116: 14 | BB116: 7 | BC116: 5 | BD116: 0 | BE116: 0 | BF116: 0 | BG116: 0 | BH116: 0 | BI116: 0 | BJ116: 0 | BK116: 0 | BL116: 0 | BM116: 0 | BN116: 8 | BO116: 303
A117: Queanbeyan (C) | B117: 0 | C117: 6 | D117: 0 | E117: 0 | F117: 0 | G117: 0 | H117: 0 | I117: 0 | J117: 0 | K117: 0 | L117: 0 | M117: 0 | N117: 0 | O117: 0 | P117: 0 | Q117: 0 | R117: 0 | S117: 0 | T117: 0 | U117: 0 | V117: 0 | W117: 0 | X117: 6 | Y117: 5 | Z117: 0 | AA117: 0 | AB117: 0 | AC117: 0 | AD117: 0 | AE117: 0 | AF117: 0 | AG117: 0 | AH117: 0 | AI117: 0 | AJ117: 0 | AK117: 0 | AL117: 0 | AM117: 0 | AN117: 0 | AO117: 0 | AP117: 0 | AQ117: 0 | AR117: 0 | AS117: 24 | AT117: 0 | AU117: 0 | AV117: 0 | AW117: 0 | AX117: 0 | AY117: 0 | AZ117: 0 | BA117: 0 | BB117: 0 | BC117: 0 | BD117: 0 | BE117: 0 | BF117: 0 | BG117: 0 | BH117: 0 | BI117: 0 | BJ117: 0 | BK117: 0 | BL117: 0 | BM117: 0 | BN117: 7 | BO117: 24
A118: Randwick (C) | B118: 0 | C118: 0 | D118: 0 | E118: 0 | F118: 4 | G118: 0 | H118: 0 | I118: 0 | J118: 0 | K118: 5 | L118: 0 | M118: 4 | N118: 0 | O118: 0 | P118: 0 | Q118: 0 | R118: 0 | S118: 0 | T118: 0 | U118: 0 | V118: 0 | W118: 0 | X118: 0 | Y118: 0 | Z118: 0 | AA118: 0 | AB118: 0 | AC118: 0 | AD118: 7 | AE118: 0 | AF118: 0 | AG118: 0 | AH118: 0 | AI118: 0 | AJ118: 0 | AK118: 0 | AL118: 0 | AM118: 0 | AN118: 0 | AO118: 16 | AP118: 0 | AQ118: 0 | AR118: 0 | AS118: 42 | AT118: 0 | AU118: 0 | AV118: 0 | AW118: 0 | AX118: 0 | AY118: 0 | AZ118: 0 | BA118: 0 | BB118: 0 | BC118: 0 | BD118: 0 | BE118: 0 | BF118: 0 | BG118: 0 | BH118: 0 | BI118: 0 | BJ118: 5 | BK118: 0 | BL118: 0 | BM118: 0 | BN118: 6 | BO118: 47
A119: Richmond Valley (A) | B119: 3 | C119: 15 | D119: 0 | E119: 0 | F119: 9 | G119: 0 | H119: 0 | I119: 0 | J119: 0 | K119: 0 | L119: 0 | M119: 15 | N119: 0 | O119: 0 | P119: 0 | Q119: 0 | R119: 0 | S119: 0 | T119: 0 | U119: 0 | V119: 14 | W119: 0 | X119: 0 | Y119: 246 | Z119: 0 | AA119: 0 | AB119: 0 | AC119: 0 | AD119: 12 | AE119: 0 | AF119: 24 | AG119: 0 | AH119: 18 | AI119: 37 | AJ119: 7 | AK119: 18 | AL119: 3 | AM119: 0 | AN119: 0 | AO119: 4 | AP119: 15 | AQ119: 13 | AR119: 0 | AS119: 459 | AT119: 0 | AU119: 0 | AV119: 0 | AW119: 0 | AX119: 0 | AY119: 15 | AZ119: 4 | BA119: 0 | BB119: 0 | BC119: 0 | BD119: 4 | BE119: 0 | BF119: 0 | BG119: 0 | BH119: 0 | BI119: 0 | BJ119: 3 | BK119: 0 | BL119: 0 | BM119: 0 | BN119: 6 | BO119: 495
A120: Rockdale (C) | B120: 0 | C120: 0 | D120: 0 | E120: 0 | F120: 0 | G120: 0 | H120: 0 | I120: 0 | J120: 0 | K120: 0 | L120: 0 | M120: 0 | N120: 0 | O120: 0 | P120: 0 | Q120: 0 | R120: 0 | S120: 0 | T120: 0 | U120: 0 | V120: 0 | W120: 0 | X120: 0 | Y120: 0 | Z120: 0 | AA120: 0 | AB120: 3 | AC120: 0 | AD120: 0 | AE120: 0 | AF120: 0 | AG120: 0 | AH120: 0 | AI120: 0 | AJ120: 0 | AK120: 0 | AL120: 0 | AM120: 0 | AN120: 0 | AO120: 0 | AP120: 0 | AQ120: 0 | AR120: 0 | AS120: 9 | AT120: 0 | AU120: 0 | AV120: 0 | AW120: 0 | AX120: 0 | AY120: 0 | AZ120: 0 | BA120: 0 | BB120: 0 | BC120: 0 | BD120: 0 | BE120: 0 | BF120: 0 | BG120: 0 | BH120: 0 | BI120: 0 | BJ120: 0 | BK120: 0 | BL120: 0 | BM120: 0 | BN120: 6 | BO120: 9
A121: Ryde (C) | B121: 4 | C121: 3 | D121: 0 | E121: 0 | F121: 3 | G121: 0 | H121: 0 | I121: 0 | J121: 0 | K121: 0 | L121: 0 | M121: 0 | N121: 0 | O121: 0 | P121: 0 | Q121: 0 | R121: 0 | S121: 0 | T121: 0 | U121: 0 | V121: 0 | W121: 0 | X121: 0 | Y121: 0 | Z121: 0 | AA121: 0 | AB121: 4 | AC121: 0 | AD121: 14 | AE121: 0 | AF121: 0 | AG121: 0 | AH121: 0 | AI121: 0 | AJ121: 0 | AK121: 0 | AL121: 0 | AM121: 0 | AN121: 0 | AO121: 0 | AP121: 0 | AQ121: 0 | AR121: 0 | AS121: 31 | AT121: 0 | AU121: 0 | AV121: 0 | AW121: 0 | AX121: 0 | AY121: 0 | AZ121: 0 | BA121: 0 | BB121: 0 | BC121: 0 | BD121: 0 | BE121: 0 | BF121: 0 | BG121: 0 | BH121: 0 | BI121: 0 | BJ121: 4 | BK121: 0 | BL121: 0 | BM121: 0 | BN121: 3 | BO121: 35
A122: Shellharbour (C) | B122: 0 | C122: 0 | D122: 0 | E122: 0 | F122: 0 | G122: 0 | H122: 0 | I122: 0 | J122: 0 | K122: 9 | L122: 0 | M122: 0 | N122: 0 | O122: 0 | P122: 0 | Q122: 0 | R122: 0 | S122: 0 | T122: 0 | U122: 0 | V122: 0 | W122: 0 | X122: 0 | Y122: 21 | Z122: 0 | AA122: 0 | AB122: 0 | AC122: 0 | AD122: 0 | AE122: 0 | AF122: 0 | AG122: 0 | AH122: 0 | AI122: 20 | AJ122: 0 | AK122: 0 | AL122: 0 | AM122: 0 | AN122: 0 | AO122: 15 | AP122: 0 | AQ122: 0 | AR122: 0 | AS122: 69 | AT122: 0 | AU122: 0 | AV122: 0 | AW122: 0 | AX122: 0 | AY122: 0 | AZ122: 0 | BA122: 0 | BB122: 0 | BC122: 0 | BD122: 0 | BE122: 0 | BF122: 0 | BG122: 6 | BH122: 0 | BI122: 0 | BJ122: 0 | BK122: 0 | BL122: 0 | BM122: 0 | BN122: 4 | BO122: 75
A123: Shoalhaven (C) | B123: 6 | C123: 26 | D123: 0 | E123: 0 | F123: 11 | G123: 18 | H123: 3 | I123: 12 | J123: 0 | K123: 0 | L123: 0 | M123: 5 | N123: 0 | O123: 10 | P123: 0 | Q123: 8 | R123: 0 | S123: 3 | T123: 5 | U123: 0 | V123: 0 | W123: 0 | X123: 8 | Y123: 142 | Z123: 0 | AA123: 3 | AB123: 0 | AC123: 0 | AD123: 6 | AE123: 0 | AF123: 0 | AG123: 0 | AH123: 4 | AI123: 179 | AJ123: 0 | AK123: 0 | AL123: 5 | AM123: 0 | AN123: 0 | AO123: 24 | AP123: 0 | AQ123: 5 | AR123: 0 | AS123: 503 | AT123: 0 | AU123: 16 | AV123: 0 | AW123: 0 | AX123: 0 | AY123: 4 | AZ123: 0 | BA123: 24 | BB123: 16 | BC123: 5 | BD123: 4 | BE123: 0 | BF123: 0 | BG123: 0 | BH123: 0 | BI123: 0 | BJ123: 11 | BK123: 0 | BL123: 0 | BM123: 0 | BN123: 20 | BO123: 591
A124: Singleton (A) | B124: 4 | C124: 11 | D124: 0 | E124: 0 | F124: 0 | G124: 7 | H124: 0 | I124: 0 | J124: 0 | K124: 26 | L124: 0 | M124: 5 | N124: 0 | O124: 40 | P124: 0 | Q124: 0 | R124: 0 | S124: 0 | T124: 0 | U124: 7 | V124: 0 | W124: 0 | X124: 3 | Y124: 178 | Z124: 0 | AA124: 0 | AB124: 0 | AC124: 0 | AD124: 0 | AE124: 0 | AF124: 0 | AG124: 0 | AH124: 15 | AI124: 82 | AJ124: 0 | AK124: 8 | AL124: 0 | AM124: 0 | AN124: 0 | AO124: 18 | AP124: 0 | AQ124: 0 | AR124: 0 | AS124: 414 | AT124: 0 | AU124: 0 | AV124: 0 | AW124: 0 | AX124: 0 | AY124: 0 | AZ124: 0 | BA124: 0 | BB124: 0 | BC124: 0 | BD124: 0 | BE124: 0 | BF124: 0 | BG124: 0 | BH124: 0 | BI124: 0 | BJ124: 0 | BK124: 0 | BL124: 0 | BM124: 0 | BN124: 10 | BO124: 414
A125: Snowy River (A) | B125: 0 | C125: 0 | D125: 0 | E125: 0 | F125: 0 | G125: 0 | H125: 0 | I125: 0 | J125: 0 | K125: 0 | L125: 0 | M125: 0 | N125: 0 | O125: 0 | P125: 0 | Q125: 0 | R125: 0 | S125: 0 | T125: 0 | U125: 0 | V125: 0 | W125: 7 | X125: 89 | Y125: 53 | Z125: 0 | AA125: 102 | AB125: 0 | AC125: 0 | AD125: 0 | AE125: 0 | AF125: 0 | AG125: 0 | AH125: 0 | AI125: 0 | AJ125: 0 | AK125: 0 | AL125: 0 | AM125: 0 | AN125: 0 | AO125: 0 | AP125: 0 | AQ125: 0 | AR125: 0 | AS125: 262 | AT125: 0 | AU125: 0 | AV125: 0 | AW125: 5 | AX125: 0 | AY125: 0 | AZ125: 0 | BA125: 0 | BB125: 0 | BC125: 0 | BD125: 0 | BE125: 0 | BF125: 0 | BG125: 0 | BH125: 0 | BI125: 0 | BJ125: 0 | BK125: 0 | BL125: 0 | BM125: 4 | BN125: 7 | BO125: 267
A126: Strathfield (A) | B126: 0 | C126: 12 | D126: 0 | E126: 0 | F126: 0 | G126: 0 | H126: 0 | I126: 0 | J126: 0 | K126: 0 | L126: 0 | M126: 11 | N126: 14 | O126: 0 | P126: 0 | Q126: 0 | R126: 0 | S126: 0 | T126: 0 | U126: 0 | V126: 7 | W126: 0 | X126: 0 | Y126: 6 | Z126: 0 | AA126: 0 | AB126: 0 | AC126: 0 | AD126: 4 | AE126: 0 | AF126: 0 | AG126: 0 | AH126: 0 | AI126: 7 | AJ126: 0 | AK126: 3 | AL126: 0 | AM126: 0 | AN126: 0 | AO126: 0 | AP126: 0 | AQ126: 0 | AR126: 0 | AS126: 64 | AT126: 0 | AU126: 0 | AV126: 0 | AW126: 0 | AX126: 0 | AY126: 0 | AZ126: 0 | BA126: 0 | BB126: 0 | BC126: 0 | BD126: 0 | BE126: 0 | BF126: 0 | BG126: 0 | BH126: 0 | BI126: 0 | BJ126: 0 | BK126: 0 | BL126: 0 | BM126: 0 | BN126: 0 | BO126: 64
A127: Sutherland Shire (A) | B127: 0 | C127: 4 | D127: 0 | E127: 0 | F127: 0 | G127: 0 | H127: 0 | I127: 6 | J127: 0 | K127: 0 | L127: 0 | M127: 7 | N127: 0 | O127: 0 | P127: 0 | Q127: 0 | R127: 0 | S127: 0 | T127: 0 | U127: 0 | V127: 0 | W127: 0 | X127: 0 | Y127: 0 | Z127: 0 | AA127: 0 | AB127: 0 | AC127: 0 | AD127: 0 | AE127: 0 | AF127: 0 | AG127: 0 | AH127: 0 | AI127: 0 | AJ127: 0 | AK127: 0 | AL127: 0 | AM127: 0 | AN127: 0 | AO127: 0 | AP127: 0 | AQ127: 0 | AR127: 0 | AS127: 28 | AT127: 0 | AU127: 6 | AV127: 0 | AW127: 0 | AX127: 0 | AY127: 0 | AZ127: 0 | BA127: 11 | BB127: 4 | BC127: 0 | BD127: 0 | BE127: 0 | BF127: 0 | BG127: 0 | BH127: 0 | BI127: 0 | BJ127: 5 | BK127: 0 | BL127: 0 | BM127: 0 | BN127: 11 | BO127: 54
A128: Sydney (C) | B128: 13 | C128: 17 | D128: 0 | E128: 0 | F128: 9 | G128: 0 | H128: 0 | I128: 5 | J128: 0 | K128: 0 | L128: 0 | M128: 0 | N128: 0 | O128: 3 | P128: 0 | Q128: 0 | R128: 0 | S128: 0 | T128: 0 | U128: 0 | V128: 0 | W128: 0 | X128: 6 | Y128: 27 | Z128: 0 | AA128: 4 | AB128: 11 | AC128: 0 | AD128: 17 | AE128: 0 | AF128: 0 | AG128: 16 | AH128: 0 | AI128: 9 | AJ128: 0 | AK128: 0 | AL128: 0 | AM128: 0 | AN128: 0 | AO128: 8 | AP128: 0 | AQ128: 3 | AR128: 0 | AS128: 154 | AT128: 0 | AU128: 0 | AV128: 0 | AW128: 6 | AX128: 0 | AY128: 3 | AZ128: 0 | BA128: 0 | BB128: 0 | BC128: 0 | BD128: 0 | BE128: 0 | BF128: 0 | BG128: 13 | BH128: 0 | BI128: 0 | BJ128: 6 | BK128: 0 | BL128: 0 | BM128: 0 | BN128: 6 | BO128: 182
A129: Tamworth Regional (A) | B129: 17 | C129: 67 | D129: 0 | E129: 0 | F129: 0 | G129: 0 | H129: 0 | I129: 0 | J129: 0 | K129: 0 | L129: 0 | M129: 11 | N129: 0 | O129: 0 | P129: 0 | Q129: 0 | R129: 0 | S129: 0 | T129: 0 | U129: 3 | V129: 0 | W129: 13 | X129: 118 | Y129: 542 | Z129: 0 | AA129: 181 | AB129: 81 | AC129: 0 | AD129: 48 | AE129: 5 | AF129: 0 | AG129: 0 | AH129: 50 | AI129: 59 | AJ129: 24 | AK129: 43 | AL129: 42 | AM129: 0 | AN129: 0 | AO129: 42 | AP129: 9 | AQ129: 10 | AR129: 0 | AS129: 1414 | AT129: 3 | AU129: 0 | AV129: 0 | AW129: 3 | AX129: 0 | AY129: 3 | AZ129: 4 | BA129: 0 | BB129: 0 | BC129: 0 | BD129: 0 | BE129: 0 | BF129: 0 | BG129: 0 | BH129: 0 | BI129: 0 | BJ129: 0 | BK129: 3 | BL129: 0 | BM129: 3 | BN129: 43 | BO129: 1427
A130: Temora (A) | B130: 0 | C130: 14 | D130: 0 | E130: 0 | F130: 0 | G130: 0 | H130: 0 | I130: 0 | J130: 0 | K130: 0 | L130: 0 | M130: 0 | N130: 0 | O130: 0 | P130: 0 | Q130: 0 | R130: 0 | S130: 0 | T130: 0 | U130: 0 | V130: 0 | W130: 3 | X130: 38 | Y130: 11 | Z130: 5 | AA130: 6 | AB130: 227 | AC130: 0 | AD130: 74 | AE130: 0 | AF130: 0 | AG130: 0 | AH130: 0 | AI130: 0 | AJ130: 0 | AK130: 0 | AL130: 0 | AM130: 0 | AN130: 0 | AO130: 0 | AP130: 18 | AQ130: 3 | AR130: 0 | AS130: 430 | AT130: 0 | AU130: 0 | AV130: 0 | AW130: 0 | AX130: 0 | AY130: 0 | AZ130: 0 | BA130: 0 | BB130: 0 | BC130: 0 | BD130: 0 | BE130: 0 | BF130: 0 | BG130: 0 | BH130: 0 | BI130: 0 | BJ130: 0 | BK130: 7 | BL130: 0 | BM130: 12 | BN130: 12 | BO130: 430
A131: Tenterfield (A) | B131: 0 | C131: 16 | D131: 0 | E131: 0 | F131: 0 | G131: 0 | H131: 0 | I131: 0 | J131: 0 | K131: 0 | L131: 0 | M131: 13 | N131: 0 | O131: 0 | P131: 0 | Q131: 0 | R131: 4 | S131: 0 | T131: 0 | U131: 0 | V131: 5 | W131: 9 | X131: 33 | Y131: 291 | Z131: 0 | AA131: 45 | AB131: 9 | AC131: 0 | AD131: 3 | AE131: 0 | AF131: 0 | AG131: 0 | AH131: 0 | AI131: 0 | AJ131: 0 | AK131: 0 | AL131: 3 | AM131: 0 | AN131: 0 | AO131: 3 | AP131: 0 | AQ131: 3 | AR131: 0 | AS131: 440 | AT131: 0 | AU131: 0 | AV131: 0 | AW131: 0 | AX131: 0 | AY131: 0 | AZ131: 3 | BA131: 0 | BB131: 0 | BC131: 0 | BD131: 0 | BE131: 0 | BF131: 0 | BG131: 0 | BH131: 0 | BI131: 0 | BJ131: 0 | BK131: 0 | BL131: 0 | BM131: 0 | BN131: 3 | BO131: 443
A132: The Hills Shire (A) | B132: 5 | C132: 23 | D132: 4 | E132: 0 | F132: 76 | G132: 5 | H132: 0 | I132: 72 | J132: 0 | K132: 10 | L132: 0 | M132: 78 | N132: 11 | O132: 0 | P132: 0 | Q132: 0 | R132: 0 | S132: 6 | T132: 9 | U132: 0 | V132: 0 | W132: 0 | X132: 6 | Y132: 20 | Z132: 0 | AA132: 0 | AB132: 3 | AC132: 0 | AD132: 0 | AE132: 0 | AF132: 0 | AG132: 0 | AH132: 0 | AI132: 8 | AJ132: 3 | AK132: 7 | AL132: 10 | AM132: 0 | AN132: 0 | AO132: 23 | AP132: 0 | AQ132: 0 | AR132: 0 | AS132: 392 | AT132: 0 | AU132: 0 | AV132: 0 | AW132: 0 | AX132: 0 | AY132: 69 | AZ132: 7 | BA132: 0 | BB132: 0 | BC132: 0 | BD132: 0 | BE132: 0 | BF132: 0 | BG132: 0 | BH132: 0 | BI132: 0 | BJ132: 18 | BK132: 0 | BL132: 0 | BM132: 0 | BN132: 13 | BO132: 486
A133: Tumbarumba (A) | B133: 0 | C133: 9 | D133: 0 | E133: 0 | F133: 0 | G133: 0 | H133: 0 | I133: 0 | J133: 0 | K133: 0 | L133: 0 | M133: 3 | N133: 0 | O133: 19 | P133: 0 | Q133: 6 | R133: 11 | S133: 0 | T133: 0 | U133: 0 | V133: 0 | W133: 4 | X133: 16 | Y133: 133 | Z133: 0 | AA133: 47 | AB133: 8 | AC133: 0 | AD133: 9 | AE133: 0 | AF133: 0 | AG133: 0 | AH133: 0 | AI133: 38 | AJ133: 0 | AK133: 0 | AL133: 0 | AM133: 0 | AN133: 0 | AO133: 0 | AP133: 0 | AQ133: 4 | AR133: 0 | AS133: 310 | AT133: 0 | AU133: 0 | AV133: 0 | AW133: 0 | AX133: 0 | AY133: 7 | AZ133: 10 | BA133: 0 | BB133: 0 | BC133: 0 | BD133: 0 | BE133: 0 | BF133: 0 | BG133: 0 | BH133: 0 | BI133: 0 | BJ133: 4 | BK133: 0 | BL133: 0 | BM133: 0 | BN133: 3 | BO133: 331
A134: Tumut Shire (A) | B134: 4 | C134: 10 | D134: 0 | E134: 0 | F134: 5 | G134: 0 | H134: 0 | I134: 0 | J134: 0 | K134: 0 | L134: 0 | M134: 0 | N134: 13 | O134: 0 | P134: 0 | Q134: 0 | R134: 136 | S134: 0 | T134: 19 | U134: 0 | V134: 0 | W134: 4 | X134: 15 | Y134: 131 | Z134: 0 | AA134: 86 | AB134: 4 | AC134: 0 | AD134: 0 | AE134: 0 | AF134: 0 | AG134: 0 | AH134: 0 | AI134: 9 | AJ134: 0 | AK134: 0 | AL134: 0 | AM134: 0 | AN134: 0 | AO134: 0 | AP134: 0 | AQ134: 8 | AR134: 0 | AS134: 458 | AT134: 0 | AU134: 0 | AV134: 0 | AW134: 0 | AX134: 0 | AY134: 70 | AZ134: 37 | BA134: 0 | BB134: 0 | BC134: 0 | BD134: 0 | BE134: 0 | BF134: 0 | BG134: 0 | BH134: 0 | BI134: 0 | BJ134: 16 | BK134: 0 | BL134: 0 | BM134: 0 | BN134: 14 | BO134: 581
A135: Tweed (A) | B135: 3 | C135: 47 | D135: 0 | E135: 0 | F135: 21 | G135: 4 | H135: 0 | I135: 5 | J135: 0 | K135: 0 | L135: 3 | M135: 65 | N135: 19 | O135: 0 | P135: 0 | Q135: 0 | R135: 0 | S135: 0 | T135: 6 | U135: 0 | V135: 129 | W135: 3 | X135: 3 | Y135: 165 | Z135: 0 | AA135: 0 | AB135: 3 | AC135: 0 | AD135: 0 | AE135: 0 | AF135: 85 | AG135: 0 | AH135: 21 | AI135: 36 | AJ135: 0 | AK135: 0 | AL135: 3 | AM135: 0 | AN135: 0 | AO135: 7 | AP135: 0 | AQ135: 3 | AR135: 0 | AS135: 657 | AT135: 5 | AU135: 0 | AV135: 0 | AW135: 0 | AX135: 0 | AY135: 3 | AZ135: 0 | BA135: 5 | BB135: 4 | BC135: 0 | BD135: 0 | BE135: 0 | BF135: 0 | BG135: 3 | BH135: 0 | BI135: 0 | BJ135: 12 | BK135: 0 | BL135: 0 | BM135: 0 | BN135: 26 | BO135: 699
A136: Upper Hunter Shire (A) | B136: 12 | C136: 38 | D136: 0 | E136: 0 | F136: 0 | G136: 0 | H136: 0 | I136: 0 | J136: 0 | K136: 0 | L136: 0 | M136: 0 | N136: 0 | O136: 0 | P136: 0 | Q136: 0 | R136: 0 | S136: 0 | T136: 0 | U136: 3 | V136: 0 | W136: 12 | X136: 30 | Y136: 440 | Z136: 3 | AA136: 111 | AB136: 32 | AC136: 0 | AD136: 14 | AE136: 0 | AF136: 0 | AG136: 0 | AH136: 16 | AI136: 33 | AJ136: 3 | AK136: 0 | AL136: 6 | AM136: 3 | AN136: 0 | AO136: 382 | AP136: 0 | AQ136: 0 | AR136: 0 | AS136: =SUM(B136:AR136)+BI136+BK136+BL136+BM136+BN136 -> 1180 | AT136: 0 | AU136: 0 | AV136: 0 | AW136: 0 | AX136: 3 | AY136: 0 | AZ136: 0 | BA136: 0 | BB136: 0 | BC136: 0 | BD136: 0 | BE136: 0 | BF136: 0 | BG136: 0 | BH136: 0 | BI136: 0 | BJ136: 0 | BK136: 0 | BL136: 0 | BM136: 6 | BN136: 36 | BO136: 1189
A137: Upper Lachlan Shire (A) | B137: 0 | C137: 17 | D137: 0 | E137: 0 | F137: 0 | G137: 0 | H137: 0 | I137: 0 | J137: 0 | K137: 0 | L137: 0 | M137: 15 | N137: 0 | O137: 0 | P137: 0 | Q137: 0 | R137: 3 | S137: 0 | T137: 0 | U137: 0 | V137: 0 | W137: 11 | X137: 400 | Y137: 147 | Z137: 0 | AA137: 234 | AB137: 5 | AC137: 0 | AD137: 4 | AE137: 0 | AF137: 0 | AG137: 0 | AH137: 0 | AI137: 0 | AJ137: 0 | AK137: 3 | AL137: 0 | AM137: 0 | AN137: 0 | AO137: 3 | AP137: 3 | AQ137: 0 | AR137: 0 | AS137: 877 | AT137: 3 | AU137: 0 | AV137: 0 | AW137: 0 | AX137: 0 | AY137: 0 | AZ137: 0 | BA137: 0 | BB137: 0 | BC137: 0 | BD137: 0 | BE137: 0 | BF137: 0 | BG137: 0 | BH137: 4 | BI137: 0 | BJ137: 0 | BK137: 0 | BL137: 0 | BM137: 16 | BN137: 16 | BO137: 887
A138: Uralla (A) | B138: 0 | C138: 6 | D138: 0 | E138: 0 | F138: 5 | G138: 0 | H138: 0 | I138: 0 | J138: 0 | K138: 0 | L138: 0 | M138: 0 | N138: 0 | O138: 8 | P138: 0 | Q138: 0 | R138: 0 | S138: 0 | T138: 0 | U138: 0 | V138: 0 | W138: 11 | X138: 106 | Y138: 115 | Z138: 0 | AA138: 155 | AB138: 7 | AC138: 0 | AD138: 0 | AE138: 0 | AF138: 0 | AG138: 4 | AH138: 0 | AI138: 0 | AJ138: 0 | AK138: 0 | AL138: 0 | AM138: 0 | AN138: 0 | AO138: 0 | AP138: 0 | AQ138: 0 | AR138: 0 | AS138: 434 | AT138: 0 | AU138: 0 | AV138: 0 | AW138: 0 | AX138: 0 | AY138: 0 | AZ138: 0 | BA138: 0 | BB138: 0 | BC138: 0 | BD138: 0 | BE138: 0 | BF138: 0 | BG138: 0 | BH138: 0 | BI138: 0 | BJ138: 5 | BK138: 0 | BL138: 0 | BM138: 4 | BN138: 13 | BO138: 439
A139: Urana (A) | B139: 0 | C139: 11 | D139: 0 | E139: 0 | F139: 0 | G139: 0 | H139: 0 | I139: 0 | J139: 0 | K139: 0 | L139: 0 | M139: 0 | N139: 0 | O139: 0 | P139: 0 | Q139: 0 | R139: 0 | S139: 0 | T139: 0 | U139: 0 | V139: 0 | W139: 3 | X139: 14 | Y139: 8 | Z139: 0 | AA139: 3 | AB139: 105 | AC139: 0 | AD139: 36 | AE139: 0 | AF139: 0 | AG139: 0 | AH139: 0 | AI139: 0 | AJ139: 0 | AK139: 0 | AL139: 0 | AM139: 0 | AN139: 0 | AO139: 0 | AP139: 0 | AQ139: 0 | AR139: 0 | AS139: 180 | AT139: 0 | AU139: 0 | AV139: 0 | AW139: 0 | AX139: 0 | AY139: 0 | AZ139: 0 | BA139: 0 | BB139: 0 | BC139: 0 | BD139: 0 | BE139: 0 | BF139: 0 | BG139: 0 | BH139: 0 | BI139: 0 | BJ139: 0 | BK139: 0 | BL139: 0 | BM139: 0 | BN139: 0 | BO139: 180
A140: Wagga Wagga (C) | B140: 7 | C140: 61 | D140: 0 | E140: 0 | F140: 3 | G140: 5 | H140: 0 | I140: 0 | J140: 0 | K140: 0 | L140: 0 | M140: 0 | N140: 0 | O140: 5 | P140: 0 | Q140: 0 | R140: 0 | S140: 0 | T140: 0 | U140: 0 | V140: 0 | W140: 5 | X140: 94 | Y140: 195 | Z140: 11 | AA140: 98 | AB140: 199 | AC140: 0 | AD140: 100 | AE140: 0 | AF140: 0 | AG140: 0 | AH140: 0 | AI140: 45 | AJ140: 0 | AK140: 0 | AL140: 0 | AM140: 0 | AN140: 0 | AO140: 8 | AP140: 9 | AQ140: 3 | AR140: 0 | AS140: 882 | AT140: 0 | AU140: 0 | AV140: 0 | AW140: 0 | AX140: 0 | AY140: 0 | AZ140: 0 | BA140: 0 | BB140: 0 | BC140: 0 | BD140: 0 | BE140: 0 | BF140: 0 | BG140: 4 | BH140: 0 | BI140: 0 | BJ140: 0 | BK140: 0 | BL140: 0 | BM140: 4 | BN140: 30 | BO140: 886
A141: Wakool (A) | B141: 3 | C141: 17 | D141: 0 | E141: 0 | F141: 4 | G141: 0 | H141: 0 | I141: 3 | J141: 0 | K141: 0 | L141: 0 | M141: 17 | N141: 5 | O141: 18 | P141: 0 | Q141: 0 | R141: 0 | S141: 3 | T141: 27 | U141: 0 | V141: 8 | W141: 0 | X141: 48 | Y141: 37 | Z141: 6 | AA141: 24 | AB141: 80 | AC141: 3 | AD141: 110 | AE141: 0 | AF141: 0 | AG141: 0 | AH141: 5 | AI141: 30 | AJ141: 0 | AK141: 0 | AL141: 0 | AM141: 0 | AN141: 0 | AO141: 0 | AP141: 12 | AQ141: 0 | AR141: 0 | AS141: 478 | AT141: 0 | AU141: 0 | AV141: 0 | AW141: 0 | AX141: 0 | AY141: 4 | AZ141: 9 | BA141: 0 | BB141: 0 | BC141: 0 | BD141: 0 | BE141: 0 | BF141: 0 | BG141: 0 | BH141: 0 | BI141: 0 | BJ141: 0 | BK141: 0 | BL141: 0 | BM141: 3 | BN141: 15 | BO141: 491
A142: Walcha (A) | B142: 0 | C142: 11 | D142: 0 | E142: 0 | F142: 0 | G142: 0 | H142: 0 | I142: 0 | J142: 0 | K142: 0 | L142: 0 | M142: 0 | N142: 0 | O142: 0 | P142: 0 | Q142: 0 | R142: 0 | S142: 0 | T142: 0 | U142: 0 | V142: 0 | W142: 16 | X142: 79 | Y142: 252 | Z142: 0 | AA142: 184 | AB142: 4 | AC142: 0 | AD142: 0 | AE142: 0 | AF142: 0 | AG142: 0 | AH142: 0 | AI142: 5 | AJ142: 0 | AK142: 0 | AL142: 0 | AM142: 0 | AN142: 0 | AO142: 0 | AP142: 0 | AQ142: 0 | AR142: 0 | AS142: 577 | AT142: 0 | AU142: 0 | AV142: 0 | AW142: 0 | AX142: 0 | AY142: 10 | AZ142: 7 | BA142: 0 | BB142: 0 | BC142: 0 | BD142: 0 | BE142: 0 | BF142: 0 | BG142: 0 | BH142: 0 | BI142: 0 | BJ142: 0 | BK142: 0 | BL142: 0 | BM142: 15 | BN142: 11 | BO142: 599
A143: Walgett (A) | B143: 3 | C143: 17 | D143: 0 | E143: 0 | F143: 0 | G143: 0 | H143: 0 | I143: 0 | J143: 0 | K143: 0 | L143: 0 | M143: 0 | N143: 0 | O143: 0 | P143: 0 | Q143: 0 | R143: 0 | S143: 0 | T143: 0 | U143: 0 | V143: 0 | W143: 13 | X143: 67 | Y143: 72 | Z143: 3 | AA143: 26 | AB143: 185 | AC143: 0 | AD143: 157 | AE143: 0 | AF143: 0 | AG143: 40 | AH143: 0 | AI143: 0 | AJ143: 0 | AK143: 0 | AL143: 0 | AM143: 0 | AN143: 0 | AO143: 0 | AP143: 0 | AQ143: 0 | AR143: 0 | AS143: 606 | AT143: 0 | AU143: 0 | AV143: 0 | AW143: 0 | AX143: 0 | AY143: 0 | AZ143: 0 | BA143: 0 | BB143: 0 | BC143: 0 | BD143: 0 | BE143: 0 | BF143: 0 | BG143: 0 | BH143: 5 | BI143: 0 | BJ143: 0 | BK143: 0 | BL143: 13 | BM143: 7 | BN143: 3 | BO143: 611
A144: Warren (A) | B144: 3 | C144: 13 | D144: 0 | E144: 0 | F144: 0 | G144: 0 | H144: 0 | I144: 0 | J144: 0 | K144: 0 | L144: 0 | M144: 0 | N144: 0 | O144: 0 | P144: 0 | Q144: 0 | R144: 0 | S144: 0 | T144: 0 | U144: 0 | V144: 0 | W144: 7 | X144: 64 | Y144: 57 | Z144: 0 | AA144: 37 | AB144: 88 | AC144: 0 | AD144: 84 | AE144: 0 | AF144: 0 | AG144: 58 | AH144: 0 | AI144: 0 | AJ144: 0 | AK144: 0 | AL144: 0 | AM144: 0 | AN144: 0 | AO144: 0 | AP144: 0 | AQ144: 0 | AR144: 0 | AS144: 438 | AT144: 0 | AU144: 0 | AV144: 0 | AW144: 0 | AX144: 0 | AY144: 0 | AZ144: 0 | BA144: 0 | BB144: 0 | BC144: 0 | BD144: 0 | BE144: 0 | BF144: 0 | BG144: 0 | BH144: 0 | BI144: 0 | BJ144: 0 | BK144: 3 | BL144: 16 | BM144: 0 | BN144: 8 | BO144: 438
A145: Warringah (A) | B145: 5 | C145: 9 | D145: 0 | E145: 0 | F145: 9 | G145: 0 | H145: 0 | I145: 5 | J145: 0 | K145: 0 | L145: 0 | M145: 0 | N145: 0 | O145: 0 | P145: 0 | Q145: 0 | R145: 0 | S145: 0 | T145: 0 | U145: 0 | V145: 0 | W145: 0 | X145: 0 | Y145: 7 | Z145: 0 | AA145: 0 | AB145: 3 | AC145: 0 | AD145: 0 | AE145: 0 | AF145: 0 | AG145: 0 | AH145: 0 | AI145: 5 | AJ145: 0 | AK145: 0 | AL145: 0 | AM145: 0 | AN145: 0 | AO145: 7 | AP145: 0 | AQ145: 0 | AR145: 0 | AS145: 63 | AT145: 0 | AU145: 0 | AV145: 0 | AW145: 0 | AX145: 0 | AY145: 0 | AZ145: 0 | BA145: 5 | BB145: 0 | BC145: 0 | BD145: 0 | BE145: 0 | BF145: 0 | BG145: 0 | BH145: 0 | BI145: 0 | BJ145: 31 | BK145: 0 | BL145: 0 | BM145: 0 | BN145: 13 | BO145: 99
A146: Warrumbungle Shire (A) | B146: 6 | C146: 40 | D146: 0 | E146: 0 | F146: 0 | G146: 0 | H146: 0 | I146: 0 | J146: 0 | K146: 0 | L146: 0 | M146: 0 | N146: 0 | O146: 0 | P146: 0 | Q146: 0 | R146: 0 | S146: 0 | T146: 0 | U146: 4 | V146: 0 | W146: 10 | X146: 95 | Y146: 286 | Z146: 0 | AA146: 142 | AB146: 136 | AC146: 0 | AD146: 64 | AE146: 0 | AF146: 0 | AG146: 4 | AH146: 11 | AI146: 0 | AJ146: 0 | AK146: 0 | AL146: 3 | AM146: 0 | AN146: 0 | AO146: 8 | AP146: 5 | AQ146: 3 | AR146: 0 | AS146: 825 | AT146: 0 | AU146: 0 | AV146: 0 | AW146: 0 | AX146: 0 | AY146: 9 | AZ146: 4 | BA146: 0 | BB146: 0 | BC146: 0 | BD146: 0 | BE146: 0 | BF146: 0 | BG146: 0 | BH146: 0 | BI146: 0 | BJ146: 0 | BK146: 0 | BL146: 0 | BM146: 0 | BN146: 8 | BO146: 844
A147: Waverley (A) | B147: 0 | C147: 0 | D147: 0 | E147: 0 | F147: 0 | G147: 0 | H147: 0 | I147: 0 | J147: 0 | K147: 0 | L147: 0 | M147: 0 | N147: 0 | O147: 0 | P147: 0 | Q147: 0 | R147: 0 | S147: 0 | T147: 0 | U147: 0 | V147: 0 | W147: 0 | X147: 0 | Y147: 0 | Z147: 0 | AA147: 4 | AB147: 4 | AC147: 0 | AD147: 0 | AE147: 0 | AF147: 0 | AG147: 0 | AH147: 0 | AI147: 0 | AJ147: 0 | AK147: 0 | AL147: 0 | AM147: 0 | AN147: 0 | AO147: 4 | AP147: 0 | AQ147: 0 | AR147: 0 | AS147: 15 | AT147: 0 | AU147: 0 | AV147: 0 | AW147: 0 | AX147: 0 | AY147: 0 | AZ147: 0 | BA147: 0 | BB147: 0 | BC147: 0 | BD147: 0 | BE147: 0 | BF147: 0 | BG147: 0 | BH147: 0 | BI147: 0 | BJ147: 0 | BK147: 0 | BL147: 0 | BM147: 0 | BN147: 3 | BO147: 15
A148: Weddin (A) | B148: 3 | C148: 23 | D148: 0 | E148: 0 | F148: 0 | G148: 0 | H148: 0 | I148: 0 | J148: 0 | K148: 0 | L148: 0 | M148: 0 | N148: 0 | O148: 0 | P148: 0 | Q148: 0 | R148: 0 | S148: 0 | T148: 0 | U148: 0 | V148: 3 | W148: 3 | X148: 59 | Y148: 34 | Z148: 0 | AA148: 17 | AB148: 217 | AC148: 0 | AD148: 102 | AE148: 0 | AF148: 0 | AG148: 0 | AH148: 0 | AI148: 0 | AJ148: 0 | AK148: 0 | AL148: 0 | AM148: 0 | AN148: 0 | AO148: 0 | AP148: 3 | AQ148: 9 | AR148: 0 | AS148: 478 | AT148: 0 | AU148: 0 | AV148: 0 | AW148: 0 | AX148: 0 | AY148: 0 | AZ148: 0 | BA148: 0 | BB148: 0 | BC148: 0 | BD148: 0 | BE148: 0 | BF148: 0 | BG148: 0 | BH148: 0 | BI148: 0 | BJ148: 0 | BK148: 0 | BL148: 0 | BM148: 0 | BN148: 5 | BO148: 478
A149: Wellington (A) | B149: 0 | C149: 24 | D149: 0 | E149: 0 | F149: 4 | G149: 0 | H149: 0 | I149: 0 | J149: 0 | K149: 0 | L149: 0 | M149: 6 | N149: 4 | O149: 0 | P149: 0 | Q149: 0 | R149: 0 | S149: 0 | T149: 0 | U149: 0 | V149: 0 | W149: 5 | X149: 103 | Y149: 85 | Z149: 0 | AA149: 71 | AB149: 119 | AC149: 0 | AD149: 36 | AE149: 0 | AF149: 0 | AG149: 0 | AH149: 5 | AI149: 5 | AJ149: 0 | AK149: 0 | AL149: 0 | AM149: 0 | AN149: 0 | AO149: 10 | AP149: 0 | AQ149: 0 | AR149: 0 | AS149: 490 | AT149: 0 | AU149: 0 | AV149: 0 | AW149: 0 | AX149: 0 | AY149: 0 | AZ149: 0 | BA149: 0 | BB149: 0 | BC149: 0 | BD149: 0 | BE149: 0 | BF149: 0 | BG149: 0 | BH149: 0 | BI149: 0 | BJ149: 0 | BK149: 0 | BL149: 0 | BM149: 8 | BN149: 5 | BO149: 494
A150: Wentworth (A) | B150: 0 | C150: 13 | D150: 0 | E150: 0 | F150: 16 | G150: 4 | H150: 0 | I150: 0 | J150: 0 | K150: 0 | L150: 0 | M150: 30 | N150: 21 | O150: 210 | P150: 0 | Q150: 0 | R150: 0 | S150: 7 | T150: 145 | U150: 0 | V150: 3 | W150: 4 | X150: 69 | Y150: 3 | Z150: 0 | AA150: 16 | AB150: 30 | AC150: 0 | AD150: 27 | AE150: 0 | AF150: 0 | AG150: 0 | AH150: 0 | AI150: 5 | AJ150: 0 | AK150: 0 | AL150: 0 | AM150: 0 | AN150: 0 | AO150: 0 | AP150: 0 | AQ150: 6 | AR150: 0 | AS150: 615 | AT150: 0 | AU150: 0 | AV150: 0 | AW150: 0 | AX150: 0 | AY150: 0 | AZ150: 0 | BA150: 4 | BB150: 0 | BC150: 0 | BD150: 0 | BE150: 0 | BF150: 0 | BG150: 0 | BH150: 0 | BI150: 0 | BJ150: 0 | BK150: 0 | BL150: 0 | BM150: 0 | BN150: 6 | BO150: 619
A151: Willoughby (C) | B151: 5 | C151: 0 | D151: 0 | E151: 0 | F151: 0 | G151: 0 | H151: 0 | I151: 0 | J151: 0 | K151: 0 | L151: 0 | M151: 0 | N151: 0 | O151: 0 | P151: 0 | Q151: 0 | R151: 0 | S151: 0 | T151: 0 | U151: 0 | V151: 0 | W151: 0 | X151: 0 | Y151: 8 | Z151: 0 | AA151: 5 | AB151: 8 | AC151: 0 | AD151: 0 | AE151: 0 | AF151: 0 | AG151: 9 | AH151: 0 | AI151: 0 | AJ151: 0 | AK151: 0 | AL151: 0 | AM151: 0 | AN151: 0 | AO151: 0 | AP151: 0 | AQ151: 0 | AR151: 0 | AS151: 35 | AT151: 0 | AU151: 0 | AV151: 0 | AW151: 0 | AX151: 0 | AY151: 0 | AZ151: 0 | BA151: 0 | BB151: 0 | BC151: 0 | BD151: 0 | BE151: 0 | BF151: 0 | BG151: 0 | BH151: 0 | BI151: 0 | BJ151: 7 | BK151: 0 | BL151: 0 | BM151: 0 | BN151: 0 | BO151: 42
A152: Wingecarribee (A) | B152: 4 | C152: 44 | D152: 0 | E152: 0 | F152: 20 | G152: 0 | H152: 0 | I152: 10 | J152: 0 | K152: 35 | L152: 0 | M152: 19 | N152: 3 | O152: 10 | P152: 0 | Q152: 10 | R152: 0 | S152: 0 | T152: 0 | U152: 6 | V152: 3 | W152: 0 | X152: 8 | Y152: 282 | Z152: 0 | AA152: 12 | AB152: 0 | AC152: 0 | AD152: 4 | AE152: 0 | AF152: 0 | AG152: 0 | AH152: 0 | AI152: 56 | AJ152: 0 | AK152: 0 | AL152: 0 | AM152: 0 | AN152: 0 | AO152: 58 | AP152: 0 | AQ152: 0 | AR152: 0 | AS152: 606 | AT152: 0 | AU152: 0 | AV152: 0 | AW152: 0 | AX152: 0 | AY152: 4 | AZ152: 4 | BA152: 0 | BB152: 0 | BC152: 0 | BD152: 0 | BE152: 0 | BF152: 0 | BG152: 0 | BH152: 0 | BI152: 0 | BJ152: 5 | BK152: 0 | BL152: 0 | BM152: 0 | BN152: 22 | BO152: 636
A153: Wollondilly (A) | B153: 4 | C153: 32 | D153: 0 | E153: 0 | F153: 15 | G153: 11 | H153: 0 | I153: 10 | J153: 5 | K153: 10 | L153: 0 | M153: 107 | N153: 12 | O153: 0 | P153: 0 | Q153: 4 | R153: 0 | S153: 3 | T153: 0 | U153: 0 | V153: 0 | W153: 0 | X153: 4 | Y153: 65 | Z153: 0 | AA153: 3 | AB153: 0 | AC153: 0 | AD153: 0 | AE153: 0 | AF153: 0 | AG153: 0 | AH153: 4 | AI153: 51 | AJ153: 34 | AK153: 34 | AL153: 13 | AM153: 0 | AN153: 0 | AO153: 49 | AP153: 0 | AQ153: 3 | AR153: 0 | AS153: 488 | AT153: 0 | AU153: 0 | AV153: 0 | AW153: 0 | AX153: 0 | AY153: 0 | AZ153: 0 | BA153: 0 | BB153: 0 | BC153: 0 | BD153: 0 | BE153: 0 | BF153: 0 | BG153: 0 | BH153: 0 | BI153: 0 | BJ153: 0 | BK153: 0 | BL153: 0 | BM153: 0 | BN153: 15 | BO153: 495
A154: Wollongong (C) | B154: 0 | C154: 4 | D154: 0 | E154: 0 | F154: 9 | G154: 0 | H154: 0 | I154: 0 | J154: 0 | K154: 3 | L154: 0 | M154: 0 | N154: 4 | O154: 0 | P154: 0 | Q154: 4 | R154: 4 | S154: 3 | T154: 0 | U154: 0 | V154: 0 | W154: 0 | X154: 0 | Y154: 16 | Z154: 0 | AA154: 0 | AB154: 0 | AC154: 0 | AD154: 3 | AE154: 0 | AF154: 0 | AG154: 0 | AH154: 0 | AI154: 6 | AJ154: 0 | AK154: 0 | AL154: 4 | AM154: 0 | AN154: 0 | AO154: 10 | AP154: 0 | AQ154: 0 | AR154: 0 | AS154: 78 | AT154: 0 | AU154: 0 | AV154: 0 | AW154: 0 | AX154: 0 | AY154: 0 | AZ154: 0 | BA154: 13 | BB154: 10 | BC154: 0 | BD154: 0 | BE154: 0 | BF154: 0 | BG154: 0 | BH154: 0 | BI154: 0 | BJ154: 17 | BK154: 0 | BL154: 0 | BM154: 0 | BN154: 8 | BO154: 121
A155: Woollahra (A) | B155: 0 | C155: 4 | D155: 0 | E155: 0 | F155: 0 | G155: 0 | H155: 0 | I155: 0 | J155: 0 | K155: 0 | L155: 0 | M155: 0 | N155: 0 | O155: 0 | P155: 0 | Q155: 0 | R155: 0 | S155: 0 | T155: 0 | U155: 0 | V155: 0 | W155: 0 | X155: 3 | Y155: 11 | Z155: 0 | AA155: 4 | AB155: 3 | AC155: 0 | AD155: 0 | AE155: 0 | AF155: 0 | AG155: 0 | AH155: 0 | AI155: 0 | AJ155: 0 | AK155: 0 | AL155: 0 | AM155: 0 | AN155: 0 | AO155: 17 | AP155: 0 | AQ155: 0 | AR155: 0 | AS155: 42 | AT155: 0 | AU155: 0 | AV155: 0 | AW155: 0 | AX155: 0 | AY155: 0 | AZ155: 0 | BA155: 0 | BB155: 0 | BC155: 0 | BD155: 0 | BE155: 0 | BF155: 0 | BG155: 0 | BH155: 0 | BI155: 0 | BJ155: 0 | BK155: 0 | BL155: 0 | BM155: 0 | BN155: 0 | BO155: 42
A156: Wyong (A) | B156: 3 | C156: 11 | D156: 9 | E156: 22 | F156: 30 | G156: 31 | H156: 0 | I156: 20 | J156: 6 | K156: 0 | L156: 0 | M156: 23 | N156: 0 | O156: 0 | P156: 0 | Q156: 0 | R156: 0 | S156: 0 | T156: 7 | U156: 0 | V156: 3 | W156: 0 | X156: 3 | Y156: 27 | Z156: 0 | AA156: 3 | AB156: 0 | AC156: 0 | AD156: 0 | AE156: 0 | AF156: 0 | AG156: 0 | AH156: 0 | AI156: 0 | AJ156: 3 | AK156: 10 | AL156: 3 | AM156: 0 | AN156: 0 | AO156: 28 | AP156: 0 | AQ156: 3 | AR156: 0 | AS156: 260 | AT156: 0 | AU156: 0 | AV156: 0 | AW156: 0 | AX156: 0 | AY156: 12 | AZ156: 0 | BA156: 6 | BB156: 7 | BC156: 0 | BD156: 0 | BE156: 0 | BF156: 0 | BG156: 0 | BH156: 0 | BI156: 0 | BJ156: 12 | BK156: 0 | BL156: 0 | BM156: 0 | BN156: 15 | BO156: 300
A157: Yass Valley (A) | B157: 0 | C157: 28 | D157: 0 | E157: 0 | F157: 5 | G157: 0 | H157: 0 | I157: 4 | J157: 0 | K157: 11 | L157: 0 | M157: 9 | N157: 0 | O157: 21 | P157: 0 | Q157: 0 | R157: 0 | S157: 0 | T157: 0 | U157: 0 | V157: 0 | W157: 14 | X157: 232 | Y157: 72 | Z157: 0 | AA157: 103 | AB157: 13 | AC157: 0 | AD157: 0 | AE157: 0 | AF157: 0 | AG157: 0 | AH157: 0 | AI157: 0 | AJ157: 0 | AK157: 0 | AL157: 0 | AM157: 0 | AN157: 0 | AO157: 27 | AP157: 4 | AQ157: 5 | AR157: 0 | AS157: 570 | AT157: 0 | AU157: 0 | AV157: 0 | AW157: 0 | AX157: 0 | AY157: 0 | AZ157: 0 | BA157: 0 | BB157: 0 | BC157: 0 | BD157: 0 | BE157: 0 | BF157: 0 | BG157: 0 | BH157: 0 | BI157: 0 | BJ157: 5 | BK157: 0 | BL157: 0 | BM157: 9 | BN157: 13 | BO157: 584
A158: Young (A) | B158: 6 | C158: 29 | D158: 0 | E158: 0 | F158: 0 | G158: 0 | H158: 0 | I158: 0 | J158: 0 | K158: 0 | L158: 0 | M158: 0 | N158: 15 | O158: 21 | P158: 0 | Q158: 0 | R158: 0 | S158: 22 | T158: 0 | U158: 0 | V158: 0 | W158: 11 | X158: 74 | Y158: 42 | Z158: 0 | AA158: 32 | AB158: 167 | AC158: 0 | AD158: 80 | AE158: 0 | AF158: 0 | AG158: 0 | AH158: 0 | AI158: 11 | AJ158: 0 | AK158: 0 | AL158: 30 | AM158: 0 | AN158: 0 | AO158: 0 | AP158: 55 | AQ158: 8 | AR158: 0 | AS158: 637 | AT158: 0 | AU158: 0 | AV158: 0 | AW158: 0 | AX158: 0 | AY158: 0 | AZ158: 0 | BA158: 0 | BB158: 0 | BC158: 0 | BD158: 0 | BE158: 0 | BF158: 0 | BG158: 0 | BH158: 0 | BI158: 0 | BJ158: 0 | BK158: 0 | BL158: 0 | BM158: 14 | BN158: 20 | BO158: 648
A159: POW Capital city undefined (Greater Sydney) | B159: 3 | C159: 9 | D159: 0 | E159: 0 | F159: 4 | G159: 0 | H159: 0 | I159: 6 | J159: 0 | K159: 24 | L159: 0 | M159: 10 | N159: 4 | O159: 0 | P159: 0 | Q159: 0 | R159: 0 | S159: 0 | T159: 0 | U159: 0 | V159: 0 | W159: 0 | X159: 3 | Y159: 4 | Z159: 0 | AA159: 0 | AB159: 9 | AC159: 0 | AD159: 3 | AE159: 0 | AF159: 0 | AG159: 0 | AH159: 0 | AI159: 10 | AJ159: 4 | AK159: 3 | AL159: 12 | AM159: 0 | AN159: 0 | AO159: 10 | AP159: 0 | AQ159: 0 | AR159: 0 | AS159: 121 | AT159: 0 | AU159: 0 | AV159: 0 | AW159: 0 | AX159: 0 | AY159: 4 | AZ159: 0 | BA159: 4 | BB159: 0 | BC159: 0 | BD159: 0 | BE159: 0 | BF159: 0 | BG159: 0 | BH159: 0 | BI159: 0 | BJ159: 12 | BK159: 0 | BL159: 0 | BM159: 0 | BN159: 3 | BO159: 141
A160: Unincorporated NSW | B160: 10 | C160: 0 | D160: 0 | E160: 0 | F160: 4 | G160: 0 | H160: 0 | I160: 0 | J160: 0 | K160: 0 | L160: 0 | M160: 0 | N160: 0 | O160: 4 | P160: 0 | Q160: 0 | R160: 0 | S160: 0 | T160: 0 | U160: 0 | V160: 0 | W160: 7 | X160: 81 | Y160: 34 | Z160: 0 | AA160: 82 | AB160: 0 | AC160: 0 | AD160: 5 | AE160: 0 | AF160: 0 | AG160: 17 | AH160: 0 | AI160: 0 | AJ160: 0 | AK160: 0 | AL160: 0 | AM160: 0 | AN160: 0 | AO160: 0 | AP160: 0 | AQ160: 0 | AR160: 0 | AS160: 256 | AT160: 0 | AU160: 0 | AV160: 0 | AW160: 0 | AX160: 0 | AY160: 0 | AZ160: 0 | BA160: 5 | BB160: 9 | BC160: 0 | BD160: 0 | BE160: 0 | BF160: 0 | BG160: 0 | BH160: 0 | BI160: 0 | BJ160: 0 | BK160: 0 | BL160: 5 | BM160: 4 | BN160: 3 | BO160: 276
A161: POW No Fixed Address (NSW) | B161: 34 | C161: 152 | D161: 3 | E161: 5 | F161: 19 | G161: 4 | H161: 0 | I161: 0 | J161: 0 | K161: 5 | L161: 0 | M161: 18 | N161: 7 | O161: 42 | P161: 0 | Q161: 0 | R161: 13 | S161: 3 | T161: 12 | U161: 4 | V161: 12 | W161: 3 | X161: 307 | Y161: 189 | Z161: 0 | AA161: 70 | AB161: 111 | AC161: 0 | AD161: 80 | AE161: 0 | AF161: 15 | AG161: 20 | AH161: 14 | AI161: 32 | AJ161: 19 | AK161: 5 | AL161: 7 | AM161: 3 | AN161: 0 | AO161: 9 | AP161: 0 | AQ161: 37 | AR161: 0 | AS161: 1893 | AT161: 5 | AU161: 9 | AV161: 0 | AW161: 0 | AX161: 0 | AY161: 69 | AZ161: 103 | BA161: 52 | BB161: 52 | BC161: 7 | BD161: 15 | BE161: 0 | BF161: 9 | BG161: 8 | BH161: 19 | BI161: 7 | BJ161: 240 | BK161: 19 | BL161: 11 | BM161: 203 | BN161: 399 | BO161: 2481
A162: POW State/Territory undefined (NSW) | B162: 44 | C162: 321 | D162: 3 | E162: 5 | F162: 29 | G162: 9 | H162: 0 | I162: 27 | J162: 0 | K162: 52 | L162: 3 | M162: 118 | N162: 31 | O162: 104 | P162: 0 | Q162: 43 | R162: 20 | S162: 17 | T162: 44 | U162: 4 | V162: 93 | W162: 44 | X162: 632 | Y162: 674 | Z162: 20 | AA162: 300 | AB162: 581 | AC162: 0 | AD162: 511 | AE162: 0 | AF162: 15 | AG162: 98 | AH162: 15 | AI162: 174 | AJ162: 33 | AK162: 41 | AL162: 77 | AM162: 0 | AN162: 0 | AO162: 77 | AP162: 47 | AQ162: 25 | AR162: 0 | AS162: 4773 | AT162: 0 | AU162: 43 | AV162: 0 | AW162: 19 | AX162: 7 | AY162: 69 | AZ162: 64 | BA162: 49 | BB162: 47 | BC162: 9 | BD162: 17 | BE162: 0 | BF162: 4 | BG162: 10 | BH162: 16 | BI162: 3 | BJ162: 70 | BK162: 12 | BL162: 49 | BM162: 147 | BN162: 231 | BO162: 5210
A163: Total | B163: 508 | C163: 3002 | D163: 36 | E163: 125 | F163: 880 | G163: 328 | H163: 14 | I163: 423 | J163: 37 | K163: 759 | L163: 63 | M163: 2247 | N163: 414 | O163: 1258 | P163: 7 | Q163: 442 | R163: 294 | S163: 212 | T163: 723 | U163: 86 | V163: 1350 | W163: 593 | X163: 6712 | Y163: 13250 | Z163: 144 | AA163: 4900 | AB163: 7862 | AC163: 26 | AD163: 5620 | AE163: 8 | AF163: 387 | AG163: 969 | AH163: 404 | AI163: 3020 | AJ163: 308 | AK163: 634 | AL163: 872 | AM163: 9 | AN163: 0 | AO163: 1657 | AP163: 568 | AQ163: 363 | AR163: 0 | AS163: 64972 | AT163: 40 | AU163: 430 | AV163: 6 | AW163: 93 | AX163: 13 | AY163: 819 | AZ163: 490 | BA163: 311 | BB163: 257 | BC163: 35 | BD163: 81 | BE163: 0 | BF163: 23 | BG163: 74 | BH163: 89 | BI163: 10 | BJ163: 805 | BK163: 96 | BL163: 328 | BM163: 710 | BN163: 2314 | BO163: 68883
AS165: Data sheet shows Agriculture and services 65,716
A166: Cells in this table have been randomly adjusted to avoid the release of confidential data.
A168: POW geographical area - Place of Work relates to where the person worked in the week prior to Census Night. Applicable to employed persons aged 15 years and over.
A169: POW geographical area - Place of Work areas are not mappable, only Usual Residence areas are mappable.
A170: No reliance should be placed on small cells.
A171: For details on a classification and associated data quality information click on the blue i-links in the table.
A172: Cells in this table have been randomly adjusted to avoid the release of confidential data.

Sheet LGA Sub Regions
B1: NSW TRADE AND INVESTMENT
B2: VALUE OF AGRICULTURAL PRODUCTION DATA - TOTAL BY LGA
B3: This spreadsheet shows the total value of agricultural output by NSW LGA in 2010-11 with comparison to 2005-06 .
B4: The green dots in columns E and H show the proportion of agriculture that each LGA is responsible for in the relevant year.
B5: The green and red dots in columns J and K show the change in that LGA's share over 5 years.
B6: Note that LGAs which changed between 2006 and 2011 are shown, but no indicator of change is included for these.
C7: 2010-11 Agriculture Census | F7: 2005-06 Agriculture Census | J7: Relative percentage change
A8: LGACode | B8: LGA | C8: 2010-11 Value of total agriculture | D8: % of NSW agriculture | E8: Relative significance in NSW | F8: 2005-06 Value of total agriculture | G8: % of NSW | H8: Relative significance in NSW | I8: Change | J8: ="Gain"&": Each * Represents Relative Perc of Total" -> Gain: Each * Represents Relative Perc of Total | K8: Loss | L8: Designed the table
A9: 10050 | B9: Albury (C) | C9: 5728648 | D9: =SUM(C9/$C$186) -> 0.0004896229594 | E9: =REPT("●",ROUND(D9*100,0)) ->  | F9: 514305 | G9: =SUM(F9/$F$186) -> 6.053782254e-05 | H9: =REPT("●",ROUND(G9*100,0)) ->  | I9: =C9-F9 -> 5214343 | J9: =REPT("●",ROUND(IF(F9=0,0,IF(C9=0,0,IF(I9<0,0,(I9/$I$186)*100))),0)) ->  | K9: =REPT("●",ROUND(IF(F9=0,0,IF(C9=0,0,IF(I9>0,0,((I9*-1)/$I$186)*100))),0)) -> 
A10: 10110 | B10: Armidale Dumaresq (A) | C10: 44766864.5 | D10: =SUM(C10/$C$186) -> 0.003826188078 | E10: =REPT("●",ROUND(D10*100,0)) ->  | F10: 46211102 | G10: =SUM(F10/$F$186) -> 0.005439417256 | H10: =REPT("●",ROUND(G10*100,0)) -> ● | I10: -1444237.5 | J10: =REPT("●",ROUND(IF(F10=0,0,IF(C10=0,0,IF(I10<0,0,(I10/$I$186)*100))),0)) ->  | K10: =REPT("●",ROUND(IF(F10=0,0,IF(C10=0,0,IF(I10>0,0,((I10*-1)/$I$186)*100))),0)) -> 
A11: 10200 | B11: Ashfield (A) | C11: 12013 | D11: 1.026741495e-06 | F11: 0 | G11: 0 | I11: 12013
A12: 10250 | B12: Auburn (A) | C12: 216643 | D12: 1.851630381e-05 | F12: 0 | G12: 0 | I12: 216643
A13: 10300 | B13: Ballina (A) | C13: 81596455.5 | D13: =SUM(C13/$C$186) -> 0.006973983743 | E13: =REPT("●",ROUND(D13*100,0)) -> ● | F13: 44739823 | G13: 0.00526623592 | H13: ● | I13: 36856632.5 | J13: ●
A14: 10400 | B14: Balranald (A) | C14: 83415525 | D14: 0.007129458157 | E14: ● | F14: 77823798 | G14: 0.009160485067 | H14: ● | I14: 5591727
A15: 10470 | B15: Bankstown (C) | C15: 127335 | D15: 1.088322053e-05 | F15: 16252 | G15: 1.912990719e-06 | I15: 111083
A16: 10500 | B16: Barraba (A) | C16: 0 | D16: 0 | F16: 26953876 | G16: 0.003172687339 | I16: -26953876
A17: 10550 | B17: Bathurst Regional (A) | C17: 47090936.5 | D17: 0.004024824652 | F17: 48995497.5 | G17: 0.005767162934 | H17: ● | I17: -1904561
A18: 10600 | B18: Baulkham Hills (A) | C18: 54961885.5 | D18: 0.004697548363 | F18: 23296519 | G18: 0.002742187093 | I18: 31665366.5 | J18: ●
A19: 10650 | B19: Bega Valley (A) | C19: 58740727 | D19: 0.005020522921 | E19: ● | F19: 57020936 | G19: 0.006711821399 | H19: ● | I19: 1719791
A20: 10700 | B20: Bellingen (A) | C20: 26137435 | D20: 0.002233945649 | F20: 23645568 | G20: 0.002783272959 | I20: 2491867
A21: 10750 | B21: Berrigan (A) | C21: 141315361 | D21: 0.0120781108 | E21: ● | F21: 135646487 | G21: 0.01596667922 | H21: ●● | I21: 5668874
A22: 10800 | B22: Bingara (A) | C22: 0 | D22: 0 | F22: 16470064 | G22: 0.001938658601 | I22: -16470064
A23: 10850 | B23: Blacktown (C) | C23: 37325603.5 | D23: 0.003190189456 | F23: 72687278 | G23: 0.008555875475 | H23: ● | I23: -35361674.5 | K23: ●
A24: 10900 | B24: Bland (A) | C24: 141078336 | D24: 0.01205785246 | E24: ● | F24: 169075641.5 | G24: 0.01990155876 | H24: ●● | I24: -27997305.5 | K24: ●
A25: 10950 | B25: Blayney (A) | C25: 34701152.5 | D25: 0.00296587973 | F25: 35751722.5 | G25: 0.004208264419 | I25: -1050570
A26: 11000 | B26: Blue Mountains (C) | C26: 5986242 | D26: 0.0005116393124 | F26: 3809469 | G26: 0.0004484050481 | I26: 2176773
A27: 11050 | B27: Bogan (A) | C27: 53714006 | D27: 0.004590893101 | F27: 66965164 | G27: 0.007882336773 | H27: ● | I27: -13251158
A28: 11150 | B28: Bombala (A) | C28: 21913646.5 | D28: 0.001872941827 | F28: 22324811 | G28: 0.00262780927 | I28: -411164.5
A29: 11200 | B29: Boorowa (A) | C29: 37999604 | D29: 0.00324779574 | F29: 40120617.5 | G29: 0.004722518393 | I29: -2121013.5
A30: 11350 | B30: Botany Bay (C) | C30: 0 | D30: 0 | F30: 41215 | G30: 4.851335989e-06 | I30: -41215
A31: 11400 | B31: Bourke (A) | C31: 35362095 | D31: 0.003022369956 | F31: 80866810.5 | G31: 0.009518672039 | H31: ● | I31: -45504715.5 | K31: ●
A32: 11450 | B32: Brewarrina (A) | C32: 25861816 | D32: 0.002210388714 | F32: 32987972.5 | G32: 0.003882948882 | I32: -7126156.5
A33: 11500 | B33: Byron (A) | C33: 40216524.5 | D33: 0.00343727416 | F33: 32709969.5 | G33: 0.0038502257 | I33: 7506555
A34: 11600 | B34: Cabonne (A) | C34: 135608834.5 | D34: 0.01159037855 | E34: ● | F34: 144794471 | G34: 0.01704347029 | H34: ●● | I34: -9185636.5
A35: 11700 | B35: Camden (A) | C35: 35520026 | D35: 0.003035868192 | F35: 20718950 | G35: 0.002438786553 | I35: 14801076
A36: 11720 | B36: Campbelltown (C) | C36: 32930759 | D36: 0.002814565614 | F36: 4111386 | G36: 0.0004839431 | I36: 28819373 | J36: ●
A37: 11730 | B37: Carrathool (A) | C37: 207329116 | D37: 0.0177202536 | E37: ●● | F37: 329216016 | G37: =SUM(F37/$F$186) -> 0.03875136495 | H37: ●●●● | I37: -121886900 | K37: =REPT("●",ROUND(IF(F37=0,0,IF(C37=0,0,IF(I37>0,0,((I37*-1)/$I$186)*100))),0)) -> ●●●●
A38: 11750 | B38: Central Darling (A) | C38: 44028561 | D38: 0.003763085869 | F38: 55612810.5 | G38: 0.006546073736 | H38: ● | I38: -11584249.5
A39: 11800 | B39: Cessnock (C) | C39: 13945518 | D39: 0.001191912262 | F39: 21452475 | G39: 0.002525128328 | I39: -7506957
A40: 11860 | B40: Clarence Valley (A) | C40: 54433162.5 | D40: 0.004652358831 | F40: 0 | G40: 0 | I40: 54433162.5
A41: 11950 | B41: Cobar (A) | C41: 26630879.5 | D41: 0.002276119956 | F41: 39868489 | G41: 0.004692840847 | I41: =C41-F41 -> -13237609.5
A42: 12000 | B42: Coffs Harbour (C) | C42: 75309988.5 | D42: 0.00643668444 | E42: ● | F42: 28386055 | G42: 0.003341266292 | I42: 46923933.5 | J42: ●
A43: 12050 | B43: Conargo (A) | C43: 0 | D43: 0 | F43: 103718588 | G43: 0.01220850949 | H43: ● | I43: -103718588
A44: 12100 | B44: Coolah (A) | C44: 0 | D44: 0 | F44: 50730295.5 | G44: 0.005971362569 | H44: ● | I44: -50730295.5
A45: 12150 | B45: Coolamon (A) | C45: 76933544 | D45: 0.006575448429 | E45: ● | F45: 91959650 | G45: 0.0108243882 | H45: ● | I45: -15026106
A46: 12200 | B46: Cooma-Monaro (A) | C46: 23799060 | D46: 0.00203408661 | F46: 25722272.5 | G46: 0.003027717731 | I46: -1923212.5
A47: 12250 | B47: Coonabarabran (A) | C47: 0 | D47: 0 | F47: 53701174 | G47: 0.006321058791 | H47: ● | I47: -53701174
A48: 12300 | B48: Coonamble (A) | C48: 112685664 | D48: 0.00963115351 | E48: ● | F48: 100344220 | G48: 0.01181131932 | H48: ● | I48: 12341444
A49: 12350 | B49: Cootamundra (A) | C49: 45472513 | D49: 0.003886499291 | F49: 51839411 | G49: 0.006101914357 | H49: ● | I49: -6366898
A50: 12400 | B50: Copmanhurst (A) | C50: 0 | D50: 0 | F50: 11774148 | G50: 0.001385911632 | I50: -11774148
A51: 12450 | B51: Corowa Shire (A) | C51: 169327816 | D51: 0.01447231291 | E51: ● | F51: 137181455 | G51: 0.01614735726 | H51: ●● | I51: 32146361 | J51: ●
A52: 12500 | B52: Cowra (A) | C52: 89650209.5 | D52: 0.007662331651 | E52: ● | F52: 94388171.5 | G52: 0.01111024465 | H52: ● | I52: -4737962
A53: 12600 | B53: Crookwell (A) | C53: 0 | D53: 0 | F53: 48089662 | G53: 0.005660538832 | H53: ● | I53: -48089662
A54: 12700 | B54: Culcairn (A) | C54: 0 | D54: 0 | F54: 61289520 | G54: 0.007214267964 | H54: ● | I54: -61289520
A55: 12750 | B55: Deniliquin (A) | C55: 6415839.5 | D55: 0.0005483566669 | F55: 11215095.5 | G55: 0.00132010667 | I55: -4799256
A56: 12850 | B56: Dubbo (C) | C56: 43957936.5 | D56: 0.003757049649 | F56: 48117714 | G56: 0.005663840777 | H56: ● | I56: -4159777.5
A57: 12900 | B57: Dungog (A) | C57: 41717838.5 | D57: 0.003565590266 | F57: 38347038 | G57: 0.004513753864 | I57: 3370800.5
A58: 12950 | B58: Eurobodalla (A) | C58: 12589592 | D58: 0.001076022352 | F58: 11318103 | G58: 0.001332231479 | I58: 1271489
A59: 13000 | B59: Fairfield (C) | C59: 17761458 | D59: 0.001518057599 | F59: 9765032 | G59: 0.001149422569 | I59: 7996426
A60: 13010 | B60: Forbes (A) | C60: 116265541.5 | D60: 0.009937122775 | E60: ● | F60: 116814001 | G60: 0.01374994461 | H60: ● | I60: -548459.5
A61: 13050 | B61: Gilgandra (A) | C61: 62264741 | D61: 0.005321717577 | E61: ● | F61: 53679842 | G61: 0.006318547844 | H61: ● | I61: 8584899
A62: 13100 | B62: Glen Innes (A) | C62: 0 | D62: 0 | F62: 4094445.5 | G62: 0.0004819490673 | I62: -4094445.5
A63: 13150 | B63: Glen Innes Severn (A) | C63: 64735312 | D63: 0.005532875303 | E63: ● | F63: 0 | G63: 0 | I63: 64735312
A64: 13200 | B64: Gloucester (A) | C64: 23843927 | D64: 0.002037921356 | F64: 23207826 | G64: 0.002731747216 | I64: 636101
A65: 13300 | B65: Gosford (C) | C65: 93357159 | D65: 0.007979161658 | E65: ● | F65: 47606719 | G65: 0.005603692568 | H65: ● | I65: 45750440 | J65: ●
A66: 13310 | B66: Goulburn (C) | C66: 0 | D66: 0 | F66: 1126693 | G66: 0.0001326208007 | I66: -1126693
A67: 13350 | B67: Goulburn Mulwaree (A) | C67: 24593678 | D67: 0.002102001974 | F67: 0 | G67: 0 | I67: 24593678
A68: 13370 | B68: Grafton (C) | C68: 0 | D68: 0 | F68: 587457 | G68: 6.914839952e-05 | I68: -587457
A69: 13400 | B69: Great Lakes (A) | C69: 39899226.5 | D69: 0.003410154954 | F69: 35697946 | G69: 0.004201934494 | I69: 4201280.5
A70: 13450 | B70: Greater Hume Shire (A) | C70: 163640010.5 | D70: 0.01398618072 | E70: ● | F70: 0 | G70: 0 | I70: 163640010.5
A71: 13500 | B71: Greater Lithgow (C) | C71: 0 | D71: 0 | F71: 10852579 | G71: 0.001277435571 | I71: -10852579
A72: 13550 | B72: Greater Taree (C) | C72: 57410803 | D72: 0.004906855382 | F72: 49981286 | G72: 0.005883198145 | H72: ● | I72: 7429517
A73: 13600 | B73: Griffith (C) | C73: 347159610 | D73: 0.029671454 | E73: ●●● | F73: 294585651 | G73: 0.0346750933 | H73: ●●● | I73: =C73-F73 -> 52573959 | J73: ●●
A74: 13650 | B74: Gundagai (A) | C74: 48378784 | D74: =SUM(C74/$C$186) -> 0.004134895947 | E74: =REPT("●",ROUND(D74*100,0)) ->  | F74: 40174276.5 | G74: =SUM(F74/$F$186) -> 0.004728834488 | H74: =REPT("●",ROUND(G74*100,0)) ->  | I74: 8204507.5 | J74: =REPT("●",ROUND(IF(F74=0,0,IF(C74=0,0,IF(I74<0,0,(I74/$I$186)*100))),0)) ->  | K74: =REPT("●",ROUND(IF(F74=0,0,IF(C74=0,0,IF(I74>0,0,((I74*-1)/$I$186)*100))),0)) -> 
A75: 13660 | B75: Gunnedah (A) | C75: 130648637 | D75: 0.01116643443 | E75: ● | F75: 126613462 | G75: 0.01490341975 | H75: ● | I75: 4035175
A76: 13700 | B76: Gunning (A) | C76: 0 | D76: 0 | F76: 25112017 | G76: 0.002955885766 | I76: -25112017
A77: 13750 | B77: Guyra (A) | C77: 49766159.5 | D77: 0.00425347382 | F77: 49492055 | G77: 0.005825611733 | H77: ● | I77: 274104.5
A78: 13800 | B78: Gwydir (A) | C78: 143919453 | D78: 0.01230068046 | E78: ● | F78: 0 | G78: 0 | I78: 143919453
A79: 13850 | B79: Harden (A) | C79: 85228364 | D79: 0.007284400055 | E79: ● | F79: 76789721 | G79: 0.009038765912 | H79: ● | I79: 8438643
A80: 13900 | B80: Hastings (A) | C80: 32299405 | D80: 0.002760604293 | F80: 27538868.5 | G80: 0.003241545647 | I80: 4760536.5
A81: 14000 | B81: Hawkesbury (C) | C81: 111323671.5 | D81: 0.009514745101 | E81: ● | F81: 54769659 | G81: 0.006446828043 | H81: ● | I81: 56554012.5 | J81: ●●
A82: 14050 | B82: Hay (A) | C82: 72304783 | D82: 0.006179831931 | E82: ● | F82: 80585870 | G82: 0.009485603089 | H82: ● | I82: -8281087
A83: 14200 | B83: Holbrook (A) | C83: 0 | D83: 0 | F83: 35610585.5 | G83: 0.004191651462 | I83: -35610585.5
A84: 14250 | B84: Holroyd (C) | C84: 266417 | D84: 2.277044775e-05 | F84: 0 | G84: 0 | I84: 266417
A85: 14300 | B85: Hornsby (A) | C85: 36807013 | D85: 0.003145865941 | F85: 16365427.5 | G85: 0.001926342045 | I85: 20441585.5 | J85: ●
A86: 14350 | B86: Hume (A) | C86: 0 | D86: 0 | F86: 77958063 | G86: 0.009176289134 | H86: ● | I86: -77958063
A87: 14400 | B87: Hurstville (C) | C87: 15175 | D87: 1.296995104e-06 | F87: 0 | G87: 0 | I87: 15175
A88: 14550 | B88: Inverell (A) | C88: 84614104 | D88: 0.007231899745 | E88: ● | F88: 71429936 | G88: 0.008407876239 | H88: ● | I88: 13184168
A89: 14600 | B89: Jerilderie (A) | C89: 102567548 | D89: 0.008766366234 | E89: ● | F89: 114639539 | G89: 0.013493993 | H89: ● | I89: -12071991
A90: 14650 | B90: Junee (A) | C90: 66054555.5 | D90: 0.005645629989 | E90: ● | F90: 78851755.5 | G90: 0.009281483908 | H90: ● | I90: -12797200
A91: 14750 | B91: Kempsey (A) | C91: 37626944.5 | D91: 0.00321594483 | F91: 23687369.5 | G91: 0.002788193331 | I91: 13939575
A92: 14850 | B92: Kiama (A) | C92: 12472809 | D92: 0.001066041002 | F92: 11119241 | G92: 0.001308823827 | I92: 1353568
A93: 14870 | B93: Ku-ring-gai (A) | C93: 222714 | D93: 1.903518732e-05 | F93: 606169 | G93: 7.135095196e-05 | I93: -383455
A94: 14900 | B94: Kyogle (A) | C94: 56851195 | D94: 0.004859026134 | F94: 48883237 | G94: 0.005753948973 | H94: ● | I94: 7967958
A95: 14920 | B95: Lachlan (A) | C95: 172964792 | D95: 0.01478316233 | E95: ● | F95: 196029497 | G95: 0.02307424369 | H95: ●● | I95: -23064705 | K95: ●
A96: 14950 | B96: Lake Macquarie (C) | C96: 27267143 | D96: 0.002330500888 | F96: 122010578 | G96: 0.01436162339 | H96: ● | I96: -94743435 | K96: ●●●
A97: 15000 | B97: Lane Cove (A) | C97: 2673 | D97: 2.284591706e-07 | F97: 0 | G97: 0 | I97: 2673
A98: 15050 | B98: Leeton (A) | C98: 136913268 | D98: 0.01170186743 | E98: ● | F98: 93229077 | G98: 0.01097380993 | H98: ● | I98: 43684191 | J98: ●
A99: 15100 | B99: Leichhardt (A) | C99: 2944 | D99: 2.516213237e-07 | F99: 0 | G99: 0 | I99: 2944
A100: 15250 | B100: Lismore (C) | C100: 99095605.5 | D100: 0.008469622087 | E100: ● | F100: 51262429 | G100: 0.006033998949 | H100: ● | I100: 47833176.5 | J100: ●
A101: 15270 | B101: Lithgow (C) | C101: 13596513 | D101: 0.001162083084 | F101: 0 | G101: 0 | I101: 13596513
A102: 15300 | B102: Liverpool (C) | C102: 44369263 | D102: 0.003792205396 | F102: 25819293 | G102: 0.003039137822 | I102: 18549970 | J102: ●
A103: 15400 | B103: Liverpool Plains (A) | C103: 160672365 | D103: 0.01373253844 | E103: ● | F103: 0 | G103: 0 | I103: 160672365
A104: 15450 | B104: Lockhart (A) | C104: 104682312.5 | D104: 0.008947113463 | E104: ● | F104: 100577457.5 | G104: 0.01183877324 | H104: ● | I104: 4104855
A105: 15500 | B105: Maclean (A) | C105: 0 | D105: 0 | F105: 17661326.5 | G105: 0.002078879749 | I105: =C105-F105 -> -17661326.5
A106: 15550 | B106: Maitland (C) | C106: 17502488 | D106: 0.001495923641 | F106: 12431786 | G106: 0.001463320898 | I106: 5070702
A107: 15600 | B107: Manilla (A) | C107: 0 | D107: 0 | F107: 19099850.5 | G107: 0.002248205559 | I107: -19099850.5
A108: 15650 | B108: Manly (A) | C108: 7565 | D108: 6.465744951e-07 | F108: 0 | G108: 0 | I108: 7565
A109: 15700 | B109: Merriwa (A) | C109: 0 | D109: 0 | F109: 32802981 | G109: 0.0038611739 | I109: -32802981
A110: 15750 | B110: Mid-Western Regional (A) | C110: 64715601.5 | D110: 0.005531190663 | E110: ● | F110: 0 | G110: 0 | I110: 64715601.5
A111: 15800 | B111: Moree Plains (A) | C111: 559723606 | D111: 0.04783912861 | E111: ●●●●● | F111: 533132600 | G111: 0.06275398203 | H111: ●●●●●● | I111: 26591006 | J111: ●
A112: 15850 | B112: Mosman (A) | C112: 43076 | D112: 3.681671243e-06 | F112: 0 | G112: 0 | I112: 43076
A113: 16000 | B113: Mudgee (A) | C113: 0 | D113: 0 | F113: 53514206.5 | G113: 0.006299051217 | H113: ● | I113: -53514206.5
A114: 16100 | B114: Mulwaree (A) | C114: 0 | D114: 0 | F114: 34256089 | G114: 0.004032216363 | I114: -34256089
A115: 16150 | B115: Murray (A) | C115: 100288774.5 | D115: 0.008571601287 | E115: ● | F115: 91628046 | G115: 0.01078535575 | H115: ● | I115: 8660728.5
A116: 16180 | B116: Murrumbidgee (A) | C116: 73801920 | D116: 0.006307791032 | E116: ● | F116: 79190150 | G116: 0.009321315654 | H116: ● | I116: -5388230
A117: 16200 | B117: Murrurundi (A) | C117: 0 | D117: 0 | F117: 41305045 | G117: 0.004861935007 | I117: -41305045
A118: 16300 | B118: Muswellbrook (A) | C118: 34043582 | D118: 0.002909677706 | F118: 33484643.5 | G118: 0.003941411042 | I118: 558938.5
A119: 16350 | B119: Nambucca (A) | C119: 22479189.5 | D119: 0.001921278335 | F119: 16527685.5 | G119: 0.001945441113 | I119: 5951504
A120: 16370 | B120: Narrabri (A) | C120: 270763620 | D120: 0.02314194989 | E120: ●● | F120: 257269805 | G120: 0.03028271901 | H120: ●●● | I120: 13493815
A121: 16400 | B121: Narrandera (A) | C121: 110711879 | D121: 0.009462455686 | E121: ● | F121: 118753944 | G121: 0.01397829146 | H121: ● | I121: -8042065
A122: 16420 | B122: Narromine (A) | C122: 138138023 | D122: 0.01180654626 | E122: ● | F122: 143152492 | G122: 0.0168501962 | H122: ●● | I122: -5014469
A123: 16470 | B123: Newcastle (C) | C123: 292503 | D123: 2.499999729e-05 | F123: 704577 | G123: 8.293436266e-05 | I123: -412074
A124: 16500 | B124: North Sydney (A) | C124: 7565 | D124: 6.465744951e-07 | F124: 297040 | G124: 3.496398986e-05 | I124: -289475
A125: 16610 | B125: Nundle (A) | C125: 0 | D125: 0 | F125: 13112855.5 | G125: 0.00154348824 | I125: -13112855.5
A126: 16750 | B126: Oberon (A) | C126: 32692973 | D126: 0.002794242235 | F126: 22808643 | G126: 0.002684760176 | I126: 9884330
A127: 16800 | B127: Orange (C) | C127: 25953206.5 | D127: 0.002218199787 | F127: 19666714 | G127: 0.002314929938 | I127: 6286492.5
A128: 16850 | B128: Palerang (A) | C128: 25728834 | D128: 0.002199022849 | F128: 0 | G128: 0 | I128: 25728834
A129: 16900 | B129: Parkes (A) | C129: 95994682 | D129: 0.008204588638 | E129: ● | F129: 106035933 | G129: 0.01248127958 | H129: ● | I129: -10041251
A130: 16950 | B130: Parramatta (C) | C130: 112161 | D130: 9.586310898e-06 | F130: 9713 | G130: 1.143297985e-06 | I130: 102448
A131: 17000 | B131: Parry (A) | C131: 0 | D131: 0 | F131: 76881097.5 | G131: 0.009049521659 | H131: ● | I131: -76881097.5
A132: 17050 | B132: Penrith (C) | C132: 55484184 | D132: 0.004742188798 | F132: 33548642 | G132: 0.003948944178 | I132: 21935542 | J132: ●
A133: 17250 | B133: Pittwater (A) | C133: 1196358 | D133: 0.0001022517607 | F133: 1617222 | G133: 0.0001903599973 | I133: -420864
A134: 17300 | B134: Port Stephens (A) | C134: 25854268 | D134: 0.002209743593 | F134: 22231270 | G134: 0.002616798744 | I134: 3622998
A135: 17310 | B135: Pristine Waters (A) | C135: 0 | D135: 0 | F135: 38635529.5 | G135: 0.004547711627 | I135: -38635529.5
A136: 17350 | B136: Queanbeyan (C) | C136: 0 | D136: 0 | F136: 125414 | G136: 1.476223345e-05 | I136: -125414
A137: 17400 | B137: Queanbeyan (C) | C137: 406468 | D137: 3.474049463e-05 | F137: 0 | G137: 0 | I137: =C137-F137 -> 406468
A138: 17450 | B138: Quirindi (A) | C138: 0 | D138: =SUM(C138/$C$186) -> 0 | E138: =REPT("●",ROUND(D138*100,0)) ->  | F138: 73466777 | G138: =SUM(F138/$F$186) -> 0.008647628758 | H138: =REPT("●",ROUND(G138*100,0)) -> ● | I138: -73466777 | J138: =REPT("●",ROUND(IF(F138=0,0,IF(C138=0,0,IF(I138<0,0,(I138/$I$186)*100))),0)) ->  | K138: =REPT("●",ROUND(IF(F138=0,0,IF(C138=0,0,IF(I138>0,0,((I138*-1)/$I$186)*100))),0)) -> 
A139: 17500 | B139: Randwick (C) | C139: 658378 | D139: 5.62710407e-05 | F139: 145843 | G139: 1.716689056e-05 | I139: 512535
A140: 17550 | B140: Richmond Valley (A) | C140: 63669669 | D140: 0.005441795649 | E140: ● | F140: 42112230 | G140: 0.004956947155 | I140: 21557439 | J140: ●
A141: 17620 | B141: Rockdale (C) | C141: 1109112 | D141: 9.479491492e-05 | F141: 169526 | G141: 1.995456957e-05 | I141: 939586
A142: 17640 | B142: Ryde (C) | C142: 2084 | D142: 1.78117812e-07 | F142: 4159 | G142: 4.895476496e-07 | I142: -2075
A143: 17650 | B143: Rylstone (A) | C143: 0 | D143: 0 | F143: 18013660 | G143: 0.002120352227 | I143: -18013660
A144: 17700 | B144: Scone (A) | C144: 0 | D144: 0 | F144: 51140013 | G144: 0.006019589604 | H144: ● | I144: -51140013
A145: 17750 | B145: Severn (A) | C145: 0 | D145: 0 | F145: 43452901 | G145: 0.005114754882 | H145: ● | I145: -43452901
A146: 17800 | B146: Shellharbour (C) | C146: 4748067 | D146: 0.0004058134862 | F146: 5254626 | G146: 0.0006185116152 | I146: -506559
A147: 17850 | B147: Shoalhaven (C) | C147: 40717684 | D147: 0.003480107862 | F147: 32044315.5 | G147: 0.003771872887 | I147: 8673368.5
A148: 17900 | B148: Singleton (A) | C148: 37103279.5 | D148: 0.003171187602 | F148: 34502134 | G148: 0.004061177833 | I148: 2601145.5
A149: 17950 | B149: Snowy River (A) | C149: 21009246 | D149: 0.00179564344 | F149: 19059768.5 | G149: 0.002243487586 | I149: 1949477.5
A150: 18020 | B150: Sutherland Shire (A) | C150: 3014573 | D150: 0.0002576531415 | F150: 304987 | G150: 3.589941549e-05 | I150: 2709586
A151: 18100 | B151: Tallaganda (A) | C151: 0 | D151: 0 | F151: 16608258 | G151: 0.001954925143 | I151: -16608258
A152: 18150 | B152: Tamworth (C) | C152: 0 | D152: 0 | F152: 46558133.5 | G152: 0.005480265647 | H152: ● | I152: -46558133.5
A153: 18200 | B153: Tamworth Regional (A) | C153: 179056139 | D153: 0.01530378489 | E153: ●● | F153: 0 | G153: 0 | I153: 179056139
A154: 18300 | B154: Temora (A) | C154: 108465368 | D154: 0.009270448189 | E154: ● | F154: 107665693.5 | G154: 0.01267311546 | H154: ● | I154: 799674.5
A155: 18350 | B155: Tenterfield (A) | C155: 41502689 | D155: 0.003547201611 | F155: 41335036 | G155: 0.004865465189 | I155: 167653
A156: 18400 | B156: Tumbarumba (A) | C156: 47428328.5 | D156: 0.004053661276 | F156: 37859496.5 | G156: 0.00445636632 | I156: 9568832
A157: 18450 | B157: Tumut Shire (A) | C157: 56776590 | D157: 0.004852649704 | F157: 48597002.5 | G157: 0.005720256877 | H157: ● | I157: 8179587.5
A158: 18550 | B158: Tweed (A) | C158: 55898302 | D158: 0.004777583132 | F158: 46074086 | G158: 0.005423289374 | H158: ● | I158: 9824216
A159: 18600 | B159: Upper Hunter Shire (A) | C159: 71753903 | D159: 0.006132748659 | E159: ● | F159: 0 | G159: 0 | I159: 71753903
A160: 18650 | B160: Upper Lachlan Shire (A) | C160: 79821094.5 | D160: 0.006822245059 | E160: ● | F160: 0 | G160: 0 | I160: 79821094.5
A161: 18700 | B161: Uralla (A) | C161: 41221557.5 | D161: 0.003523173526 | F161: 42469063 | G161: 0.00499894926 | I161: -1247505.5
A162: 18710 | B162: Urana (A) | C162: 80184724.5 | D162: 0.006853324224 | E162: ● | F162: 84130864.5 | G162: 0.009902877368 | H162: ● | I162: -3946140
A163: 18750 | B163: Wagga Wagga (C) | C163: 126178832.5 | D163: 0.01078440382 | E163: ● | F163: 135596542 | G163: 0.0159608003 | H163: ●● | I163: -9417709.5
B164: Wakool (A) | C164: 172668835 | D164: 0.01475786713 | E164: ● | F164: 191881382 | G164: 0.02258597729 | H164: ●● | I164: =C164-F164 -> -19212547 | J164: =REPT("●",ROUND(IF(F164=0,0,IF(C164=0,0,IF(I164<0,0,(I164/$I$186)*100))),0)) ->  | K164: =REPT("●",ROUND(IF(F164=0,0,IF(C164=0,0,IF(I164>0,0,((I164*-1)/$I$186)*100))),0)) -> ●
B165: Walcha (A) | C165: 60786471 | D165: 0.005195371024 | E165: ● | F165: 55594444 | G165: 0.006543911852 | H165: ● | I165: 5192027
B166: Walgett (A) | C166: 206608673 | D166: 0.01765867791 | E166: ●● | F166: 253885949 | G166: 0.02988441202 | H166: ●●● | I166: -47277276 | K166: ●
B167: Warren (A) | C167: 113824145 | D167: 0.00972845857 | E167: ● | F167: 155556818 | G167: 0.01831028484 | H167: ●● | I167: -41732673 | K167: ●
B168: Warringah (A) | C168: 2006486 | D168: 0.0001714927525 | F168: 816047 | G168: 9.60552755e-05 | I168: 1190439
B169: Warrumbungle Shire (A) | C169: 103917356 | D169: 0.008881733243 | E169: ● | F169: 0 | G169: 0 | I169: 103917356
B170: Weddin (A) | C170: 81510069 | D170: 0.006966600358 | E170: ● | F170: 93636566.5 | G170: 0.01102177472 | H170: ● | I170: -12126497.5
B171: Wellington (A) | C171: 60763393 | D171: 0.005193398565 | E171: ● | F171: 63651015 | G171: 0.007492234861 | H171: ● | I171: -2887622
B172: Wentworth (A) | C172: 136041902.5 | D172: 0.01162739252 | E172: ● | F172: 138437623 | G172: 0.01629521831 | H172: ●● | I172: -2395720.5
B173: Windouran (A) | C173: 0 | D173: 0 | F173: 22011666 | G173: 0.002590949592 | I173: -22011666
B174: Wingecarribee (A) | C174: 41393194 | D174: 0.003537843161 | F174: 34504516 | G174: 0.004061458213 | I174: 6888678
B175: Wollondilly (A) | C175: 61319907.5 | D175: 0.005240963414 | E175: ● | F175: 59707119 | G175: 0.007028006677 | H175: ● | I175: 1612788.5
B176: Wollongong (C) | C176: 2152432 | D176: 0.0001839666403 | F176: 2489558 | G176: 0.0002930409395 | I176: -337126
B177: Woollahra (A) | C177: 12095 | D177: 1.033749969e-06 | F177: 0 | G177: 0 | I177: 12095
B178: Wyong (A) | C178: 34076721 | D178: 0.002912510069 | F178: 14040941 | G178: 0.001652731345 | I178: 20035780 | J178: ●
B179: Yallaroi (A) | C179: 0 | D179: 0 | F179: 126792553 | G179: 0.01492450019 | H179: ● | I179: -126792553
B180: Yarrowlumla (A) | C180: 0 | D180: 0 | F180: 8174018.5 | G180: 0.0009621475221 | I180: -8174018.5
B181: Yass (A) | C181: 0 | D181: 0 | F181: 49050915.5 | G181: 0.005773686077 | H181: ● | I181: -49050915.5
B182: Yass Valley (A) | C182: 55220107 | D182: 0.004719618348 | F182: 0 | G182: 0 | I182: 55220107
B183: Young (A) | C183: 141915098 | D183: 0.01212936984 | E183: ● | F183: 125580500 | G183: 0.01478183184 | H183: ● | I183: 16334598 | J183: ●
A184: 19399 | B184: Unincorporated NSW | C184: 25873194.5 | D184: 0.002211361225 | F184: 43219694.5 | G184: 0.005087304607 | H184: ● | I184: -17346500 | K184: ●
A186: 1 | B186: Total NSW | C186: =Tables!AX3 -> 1.170012127e+10 | D186: 100 | F186: =Tables!AY3 -> 8495597933 | G186: 100 | I186: =C186-F186 -> 3204523333
B206: NSW | C206: =SUM(C9:C205) -> 2.078489528e+10 | F206: =SUM(F9:F205) -> 1.752080681e+10 | I206: =C206-F206 -> 3264088479

Sheet Tables (hidden)
B1: Multipliers | E1: State Name | F1: State Code | H1: SDName | I1: SDCode | J1: State | L1: LGA Name | M1: Region | N1: LGA Code | O1: Region Code | P1: State | Q1: LGA Display Name | S1: Emplyment Categories | T1: Code | V1: GroupName | W1: Group Code | Z1: Commodity Code Information | AH1: Details (Crops) (MUST be Sorted on Group, Comm) | AV1: Total Crop By State | BB1: Total Crop By Region | BU1: Details (Estimates and NoEstablished) (AS:AX) (MUST be Sorted on State, Reg(SD), LGA, Group, Comm) | CG1: Lookup Keys | CL1: Details (Employment)(BE:BH) | CY1: Lookup Keys | DD1: Details (Employment in Agriculture)(BP:BU) | DL1: Agriculture employment | DM1: Lookup Keys | EA1: Totals by SD
Z2: Group | AA2: CommodityWebName | AC2: Code | AD2: Short Name | AE2: 2006 Code | AF2: Required | AH2: State Code | AI2: SD Code | AJ2: LGA Code | AK2: Group | AL2: Commodity Code | AM2: State | AN2: SD | AO2: LGA | AP2: Group Name | AQ2: Commodity | AR2: 2011 | AS2: 2006 | AT2: 2001 | AV2: State Name | AW2: State | AX2: 2011 | AY2: 2006 | AZ2: 2001 | BB2: Region Name | BC2: Region | BD2: State | BE2: 2011 | BF2: 2006 | BG2: 2001 | BH2: % State 2011 | BI2: % State 2006 | BJ2: Group Tot | BL2: Groups | BO2: Code | BQ2: Comm | BR2: Groups | BU2: State | BV2: Reg | BW2: LGA | BX2: Group | BY2: Comm | BZ2: State | CA2: Reg | CB2: LGA | CC2: Comm Group | CD2: Commodity | CE2: EstimateStock | CF2: NoExtablishments | CG2: KeyState | CH2: KeySD | CI2: KeyCommGrp | CJ2: KeyComm | CL2: State | CM2: Reg | CN2: LGA | CQ2: State | CR2: Reg | CS2: LGA | CT2: Comm Group | CU2: Stock Name | CV2: Agriculture employment | CW2: Total employment | CY2: LGA | CZ2: Reg | DA2: State | DD2: State | DE2: Reg | DF2: LGA | DG2: State | DH2: Reg | DI2: LGA | DJ2: Group | DK2: Stock Name | DM2: LGA/Grp/ | DO2: Reg/Grp/Comm | DQ2: State/Grp | DR2: State | DV2: State Key | DW2: Reg Key | DX2: Comm | DY2: Group | DZ2: Comm Key | EA2: 100 | EB2: 100 | EC2: 105 | ED2: 105 | EE2: 110 | EF2: 110 | EG2: 115 | EH2: 115 | EI2: 120 | EJ2: =EI2 -> 120 | EK2: 125 | EL2: =EK2 -> 125 | EM2: 130 | EN2: =EM2 -> 130 | EO2: 135 | EP2: =EO2 -> 135 | EQ2: 140 | ER2: =EQ2 -> 140 | ES2: 145 | ET2: =ES2 -> 145 | EU2: 150 | EV2: =EU2 -> 150 | EW2: 155 | EX2: =EW2 -> 155 | EY2: 160 | EZ2: =EY2 -> 160 | FA2: 185 | FB2: =FA2 -> 185
B3: Ag Multipliers | C3: 2.1788 | E3: NSW | F3: 100 | H3: Central West | I3: 140 | J3: 100 | L3: Albury (C) | M3: Murray | N3: 10050 | O3: 155 | P3: 100 | Q3: =IF(ISERROR(FIND(" (",L3)),L3,LEFT(L3,FIND(" (",L3)-1)) -> Albury | S3: Agriculture, nfd | T3: 1 | V3: Crops | W3: 10 | Y3: 9012059 | Z3: 10 | AA3: Crops (excluding hay) | AB3: Total | AC3: 9012059 | AD3: Crops (excluding hay) | AF3: No | AH3: 100 | AI3: 105 | AJ3: 10500 | AK3: 12 | AL3: 3308058 | AM3: NSW | AN3: Sydney | AO3: Baulkham Hills (A) | AP3: Crops for hay | AQ3: Hay - Cereal crops cut for hay | AR3: 1776 | AS3: 0 | AT3: 0 | AV3: =+E3 -> NSW | AW3: 100 | AX3: =SUM(AR:AR)-AR2 -> 1.170012127e+10 | AY3: =SUM(AS:AS)-AS2 -> 8495597933 | AZ3: =SUM(AT:AT)-AT2 -> 8477806594 | BB3: =+H4 -> Far West | BC3: =+I4 -> 160 | BD3: 100 | BE3: =SUMIF($AI:$AI,$BC3,AR:AR) -> 136011507 | BF3: =SUMIF($AI:$AI,$BC3,AS:AS) -> 61945300 | BG3: =SUMIF($AI:$AI,$BC3,AT:AT) -> 91756607 | BH3: =BE3/OFFSET(AX$1,$BJ3-1,0) -> 0.01162479464 | BI3: =BF3/OFFSET(AY$1,$BJ3-1,0) -> 0.007291458528 | BJ3: =MATCH(BD3,$AW:$AW,0) -> 3 | BT3: =MATCH(CC3&CD3,BN:BN,0) -> 12 | BU3: 100 | BV3: 105 | BW3: 10150 | BX3: 86 | BY3: 91140 | BZ3: NSW | CA3: Sydney | CB3: Ashfield | CC3: Horses | CD3: Non Stud | CG3: =$BU3+0&"100"&"00000"&$BY3 -> 1001000000091140 | CH3: =$BU3+0&$BV3&"00000"&$BY3 -> 1001050000091140 | CI3: =$BU3+0&$BV3&$BW3&"00000" -> 1001051015000000 | CJ3: =$BU3&$BV3&$BW3&$BY3 -> 1001051015091140 | CL3: 100 | CM3: =VLOOKUP($CN3,$N:$Q,2,0) -> 155 | CN3: 10050 | CQ3: NSW | CR3: =OFFSET($M$1,MATCH($CN3,$N:$N,0)-1,0,1,1) -> Murray | CS3: Albury (C) | CV3: 1156 | CW3: 26896 | CY3: =CN3 -> 10050 | CZ3: =CM3 -> 155 | DA3: =CL3+0 -> 100 | DC3: =DF3&"_"&DJ3 -> 10050_1 | DD3: 100 | DE3: 155 | DF3: 10050 | DG3: NSW | DI3: Albury (C) | DJ3: 1 | DK3: Agriculture, nfd | DL3: 58 | DM3: =DF3&DJ3 -> 100501 | DO3: =DE3&DJ3 -> 1551 | DQ3: =DD3&DJ3 -> 1001 | DR3: =DD3 -> 100 | DV3: =AH3+0&AK3&AL3 -> 100123308058 | DW3: =AI3&AK3&AL3 -> 105123308058 | DX3: =AC3 -> 9012059 | DY3: =Z3 -> 10 | DZ3: =DY3&DX3 -> 109012059 | EA3: =SUMIF($DV:$DV,EA$2&$DY3&$DX3,$AR:$AR) -> 0 | EB3: =SUMIF($DV:$DV,EB$2&$DY3&$DX3,$AS:$AS) -> 0 | EC3: =SUMIF($DW:$DW,EC$2&$DY3&$DX3,$AR:$AR) -> 0 | ED3: =SUMIF($DW:$DW,ED$2&$DY3&$DX3,$AS:$AS) -> 0 | EE3: =SUMIF($DW:$DW,EE$2&$DY3&$DX3,$AR:$AR) -> 0 | EF3: =SUMIF($DW:$DW,EF$2&$DY3&$DX3,$AS:$AS) -> 0 | EG3: =SUMIF($DW:$DW,EG$2&$DY3&$DX3,$AR:$AR) -> 0 | EH3: =SUMIF($DW:$DW,EH$2&$DY3&$DX3,$AS:$AS) -> 0 | EI3: =SUMIF($DW:$DW,EI$2&$DY3&$DX3,$AR:$AR) -> 0 | EJ3: =SUMIF($DW:$DW,EJ$2&$DY3&$DX3,$AS:$AS) -> 0 | EK3: =SUMIF($DW:$DW,EK$2&$DY3&$DX3,$AR:$AR) -> 0 | EL3: =SUMIF($DW:$DW,EL$2&$DY3&$DX3,$AS:$AS) -> 0 | EM3: =SUMIF($DW:$DW,EM$2&$DY3&$DX3,$AR:$AR) -> 0 | EN3: =SUMIF($DW:$DW,EN$2&$DY3&$DX3,$AS:$AS) -> 0 | EO3: =SUMIF($DW:$DW,EO$2&$DY3&$DX3,$AR:$AR) -> 0 | EP3: =SUMIF($DW:$DW,EP$2&$DY3&$DX3,$AS:$AS) -> 0 | EQ3: =SUMIF($DW:$DW,EQ$2&$DY3&$DX3,$AR:$AR) -> 0 | ER3: =SUMIF($DW:$DW,ER$2&$DY3&$DX3,$AS:$AS) -> 0 | ES3: =SUMIF($DW:$DW,ES$2&$DY3&$DX3,$AR:$AR) -> 0 | ET3: =SUMIF($DW:$DW,ET$2&$DY3&$DX3,$AS:$AS) -> 0 | EU3: =SUMIF($DW:$DW,EU$2&$DY3&$DX3,$AR:$AR) -> 0 | EV3: =SUMIF($DW:$DW,EV$2&$DY3&$DX3,$AS:$AS) -> 0 | EW3: =SUMIF($DW:$DW,EW$2&$DY3&$DX3,$AR:$AR) -> 0 | EX3: =SUMIF($DW:$DW,EX$2&$DY3&$DX3,$AS:$AS) -> 0 | EY3: =SUMIF($DW:$DW,EY$2&$DY3&$DX3,$AR:$AR) -> 0 | EZ3: =SUMIF($DW:$DW,EZ$2&$DY3&$DX3,$AS:$AS) -> 0 | FA3: =SUMIF($DW:$DW,FA$2&$DY3&$DX3,$AR:$AR) -> 0 | FB3: =SUMIF($DW:$DW,FB$2&$DY3&$DX3,$AS:$AS) -> 0
B4: Employ Multipliers | C4: 1.828 | H4: Far West | I4: 160 | J4: 100 | L4: Armidale Dumaresq (A) | M4: Northern | N4: 10110 | O4: 130 | P4: 100 | Q4: Armidale Dumaresq | S4: Nursery and Floriculture Production | T4: 2 | V4: Crops for hay | W4: 12 | Y4: 9013959 | Z4: 10 | AA4: Crops | AB4: Total | AC4: 9013959 | AD4: Crops | AF4: No | AH4: 100 | AI4: 105 | AJ4: 10750 | AK4: 12 | AL4: 3308058 | AM4: NSW | AN4: Sydney | AO4: Blacktown (C) | AP4: Crops for hay | AQ4: Hay - Cereal crops cut for hay | AR4: 8772.7 | AS4: 0 | AT4: 0 | BB4: Hunter | BC4: 110 | BD4: 100 | BE4: =SUMIF($AI:$AI,$BC4,AR:AR) -> 435197664.6 | BF4: 319923234 | BG4: =SUMIF($AI:$AI,$BC4,AT:AT) -> 417686702 | BH4: =BE4/OFFSET(AX$1,$BJ4-1,0) -> 0.03719599607 | BI4: =BF4/OFFSET(AY$1,$BJ4-1,0) -> 0.03765753 | BJ4: =MATCH(BD4,$AW:$AW,0) -> 3 | BL4: 81 | BM4: Meat | BN4: =BS4&BQ4 -> MeatCattle | BO4: =BR4&BP4 -> 8191000 | BP4: 91000 | BQ4: Cattle | BR4: 81 | BS4: Meat | BT4: =IF(BV4&BW4&BY4&CE4=BV3&BW3&BY3&CE3,1,0) -> 0 | BU4: 100 | BV4: 105 | BW4: 10150 | BX4: 86 | BY4: 91160 | BZ4: NSW | CA4: Sydney | CB4: Ashfield | CC4: Horses | CD4: Stud | CG4: 1001000000091160 | CH4: 1001050000091160 | CI4: 1001051015000000 | CJ4: 1001051015091160 | CL4: 100 | CM4: 130 | CN4: 10110 | CQ4: NSW | CR4: Northern | CS4: Armidale Dumaresq (A) | CV4: 2205 | CW4: 15900 | CY4: 10110 | CZ4: 130 | DA4: 100 | DC4: 10050_7 | DD4: 100 | DE4: 155 | DF4: 10050 | DG4: NSW | DI4: Albury (C) | DJ4: 7 | DK4: Dairy Cattle Farming | DL4: 15 | DM4: 100507 | DO4: 1557 | DQ4: 1007 | DR4: 100 | DV4: 100123308058 | DW4: 105123308058 | DX4: =AC4 -> 9013959 | DY4: =Z4 -> 10 | DZ4: =DY4&DX4 -> 109013959 | EA4: =SUMIF($DV:$DV,EA$2&$DY4&$DX4,$AR:$AR) -> 0 | EB4: =SUMIF($DV:$DV,EB$2&$DY4&$DX4,$AS:$AS) -> 0 | EC4: =SUMIF($DW:$DW,EC$2&$DY4&$DX4,$AR:$AR) -> 0 | ED4: =SUMIF($DW:$DW,ED$2&$DY4&$DX4,$AS:$AS) -> 0 | EE4: =SUMIF($DW:$DW,EE$2&$DY4&$DX4,$AR:$AR) -> 0 | EF4: =SUMIF($DW:$DW,EF$2&$DY4&$DX4,$AS:$AS) -> 0 | EG4: =SUMIF($DW:$DW,EG$2&$DY4&$DX4,$AR:$AR) -> 0 | EH4: =SUMIF($DW:$DW,EH$2&$DY4&$DX4,$AS:$AS) -> 0 | EI4: =SUMIF($DW:$DW,EI$2&$DY4&$DX4,$AR:$AR) -> 0 | EJ4: =SUMIF($DW:$DW,EJ$2&$DY4&$DX4,$AS:$AS) -> 0 | EK4: =SUMIF($DW:$DW,EK$2&$DY4&$DX4,$AR:$AR) -> 0 | EL4: =SUMIF($DW:$DW,EL$2&$DY4&$DX4,$AS:$AS) -> 0 | EM4: =SUMIF($DW:$DW,EM$2&$DY4&$DX4,$AR:$AR) -> 0 | EN4: =SUMIF($DW:$DW,EN$2&$DY4&$DX4,$AS:$AS) -> 0 | EO4: =SUMIF($DW:$DW,EO$2&$DY4&$DX4,$AR:$AR) -> 0 | EP4: =SUMIF($DW:$DW,EP$2&$DY4&$DX4,$AS:$AS) -> 0 | EQ4: =SUMIF($DW:$DW,EQ$2&$DY4&$DX4,$AR:$AR) -> 0 | ER4: =SUMIF($DW:$DW,ER$2&$DY4&$DX4,$AS:$AS) -> 0 | ES4: =SUMIF($DW:$DW,ES$2&$DY4&$DX4,$AR:$AR) -> 0 | ET4: =SUMIF($DW:$DW,ET$2&$DY4&$DX4,$AS:$AS) -> 0 | EU4: =SUMIF($DW:$DW,EU$2&$DY4&$DX4,$AR:$AR) -> 0 | EV4: =SUMIF($DW:$DW,EV$2&$DY4&$DX4,$AS:$AS) -> 0 | EW4: =SUMIF($DW:$DW,EW$2&$DY4&$DX4,$AR:$AR) -> 0 | EX4: =SUMIF($DW:$DW,EX$2&$DY4&$DX4,$AS:$AS) -> 0 | EY4: =SUMIF($DW:$DW,EY$2&$DY4&$DX4,$AR:$AR) -> 0 | EZ4: =SUMIF($DW:$DW,EZ$2&$DY4&$DX4,$AS:$AS) -> 0 | FA4: =SUMIF($DW:$DW,FA$2&$DY4&$DX4,$AR:$AR) -> 0 | FB4: =SUMIF($DW:$DW,FB$2&$DY4&$DX4,$AS:$AS) -> 0
H5: Hunter | I5: 110 | J5: 100 | L5: Ashfield (A) | M5: Sydney | N5: 10150 | O5: 105 | P5: 100 | Q5: Ashfield | S5: Mushroom and Vegetable Growing | T5: 3 | V5: Cereal crops | W5: 14 | Y5: 9019959 | Z5: 10 | AA5: Agriculture | AB5: Total | AC5: 9019959 | AD5: Agriculture | AF5: No | AH5: 100 | AI5: 105 | AJ5: 13100 | AK5: 12 | AL5: 3308058 | AM5: NSW | AN5: Sydney | AO5: Gosford (C) | AP5: Crops for hay | AQ5: Hay - Cereal crops cut for hay | AR5: 172.5 | AS5: 0 | AT5: 0 | BB5: Illawarra | BC5: 115 | BD5: 100 | BE5: 140505232.1 | BF5: 98137446 | BG5: 82862591 | BH5: 0.01200886973 | BI5: 0.01155156432 | BJ5: 3 | BL5: 82 | BM5: Cereal | BN5: =BS5&BQ5 -> MeatDairy | BO5: =BR5&BP5 -> 8191010 | BP5: 91010 | BQ5: Dairy | BR5: 81 | BS5: Meat | BT5: =IF(BV5&BW5&BY5&CE5=BV4&BW4&BY4&CE4,1,0)+BT4 -> 0 | BU5: 100 | BV5: 105 | BW5: 10200 | BX5: 81 | BY5: 91000 | BZ5: NSW | CA5: Sydney | CB5: Auburn | CC5: Cattle | CD5: Meat | CG5: 1001000000091000 | CH5: 1001050000091000 | CI5: 1001051020000000 | CJ5: 1001051020091000 | CL5: 100 | CM5: 105 | CN5: 10200 | CQ5: NSW | CR5: Sydney | CS5: Auburn (C) | CV5: 37 | CW5: 29158 | CY5: 10200 | CZ5: 105 | DA5: 100 | DC5: 10050_9 | DD5: 100 | DE5: 155 | DF5: 10050 | DG5: NSW | DI5: Albury (C) | DJ5: 9 | DK5: Deer Farming | DL5: 0 | DM5: 100509 | DO5: 1559 | DQ5: 1009 | DR5: 100 | DV5: 100123308058 | DW5: 105123308058 | DX5: 9019959 | DY5: 10 | DZ5: 109019959 | EA5: 0 | EB5: 0 | EC5: 0 | ED5: 0 | EE5: 0 | EF5: 0 | EG5: 0 | EH5: 0 | EI5: 0 | EJ5: 0 | EK5: 0 | EL5: 0 | EM5: 0 | EN5: 0 | EO5: 0 | EP5: 0 | EQ5: 0 | ER5: 0 | ES5: 0 | ET5: 0 | EU5: 0 | EV5: 0 | EW5: 0 | EX5: 0 | EY5: 0 | EZ5: 0 | FA5: 0 | FB5: 0
B6: Password | C6: r | H6: Illawarra | I6: 115 | J6: 100 | L6: Auburn (A) | M6: Sydney | N6: 10200 | O6: 105 | P6: 100 | Q6: Auburn | S6: Fruit and Tree Nut Growing | T6: 4 | V6: Other broadacre crops | W6: 16 | Y6: 3307859 | Z6: 12 | AA6: Broadacre crops - Hay - Pasture and cereal and other crops cut for hay | AB6: Total | AC6: 3307859 | AD6: Broadacre crops - Hay - Pasture and cereal and other crops cut for hay | AE6: 3307858 | AF6: No | AH6: 100 | AI6: 105 | AJ6: 13800 | AK6: 12 | AL6: 3308058 | AM6: NSW | AN6: Sydney | AO6: Hawkesbury (C) | AP6: Crops for hay | AQ6: Hay - Cereal crops cut for hay | AR6: 81504.3 | AS6: 0 | AT6: 0 | BB6: Mid-North Coast | BC6: 125 | BD6: 100 | BE6: 378123560 | BF6: 295330230 | BG6: 233696326 | BH6: 0.03231791803 | BI6: 0.03476273622 | BJ6: 3 | BL6: 83 | BM6: Chickens | BN6: CerealCereal all purposes | BO6: 8291020 | BP6: 91020 | BQ6: Cereal all purposes | BR6: 82 | BS6: Cereal | BT6: =IF(BV6&BW6&BY6&CE6=BV5&BW5&BY5&CE5,1,0)+BT5 -> 0 | BU6: 100 | BV6: 105 | BW6: 10200 | BX6: 81 | BY6: 91010 | BZ6: NSW | CA6: Sydney | CB6: Auburn | CC6: Cattle | CD6: Cattle | CG6: 1001000000091010 | CH6: 1001050000091010 | CI6: 1001051020000000 | CJ6: 1001051020091010 | CL6: 100 | CM6: 105 | CN6: 10350 | CQ6: NSW | CR6: Sydney | CS6: Bankstown (C) | CV6: 58 | CW6: 61734 | CY6: 10350 | CZ6: 105 | DA6: 100 | DC6: 10050_4 | DD6: 100 | DE6: 155 | DF6: 10050 | DG6: NSW | DI6: Albury (C) | DJ6: 4 | DK6: Fruit and Tree Nut Growing, nfd | DL6: 0 | DM6: 100504 | DO6: 1554 | DQ6: 1004 | DR6: 100 | DV6: 100123308058 | DW6: 105123308058 | DX6: 3307859 | DY6: 12 | DZ6: 123307859 | EA6: 0 | EB6: 0 | EC6: 0 | ED6: 0 | EE6: 0 | EF6: 0 | EG6: 0 | EH6: 0 | EI6: 0 | EJ6: 0 | EK6: 0 | EL6: 0 | EM6: 0 | EN6: 0 | EO6: 0 | EP6: 0 | EQ6: 0 | ER6: 0 | ES6: 0 | ET6: 0 | EU6: 0 | EV6: 0 | EW6: 0 | EX6: 0 | EY6: 0 | EZ6: 0 | FA6: 0 | FB6: 0
H7: Mid-North Coast | I7: 125 | J7: 100 | L7: Ballina (A) | M7: Richmond-Tweed | N7: 10250 | O7: 120 | P7: 100 | Q7: Ballina | S7: Sheep, Beef Cattle and Grain Farming | T7: 5 | V7: Nurseries, cut flowers and cultivated turf | W7: 18 | Y7: 3308058 | Z7: 12 | AA7: Broadacre crops - Hay - Cereal crops cut for hay | AC7: 3308058 | AD7: Hay - Cereal crops cut for hay | AF7: Yes | AH7: 100 | AI7: 105 | AJ7: 16350 | AK7: 12 | AL7: 3308058 | AM7: NSW | AN7: Sydney | AO7: Penrith (C) | AP7: Crops for hay | AQ7: Hay - Cereal crops cut for hay | AR7: 26914.4 | AS7: 0 | AT7: 0 | BB7: Migratory - Offshore - Shipping (NSW) | BC7: 185 | BD7: 100 | BE7: =SUMIF($AI:$AI,$BC7,AR:AR) -> 0 | BF7: 0 | BG7: 0 | BH7: 0 | BI7: 0 | BJ7: 3 | BL7: 84 | BM7: Fruit | BN7: CerealNon cereal | BO7: 8291040 | BP7: 91040 | BQ7: Non cereal | BR7: 82 | BS7: Cereal | BT7: 0 | BU7: 100 | BV7: 105 | BW7: 10200 | BX7: 86 | BY7: 91140 | BZ7: NSW | CA7: Sydney | CB7: Auburn | CC7: Horses | CD7: Non Stud | CG7: 1001000000091140 | CH7: 1001050000091140 | CI7: 1001051020000000 | CJ7: 1001051020091140 | CL7: 100 | CM7: 140 | CN7: 10470 | CQ7: NSW | CR7: Central West | CS7: Bathurst Regional (A) | CV7: 911 | CW7: 19841 | CY7: 10470 | CZ7: 140 | DA7: 100 | DC7: 10050_3 | DD7: 100 | DE7: 155 | DF7: 10050 | DG7: NSW | DI7: Albury (C) | DJ7: 3 | DK7: Mushroom and Vegetable Growing, nfd | DL7: 0 | DM7: 100503 | DO7: 1553 | DQ7: 1003 | DR7: 100 | DV7: 100123308058 | DW7: 105123308058 | DX7: 3308058 | DY7: 12 | DZ7: 123308058 | EA7: 69522979.5 | EB7: 0 | EC7: 155127.9 | ED7: 0 | EE7: 871298.7 | EF7: 0 | EG7: 170252 | EH7: 0 | EI7: 152453.2 | EJ7: 0 | EK7: 108832.9 | EL7: 0 | EM7: 7806493.5 | EN7: 0 | EO7: 10371648.6 | EP7: 0 | EQ7: 18734718.8 | ER7: 0 | ES7: 3097753.3 | ET7: 0 | EU7: 13317203.1 | EV7: 0 | EW7: 14691514.4 | EX7: 0 | EY7: 45683.1 | EZ7: 0 | FA7: 0 | FB7: 0
H8: Migratory - Offshore - Shipping (NSW) | I8: 185 | J8: 100 | L8: Balranald (A) | M8: Murray | N8: 10300 | O8: 155 | P8: 100 | Q8: Balranald | S8: Other Crop Growing | T8: 6 | V8: Vegetables | W8: 30 | Y8: 3308158 | Z8: 12 | AA8: Broadacre crops - Hay - Other crops cut for hay | AC8: 3308158 | AD8: Hay - Other crops cut for hay | AE8: 1909857 | AF8: Yes | AH8: 100 | AI8: 105 | AJ8: 18400 | AK8: 12 | AL8: 3308058 | AM8: NSW | AN8: Sydney | AO8: Wollondilly (A) | AP8: Crops for hay | AQ8: Hay - Cereal crops cut for hay | AR8: 31253.1 | AS8: 0 | AT8: 0 | BB8: Murray | BC8: 155 | BD8: 100 | BE8: 1444792991 | BF8: 1194118586 | BG8: 1220065094 | BH8: 0.1234853005 | BI8: 0.1405573328 | BJ8: 3 | BL8: 85 | BM8: Grapes | BN8: ChickensEggs | BO8: 8391060 | BP8: 91060 | BQ8: Eggs | BR8: 83 | BS8: Chickens | BT8: 0 | BU8: 100 | BV8: 105 | BW8: 10200 | BX8: 86 | BY8: 91160 | BZ8: NSW | CA8: Sydney | CB8: Auburn | CC8: Horses | CD8: Stud | CG8: 1001000000091160 | CH8: 1001050000091160 | CI8: 1001051020000000 | CJ8: 1001051020091160 | CL8: 100 | CM8: 105 | CN8: 10500 | CQ8: NSW | CR8: Sydney | CS8: Baulkham Hills (A) | CV8: 148 | CW8: 69101 | CY8: 10500 | CZ8: 105 | DA8: 100 | DC8: 10050_2 | DD8: 100 | DE8: 155 | DF8: 10050 | DG8: NSW | DI8: Albury (C) | DJ8: 2 | DK8: Nursery and Floriculture Production, nfd | DL8: 0 | DM8: 100502 | DO8: 1552 | DQ8: 1002 | DR8: 100 | DV8: 100123308058 | DW8: 105123308058 | DX8: 3308158 | DY8: 12 | DZ8: 123308158 | EA8: 34055390.7 | EB8: 30136437 | EC8: 562546.7 | ED8: 36359 | EE8: 2894520.5 | EF8: 498512 | EG8: 211275 | EH8: 71953 | EI8: 247494.2 | EJ8: 2101977 | EK8: 506702.2 | EL8: 585096 | EM8: 8868429.2 | EN8: 12299873 | EO8: 3270472.9 | EP8: 5139992 | EQ8: 7488901.9 | ER8: 1078861 | ES8: 2997510.8 | ET8: 1437314 | EU8: 3265104.1 | EV8: 2797893 | EW8: 3672772.7 | EX8: 4088607 | EY8: 69660.5 | EZ8: 0 | FA8: 0 | FB8: 0
H9: Murray | I9: 155 | J9: 100 | L9: Bankstown (C) | M9: Sydney | N9: 10350 | O9: 105 | P9: 100 | Q9: Bankstown | S9: Dairy Cattle Farming | T9: 7 | V9: Fruit | W9: 40 | Y9: 3308558 | Z9: 12 | AA9: Broadacre crops - Hay - Pasture cut for hay | AC9: 3308558 | AD9: Hay - Pasture cut for hay | AF9: Yes | AH9: 100 | AI9: 105 | AJ9: 18500 | AK9: 12 | AL9: 3308058 | AM9: NSW | AN9: Sydney | AO9: Woollahra (A) | AP9: Crops for hay | AQ9: Hay - Cereal crops cut for hay | AR9: 4734.9 | AS9: 0 | AT9: 0 | BB9: Murrumbidgee | BC9: 150 | BD9: 100 | BE9: 1850879780 | BF9: 1438293587 | BG9: 1507700676 | BH9: 0.1581932134 | BI9: 0.1692986884 | BJ9: 3 | BL9: 86 | BM9: Horses | BN9: ChickensMeat | BO9: 8391080 | BP9: 91080 | BQ9: Meat | BR9: 83 | BS9: Chickens | BT9: 0 | BU9: 100 | BV9: 105 | BW9: 10200 | BX9: 87 | BY9: 91180 | BZ9: NSW | CA9: Sydney | CB9: Auburn | CC9: Nurseries | CD9: Cut Flowers | CG9: 1001000000091180 | CH9: 1001050000091180 | CI9: 1001051020000000 | CJ9: 1001051020091180 | CL9: 100 | CM9: 105 | CN9: 10750 | CQ9: NSW | CR9: Sydney | CS9: Blacktown (C) | CV9: 160 | CW9: 56954 | CY9: 10750 | CZ9: 105 | DA9: 100 | DC9: 10050_6 | DD9: 100 | DE9: 155 | DF9: 10050 | DG9: NSW | DI9: Albury (C) | DJ9: 6 | DK9: Other Crop Growing, nfd | DL9: 0 | DM9: 100506 | DO9: 1556 | DQ9: 1006 | DR9: 100 | DV9: 100123308058 | DW9: 105123308058 | DX9: 3308558 | DY9: 12 | DZ9: 123308558 | EA9: 180052501.3 | EB9: 0 | EC9: 1453440.3 | ED9: 0 | EE9: 14740799.5 | EF9: 0 | EG9: 6147663.3 | EH9: 0 | EI9: 2678837.2 | EJ9: 0 | EK9: 5368038.6 | EL9: 0 | EM9: 20197560.6 | EN9: 0 | EO9: 18716388.6 | EP9: 0 | EQ9: 37571052.7 | ER9: 0 | ES9: 15727809.7 | ET9: 0 | EU9: 22198701.1 | EV9: 0 | EW9: 35232388 | EX9: 0 | EY9: 19821.7 | EZ9: 0 | FA9: 0 | FB9: 0
H10: Murrumbidgee | I10: 150 | J10: 100 | L10: Barraba (A) | M10: Northern | N10: 10400 | O10: 130 | P10: 100 | Q10: Barraba | S10: Poultry Farming | T10: 8 | V10: Citrus Fruit | W10: 42 | Y10: 1500158 | Z10: 14 | AA10: Broadacre crops - Cereal crops - Wheat for grain | AC10: 1500158 | AD10: Wheat for grain | AE10: 1500158 | AF10: Yes | AH10: 100 | AI10: 110 | AJ10: 12700 | AK10: 12 | AL10: 3308058 | AM10: NSW | AN10: Hunter | AO10: Dungog (A) | AP10: Crops for hay | AQ10: Hay - Cereal crops cut for hay | AR10: 13352.7 | AS10: 0 | AT10: 0 | BB10: North Western | BC10: 135 | BD10: 100 | BE10: 1539963199 | BF10: 964632072 | BG10: 1144589965 | BH10: 0.131619422 | BI10: 0.1135449299 | BJ10: 3 | BL10: 87 | BM10: Nurseries | BN10: Fruitex grape | BO10: 8491100 | BP10: 91100 | BQ10: ex grape | BR10: 84 | BS10: Fruit | BT10: 0 | BU10: 100 | BV10: 105 | BW10: 10200 | BX10: 87 | BY10: 91190 | BZ10: NSW | CA10: Sydney | CB10: Auburn | CC10: Nurseries | CD10: Nurseries | CG10: 1001000000091190 | CH10: 1001050000091190 | CI10: 1001051020000000 | CJ10: 1001051020091190 | CL10: 100 | CM10: 105 | CN10: 10750 | CQ10: NSW | CR10: Sydney | CS10: Blacktown (C) | CV10: 301 | CW10: 38064 | CY10: 10750 | CZ10: 105 | DA10: 100 | DC10: 10050_10 | DD10: 100 | DE10: 155 | DF10: 10050 | DG10: NSW | DI10: Albury (C) | DJ10: 10 | DK10: Other Livestock Farming nec | DL10: 0 | DM10: 1005010 | DO10: 15510 | DQ10: 10010 | DR10: 100 | DV10: 100123308058 | DW10: 110123308058 | DX10: 1500158 | DY10: 14 | DZ10: 141500158 | EA10: 2511376304 | EB10: 1432688555 | EC10: 1000638.4 | ED10: 0 | EE10: 3478078.8 | EF10: 1820359 | EG10: 624413.5 | EH10: 0 | EI10: 925433.3 | EJ10: 315506 | EK10: 898075.6 | EL10: 13465 | EM10: 418112347.7 | EN10: 247520106 | EO10: 534960118.1 | EP10: 294216463 | EQ10: 519226096.9 | ER10: 276765894 | ES10: 68748516.2 | ET10: 48650444 | EU10: 538967609.1 | EV10: 336469356 | EW10: 423344688.1 | EX10: 225836523 | EY10: 1090288.4 | EZ10: 1080439 | FA10: 0 | FB10: 0
H11: North Western | I11: 135 | J11: 100 | L11: Bathurst Regional (A) | M11: Central West | N11: 10470 | O11: 140 | P11: 100 | Q11: Bathurst Regional | S11: Deer Farming | T11: 9 | V11: Pome Fruit | W11: 46 | Y11: 1500858 | Z11: 14 | AA11: Broadacre crops - Cereal crops - Oats for grain | AC11: 1500858 | AD11: Oats for grain | AE11: 1500858 | AF11: Yes | AH11: 100 | AI11: 110 | AJ11: 13050 | AK11: 12 | AL11: 3308058 | AM11: NSW | AN11: Hunter | AO11: Gloucester (A) | AP11: Crops for hay | AQ11: Hay - Cereal crops cut for hay | AR11: 2948.3 | AS11: 0 | AT11: 0 | BB11: Northern | BC11: 130 | BD11: 100 | BE11: 2481918088 | BF11: 1744606632 | BG11: 1624920559 | BH11: 0.2121275525 | BI11: 0.20535419 | BJ11: 3 | BL11: 88 | BM11: Pigs | BN11: GrapesGrapes | BO11: 8591120 | BP11: 91120 | BQ11: Grapes | BR11: 85 | BS11: Grapes | BT11: 0 | BU11: 100 | BV11: 105 | BW11: 10200 | BX11: 87 | BY11: 91200 | BZ11: NSW | CA11: Sydney | CB11: Auburn | CC11: Nurseries | CD11: Turf | CG11: 1001000000091200 | CH11: 1001050000091200 | CI11: 1001051020000000 | CJ11: 1001051020091200 | CL11: 100 | CM11: 105 | CN11: 10900 | CQ11: NSW | CR11: Sydney | CS11: Blue Mountains (C) | CV11: 138 | CW11: 35533 | CY11: 10900 | CZ11: 105 | DA11: 100 | DC11: 10050_8 | DD11: 100 | DE11: 155 | DF11: 10050 | DG11: NSW | DI11: Albury (C) | DJ11: 8 | DK11: Poultry Farming, nfd | DL11: 0 | DM11: 100508 | DO11: 1558 | DQ11: 1008 | DR11: 100 | DV11: 100123308058 | DW11: 110123308058 | DX11: 1500858 | DY11: 14 | DZ11: 141500858 | EA11: 93427831.9 | EB11: 97012281 | EC11: 2233.5 | ED11: 0 | EE11: 227964.9 | EF11: 368726 | EG11: 13967.5 | EH11: 26776 | EI11: 10521.8 | EJ11: 37451 | EK11: 8289.5 | EL11: 3546 | EM11: 4761497.2 | EN11: 5184228 | EO11: 17600829.5 | EP11: 21278175 | EQ11: 36551900.2 | ER11: 31225280 | ES11: 3039650.1 | ET11: 6504360 | EU11: 21848435.1 | EV11: 22250742 | EW11: 9334674.3 | EX11: 10093216 | EY11: 27868.3 | EZ11: 39781 | FA11: 0 | FB11: 0
H12: Northern | I12: 130 | J12: 100 | L12: Baulkham Hills (A) | M12: Sydney | N12: 10500 | O12: 105 | P12: 100 | Q12: Baulkham Hills | S12: Other Livestock Farming | T12: 10 | V12: Stone Fruit | W12: 48 | Y12: 1501758 | Z12: 14 | AA12: Broadacre crops - Cereal crops - Barley for grain | AC12: 1501758 | AD12: Barley for grain | AE12: 1501758 | AF12: Yes | AH12: 100 | AI12: 110 | AJ12: 15050 | AK12: 12 | AL12: 3308058 | AM12: NSW | AN12: Hunter | AO12: Maitland (C) | AP12: Crops for hay | AQ12: Hay - Cereal crops cut for hay | AR12: 16507.1 | AS12: 0 | AT12: 0 | BB12: Richmond-Tweed | BC12: 120 | BD12: 100 | BE12: 371246733.3 | BF12: 384634788 | BG12: 256892959 | BH12: 0.03173016115 | BI12: 0.0452745988 | BJ12: 3 | BL12: 89 | BM12: Sheep and lambs | BN12: HorsesNon Stud | BO12: 8691140 | BP12: 91140 | BQ12: Non Stud | BR12: 86 | BS12: Horses | BT12: 0 | BU12: 100 | BV12: 105 | BW12: 10350 | BX12: 81 | BY12: 91000 | BZ12: NSW | CA12: Sydney | CB12: Bankstown | CC12: Cattle | CD12: Meat | CG12: 1001000000091000 | CH12: 1001050000091000 | CI12: 1001051035000000 | CJ12: 1001051035091000 | CL12: 100 | CM12: 105 | CN12: 10900 | CQ12: NSW | CR12: Sydney | CS12: Blue Mountains (C) | CV12: 0 | CW12: 0 | CY12: 10900 | CZ12: 105 | DA12: 100 | DC12: 10050_5 | DD12: 100 | DE12: 155 | DF12: 10050 | DG12: NSW | DI12: Albury (C) | DJ12: 5 | DK12: Sheep, Beef Cattle and Grain Farming, nfd | DL12: 7 | DM12: 100505 | DO12: 1555 | DQ12: 1005 | DR12: 100 | DV12: 100123308058 | DW12: 110123308058 | DX12: 1501758 | DY12: 14 | DZ12: 141501758 | EA12: 470954205.5 | EB12: 279406456 | EC12: 276350.2 | ED12: 768 | EE12: 1881880.4 | EF12: 770602 | EG12: 38622.8 | EH12: 0 | EI12: 194562.3 | EJ12: 560952 | EK12: 240979.2 | EL12: 21686 | EM12: 95973626.7 | EN12: 56748992 | EO12: 56313395.9 | EP12: 45109225 | EQ12: 123974823.3 | ER12: 65445802 | ES12: 2756905.2 | ET12: 2103904 | EU12: 109215843.2 | EV12: 62994459 | EW12: 79876168 | EX12: 44937752 | EY12: 211048.3 | EZ12: 712314 | FA12: 0 | FB12: 0
H13: Richmond-Tweed | I13: 120 | J13: 100 | L13: Bega Valley (A) | M13: South Eastern | N13: 10550 | O13: 145 | P13: 100 | Q13: Bega Valley | S13: Total | T13: 11 | V13: Other Fruit | W13: 50 | Y13: 1504158 | Z13: 14 | AA13: Broadacre crops - Cereal crops - Sorghum for grain | AC13: 1504158 | AD13: Sorghum for grain | AE13: 1504158 | AF13: Yes | AH13: 100 | AI13: 110 | AJ13: 15650 | AK13: 12 | AL13: 3308058 | AM13: NSW | AN13: Hunter | AO13: Muswellbrook (A) | AP13: Crops for hay | AQ13: Hay - Cereal crops cut for hay | AR13: 434089 | AS13: 0 | AT13: 0 | BB13: South Eastern | BC13: 145 | BD13: 100 | BE13: 661316728.1 | BF13: 548355046 | BG13: 531376577 | BH13: 0.05652221144 | BI13: 0.06454578599 | BJ13: 3 | BL13: 90 | BM13: Vegetables | BN13: HorsesStud | BO13: 8691160 | BP13: 91160 | BQ13: Stud | BR13: 86 | BS13: Horses | BT13: 0 | BU13: 100 | BV13: 105 | BW13: 10350 | BX13: 81 | BY13: 91010 | BZ13: NSW | CA13: Sydney | CB13: Bankstown | CC13: Cattle | CD13: Cattle | CG13: 1001000000091010 | CH13: 1001050000091010 | CI13: 1001051035000000 | CJ13: 1001051035091010 | CL13: 100 | CM13: 105 | CN13: 11100 | CQ13: NSW | CR13: Sydney | CS13: Botany Bay (C) | CV13: 14 | CW13: 18401 | CY13: 11100 | CZ13: 105 | DA13: 100 | DC13: 10110_1 | DD13: 100 | DE13: 130 | DF13: 10110 | DG13: NSW | DI13: Armidale Dumaresq (A) | DJ13: 1 | DK13: Agriculture, nfd | DL13: 49 | DM13: 101101 | DO13: 1301 | DQ13: 1001 | DR13: 100 | DV13: 100123308058 | DW13: 110123308058 | DX13: 1504158 | DY13: 14 | DZ13: 141504158 | EA13: 159469186.8 | EB13: 117804596 | EC13: 0 | ED13: 0 | EE13: 446961.7 | EF13: 443961 | EG13: 0 | EH13: 0 | EI13: 9645.9 | EJ13: 0 | EK13: 0 | EL13: 0 | EM13: 150043280.5 | EN13: 103492870 | EO13: 7709916.2 | EP13: 12347939 | EQ13: 345702.5 | ER13: 652495 | ES13: 36423.4 | ET13: 0 | EU13: 725190.2 | EV13: 382448 | EW13: 152066.4 | EX13: 484883 | EY13: 0 | EZ13: 0 | FA13: 0 | FB13: 0
H14: South Eastern | I14: 145 | J14: 100 | L14: Bellingen (A) | M14: Mid-North Coast | N14: 10600 | O14: 125 | P14: 100 | Q14: Bellingen | V14: Berry Fruit | W14: 52 | Y14: 1505358 | Z14: 14 | AA14: Broadacre crops - Cereal crops - Maize for grain | AC14: 1505358 | AD14: Maize for grain | AE14: 1505358 | AF14: Yes | AH14: 100 | AI14: 110 | AJ14: 17000 | AK14: 12 | AL14: 3308058 | AM14: NSW | AN14: Hunter | AO14: Singleton (A) | AP14: Crops for hay | AQ14: Hay - Cereal crops cut for hay | AR14: 74602.6 | AS14: 0 | AT14: 0 | BB14: Sydney | BC14: 105 | BD14: 100 | BE14: 751303267 | BF14: 561305026 | BG14: 374216234 | BH14: 0.0642132889 | BI14: 0.06607010247 | BJ14: 3 | BL14: 91 | BM14: Cereal all purposes | BN14: NurseriesCut Flowers | BO14: 8791180 | BP14: 91180 | BQ14: Cut Flowers | BR14: 87 | BS14: Nurseries | BT14: 0 | BU14: 100 | BV14: 105 | BW14: 10350 | BX14: 87 | BY14: 91180 | BZ14: NSW | CA14: Sydney | CB14: Bankstown | CC14: Nurseries | CD14: Cut Flowers | CG14: 1001000000091180 | CH14: 1001050000091180 | CI14: 1001051035000000 | CJ14: 1001051035091180 | CL14: 100 | CM14: 135 | CN14: 11150 | CQ14: NSW | CR14: North Western | CS14: Bourke (A) | CV14: 2537 | CW14: 10406 | CY14: 11150 | CZ14: 135 | DA14: 100 | DC14: 10110_7 | DD14: 100 | DE14: 130 | DF14: 10110 | DG14: NSW | DI14: Armidale Dumaresq (A) | DJ14: 7 | DK14: Dairy Cattle Farming | DL14: 13 | DM14: 101107 | DO14: 1307 | DQ14: 1007 | DR14: 100 | DV14: 100123308058 | DW14: 110123308058 | DX14: 1505358 | DY14: 14 | DZ14: 141505358 | EA14: 48263984.3 | EB14: 42119225 | EC14: 224398.1 | ED14: 33268 | EE14: 201879.9 | EF14: 314722 | EG14: 39203.3 | EH14: 0 | EI14: 450269.2 | EJ14: 806045 | EK14: 70855.5 | EL14: 287286 | EM14: 17153171.1 | EN14: 15156428 | EO14: 3246846.8 | EP14: 1550041 | EQ14: 966447.3 | ER14: 213149 | ES14: 0 | ET14: 59357 | EU14: 19589587.5 | EV14: 18710649 | EW14: 6321325.6 | EX14: 4988280 | EY14: 0 | EZ14: 0 | FA14: 0 | FB14: 0
H15: Sydney | I15: 105 | J15: 100 | L15: Berrigan (A) | M15: Murray | N15: 10650 | O15: 155 | P15: 100 | Q15: Berrigan | V15: Plantation Fruit | W15: 54 | Y15: 1508558 | Z15: 14 | AA15: Broadacre crops - Cereal crops - Rice for grain | AC15: 1508558 | AD15: Rice for grain | AE15: 1508558 | AF15: Yes | AH15: 100 | AI15: 110 | AJ15: 17620 | AK15: 12 | AL15: 3308058 | AM15: NSW | AN15: Hunter | AO15: Upper Hunter Shire (A) | AP15: Crops for hay | AQ15: Hay - Cereal crops cut for hay | AR15: 329799 | AS15: 0 | AT15: 0 | BL15: 92 | BM15: Eggs | BN15: NurseriesNurseries | BO15: 8791190 | BP15: 91190 | BQ15: Nurseries | BR15: 87 | BS15: Nurseries | BT15: 0 | BU15: 100 | BV15: 105 | BW15: 10350 | BX15: 87 | BY15: 91190 | BZ15: NSW | CA15: Sydney | CB15: Bankstown | CC15: Nurseries | CD15: Nurseries | CG15: 1001000000091190 | CH15: 1001050000091190 | CI15: 1001051035000000 | CJ15: 1001051035091190 | CL15: 100 | CM15: 105 | CN15: 11450 | CQ15: NSW | CR15: Sydney | CS15: Camden (A) | CV15: 597 | CW15: 33318 | CY15: 11450 | CZ15: 105 | DA15: 100 | DC15: 10110_9 | DD15: 100 | DE15: 130 | DF15: 10110 | DG15: NSW | DI15: Armidale Dumaresq (A) | DJ15: 9 | DK15: Deer Farming | DL15: 0 | DM15: 101109 | DO15: 1309 | DQ15: 1009 | DR15: 100 | DV15: 100123308058 | DW15: 110123308058 | DX15: 1508558 | DY15: 14 | DZ15: 141508558 | EA15: 171919666.4 | EB15: 270909200 | EC15: 0 | ED15: 0 | EE15: 0 | EF15: 0 | EG15: 0 | EH15: 0 | EI15: 1064146.6 | EJ15: 155611 | EK15: 328319.6 | EL15: 0 | EM15: 0 | EN15: 0 | EO15: 1172880 | EP15: 0 | EQ15: 0 | ER15: 0 | ES15: 0 | ET15: 0 | EU15: 81873102.9 | EV15: 130479476 | EW15: 87481217.3 | EX15: 140274113 | EY15: 0 | EZ15: 0 | FA15: 0 | FB15: 0
L16: Bingara (A) | M16: Northern | N16: 10700 | O16: 130 | P16: 100 | Q16: Bingara | V16: Grapes (wine and table) | W16: 56 | Y16: 1508858 | Z16: 14 | AA16: Broadacre crops - Cereal crops - Triticale for grain | AC16: 1508858 | AD16: Triticale for grain | AE16: 1508858 | AF16: Yes | AH16: 100 | AI16: 115 | AJ16: 14400 | AK16: 12 | AL16: 3308058 | AM16: NSW | AN16: Illawarra | AO16: Kiama (A) | AP16: Crops for hay | AQ16: Hay - Cereal crops cut for hay | AR16: 7690.2 | AS16: 0 | AT16: 0 | BL16: 93 | BM16: ex grape | BN16: NurseriesTurf | BO16: 8791200 | BP16: 91200 | BQ16: Turf | BR16: 87 | BS16: Nurseries | BT16: 0 | BU16: 100 | BV16: 105 | BW16: 10350 | BX16: 87 | BY16: 91200 | BZ16: NSW | CA16: Sydney | CB16: Bankstown | CC16: Nurseries | CD16: Turf | CG16: 1001000000091200 | CH16: 1001050000091200 | CI16: 1001051035000000 | CJ16: 1001051035091200 | CL16: 100 | CM16: 165 | CN16: 11250 | CQ16: NSW | CR16: Unknown | CS16: Broken Hill (C) | CV16: 607 | CW16: 8234 | CY16: 11250 | CZ16: 165 | DA16: 100 | DC16: 10110_4 | DD16: 100 | DE16: 130 | DF16: 10110 | DG16: NSW | DI16: Armidale Dumaresq (A) | DJ16: 4 | DK16: Fruit and Tree Nut Growing, nfd | DL16: 4 | DM16: 101104 | DO16: 1304 | DQ16: 1004 | DR16: 100 | DV16: 100123308058 | DW16: 115123308058 | DX16: 1508858 | DY16: 14 | DZ16: 141508858 | EA16: 28963859.3 | EB16: 50880400 | EC16: 0 | ED16: 0 | EE16: 0 | EF16: 1383 | EG16: 8284 | EH16: 92736 | EI16: 13159.8 | EJ16: 12448 | EK16: 24761.8 | EL16: 39864 | EM16: 1487775.3 | EN16: 1192894 | EO16: 1487957 | EP16: 1265339 | EQ16: 3872646.3 | ER16: 6500549 | ES16: 5827405 | ET16: 5939564 | EU16: 7422705.3 | EV16: 14289060 | EW16: 8776707.5 | EX16: 21546563 | EY16: 42457.3 | EZ16: 0 | FA16: 0 | FB16: 0
L17: Blacktown (C) | M17: Sydney | N17: 10750 | O17: 105 | P17: 100 | Q17: Blacktown | V17: Nuts | W17: 60 | Y17: 1509259 | Z17: 14 | AA17: Broadacre crops - Cereal crops - Cereals for grain | AB17: Total | AC17: 1509259 | AD17: Broadacre crops - Cereal crops - Cereals for grain | AF17: No | AH17: 100 | AI17: 115 | AJ17: 16900 | AK17: 12 | AL17: 3308058 | AM17: NSW | AN17: Illawarra | AO17: Shellharbour (C) | AP17: Crops for hay | AQ17: Hay - Cereal crops cut for hay | AR17: 18744.6 | AS17: 0 | AT17: 0 | BL17: 94 | BM17: Meat | BN17: PigsPigs | BO17: 8891220 | BP17: 91220 | BQ17: Pigs | BR17: 88 | BS17: Pigs | BT17: 0 | BU17: 100 | BV17: 105 | BW17: 10350 | BX17: 90 | BY17: 91260 | BZ17: NSW | CA17: Sydney | CB17: Bankstown | CC17: Vegetables | CD17: Vegetables | CE17: 2 | CF17: 2 | CG17: 1001000000091260 | CH17: 1001050000091260 | CI17: 1001051035000000 | CJ17: 1001051035091260 | CL17: 100 | CM17: 105 | CN17: 11450 | CQ17: NSW | CR17: Sydney | CS17: Camden (A) | CV17: 122 | CW17: 26954 | CY17: 11450 | CZ17: 105 | DA17: 100 | DC17: 10110_3 | DD17: 100 | DE17: 130 | DF17: 10110 | DG17: NSW | DI17: Armidale Dumaresq (A) | DJ17: 3 | DK17: Mushroom and Vegetable Growing, nfd | DL17: 0 | DM17: 101103 | DO17: 1303 | DQ17: 1003 | DR17: 100 | DV17: 100123308058 | DW17: 115123308058 | DX17: 1509259 | DY17: 14 | DZ17: 141509259 | EA17: 0 | EB17: 0 | EC17: 0 | ED17: 0 | EE17: 0 | EF17: 0 | EG17: 0 | EH17: 0 | EI17: 0 | EJ17: 0 | EK17: 0 | EL17: 0 | EM17: 0 | EN17: 0 | EO17: 0 | EP17: 0 | EQ17: 0 | ER17: 0 | ES17: 0 | ET17: 0 | EU17: 0 | EV17: 0 | EW17: 0 | EX17: 0 | EY17: 0 | EZ17: 0 | FA17: 0 | FB17: 0
L18: Bland (A) | M18: Central West | N18: 10800 | O18: 140 | P18: 100 | Q18: Bland | V18: Wool | W18: 70 | Y18: 1510358 | Z18: 14 | AA18: Broadacre crops - Cereal crops - Cereal crops for grain n.e.c. | AC18: 1510358 | AD18: All other cereals for grain or seed | AE18: 1510358 | AF18: Yes | AH18: 100 | AI18: 115 | AJ18: 16950 | AK18: 12 | AL18: 3308058 | AM18: NSW | AN18: Illawarra | AO18: Shoalhaven (C) | AP18: Crops for hay | AQ18: Hay - Cereal crops cut for hay | AR18: 71438.9 | AS18: 0 | AT18: 0 | BL18: 95 | BM18: Non cereal | BN18: Sheep and lambsSheep and lambs | BO18: 8991240 | BP18: 91240 | BQ18: Sheep and lambs | BR18: 89 | BS18: Sheep and lambs | BT18: 0 | BU18: 100 | BV18: 105 | BW18: 10500 | BX18: 81 | BY18: 91000 | BZ18: NSW | CA18: Sydney | CB18: The Hills Shire | CC18: Cattle | CD18: Meat | CE18: 353 | CF18: 18 | CG18: 1001000000091000 | CH18: 1001050000091000 | CI18: 1001051050000000 | CJ18: 1001051050091000 | CL18: 100 | CM18: 105 | CN18: 11500 | CQ18: NSW | CR18: Sydney | CS18: Campbelltown (C) | CV18: 168 | CW18: 65496 | CY18: 11500 | CZ18: 105 | DA18: 100 | DC18: 10110_2 | DD18: 100 | DE18: 130 | DF18: 10110 | DG18: NSW | DI18: Armidale Dumaresq (A) | DJ18: 2 | DK18: Nursery and Floriculture Production, nfd | DL18: 0 | DM18: 101102 | DO18: 1302 | DQ18: 1002 | DR18: 100 | DV18: 100123308058 | DW18: 115123308058 | DX18: 1510358 | DY18: 14 | DZ18: 141510358 | EA18: 24565956.9 | EB18: 16931518 | EC18: 17411.3 | ED18: 491 | EE18: 180611.3 | EF18: 47470 | EG18: 0 | EH18: 2417 | EI18: 83772.7 | EJ18: 342715 | EK18: 23447.6 | EL18: 31378 | EM18: 4159077.7 | EN18: 3026164 | EO18: 7909298.8 | EP18: 3304497 | EQ18: 3691860.3 | ER18: 3659331 | ES18: 1316865 | ET18: 374424 | EU18: 4372087 | EV18: 3425199 | EW18: 2776076.4 | EX18: 2717432 | EY18: 35448.8 | EZ18: 0 | FA18: 0 | FB18: 0
L19: Blayney (A) | M19: Central West | N19: 10850 | O19: 140 | P19: 100 | Q19: Blayney | V19: Milk | W19: 72 | Y19: 1100658 | Z19: 16 | AA19: Broadacre crops - Other crops - Pasture seed | AC19: 1100658 | AD19: Broadacre crops - Other crops - Pasture seed | AF19: No | AH19: 100 | AI19: 115 | AJ19: 18350 | AK19: 12 | AL19: 3308058 | AM19: NSW | AN19: Illawarra | AO19: Wingecarribee (A) | AP19: Crops for hay | AQ19: Hay - Cereal crops cut for hay | AR19: 72378.3 | AS19: 0 | AT19: 0 | BL19: 96 | BM19: Non Stud | BN19: VegetablesVegetables | BO19: 9091260 | BP19: 91260 | BQ19: Vegetables | BR19: 90 | BS19: Vegetables | BT19: 0 | BU19: 100 | BV19: 105 | BW19: 10500 | BX19: 81 | BY19: 91010 | BZ19: NSW | CA19: Sydney | CB19: The Hills Shire | CC19: Cattle | CD19: Cattle | CE19: 5 | CF19: 2 | CG19: 1001000000091010 | CH19: 1001050000091010 | CI19: 1001051050000000 | CJ19: 1001051050091010 | CL19: 100 | CM19: 165 | CN19: 11520 | CQ19: NSW | CR19: Unknown | CS19: Canada Bay (A) | CV19: 37 | CW19: 37899 | CY19: 11520 | CZ19: 165 | DA19: 100 | DC19: 10110_6 | DD19: 100 | DE19: 130 | DF19: 10110 | DG19: NSW | DI19: Armidale Dumaresq (A) | DJ19: 6 | DK19: Other Crop Growing, nfd | DL19: 0 | DM19: 101106 | DO19: 1306 | DQ19: 1006 | DR19: 100 | DV19: 100123308058 | DW19: 115123308058 | DX19: 1100658 | DY19: 16 | DZ19: 161100658 | EA19: 0 | EB19: 0 | EC19: 0 | ED19: 0 | EE19: 0 | EF19: 0 | EG19: 0 | EH19: 0 | EI19: 0 | EJ19: 0 | EK19: 0 | EL19: 0 | EM19: 0 | EN19: 0 | EO19: 0 | EP19: 0 | EQ19: 0 | ER19: 0 | ES19: 0 | ET19: 0 | EU19: 0 | EV19: 0 | EW19: 0 | EX19: 0 | EY19: 0 | EZ19: 0 | FA19: 0 | FB19: 0
L20: Blue Mountains (C) | M20: Sydney | N20: 10900 | O20: 105 | P20: 100 | Q20: Blue Mountains | V20: Eggs | W20: 74 | Y20: 1800658 | Z20: 16 | AA20: Broadacre crops - Legumes for grain - Mung beans | AC20: 1800658 | AD20: Broadacre crops - Legumes for grain - Mung beans | AF20: No | AH20: 100 | AI20: 120 | AJ20: 14550 | AK20: 12 | AL20: 3308058 | AM20: NSW | AN20: Richmond-Tweed | AO20: Kyogle (A) | AP20: Crops for hay | AQ20: Hay - Cereal crops cut for hay | AR20: 73557.9 | AS20: 0 | AT20: 0 | BL20: 97 | BM20: Stud | BN20: TotalTotal | BO20: 9100000 | BP20: 00000 | BQ20: Total | BR20: 91 | BS20: Total | BT20: 0 | BU20: 100 | BV20: 105 | BW20: 10500 | BX20: 82 | BY20: 91020 | BZ20: NSW | CA20: Sydney | CB20: The Hills Shire | CC20: Cereal | CD20: Cereal all purposes | CG20: 1001000000091020 | CH20: 1001050000091020 | CI20: 1001051050000000 | CJ20: 1001051050091020 | CL20: 100 | CM20: 165 | CN20: 11550 | CQ20: NSW | CR20: Unknown | CS20: Canterbury (C) | CV20: 50 | CW20: 48670 | CY20: 11550 | CZ20: 165 | DA20: 100 | DC20: 10110_10 | DD20: 100 | DE20: 130 | DF20: 10110 | DG20: NSW | DI20: Armidale Dumaresq (A) | DJ20: 10 | DK20: Other Livestock Farming nec | DL20: 7 | DM20: 1011010 | DO20: 13010 | DQ20: 10010 | DR20: 100 | DV20: 100123308058 | DW20: 120123308058 | DX20: 1800658 | DY20: 16 | DZ20: 161800658 | EA20: 0 | EB20: 0 | EC20: 0 | ED20: 0 | EE20: 0 | EF20: 0 | EG20: 0 | EH20: 0 | EI20: 0 | EJ20: 0 | EK20: 0 | EL20: 0 | EM20: 0 | EN20: 0 | EO20: 0 | EP20: 0 | EQ20: 0 | ER20: 0 | ES20: 0 | ET20: 0 | EU20: 0 | EV20: 0 | EW20: 0 | EX20: 0 | EY20: 0 | EZ20: 0 | FA20: 0 | FB20: 0
L21: Bogan (A) | M21: North Western | N21: 10950 | O21: 135 | P21: 100 | Q21: Bogan | V21: Honey | W21: 76 | Y21: 1800958 | Z21: 16 | AA21: Broadacre crops - Legumes for grain - Other field beans | AC21: 1800958 | AD21: Field beans | AE21: 1907758 | AF21: Yes | AH21: 100 | AI21: 120 | AJ21: 14850 | AK21: 12 | AL21: 3308058 | AM21: NSW | AN21: Richmond-Tweed | AO21: Lismore (C) | AP21: Crops for hay | AQ21: Hay - Cereal crops cut for hay | AR21: 62749.7 | AS21: 0 | AT21: 0 | BT21: 0 | BU21: 100 | BV21: 105 | BW21: 10500 | BX21: 82 | BY21: 91040 | BZ21: NSW | CA21: Sydney | CB21: The Hills Shire | CC21: Cereal | CD21: Non cereal | CE21: 1 | CF21: 1 | CG21: 1001000000091040 | CH21: 1001050000091040 | CI21: 1001051050000000 | CJ21: 1001051050091040 | CL21: 100 | CM21: 105 | CN21: 16250 | CQ21: NSW | CR21: Sydney | CS21: Parramatta (C) | CV21: 30 | CW21: 27269 | CY21: 16250 | CZ21: 105 | DA21: 100 | DC21: 10110_8 | DD21: 100 | DE21: 130 | DF21: 10110 | DG21: NSW | DI21: Armidale Dumaresq (A) | DJ21: 8 | DK21: Poultry Farming, nfd | DL21: 0 | DM21: 101108 | DO21: 1308 | DQ21: 1008 | DR21: 100 | DV21: 100123308058 | DW21: 120123308058 | DX21: 1800958 | DY21: 16 | DZ21: 161800958 | EA21: 1410240.6 | EB21: 14280530 | EC21: 0 | ED21: 23 | EE21: 0 | EF21: 0 | EG21: 0 | EH21: 6079 | EI21: 1872.5 | EJ21: 6655 | EK21: 218764.7 | EL21: 9793 | EM21: 867637.8 | EN21: 5948091 | EO21: 104935.7 | EP21: 689699 | EQ21: 68091.7 | ER21: 145392 | ES21: 0 | ET21: 3549 | EU21: 148938.2 | EV21: 4995199 | EW21: 0 | EX21: 2476050 | EY21: 0 | EZ21: 0 | FA21: 0 | FB21: 0
L22: Bombala (A) | M22: South Eastern | N22: 11000 | O22: 145 | P22: 100 | Q22: Bombala | V22: Meat | W22: 78 | Y22: 1801758 | Z22: 16 | AA22: Broadacre crops - Oilseeds - Soybeans | AC22: 1801758 | AD22: Soybeans | AE22: 1801758 | AF22: Yes | AH22: 100 | AI22: 120 | AJ22: 16610 | AK22: 12 | AL22: 3308058 | AM22: NSW | AN22: Richmond-Tweed | AO22: Richmond Valley (A) | AP22: Crops for hay | AQ22: Hay - Cereal crops cut for hay | AR22: 15959.5 | AS22: 0 | AT22: 0 | BT22: 0 | BU22: 100 | BV22: 105 | BW22: 10500 | BX22: 83 | BY22: 91060 | BZ22: NSW | CA22: Sydney | CB22: The Hills Shire | CC22: Chickens | CD22: Eggs | CE22: 14675 | CF22: 4 | CG22: 1001000000091060 | CH22: 1001050000091060 | CI22: 1001051050000000 | CJ22: 1001051050091060 | CL22: 100 | CM22: 105 | CN22: 15950 | CQ22: NSW | CR22: Sydney | CS22: North Sydney (A) | CV22: 75 | CW22: 51433 | CY22: 15950 | CZ22: 105 | DA22: 100 | DC22: 10110_5 | DD22: 100 | DE22: 130 | DF22: 10110 | DG22: NSW | DI22: Armidale Dumaresq (A) | DJ22: 5 | DK22: Sheep, Beef Cattle and Grain Farming, nfd | DL22: 52 | DM22: 101105 | DO22: 1305 | DQ22: 1005 | DR22: 100 | DV22: 100123308058 | DW22: 120123308058 | DX22: 1801758 | DY22: 16 | DZ22: 161801758 | EA22: 10384837 | EB22: 12391929 | EC22: 0 | ED22: 0 | EE22: 0 | EF22: 0 | EG22: 0 | EH22: 0 | EI22: 2247243.8 | EJ22: 3642829 | EK22: 598724.4 | EL22: 663230 | EM22: 4717814.9 | EN22: 3300659 | EO22: 909.9 | EP22: 230446 | EQ22: 153561.6 | ER22: 35065 | ES22: 0 | ET22: 0 | EU22: 2332611.5 | EV22: 3578155 | EW22: 333970.9 | EX22: 941545 | EY22: 0 | EZ22: 0 | FA22: 0 | FB22: 0
L23: Boorowa (A) | M23: South Eastern | N23: 11050 | O23: 145 | P23: 100 | Q23: Boorowa | V23: Stock | W23: 80 | Y23: 1803258 | Z23: 16 | AA23: Broadacre crops - Other crops - Cotton | AC23: 1803258 | AD23: Cotton | AE23: 1803258 | AF23: Yes | AH23: 100 | AI23: 120 | AJ23: 17550 | AK23: 12 | AL23: 3308058 | AM23: NSW | AN23: Richmond-Tweed | AO23: Tweed (A) | AP23: Crops for hay | AQ23: Hay - Cereal crops cut for hay | AR23: 186.1 | AS23: 0 | AT23: 0 | BT23: 0 | BU23: 100 | BV23: 105 | BW23: 10500 | BX23: 83 | BY23: 91080 | BZ23: NSW | CA23: Sydney | CB23: The Hills Shire | CC23: Chickens | CD23: Meat | CE23: 300699 | CF23: 5 | CG23: 1001000000091080 | CH23: 1001050000091080 | CI23: 1001051050000000 | CJ23: 1001051050091080 | CL23: 100 | CM23: 125 | CN23: 11730 | CQ23: NSW | CR23: Mid-North Coast | CS23: Clarence Valley (A) | CV23: 795 | CW23: 17592 | CY23: 11730 | CZ23: 125 | DA23: 100 | DC23: 10200_1 | DD23: 100 | DE23: 105 | DF23: 10200 | DG23: NSW | DI23: Auburn (C) | DJ23: 1 | DK23: Agriculture, nfd | DL23: 0 | DM23: 102001 | DO23: 1051 | DQ23: 1001 | DR23: 100 | DV23: 100123308058 | DW23: 120123308058 | DX23: 1803258 | DY23: 16 | DZ23: 161803258 | EA23: 1125747532 | EB23: 574625830 | EC23: 0 | ED23: 0 | EE23: 0 | EF23: 0 | EG23: 0 | EH23: 0 | EI23: 0 | EJ23: 0 | EK23: 0 | EL23: 0 | EM23: 802859125.5 | EN23: 423793547 | EO23: 221097714.6 | EP23: 114003032 | EQ23: 8094510.6 | ER23: 3645996 | ES23: 41394.6 | ET23: 0 | EU23: 73331730.1 | EV23: 27063063 | EW23: 2592296 | EX23: 0 | EY23: 17730760.2 | EZ23: 6120192 | FA23: 0 | FB23: 0
L24: Botany Bay (C) | M24: Sydney | N24: 11100 | O24: 105 | P24: 100 | Q24: Botany Bay | V24: Cereal | W24: 82 | Y24: 1804758 | Z24: 16 | AA24: Hops | AC24: 1804758 | AD24: Hops | AE24: 1804758 | AF24: No | AH24: 100 | AI24: 125 | AJ24: 11730 | AK24: 12 | AL24: 3308058 | AM24: NSW | AN24: Mid-North Coast | AO24: Clarence Valley (A) | AP24: Crops for hay | AQ24: Hay - Cereal crops cut for hay | AR24: 89045.6 | AS24: 0 | AT24: 0 | BT24: 0 | BU24: 100 | BV24: 105 | BW24: 10500 | BX24: 84 | BY24: 91100 | BZ24: NSW | CA24: Sydney | CB24: The Hills Shire | CC24: Fruit | CD24: ex grape | CE24: 88 | CF24: 21 | CG24: 1001000000091100 | CH24: 1001050000091100 | CI24: 1001051050000000 | CJ24: 1001051050091100 | CL24: 100 | CM24: 125 | CN24: 11800 | CQ24: NSW | CR24: Mid-North Coast | CS24: Coffs Harbour (C) | CV24: 1249 | CW24: 32950 | CY24: 11800 | CZ24: 125 | DA24: 100 | DC24: 10200_7 | DD24: 100 | DE24: 105 | DF24: 10200 | DG24: NSW | DI24: Auburn (C) | DJ24: 7 | DK24: Dairy Cattle Farming | DL24: 13 | DM24: 102007 | DO24: 1057 | DQ24: 1007 | DR24: 100 | DV24: 100123308058 | DW24: 125123308058 | DX24: 1804758 | DY24: 16 | DZ24: 161804758 | EA24: 0 | EB24: 0 | EC24: 0 | ED24: 0 | EE24: 0 | EF24: 0 | EG24: 0 | EH24: 0 | EI24: 0 | EJ24: 0 | EK24: 0 | EL24: 0 | EM24: 0 | EN24: 0 | EO24: 0 | EP24: 0 | EQ24: 0 | ER24: 0 | ES24: 0 | ET24: 0 | EU24: 0 | EV24: 0 | EW24: 0 | EX24: 0 | EY24: 0 | EZ24: 0 | FA24: 0 | FB24: 0
L25: Bourke (A) | M25: North Western | N25: 11150 | O25: 135 | P25: 100 | Q25: Bourke | V25: Chickens | W25: 84 | Y25: 1806458 | Z25: 16 | AA25: Fennel (bitter) | AC25: 1806458 | AD25: Fennel (bitter) | AE25: 1806458 | AF25: No | AH25: 100 | AI25: 125 | AJ25: 13350 | AK25: 12 | AL25: 3308058 | AM25: NSW | AN25: Mid-North Coast | AO25: Greater Taree (C) | AP25: Crops for hay | AQ25: Hay - Cereal crops cut for hay | AR25: 354.3 | AS25: 0 | AT25: 0 | BT25: 0 | BU25: 100 | BV25: 105 | BW25: 10500 | BX25: 85 | BY25: 91120 | BZ25: NSW | CA25: Sydney | CB25: The Hills Shire | CC25: Grapes | CD25: Grapes | CE25: 2 | CF25: 3 | CG25: 1001000000091120 | CH25: 1001050000091120 | CI25: 1001051050000000 | CJ25: 1001051050091120 | CL25: 100 | CM25: 105 | CN25: 17150 | CQ25: NSW | CR25: Sydney | CS25: Sutherland Shire (A) | CV25: 53 | CW25: 53718 | CY25: 17150 | CZ25: 105 | DA25: 100 | DC25: 10200_9 | DD25: 100 | DE25: 105 | DF25: 10200 | DG25: NSW | DI25: Auburn (C) | DJ25: 9 | DK25: Deer Farming | DL25: 0 | DM25: 102009 | DO25: 1059 | DQ25: 1009 | DR25: 100 | DV25: 100123308058 | DW25: 125123308058 | DX25: 1806458 | DY25: 16 | DZ25: 161806458 | EA25: 0 | EB25: 0 | EC25: 0 | ED25: 0 | EE25: 0 | EF25: 0 | EG25: 0 | EH25: 0 | EI25: 0 | EJ25: 0 | EK25: 0 | EL25: 0 | EM25: 0 | EN25: 0 | EO25: 0 | EP25: 0 | EQ25: 0 | ER25: 0 | ES25: 0 | ET25: 0 | EU25: 0 | EV25: 0 | EW25: 0 | EX25: 0 | EY25: 0 | EZ25: 0 | FA25: 0 | FB25: 0
L26: Brewarrina (A) | M26: North Western | N26: 11200 | O26: 135 | P26: 100 | Q26: Brewarrina | V26: Fruit | W26: 85 | Y26: 1806558 | Z26: 16 | AA26: Broadacre crops - Other crops - Lavender | AC26: 1806558 | AD26: Lavender | AE26: 1806558 | AF26: Yes | AH26: 100 | AI26: 125 | AJ26: 14350 | AK26: 12 | AL26: 3308058 | AM26: NSW | AN26: Mid-North Coast | AO26: Kempsey (A) | AP26: Crops for hay | AQ26: Hay - Cereal crops cut for hay | AR26: 19433 | AS26: 0 | AT26: 0 | BT26: 0 | BU26: 100 | BV26: 105 | BW26: 10500 | BX26: 86 | BY26: 91140 | BZ26: NSW | CA26: Sydney | CB26: The Hills Shire | CC26: Horses | CD26: Non Stud | CE26: 36 | CF26: 8 | CG26: 1001000000091140 | CH26: 1001050000091140 | CI26: 1001051050000000 | CJ26: 1001051050091140 | CL26: 100 | CM26: 115 | CN26: 18450 | CQ26: NSW | CR26: Illawarra | CS26: Wollongong (C) | CV26: 60 | CW26: 28975 | CY26: 18450 | CZ26: 115 | DA26: 100 | DC26: 10200_4 | DD26: 100 | DE26: 105 | DF26: 10200 | DG26: NSW | DI26: Auburn (C) | DJ26: 4 | DK26: Fruit and Tree Nut Growing, nfd | DL26: 0 | DM26: 102004 | DO26: 1054 | DQ26: 1004 | DR26: 100 | DV26: 100123308058 | DW26: 125123308058 | DX26: 1806558 | DY26: 16 | DZ26: 161806558 | EA26: 382351.8 | EB26: 0 | EC26: 0 | ED26: 0 | EE26: 0 | EF26: 0 | EG26: 3897.3 | EH26: 0 | EI26: 0 | EJ26: 0 | EK26: 0 | EL26: 0 | EM26: 0 | EN26: 0 | EO26: 0 | EP26: 0 | EQ26: 2128.3 | ER26: 0 | ES26: 360987.2 | ET26: 0 | EU26: 11163.2 | EV26: 0 | EW26: 0 | EX26: 0 | EY26: 4175.8 | EZ26: 0 | FA26: 0 | FB26: 0
L27: Broken Hill (C) | M27: Unknown | N27: 11250 | O27: 165 | P27: 100 | Q27: Broken Hill | V27: Cattle | W27: 86 | Y27: 1806959 | Z27: 16 | AA27: Broadacre crops - Oilseeds - All | AB27: Total | AC27: 1806959 | AD27: Broadacre crops - Oilseeds - All | AE27: 1806959 | AF27: No | AH27: 100 | AI27: 130 | AJ27: 10110 | AK27: 12 | AL27: 3308058 | AM27: NSW | AN27: Northern | AO27: Armidale Dumaresq (A) | AP27: Crops for hay | AQ27: Hay - Cereal crops cut for hay | AR27: 123726.9 | AS27: 0 | AT27: 0 | BT27: 0 | BU27: 100 | BV27: 105 | BW27: 10500 | BX27: 86 | BY27: 91160 | BZ27: NSW | CA27: Sydney | CB27: The Hills Shire | CC27: Horses | CD27: Stud | CE27: 26 | CF27: 6 | CG27: 1001000000091160 | CH27: 1001050000091160 | CI27: 1001051050000000 | CJ27: 1001051050091160 | CL27: 100 | CM27: 135 | CN27: 12600 | CQ27: NSW | CR27: North Western | CS27: Dubbo (C) | CV27: 3288 | CW27: 29450 | CY27: 12600 | CZ27: 135 | DA27: 100 | DC27: 10200_3 | DD27: 100 | DE27: 105 | DF27: 10200 | DG27: NSW | DI27: Auburn (C) | DJ27: 3 | DK27: Mushroom and Vegetable Growing, nfd | DL27: 0 | DM27: 102003 | DO27: 1053 | DQ27: 1003 | DR27: 100 | DV27: 100123308058 | DW27: 130123308058 | DX27: 1806959 | DY27: 16 | DZ27: 161806959 | EA27: 0 | EB27: 0 | EC27: 0 | ED27: 0 | EE27: 0 | EF27: 0 | EG27: 0 | EH27: 0 | EI27: 0 | EJ27: 0 | EK27: 0 | EL27: 0 | EM27: 0 | EN27: 0 | EO27: 0 | EP27: 0 | EQ27: 0 | ER27: 0 | ES27: 0 | ET27: 0 | EU27: 0 | EV27: 0 | EW27: 0 | EX27: 0 | EY27: 0 | EZ27: 0 | FA27: 0 | FB27: 0
L28: Burwood (A) | M28: Unknown | N28: 11300 | O28: 165 | P28: 100 | Q28: Burwood | V28: Chickens | W28: 87 | Y28: 1807058 | Z28: 16 | AA28: Broadacre crops - Legumes for grain - Lupins for grain | AC28: 1807058 | AD28: Lupins for grain | AE28: 1807058 | AF28: Yes | AH28: 100 | AI28: 130 | AJ28: 13010 | AK28: 12 | AL28: 3308058 | AM28: NSW | AN28: Northern | AO28: Glen Innes Severn (A) | AP28: Crops for hay | AQ28: Hay - Cereal crops cut for hay | AR28: 214919.2 | AS28: 0 | AT28: 0 | BT28: 0 | BU28: 100 | BV28: 105 | BW28: 10500 | BX28: 87 | BY28: 91180 | BZ28: NSW | CA28: Sydney | CB28: The Hills Shire | CC28: Nurseries | CD28: Cut Flowers | CE28: 83331 | CF28: 77 | CG28: 1001000000091180 | CH28: 1001050000091180 | CI28: 1001051050000000 | CJ28: 1001051050091180 | CL28: 100 | CM28: 105 | CN28: 14000 | CQ28: NSW | CR28: Sydney | CS28: Hornsby (A) | CV28: 433 | CW28: 13002 | CY28: 14000 | CZ28: 105 | DA28: 100 | DC28: 10200_2 | DD28: 100 | DE28: 105 | DF28: 10200 | DG28: NSW | DI28: Auburn (C) | DJ28: 2 | DK28: Nursery and Floriculture Production, nfd | DL28: 0 | DM28: 102002 | DO28: 1052 | DQ28: 1002 | DR28: 100 | DV28: 100123308058 | DW28: 130123308058 | DX28: 1807058 | DY28: 16 | DZ28: 161807058 | EA28: 73379304.8 | EB28: 22298892 | EC28: 0 | ED28: 0 | EE28: 85762.5 | EF28: 0 | EG28: 79701.1 | EH28: 0 | EI28: 0 | EJ28: 9634 | EK28: 0 | EL28: 0 | EM28: 259866.4 | EN28: 210617 | EO28: 22571354.2 | EP28: 4531118 | EQ28: 16192497.7 | ER28: 3113866 | ES28: 2445296.2 | ET28: 2772816 | EU28: 22895280.4 | EV28: 6371569 | EW28: 8749779.8 | EX28: 5188522 | EY28: 99766.5 | EZ28: 100750 | FA28: 0 | FB28: 0
L29: Byron (A) | M29: Richmond-Tweed | N29: 11350 | O29: 120 | P29: 100 | Q29: Byron | V29: Cereal | W29: 88 | Y29: 1808158 | Z29: 16 | AA29: Broadacre crops - Other crops - Peanuts | AC29: 1808158 | AD29: Peanuts | AE29: 1808158 | AF29: Yes | AH29: 100 | AI29: 130 | AJ29: 13550 | AK29: 12 | AL29: 3308058 | AM29: NSW | AN29: Northern | AO29: Gunnedah (A) | AP29: Crops for hay | AQ29: Hay - Cereal crops cut for hay | AR29: 835687.9 | AS29: 0 | AT29: 0 | BT29: 0 | BU29: 100 | BV29: 105 | BW29: 10500 | BX29: 87 | BY29: 91190 | BZ29: NSW | CA29: Sydney | CB29: The Hills Shire | CC29: Nurseries | CD29: Nurseries | CE29: 104 | CF29: 48 | CG29: 1001000000091190 | CH29: 1001050000091190 | CI29: 1001051050000000 | CJ29: 1001051050091190 | CL29: 100 | CM29: 105 | CN29: 16550 | CQ29: NSW | CR29: Sydney | CS29: Randwick (C) | CV29: 136 | CW29: 63555 | CY29: 16550 | CZ29: 105 | DA29: 100 | DC29: 10200_6 | DD29: 100 | DE29: 105 | DF29: 10200 | DG29: NSW | DI29: Auburn (C) | DJ29: 6 | DK29: Other Crop Growing, nfd | DL29: 0 | DM29: 102006 | DO29: 1056 | DQ29: 1006 | DR29: 100 | DV29: 100123308058 | DW29: 130123308058 | DX29: 1808158 | DY29: 16 | DZ29: 161808158 | EA29: 489340.6 | EB29: 351171 | EC29: 0 | ED29: 0 | EE29: 0 | EF29: 0 | EG29: 0 | EH29: 0 | EI29: 0 | EJ29: 0 | EK29: 0 | EL29: 7095 | EM29: 489340.6 | EN29: 344076 | EO29: 0 | EP29: 0 | EQ29: 0 | ER29: 0 | ES29: 0 | ET29: 0 | EU29: 0 | EV29: 0 | EW29: 0 | EX29: 0 | EY29: 0 | EZ29: 0 | FA29: 0 | FB29: 0
L30: Cabonne (A) | M30: Central West | N30: 11400 | O30: 140 | P30: 100 | Q30: Cabonne | V30: Horses | W30: 89 | Y30: 1809059 | Z30: 16 | AA30: Broadacre crops - Legumes for grain - Legumes for grain - All | AB30: Total | AC30: 1809059 | AD30: Broadacre crops - Legumes for grain - Legumes for grain - All | AE30: 1809059 | AF30: No | AH30: 100 | AI30: 130 | AJ30: 13650 | AK30: 12 | AL30: 3308058 | AM30: NSW | AN30: Northern | AO30: Guyra (A) | AP30: Crops for hay | AQ30: Hay - Cereal crops cut for hay | AR30: 75467.2 | AS30: 0 | AT30: 0 | BT30: 0 | BU30: 100 | BV30: 105 | BW30: 10500 | BX30: 87 | BY30: 91192 | BZ30: NSW | CA30: Sydney | CB30: The Hills Shire | CC30: Nurseries | CD30: Nurseries - Indoor (ha.) | CE30: 147353 | CF30: 37 | CG30: 1001000000091192 | CH30: 1001050000091192 | CI30: 1001051050000000 | CJ30: 1001051050091192 | CL30: 100 | CM30: 105 | CN30: 16550 | CQ30: NSW | CR30: Sydney | CS30: Randwick (C) | CV30: 84 | CW30: 63024 | CY30: 16550 | CZ30: 105 | DA30: 100 | DC30: 10200_10 | DD30: 100 | DE30: 105 | DF30: 10200 | DG30: NSW | DI30: Auburn (C) | DJ30: 10 | DK30: Other Livestock Farming nec | DL30: 0 | DM30: 1020010 | DO30: 10510 | DQ30: 10010 | DR30: 100 | DV30: 100123308058 | DW30: 130123308058 | DX30: 1809059 | DY30: 16 | DZ30: 161809059 | EA30: 0 | EB30: 0 | EC30: 0 | ED30: 0 | EE30: 0 | EF30: 0 | EG30: 0 | EH30: 0 | EI30: 0 | EJ30: 0 | EK30: 0 | EL30: 0 | EM30: 0 | EN30: 0 | EO30: 0 | EP30: 0 | EQ30: 0 | ER30: 0 | ES30: 0 | ET30: 0 | EU30: 0 | EV30: 0 | EW30: 0 | EX30: 0 | EY30: 0 | EZ30: 0 | FA30: 0 | FB30: 0
L31: Camden (A) | M31: Sydney | N31: 11450 | O31: 105 | P31: 100 | Q31: Camden | V31: Nurseries | W31: 91 | Y31: 1809158 | Z31: 16 | AA31: Broadacre crops - Legumes for grain - Field peas for grain | AC31: 1809158 | AD31: Field Peas | AE31: 1809158 | AF31: Yes | AH31: 100 | AI31: 130 | AJ31: 13660 | AK31: 12 | AL31: 3308058 | AM31: NSW | AN31: Northern | AO31: Gwydir (A) | AP31: Crops for hay | AQ31: Hay - Cereal crops cut for hay | AR31: 1169912.6 | AS31: 0 | AT31: 0 | BT31: 0 | BU31: 100 | BV31: 105 | BW31: 10500 | BX31: 87 | BY31: 91194 | BZ31: NSW | CA31: Sydney | CB31: The Hills Shire | CC31: Nurseries | CD31: Nurseries - Outdoor (ha.) | CE31: 89 | CF31: 42 | CG31: 1001000000091194 | CH31: 1001050000091194 | CI31: 1001051050000000 | CJ31: 1001051050091194 | CL31: 100 | CM31: 105 | CN31: 12850 | CQ31: NSW | CR31: Sydney | CS31: Fairfield (C) | CV31: 391 | CW31: 65184 | CY31: 12850 | CZ31: 105 | DA31: 100 | DC31: 10200_8 | DD31: 100 | DE31: 105 | DF31: 10200 | DG31: NSW | DI31: Auburn (C) | DJ31: 8 | DK31: Poultry Farming, nfd | DL31: 0 | DM31: 102008 | DO31: 1058 | DQ31: 1008 | DR31: 100 | DV31: 100123308058 | DW31: 130123308058 | DX31: 1809158 | DY31: 16 | DZ31: 161809158 | EA31: 6309415.2 | EB31: 0 | EC31: 11010.9 | ED31: 0 | EE31: 11004.4 | EF31: 0 | EG31: 0 | EH31: 0 | EI31: 0 | EJ31: 0 | EK31: 0 | EL31: 0 | EM31: 258009.9 | EN31: 0 | EO31: 861396.3 | EP31: 0 | EQ31: 922145.9 | ER31: 0 | ES31: 0 | ET31: 0 | EU31: 2240681.7 | EV31: 0 | EW31: 2005166.1 | EX31: 0 | EY31: 0 | EZ31: 0 | FA31: 0 | FB31: 0
L32: Campbelltown (C) | M32: Sydney | N32: 11500 | O32: 105 | P32: 100 | Q32: Campbelltown | Y32: 1900358 | Z32: 16 | AA32: Broadacre crops - Legumes for grain - Chickpeas | AC32: 1900358 | AD32: Chick peas | AE32: 1900358 | AF32: Yes | AH32: 100 | AI32: 130 | AJ32: 14200 | AK32: 12 | AL32: 3308058 | AM32: NSW | AN32: Northern | AO32: Inverell (A) | AP32: Crops for hay | AQ32: Hay - Cereal crops cut for hay | AR32: 977788.5 | AS32: 0 | AT32: 0 | BT32: 0 | BU32: 100 | BV32: 105 | BW32: 10500 | BX32: 87 | BY32: 91200 | BZ32: NSW | CA32: Sydney | CB32: The Hills Shire | CC32: Nurseries | CD32: Turf | CG32: 1001000000091200 | CH32: 1001050000091200 | CI32: 1001051050000000 | CJ32: 1001051050091200 | CL32: 100 | CM32: 105 | CN32: 13100 | CQ32: NSW | CR32: Sydney | CS32: Gosford (C) | CV32: 487 | CW32: 71386 | CY32: 13100 | CZ32: 105 | DA32: 100 | DC32: 10200_5 | DD32: 100 | DE32: 105 | DF32: 10200 | DG32: NSW | DI32: Auburn (C) | DJ32: 5 | DK32: Sheep, Beef Cattle and Grain Farming, nfd | DL32: 0 | DM32: 102005 | DO32: 1055 | DQ32: 1005 | DR32: 100 | DV32: 100123308058 | DW32: 130123308058 | DX32: 1900358 | DY32: 16 | DZ32: 161900358 | EA32: 119706769.2 | EB32: 26947972 | EC32: 0 | ED32: 0 | EE32: 106110.7 | EF32: 0 | EG32: 0 | EH32: 1012 | EI32: 0 | EJ32: 0 | EK32: 0 | EL32: 0 | EM32: 63757230.5 | EN32: 12716760 | EO32: 51461710 | EP32: 13163440 | EQ32: 2937846.2 | ER32: 727192 | ES32: 16380.5 | ET32: 4200 | EU32: 1260837.9 | EV32: 200744 | EW32: 166653.4 | EX32: 134624 | EY32: 0 | EZ32: 0 | FA32: 0 | FB32: 0
L33: Canada Bay (A) | M33: Unknown | N33: 11520 | O33: 165 | P33: 100 | Q33: Canada Bay | Y33: 1900958 | Z33: 16 | AA33: Broadacre crops - Oilseeds - Canola | AC33: 1900958 | AD33: Canola | AE33: 1900958 | AF33: Yes | AH33: 100 | AI33: 130 | AJ33: 14920 | AK33: 12 | AL33: 3308058 | AM33: NSW | AN33: Northern | AO33: Liverpool Plains (A) | AP33: Crops for hay | AQ33: Hay - Cereal crops cut for hay | AR33: 393329.4 | AS33: 0 | AT33: 0 | BT33: 0 | BU33: 100 | BV33: 105 | BW33: 10500 | BX33: 88 | BY33: 91220 | BZ33: NSW | CA33: Sydney | CB33: The Hills Shire | CC33: Pigs | CD33: Pigs | CG33: 1001000000091220 | CH33: 1001050000091220 | CI33: 1001051050000000 | CJ33: 1001051050091220 | CL33: 100 | CM33: 145 | CN33: 13310 | CQ33: NSW | CR33: South Eastern | CS33: Goulburn Mulwaree (A) | CV33: 3494 | CW33: 30668 | CY33: 13310 | CZ33: 145 | DA33: 100 | DC33: 10350_1 | DD33: 100 | DE33: 105 | DF33: 10350 | DG33: NSW | DI33: Bankstown (C) | DJ33: 1 | DK33: Agriculture, nfd | DL33: 8 | DM33: 103501 | DO33: 1051 | DQ33: 1001 | DR33: 100 | DV33: 100123308058 | DW33: 130123308058 | DX33: 1900958 | DY33: 16 | DZ33: 161900958 | EA33: 406629198.9 | EB33: 92779928 | EC33: 206628.3 | ED33: 0 | EE33: 2727056.5 | EF33: 242670 | EG33: 0 | EH33: 0 | EI33: 117652.3 | EJ33: 0 | EK33: 238182.6 | EL33: 0 | EM33: 26831816 | EN33: 3021019 | EO33: 56608296.3 | EP33: 3061355 | EQ33: 79883238.4 | ER33: 13059462 | ES33: 33929992.8 | ET33: 9792138 | EU33: 119550506.3 | EV33: 29441507 | EW33: 86535829.4 | EX33: 34128548 | EY33: 0 | EZ33: 33229 | FA33: 0 | FB33: 0
L34: Canterbury (C) | M34: Unknown | N34: 11550 | O34: 165 | P34: 100 | Q34: Canterbury | Y34: 1901458 | Z34: 16 | AA34: Broadacre crops - Oilseeds - Safflower | AC34: 1901458 | AD34: Safflower | AE34: 1901458 | AF34: Yes | AH34: 100 | AI34: 130 | AJ34: 15300 | AK34: 12 | AL34: 3308058 | AM34: NSW | AN34: Northern | AO34: Moree Plains (A) | AP34: Crops for hay | AQ34: Hay - Cereal crops cut for hay | AR34: 955349.5 | AS34: 0 | AT34: 0 | BT34: 0 | BU34: 100 | BV34: 105 | BW34: 10500 | BX34: 89 | BY34: 91240 | BZ34: NSW | CA34: Sydney | CB34: The Hills Shire | CC34: Sheep and lambs | CD34: Sheep and lambs | CE34: 3 | CF34: 1 | CG34: 1001000000091240 | CH34: 1001050000091240 | CI34: 1001051050000000 | CJ34: 1001051050091240 | CL34: 100 | CM34: 110 | CN34: 13400 | CQ34: NSW | CR34: Hunter | CS34: Great Lakes (A) | CV34: 265 | CW34: 9723 | CY34: 13400 | CZ34: 110 | DA34: 100 | DC34: 10350_7 | DD34: 100 | DE34: 105 | DF34: 10350 | DG34: NSW | DI34: Bankstown (C) | DJ34: 7 | DK34: Dairy Cattle Farming | DL34: 0 | DM34: 103507 | DO34: 1057 | DQ34: 1007 | DR34: 100 | DV34: 100123308058 | DW34: 130123308058 | DX34: 1901458 | DY34: 16 | DZ34: 161901458 | EA34: 2245410 | EB34: 4110659 | EC34: 0 | ED34: 0 | EE34: 0 | EF34: 0 | EG34: 0 | EH34: 0 | EI34: 0 | EJ34: 0 | EK34: 0 | EL34: 0 | EM34: 214458.8 | EN34: 1767888 | EO34: 1502872.8 | EP34: 1567902 | EQ34: 294636.6 | ER34: 218834 | ES34: 0 | ET34: 0 | EU34: 167493.8 | EV34: 250454 | EW34: 65948 | EX34: 305581 | EY34: 0 | EZ34: 0 | FA34: 0 | FB34: 0
L35: Carrathool (A) | M35: Murrumbidgee | N35: 11600 | O35: 150 | P35: 100 | Q35: =IF(ISERROR(FIND(" (",L35)),L35,LEFT(L35,FIND(" (",L35)-1)) -> Carrathool | Y35: 1901558 | Z35: 16 | AA35: Broadacre crops - Oilseeds - Sesame | AC35: 1901558 | AD35: Sesame seed | AE35: 1901558 | AF35: Yes | AH35: 100 | AI35: 130 | AJ35: 15750 | AK35: 12 | AL35: 3308058 | AM35: NSW | AN35: Northern | AO35: Narrabri (A) | AP35: Crops for hay | AQ35: Hay - Cereal crops cut for hay | AR35: 1262115.1 | AS35: 0 | AT35: 0 | BT35: 0 | BU35: 100 | BV35: 105 | BW35: 10500 | BX35: 90 | BY35: 91260 | BZ35: NSW | CA35: Sydney | CB35: The Hills Shire | CC35: Vegetables | CD35: Vegetables | CE35: 176 | CF35: 42 | CG35: 1001000000091260 | CH35: 1001050000091260 | CI35: 1001051050000000 | CJ35: 1001051050091260 | CL35: 100 | CM35: =VLOOKUP($CN35,$N:$Q,2,0) -> 150 | CN35: 13450 | CQ35: NSW | CR35: =OFFSET($M$1,MATCH($CN35,$N:$N,0)-1,0,1,1) -> Murrumbidgee | CS35: Griffith (C) | CV35: 3381 | CW35: 20931 | CY35: 13450 | CZ35: 150 | DA35: 100 | DC35: 10350_9 | DD35: 100 | DE35: 105 | DF35: 10350 | DG35: NSW | DI35: Bankstown (C) | DJ35: 9 | DK35: Deer Farming | DL35: 0 | DM35: 103509 | DO35: 1059 | DQ35: 1009 | DR35: 100 | DV35: 100123308058 | DW35: 130123308058 | DX35: 1901558 | DY35: 16 | DZ35: 161901558 | EA35: 42608.7 | EB35: 0 | EC35: 0 | ED35: 0 | EE35: 0 | EF35: 0 | EG35: 0 | EH35: 0 | EI35: 0 | EJ35: 0 | EK35: 0 | EL35: 0 | EM35: 42608.7 | EN35: 0 | EO35: 0 | EP35: 0 | EQ35: 0 | ER35: 0 | ES35: 0 | ET35: 0 | EU35: 0 | EV35: 0 | EW35: 0 | EX35: 0 | EY35: 0 | EZ35: 0 | FA35: 0 | FB35: 0
L36: Central Darling (A) | M36: Far West | N36: 11700 | O36: 160 | P36: 100 | Q36: Central Darling | Y36: 1902158 | Z36: 16 | AA36: Broadacre crops - Other crops - Sugar cane - Cut for crushing | AC36: 1902158 | AD36: Sugar cane - Cut for crushing | AF36: Yes | AH36: 100 | AI36: 130 | AJ36: 17310 | AK36: 12 | AL36: 3308058 | AM36: NSW | AN36: Northern | AO36: Tamworth Regional (A) | AP36: Crops for hay | AQ36: Hay - Cereal crops cut for hay | AR36: 1338878.2 | AS36: 0 | AT36: 0 | BT36: 0 | BU36: 100 | BV36: 105 | BW36: 10750 | BX36: 81 | BY36: 91000 | BZ36: NSW | CA36: Sydney | CB36: Blacktown | CC36: Cattle | CD36: Meat | CE36: 1583 | CF36: 18 | CG36: 1001000000091000 | CH36: 1001050000091000 | CI36: 1001051075000000 | CJ36: 1001051075091000 | CL36: 100 | CM36: 105 | CN36: 13800 | CQ36: NSW | CR36: Sydney | CS36: Hawkesbury (C) | CV36: 432 | CW36: 12420 | CY36: 13800 | CZ36: 105 | DA36: 100 | DC36: 10350_4 | DD36: 100 | DE36: 105 | DF36: 10350 | DG36: NSW | DI36: Bankstown (C) | DJ36: 4 | DK36: Fruit and Tree Nut Growing, nfd | DL36: 0 | DM36: 103504 | DO36: 1054 | DQ36: 1004 | DR36: 100 | DV36: 100123308058 | DW36: 130123308058 | DX36: 1902158 | DY36: 16 | DZ36: 161902158 | EA36: 61828509.1 | EB36: 0 | EC36: 0 | ED36: 0 | EE36: 0 | EF36: 0 | EG36: 0 | EH36: 0 | EI36: 38719643.8 | EJ36: 0 | EK36: 21593462.4 | EL36: 0 | EM36: 547168.8 | EN36: 0 | EO36: 0 | EP36: 0 | EQ36: 968234.1 | ER36: 0 | ES36: 0 | ET36: 0 | EU36: 0 | EV36: 0 | EW36: 0 | EX36: 0 | EY36: 0 | EZ36: 0 | FA36: 0 | FB36: 0
L37: Cessnock (C) | M37: Hunter | N37: 11720 | O37: 110 | P37: 100 | Q37: Cessnock | Y37: 1902358 | Z37: 16 | AA37: Broadacre crops - Other crops - Sugar cane - Cut for plants | AC37: 1902358 | AD37: Sugar cane - Cut for plants | AF37: Yes | AH37: 100 | AI37: 130 | AJ37: 17400 | AK37: 12 | AL37: 3308058 | AM37: NSW | AN37: Northern | AO37: Tenterfield (A) | AP37: Crops for hay | AQ37: Hay - Cereal crops cut for hay | AR37: 87864.7 | AS37: 0 | AT37: 0 | BT37: 0 | BU37: 100 | BV37: 105 | BW37: 10750 | BX37: 81 | BY37: 91010 | BZ37: NSW | CA37: Sydney | CB37: Blacktown | CC37: Cattle | CD37: Cattle | CE37: 92 | CF37: 6 | CG37: 1001000000091010 | CH37: 1001050000091010 | CI37: 1001051075000000 | CJ37: 1001051075091010 | CL37: 100 | CM37: 105 | CN37: 14000 | CQ37: NSW | CR37: Sydney | CS37: Hornsby (A) | CV37: 60 | CW37: 38991 | CY37: 14000 | CZ37: 105 | DA37: 100 | DC37: 10350_3 | DD37: 100 | DE37: 105 | DF37: 10350 | DG37: NSW | DI37: Bankstown (C) | DJ37: 3 | DK37: Mushroom and Vegetable Growing, nfd | DL37: 0 | DM37: 103503 | DO37: 1053 | DQ37: 1003 | DR37: 100 | DV37: 100123308058 | DW37: 130123308058 | DX37: 1902358 | DY37: 16 | DZ37: 161902358 | EA37: 1298764.2 | EB37: 0 | EC37: 0 | ED37: 0 | EE37: 0 | EF37: 0 | EG37: 0 | EH37: 0 | EI37: 913325.6 | EJ37: 0 | EK37: 372290.3 | EL37: 0 | EM37: 13143.5 | EN37: 0 | EO37: 0 | EP37: 0 | EQ37: 0 | ER37: 0 | ES37: 0 | ET37: 0 | EU37: 4.8 | EV37: 0 | EW37: 0 | EX37: 0 | EY37: 0 | EZ37: 0 | FA37: 0 | FB37: 0
L38: Clarence Valley (A) | M38: Mid-North Coast | N38: 11730 | O38: 125 | P38: 100 | Q38: Clarence Valley | Y38: 1903158 | Z38: 16 | AA38: Broadacre crops - Other crops - Sugar cane (2006) | AB38: Total | AC38: 1903158 | AD38: Sugar cane (2006) | AE38: 1903158 | AF38: Yes | AH38: 100 | AI38: 130 | AJ38: 17650 | AK38: 12 | AL38: 3308058 | AM38: NSW | AN38: Northern | AO38: Uralla (A) | AP38: Crops for hay | AQ38: Hay - Cereal crops cut for hay | AR38: 319873.5 | AS38: 0 | AT38: 0 | BT38: 0 | BU38: 100 | BV38: 105 | BW38: 10750 | BX38: 82 | BY38: 91020 | BZ38: NSW | CA38: Sydney | CB38: Blacktown | CC38: Cereal | CD38: Cereal all purposes | CG38: 1001000000091020 | CH38: 1001050000091020 | CI38: 1001051075000000 | CJ38: 1001051075091020 | CL38: 100 | CM38: 105 | CN38: 14150 | CQ38: NSW | CR38: Sydney | CS38: Hurstville (C) | CV38: 58 | CW38: 53461 | CY38: 14150 | CZ38: 105 | DA38: 100 | DC38: 10350_2 | DD38: 100 | DE38: 105 | DF38: 10350 | DG38: NSW | DI38: Bankstown (C) | DJ38: 2 | DK38: Nursery and Floriculture Production, nfd | DL38: 0 | DM38: 103502 | DO38: 1052 | DQ38: 1002 | DR38: 100 | DV38: 100123308058 | DW38: 130123308058 | DX38: 1903158 | DY38: 16 | DZ38: 161903158 | EA38: 0 | EB38: 64883945 | EC38: 0 | ED38: 0 | EE38: 0 | EF38: 0 | EG38: 0 | EH38: 0 | EI38: 0 | EJ38: 45608401 | EK38: 0 | EL38: 19275544 | EM38: 0 | EN38: 0 | EO38: 0 | EP38: 0 | EQ38: 0 | ER38: 0 | ES38: 0 | ET38: 0 | EU38: 0 | EV38: 0 | EW38: 0 | EX38: 0 | EY38: 0 | EZ38: 0 | FA38: 0 | FB38: 0
L39: Cobar (A) | M39: North Western | N39: 11750 | O39: 135 | P39: 100 | Q39: Cobar | Y39: 1903958 | Z39: 16 | AA39: Broadacre crops - Oilseeds - Sunflower | AC39: 1903958 | AD39: Sunflower | AE39: 1903958 | AF39: Yes | AH39: 100 | AI39: 130 | AJ39: 17850 | AK39: 12 | AL39: 3308058 | AM39: NSW | AN39: Northern | AO39: Walcha (A) | AP39: Crops for hay | AQ39: Hay - Cereal crops cut for hay | AR39: 51580.8 | AS39: 0 | AT39: 0 | BT39: 0 | BU39: 100 | BV39: 105 | BW39: 10750 | BX39: 82 | BY39: 91040 | BZ39: NSW | CA39: Sydney | CB39: Blacktown | CC39: Cereal | CD39: Non cereal | CG39: 1001000000091040 | CH39: 1001050000091040 | CI39: 1001051075000000 | CJ39: 1001051075091040 | CL39: 100 | CM39: 115 | CN39: 18450 | CQ39: NSW | CR39: Illawarra | CS39: Wollongong (C) | CV39: 0 | CW39: 3 | CY39: 18450 | CZ39: 115 | DA39: 100 | DC39: 10350_6 | DD39: 100 | DE39: 105 | DF39: 10350 | DG39: NSW | DI39: Bankstown (C) | DJ39: 6 | DK39: Other Crop Growing, nfd | DL39: 0 | DM39: 103506 | DO39: 1056 | DQ39: 1006 | DR39: 100 | DV39: 100123308058 | DW39: 130123308058 | DX39: 1903958 | DY39: 16 | DZ39: 161903958 | EA39: 18812772.5 | EB39: 28344946 | EC39: 0 | ED39: 0 | EE39: 529511.6 | EF39: 0 | EG39: 0 | EH39: 0 | EI39: 0 | EJ39: 0 | EK39: 0 | EL39: 0 | EM39: 17045389.6 | EN39: 26003392 | EO39: 837321.1 | EP39: 1181170 | EQ39: 73498.5 | ER39: 423954 | ES39: 0 | ET39: 0 | EU39: 151729.8 | EV39: 705550 | EW39: 175321.9 | EX39: 30880 | EY39: 0 | EZ39: 0 | FA39: 0 | FB39: 0
L40: Coffs Harbour (C) | M40: Mid-North Coast | N40: 11800 | O40: 125 | P40: 100 | Q40: Coffs Harbour | Y40: 1904858 | Z40: 16 | AA40: Broadacre crops - Legumes for grain - Vetches | AC40: 1904858 | AD40: Vetches for seed | AE40: 1904858 | AF40: Yes | AH40: 100 | AI40: 135 | AJ40: 10950 | AK40: 12 | AL40: 3308058 | AM40: NSW | AN40: North Western | AO40: Bogan (A) | AP40: Crops for hay | AQ40: Hay - Cereal crops cut for hay | AR40: 1095651.2 | AS40: 0 | AT40: 0 | BT40: 0 | BU40: 100 | BV40: 105 | BW40: 10750 | BX40: 83 | BY40: 91060 | BZ40: NSW | CA40: Sydney | CB40: Blacktown | CC40: Chickens | CD40: Eggs | CE40: 194084 | CF40: 7 | CG40: 1001000000091060 | CH40: 1001050000091060 | CI40: 1001051075000000 | CJ40: 1001051075091060 | CL40: 100 | CM40: 130 | CN40: 14200 | CQ40: NSW | CR40: Northern | CS40: Inverell (A) | CV40: 2731 | CW40: 14661 | CY40: 14200 | CZ40: 130 | DA40: 100 | DC40: 10350_10 | DD40: 100 | DE40: 105 | DF40: 10350 | DG40: NSW | DI40: Bankstown (C) | DJ40: 10 | DK40: Other Livestock Farming nec | DL40: 0 | DM40: 1035010 | DO40: 10510 | DQ40: 10010 | DR40: 100 | DV40: 100123308058 | DW40: 135123308058 | DX40: 1904858 | DY40: 16 | DZ40: 161904858 | EA40: 249360.4 | EB40: 0 | EC40: 0 | ED40: 0 | EE40: 0 | EF40: 0 | EG40: 0 | EH40: 0 | EI40: 0 | EJ40: 0 | EK40: 0 | EL40: 0 | EM40: 0.4 | EN40: 0 | EO40: 10628.3 | EP40: 0 | EQ40: 22518.8 | ER40: 0 | ES40: 131.2 | ET40: 0 | EU40: 66894.4 | EV40: 0 | EW40: 149187.3 | EX40: 0 | EY40: 0 | EZ40: 0 | FA40: 0 | FB40: 0
L41: Conargo (A) | M41: Murray | N41: 11860 | O41: 155 | P41: 100 | Q41: Conargo | Y41: 1905258 | Z41: 16 | AA41: Broadacre crops - Legumes for grain - Lentils | AC41: 1905258 | AD41: Lentils | AE41: 1905258 | AF41: Yes | AH41: 100 | AI41: 135 | AJ41: 11150 | AK41: 12 | AL41: 3308058 | AM41: NSW | AN41: North Western | AO41: Bourke (A) | AP41: Crops for hay | AQ41: Hay - Cereal crops cut for hay | AR41: 3495.1 | AS41: 0 | AT41: 0 | BT41: 0 | BU41: 100 | BV41: 105 | BW41: 10750 | BX41: 83 | BY41: 91080 | BZ41: NSW | CA41: Sydney | CB41: Blacktown | CC41: Chickens | CD41: Meat | CE41: 861366 | CF41: 8 | CG41: 1001000000091080 | CH41: 1001050000091080 | CI41: 1001051075000000 | CJ41: 1001051075091080 | CL41: 100 | CM41: 125 | CN41: 14350 | CQ41: NSW | CR41: Mid-North Coast | CS41: Kempsey (A) | CV41: 791 | CW41: 15393 | CY41: 14350 | CZ41: 125 | DA41: 100 | DC41: 10350_8 | DD41: 100 | DE41: 105 | DF41: 10350 | DG41: NSW | DI41: Bankstown (C) | DJ41: 8 | DK41: Poultry Farming, nfd | DL41: 0 | DM41: 103508 | DO41: 1058 | DQ41: 1008 | DR41: 100 | DV41: 100123308058 | DW41: 135123308058 | DX41: 1905258 | DY41: 16 | DZ41: 161905258 | EA41: 412848.5 | EB41: 779322 | EC41: 0 | ED41: 0 | EE41: 0 | EF41: 0 | EG41: 0 | EH41: 0 | EI41: 0 | EJ41: 0 | EK41: 0 | EL41: 0 | EM41: 86952.6 | EN41: 0 | EO41: 0 | EP41: 64908 | EQ41: 94289 | ER41: 6997 | ES41: 0 | ET41: 0 | EU41: 0 | EV41: 44454 | EW41: 231606.9 | EX41: 662963 | EY41: 0 | EZ41: 0 | FA41: 0 | FB41: 0
L42: Coolah (A) | M42: North Western | N42: 11950 | O42: 135 | P42: 100 | Q42: Coolah | Y42: 1907258 | Z42: 16 | AA42: Broadacre crops - Other crops - Coriander | AC42: 1907258 | AD42: Coriander | AE42: 1907258 | AF42: Yes | AH42: 100 | AI42: 135 | AJ42: 11750 | AK42: 12 | AL42: 3308058 | AM42: NSW | AN42: North Western | AO42: Cobar (A) | AP42: Crops for hay | AQ42: Hay - Cereal crops cut for hay | AR42: 412762.6 | AS42: 0 | AT42: 0 | BT42: 0 | BU42: 100 | BV42: 105 | BW42: 10750 | BX42: 84 | BY42: 91100 | BZ42: NSW | CA42: Sydney | CB42: Blacktown | CC42: Fruit | CD42: ex grape | CE42: 1 | CF42: 2 | CG42: 1001000000091100 | CH42: 1001050000091100 | CI42: 1001051075000000 | CJ42: 1001051075091100 | CL42: 100 | CM42: 115 | CN42: 14400 | CQ42: NSW | CR42: Illawarra | CS42: Kiama (A) | CV42: 249 | CW42: 36563 | CY42: 14400 | CZ42: 115 | DA42: 100 | DC42: 10350_5 | DD42: 100 | DE42: 105 | DF42: 10350 | DG42: NSW | DI42: Bankstown (C) | DJ42: 5 | DK42: Sheep, Beef Cattle and Grain Farming, nfd | DL42: 0 | DM42: 103505 | DO42: 1055 | DQ42: 1005 | DR42: 100 | DV42: 100123308058 | DW42: 135123308058 | DX42: 1907258 | DY42: 16 | DZ42: 161907258 | EA42: 104703.3 | EB42: 0 | EC42: 33076.6 | ED42: 0 | EE42: 0 | EF42: 0 | EG42: 0 | EH42: 0 | EI42: 0 | EJ42: 0 | EK42: 0 | EL42: 0 | EM42: 0 | EN42: 0 | EO42: 46396.6 | EP42: 0 | EQ42: 25054.6 | ER42: 0 | ES42: 175.5 | ET42: 0 | EU42: 0 | EV42: 0 | EW42: 0 | EX42: 0 | EY42: 0 | EZ42: 0 | FA42: 0 | FB42: 0
L43: Coolamon (A) | M43: Murrumbidgee | N43: 12000 | O43: 150 | P43: 100 | Q43: Coolamon | Y43: 1907658 | Z43: 16 | AA43: Broadacre crops - Legumes for grain - Faba beans (includes tick and horse and broad) | AC43: 1907658 | AD43: Faba beans (includes tick and horse and broad) | AF43: Yes | AH43: 100 | AI43: 135 | AJ43: 12150 | AK43: 12 | AL43: 3308058 | AM43: NSW | AN43: North Western | AO43: Coonamble (A) | AP43: Crops for hay | AQ43: Hay - Cereal crops cut for hay | AR43: 892469 | AS43: 0 | AT43: 0 | BT43: 0 | BU43: 100 | BV43: 105 | BW43: 10750 | BX43: 86 | BY43: 91140 | BZ43: NSW | CA43: Sydney | CB43: Blacktown | CC43: Horses | CD43: Non Stud | CE43: 132 | CF43: 4 | CG43: 1001000000091140 | CH43: 1001050000091140 | CI43: 1001051075000000 | CJ43: 1001051075091140 | CL43: 100 | CM43: 165 | CN43: 14450 | CQ43: NSW | CR43: Unknown | CS43: Kogarah (C) | CV43: 30 | CW43: 57157 | CY43: 14450 | CZ43: 165 | DA43: 100 | DC43: 10470_1 | DD43: 100 | DE43: 140 | DF43: 10470 | DG43: NSW | DI43: Bathurst Regional (A) | DJ43: 1 | DK43: Agriculture, nfd | DL43: 42 | DM43: 104701 | DO43: 1401 | DQ43: 1001 | DR43: 100 | DV43: 100123308058 | DW43: 135123308058 | DX43: 1907658 | DY43: 16 | DZ43: 161907658 | EA43: 15902197.2 | EB43: 0 | EC43: 0 | ED43: 0 | EE43: 0 | EF43: 0 | EG43: 0 | EH43: 0 | EI43: 14551.6 | EJ43: 0 | EK43: 2332.1 | EL43: 0 | EM43: 8821383.5 | EN43: 0 | EO43: 6406612.9 | EP43: 0 | EQ43: 272781.9 | ER43: 0 | ES43: 0 | ET43: 0 | EU43: 266274.1 | EV43: 0 | EW43: 118261.1 | EX43: 0 | EY43: 0 | EZ43: 0 | FA43: 0 | FB43: 0
L44: Cooma-Monaro (A) | M44: South Eastern | N44: 12050 | O44: 145 | P44: 100 | Q44: Cooma-Monaro | Y44: 1908858 | Z44: 16 | AA44: Pyrethrum | AC44: 1908858 | AD44: Pyrethrum | AE44: 1908858 | AF44: No | AH44: 100 | AI44: 135 | AJ44: 12600 | AK44: 12 | AL44: 3308058 | AM44: NSW | AN44: North Western | AO44: Dubbo (C) | AP44: Crops for hay | AQ44: Hay - Cereal crops cut for hay | AR44: 1329143.9 | AS44: 0 | AT44: 0 | BT44: 0 | BU44: 100 | BV44: 105 | BW44: 10750 | BX44: 86 | BY44: 91160 | BZ44: NSW | CA44: Sydney | CB44: Blacktown | CC44: Horses | CD44: Stud | CG44: 1001000000091160 | CH44: 1001050000091160 | CI44: 1001051075000000 | CJ44: 1001051075091160 | CL44: 100 | CM44: 105 | CN44: 14500 | CQ44: NSW | CR44: Sydney | CS44: Ku-ring-gai (A) | CV44: 118 | CW44: 50432 | CY44: 14500 | CZ44: 105 | DA44: 100 | DC44: 10470_7 | DD44: 100 | DE44: 140 | DF44: 10470 | DG44: NSW | DI44: Bathurst Regional (A) | DJ44: 7 | DK44: Dairy Cattle Farming | DL44: 11 | DM44: 104707 | DO44: 1407 | DQ44: 1007 | DR44: 100 | DV44: 100123308058 | DW44: 135123308058 | DX44: 1908858 | DY44: 16 | DZ44: 161908858 | EA44: 0 | EB44: 0 | EC44: 0 | ED44: 0 | EE44: 0 | EF44: 0 | EG44: 0 | EH44: 0 | EI44: 0 | EJ44: 0 | EK44: 0 | EL44: 0 | EM44: 0 | EN44: 0 | EO44: 0 | EP44: 0 | EQ44: 0 | ER44: 0 | ES44: 0 | ET44: 0 | EU44: 0 | EV44: 0 | EW44: 0 | EX44: 0 | EY44: 0 | EZ44: 0 | FA44: 0 | FB44: 0
L45: Coonabarabran (A) | M45: North Western | N45: 12100 | O45: 135 | P45: 100 | Q45: Coonabarabran | Y45: 1908958 | Z45: 16 | AA45: Peppermint | AC45: 1908958 | AD45: Peppermint | AE45: 1908958 | AF45: No | AH45: 100 | AI45: 135 | AJ45: 12950 | AK45: 12 | AL45: 3308058 | AM45: NSW | AN45: North Western | AO45: Gilgandra (A) | AP45: Crops for hay | AQ45: Hay - Cereal crops cut for hay | AR45: 950701.3 | AS45: 0 | AT45: 0 | BT45: 0 | BU45: 100 | BV45: 105 | BW45: 10750 | BX45: 87 | BY45: 91180 | BZ45: NSW | CA45: Sydney | CB45: Blacktown | CC45: Nurseries | CD45: Cut Flowers | CE45: 32660 | CF45: 5 | CG45: 1001000000091180 | CH45: 1001050000091180 | CI45: 1001051075000000 | CJ45: 1001051075091180 | CL45: 100 | CM45: 140 | CN45: 14600 | CQ45: NSW | CR45: Central West | CS45: Lachlan (A) | CV45: 4614 | CW45: 22826 | CY45: 14600 | CZ45: 140 | DA45: 100 | DC45: 10470_9 | DD45: 100 | DE45: 140 | DF45: 10470 | DG45: NSW | DI45: Bathurst Regional (A) | DJ45: 9 | DK45: Deer Farming | DL45: 0 | DM45: 104709 | DO45: 1409 | DQ45: 1009 | DR45: 100 | DV45: 100123308058 | DW45: 135123308058 | DX45: 1908958 | DY45: 16 | DZ45: 161908958 | EA45: 0 | EB45: 0 | EC45: 0 | ED45: 0 | EE45: 0 | EF45: 0 | EG45: 0 | EH45: 0 | EI45: 0 | EJ45: 0 | EK45: 0 | EL45: 0 | EM45: 0 | EN45: 0 | EO45: 0 | EP45: 0 | EQ45: 0 | ER45: 0 | ES45: 0 | ET45: 0 | EU45: 0 | EV45: 0 | EW45: 0 | EX45: 0 | EY45: 0 | EZ45: 0 | FA45: 0 | FB45: 0
L46: Coonamble (A) | M46: North Western | N46: 12150 | O46: 135 | P46: 100 | Q46: Coonamble | Y46: 1910358 | Z46: 16 | AA46: Broadacre crops - Other crops - All other crops n.e.c. | AC46: 1910358 | AD46: Other crops | AE46: 1909857 | AF46: Yes | AH46: 100 | AI46: 135 | AJ46: 15270 | AK46: 12 | AL46: 3308058 | AM46: NSW | AN46: North Western | AO46: Mid-Western Regional (A) | AP46: Crops for hay | AQ46: Hay - Cereal crops cut for hay | AR46: 602584.8 | AS46: 0 | AT46: 0 | BT46: 0 | BU46: 100 | BV46: 105 | BW46: 10750 | BX46: 87 | BY46: 91190 | BZ46: NSW | CA46: Sydney | CB46: Blacktown | CC46: Nurseries | CD46: Nurseries | CE46: 8 | CF46: 2 | CG46: 1001000000091190 | CH46: 1001050000091190 | CI46: 1001051075000000 | CJ46: 1001051075091190 | CL46: 100 | CM46: 110 | CN46: 14650 | CQ46: NSW | CR46: Hunter | CS46: Lake Macquarie (C) | CV46: 65 | CW46: 52960 | CY46: 14650 | CZ46: 110 | DA46: 100 | DC46: 10470_4 | DD46: 100 | DE46: 140 | DF46: 10470 | DG46: NSW | DI46: Bathurst Regional (A) | DJ46: 4 | DK46: Fruit and Tree Nut Growing, nfd | DL46: 3 | DM46: 104704 | DO46: 1404 | DQ46: 1004 | DR46: 100 | DV46: 100123308058 | DW46: 135123308058 | DX46: 1910358 | DY46: 16 | DZ46: 161910358 | EA46: 12555754.4 | EB46: 0 | EC46: 53157.5 | ED46: 0 | EE46: 513542.8 | EF46: 0 | EG46: 12821.5 | EH46: 0 | EI46: 1521192.8 | EJ46: 0 | EK46: 321738.7 | EL46: 0 | EM46: 3035817.7 | EN46: 0 | EO46: 3593179.4 | EP46: 0 | EQ46: 1640116.8 | ER46: 0 | ES46: 363909 | ET46: 0 | EU46: 833801.2 | EV46: 0 | EW46: 666477 | EX46: 0 | EY46: 0 | EZ46: 0 | FA46: 0 | FB46: 0
L47: Cootamundra (A) | M47: Murrumbidgee | N47: 12200 | O47: 150 | P47: 100 | Q47: Cootamundra | Y47: 3410053 | Z47: 16 | AA47: Broadacre crops - Other crops - Sugar cane | AB47: Total | AC47: 3410053 | AD47: Broadacre crops - Other crops - Sugar cane | AF47: No | AH47: 100 | AI47: 135 | AJ47: 15850 | AK47: 12 | AL47: 3308058 | AM47: NSW | AN47: North Western | AO47: Narromine (A) | AP47: Crops for hay | AQ47: Hay - Cereal crops cut for hay | AR47: 1543260.1 | AS47: 0 | AT47: 0 | BT47: 0 | BU47: 100 | BV47: 105 | BW47: 10750 | BX47: 87 | BY47: 91192 | BZ47: NSW | CA47: Sydney | CB47: Blacktown | CC47: Nurseries | CD47: Nurseries - Indoor (ha.) | CE47: 10881 | CF47: 1 | CG47: 1001000000091192 | CH47: 1001050000091192 | CI47: 1001051075000000 | CJ47: 1001051075091192 | CL47: 100 | CM47: 110 | CN47: 14650 | CQ47: NSW | CR47: Hunter | CS47: Lake Macquarie (C) | CV47: 142 | CW47: 29633 | CY47: 14650 | CZ47: 110 | DA47: 100 | DC47: 10470_3 | DD47: 100 | DE47: 140 | DF47: 10470 | DG47: NSW | DI47: Bathurst Regional (A) | DJ47: 3 | DK47: Mushroom and Vegetable Growing, nfd | DL47: 0 | DM47: 104703 | DO47: 1403 | DQ47: 1003 | DR47: 100 | DV47: 100123308058 | DW47: 135123308058 | DX47: 3410053 | DY47: 16 | DZ47: 163410053 | EA47: 0 | EB47: 0 | EC47: 0 | ED47: 0 | EE47: 0 | EF47: 0 | EG47: 0 | EH47: 0 | EI47: 0 | EJ47: 0 | EK47: 0 | EL47: 0 | EM47: 0 | EN47: 0 | EO47: 0 | EP47: 0 | EQ47: 0 | ER47: 0 | ES47: 0 | ET47: 0 | EU47: 0 | EV47: 0 | EW47: 0 | EX47: 0 | EY47: 0 | EZ47: 0 | FA47: 0 | FB47: 0
L48: Copmanhurst (A) | M48: Mid-North Coast | N48: 12250 | O48: 125 | P48: 100 | Q48: Copmanhurst | Y48: 3410057 | Z48: 16 | AA48: Broadacre crops - Other crops | AB48: Total | AC48: 3410057 | AD48: Broadacre crops - Other crops | AF48: No | AH48: 100 | AI48: 135 | AJ48: 17900 | AK48: 12 | AL48: 3308058 | AM48: NSW | AN48: North Western | AO48: Walgett (A) | AP48: Crops for hay | AQ48: Hay - Cereal crops cut for hay | AR48: 1297491.8 | AS48: 0 | AT48: 0 | BT48: 0 | BU48: 100 | BV48: 105 | BW48: 10750 | BX48: 87 | BY48: 91194 | BZ48: NSW | CA48: Sydney | CB48: Blacktown | CC48: Nurseries | CD48: Nurseries - Outdoor (ha.) | CE48: 7 | CF48: 2 | CG48: 1001000000091194 | CH48: 1001050000091194 | CI48: 1001051075000000 | CJ48: 1001051075091194 | CL48: 100 | CM48: 105 | CN48: 14800 | CQ48: NSW | CR48: Sydney | CS48: Leichhardt (A) | CV48: 27 | CW48: 30000 | CY48: 14800 | CZ48: 105 | DA48: 100 | DC48: 10470_2 | DD48: 100 | DE48: 140 | DF48: 10470 | DG48: NSW | DI48: Bathurst Regional (A) | DJ48: 2 | DK48: Nursery and Floriculture Production, nfd | DL48: 0 | DM48: 104702 | DO48: 1402 | DQ48: 1002 | DR48: 100 | DV48: 100123308058 | DW48: 135123308058 | DX48: 3410057 | DY48: 16 | DZ48: 163410057 | EA48: 0 | EB48: 0 | EC48: 0 | ED48: 0 | EE48: 0 | EF48: 0 | EG48: 0 | EH48: 0 | EI48: 0 | EJ48: 0 | EK48: 0 | EL48: 0 | EM48: 0 | EN48: 0 | EO48: 0 | EP48: 0 | EQ48: 0 | ER48: 0 | ES48: 0 | ET48: 0 | EU48: 0 | EV48: 0 | EW48: 0 | EX48: 0 | EY48: 0 | EZ48: 0 | FA48: 0 | FB48: 0
L49: Corowa Shire (A) | M49: Murray | N49: 12300 | O49: 155 | P49: 100 | Q49: Corowa Shire | Y49: 3600258 | Z49: 16 | AA49: Globe artichokes | AC49: 3600258 | AD49: Globe artichokes | AE49: 3600258 | AF49: No | AH49: 100 | AI49: 135 | AJ49: 17950 | AK49: 12 | AL49: 3308058 | AM49: NSW | AN49: North Western | AO49: Warren (A) | AP49: Crops for hay | AQ49: Hay - Cereal crops cut for hay | AR49: 363489.2 | AS49: 0 | AT49: 0 | BT49: 0 | BU49: 100 | BV49: 105 | BW49: 10750 | BX49: 87 | BY49: 91200 | BZ49: NSW | CA49: Sydney | CB49: Blacktown | CC49: Nurseries | CD49: Turf | CG49: 1001000000091200 | CH49: 1001050000091200 | CI49: 1001051075000000 | CJ49: 1001051075091200 | CL49: 100 | CM49: 140 | CN49: 14870 | CQ49: NSW | CR49: Central West | CS49: Lithgow (C) | CV49: 1289 | CW49: 17963 | CY49: 14870 | CZ49: 140 | DA49: 100 | DC49: 10470_6 | DD49: 100 | DE49: 140 | DF49: 10470 | DG49: NSW | DI49: Bathurst Regional (A) | DJ49: 6 | DK49: Other Crop Growing, nfd | DL49: 0 | DM49: 104706 | DO49: 1406 | DQ49: 1006 | DR49: 100 | DV49: 100123308058 | DW49: 135123308058 | DX49: 3600258 | DY49: 16 | DZ49: 163600258 | EA49: 0 | EB49: 0 | EC49: 0 | ED49: 0 | EE49: 0 | EF49: 0 | EG49: 0 | EH49: 0 | EI49: 0 | EJ49: 0 | EK49: 0 | EL49: 0 | EM49: 0 | EN49: 0 | EO49: 0 | EP49: 0 | EQ49: 0 | ER49: 0 | ES49: 0 | ET49: 0 | EU49: 0 | EV49: 0 | EW49: 0 | EX49: 0 | EY49: 0 | EZ49: 0 | FA49: 0 | FB49: 0
L50: Cowra (A) | M50: Central West | N50: 12350 | O50: 140 | P50: 100 | Q50: Cowra | Y50: 3600758 | Z50: 16 | AA50: Butter beans (processing and fresh market) | AC50: 3600758 | AD50: Butter beans (processing and fresh market) | AE50: 3600758 | AF50: No | AH50: 100 | AI50: 135 | AJ50: 18020 | AK50: 12 | AL50: 3308058 | AM50: NSW | AN50: North Western | AO50: Warrumbungle Shire (A) | AP50: Crops for hay | AQ50: Hay - Cereal crops cut for hay | AR50: 1286429 | AS50: 0 | AT50: 0 | BT50: 0 | BU50: 100 | BV50: 105 | BW50: 10750 | BX50: 88 | BY50: 91220 | BZ50: NSW | CA50: Sydney | CB50: Blacktown | CC50: Pigs | CD50: Pigs | CE50: 1878 | CF50: 7 | CG50: 1001000000091220 | CH50: 1001050000091220 | CI50: 1001051075000000 | CJ50: 1001051075091220 | CL50: 100 | CM50: 105 | CN50: 14900 | CQ50: NSW | CR50: Sydney | CS50: Liverpool (C) | CV50: 109 | CW50: 43318 | CY50: 14900 | CZ50: 105 | DA50: 100 | DC50: 10470_10 | DD50: 100 | DE50: 140 | DF50: 10470 | DG50: NSW | DI50: Bathurst Regional (A) | DJ50: 10 | DK50: Other Livestock Farming nec | DL50: 8 | DM50: 1047010 | DO50: 14010 | DQ50: 10010 | DR50: 100 | DV50: 100123308058 | DW50: 135123308058 | DX50: 3600758 | DY50: 16 | DZ50: 163600758 | EA50: 0 | EB50: 0 | EC50: 0 | ED50: 0 | EE50: 0 | EF50: 0 | EG50: 0 | EH50: 0 | EI50: 0 | EJ50: 0 | EK50: 0 | EL50: 0 | EM50: 0 | EN50: 0 | EO50: 0 | EP50: 0 | EQ50: 0 | ER50: 0 | ES50: 0 | ET50: 0 | EU50: 0 | EV50: 0 | EW50: 0 | EX50: 0 | EY50: 0 | EZ50: 0 | FA50: 0 | FB50: 0
